Workbook

Sheet OLD PAPI_24- 27 (Delib. 246) (hidden)
A1: ID Ação | B1: Ação iniciou no PA/PI anterior? | C1: Se sim, id da ação anterior | D1: Ano previsto para início | E1: Tipo de ação | F1: É ou será empreendimento FEHIDRO? | G1: Ação requer recursos financeiros? | H1: SubPDC | I1: Prioridade do SubPDC | J1: Ação | K1: Meta | L1: % Execução da meta do quadriênio | M1: Segmento do executor | N1: Área de abrangência | O1: Nome da área de abrangência | P1: Recurso financeiro estimado no ano (R$) - Cobrança Estadual | Q1: Recurso financeiro estimado no ano (R$) - CFURH | R1: Recurso financeiro estimado no ano (R$) - Cobrança Federal | S1: Recurso financeiro estimado no ano (R$) - Outras | T1: Especificar Fonte - "Outras" | U1: Recurso financeiro estimado no ano (R$) | V1: Recurso financeiro disponibilizado no ano (R$) | W1: Recurso financeiro executado no ano (R$) | X1: Justificativa sobre execução física e financeira
A2: SID012024 | B2: Não | D2: 2024 | F2: Sim | H2: 3.1 - Efluentes | I2: Não prioritário | J2: Efetuar estudos de detalhe sobre a disponibilidade hídrica superficial e subterrânea (AG.11) | K2: MG.4 - Realizar ao menos 01 estudo que subsidie o planejamento e a gestão de recursos hídricos na UGRHi 18 | N2: Sub-bacia | O2: Sub-bacia crítica conforme classe de vazão de referência apontadas no Relatório de Situação | U2: =IF(SUM(PAPI20_22_23[[#This Row],[Recurso financeiro estimado no ano (R$) - Cobrança Estadual]:[Recurso financeiro estimado no ano (R$) - Outras]]) >0,SUM(PAPI20_22_23[[#This Row],[Recurso financeiro estimado no ano (R$) - Cobrança Estadual]:[Recurso financeiro estimado no ano (R$) - Outras]]),"") -> 
A3: SID012025 | D3: 2024 | J3: Manter o cadastro atualizado na bacia hidrográfica SJD (AG.13) | K3: MG.4 - Realizar ao menos 01 estudo para acompanhamento e adequação da cobrança pelo uso dos recursos hídricos | M3: Estado | N3: UGRHi | O3: UGRHi 18 | P3: 170000 | U3: =IF(SUM(PAPI20_22_23[[#This Row],[Recurso financeiro estimado no ano (R$) - Cobrança Estadual]:[Recurso financeiro estimado no ano (R$) - Outras]]) >0,SUM(PAPI20_22_23[[#This Row],[Recurso financeiro estimado no ano (R$) - Cobrança Estadual]:[Recurso financeiro estimado no ano (R$) - Outras]]),"") -> 170000
A4: SID012024 | J4: Execução de obras de sistemas de esgotamento sanitário, bem como de tratamento de efluentes provenientes de ETE (AI.3, 4, 5 e 6) | K4: MI. 2 e 3 - Efetuar melhorias nos sistemas de tratamento de esgoto em ao menos 02 municípios | M4: Município | N4: Município | O4: Municípios da UGRHi 18 que apresentem proporção de redução da carga orgânica poluidora domestica ≤ 80%. | P4: 260000 | U4: =IF(SUM(PAPI20_22_23[[#This Row],[Recurso financeiro estimado no ano (R$) - Cobrança Estadual]:[Recurso financeiro estimado no ano (R$) - Outras]]) >0,SUM(PAPI20_22_23[[#This Row],[Recurso financeiro estimado no ano (R$) - Cobrança Estadual]:[Recurso financeiro estimado no ano (R$) - Outras]]),"") -> 260000
A5: SID042022 | J5: Execução de obras e projetos (AI 8 e 9) nos casos em que haja comprometimento dos recursos hídricos | K5: MI.4 - Efetuar melhorias nos sistemas de aterros sanitários em ao menos 02 municípios | M5: Município | N5: Município | O5: Municípios com sistema de tratamento e coleta de resíduos sólidos ineficientes, conforme consta no Rel. Situação. | P5: 250000 | U5: =IF(SUM(PAPI20_22_23[[#This Row],[Recurso financeiro estimado no ano (R$) - Cobrança Estadual]:[Recurso financeiro estimado no ano (R$) - Outras]]) >0,SUM(PAPI20_22_23[[#This Row],[Recurso financeiro estimado no ano (R$) - Cobrança Estadual]:[Recurso financeiro estimado no ano (R$) - Outras]]),"") -> 250000
A6: SID052022 | J6: Execução de obras ou projetos que controle a erosão do solo ou assoreamento dos corpos d’água, em áreas urbanas ou rurais (AI. 14, 15 e 16) | K6: MI. 6 e MI. 7 - Aprimorar sistemas de conservação do solo e controle de erosão em ao menos 03 municípios | M6: Município | N6: Município | O6: Municípios com Plano de Drenagem ou Plano Diretor de Erosão elaborado | Q6: 288866.7 | U6: =IF(SUM(PAPI20_22_23[[#This Row],[Recurso financeiro estimado no ano (R$) - Cobrança Estadual]:[Recurso financeiro estimado no ano (R$) - Outras]]) >0,SUM(PAPI20_22_23[[#This Row],[Recurso financeiro estimado no ano (R$) - Cobrança Estadual]:[Recurso financeiro estimado no ano (R$) - Outras]]),"") -> 288866.7
A7: SID062022 | J7: Implementação das açoes indicadas no Plano de Saneamento (AI.11 e 12) (troca de hidrômetros, manutenção de rede, instalação de válvulas redutoras de pressão, entre outros) | K7: MI.5 - Reduzir perdas em sistemas de abastecimento de água em ao menos 02 municípios | M7: Município | N7: Município | O7: Ilha Solteira, Santa Fé do Sul, Suzanápolis, São João de Iracema e Neves Paulista | P7: 170000 | U7: =IF(SUM(PAPI20_22_23[[#This Row],[Recurso financeiro estimado no ano (R$) - Cobrança Estadual]:[Recurso financeiro estimado no ano (R$) - Outras]]) >0,SUM(PAPI20_22_23[[#This Row],[Recurso financeiro estimado no ano (R$) - Cobrança Estadual]:[Recurso financeiro estimado no ano (R$) - Outras]]),"") -> 170000
A8: SID072022 | J8: Execução de obras ou projetos de galerias de águas pluviais e canalização de curso d'água em área urbana e periurbana (AI.17, AI. 21, 22 e 23 ) | K8: MI. 7 e MI. 9 - Realizar melhorias nos sistemas de drenagem em ao menos 02 municípios | M8: Município | N8: Município | O8: Obras indicadas no Plano/Estudo de Drenagem no Município e para Projetos com necessidades de readequação/ampliação | Q8: 200000 | U8: =IF(SUM(PAPI20_22_23[[#This Row],[Recurso financeiro estimado no ano (R$) - Cobrança Estadual]:[Recurso financeiro estimado no ano (R$) - Outras]]) >0,SUM(PAPI20_22_23[[#This Row],[Recurso financeiro estimado no ano (R$) - Cobrança Estadual]:[Recurso financeiro estimado no ano (R$) - Outras]]),"") -> 200000
A9: SID082022 | J9: Orientação aos produtores rurais quanto à importância da outorga e treinamento/capacitação sobre os procedimentos de outorga e licenciamento ambiental (AG.25) | K9: MG.9. Realizar ao menos 1 curso de capacitação técnica relacionada ao planejamento e gestão de recursos hídricos | N9: UGRHi | O9: UGRHi 18 | P9: 150000 | U9: =IF(SUM(PAPI20_22_23[[#This Row],[Recurso financeiro estimado no ano (R$) - Cobrança Estadual]:[Recurso financeiro estimado no ano (R$) - Outras]]) >0,SUM(PAPI20_22_23[[#This Row],[Recurso financeiro estimado no ano (R$) - Cobrança Estadual]:[Recurso financeiro estimado no ano (R$) - Outras]]),"") -> 150000 | V9: 150000 | W9: 0 | X9: empreendimento não iniciado - emitiu o contrato
A10: SID012023 | J10: Realizar estudo/diagnóstico ambiental das nascentes, por sub-bacia, na UGRHI | K10: Aumentar as informações afim de subsidiar o planejamento e a gestão dos recursos hídricos na UGRHI | M10: DIVERSOS | N10: UGRHi | O10: UGRHi 18 | P10: 200197.43 | U10: =IF(SUM(PAPI20_22_23[[#This Row],[Recurso financeiro estimado no ano (R$) - Cobrança Estadual]:[Recurso financeiro estimado no ano (R$) - Outras]]) >0,SUM(PAPI20_22_23[[#This Row],[Recurso financeiro estimado no ano (R$) - Cobrança Estadual]:[Recurso financeiro estimado no ano (R$) - Outras]]),"") -> 200197.43
A11: SID022023 | J11: Elaborar mapa de feições erosivas da UGRHI | K11: Aumentar as informações afim de subsidiar o planejamento e a gestão dos recursos hídricos na UGRHI | M11: DIVERSOS | N11: UGRHi | O11: UGRHi 18 | Q11: 280000 | U11: =IF(SUM(PAPI20_22_23[[#This Row],[Recurso financeiro estimado no ano (R$) - Cobrança Estadual]:[Recurso financeiro estimado no ano (R$) - Outras]]) >0,SUM(PAPI20_22_23[[#This Row],[Recurso financeiro estimado no ano (R$) - Cobrança Estadual]:[Recurso financeiro estimado no ano (R$) - Outras]]),"") -> 280000
A12: SID032022 | J12: Elaboração do Plano diretor de controle de perdas | K12: Aumentar as informações afim de subsidiar o planejamento e a gestão dos recursos hídricos na UGRHI | M12: Município | N12: Município | O12: Ilha Solteira, Neves Paulista, São João de Iracema e Santa Fé do Sul. | P12: 170000 | U12: =IF(SUM(PAPI20_22_23[[#This Row],[Recurso financeiro estimado no ano (R$) - Cobrança Estadual]:[Recurso financeiro estimado no ano (R$) - Outras]]) >0,SUM(PAPI20_22_23[[#This Row],[Recurso financeiro estimado no ano (R$) - Cobrança Estadual]:[Recurso financeiro estimado no ano (R$) - Outras]]),"") -> 170000
A13: SID042023 | J13: Elaborar estudos para o controle de processos erosivos e projetos (básicos e/ou executivos), serviços ou obras para prevenção, prioritariamente em bacias de abastecimento, nascentes e áreas de recarga (troca de hidrômetros, manutenção de rede, instalação de válvulas redutoras de pressão, entre outros) | K13: Prevenir e controlar processos de erosão e assoreamento, visando a melhoria ou recuperação dos corpos d’água | M13: Município | N13: Município | O13: Floreal, General Salgado, Ilha Solteira, Jales, Monte Aprazível, Neves Paulista, Nhandeara, Palmeira d´oeste, Santa Fé do Sul, Sebastianópolis do Sul, Cosmorama, Monte Aprazível, Poloni, Santa Salete, Santana da Ponte Pensa, São Francisco, Tanabi, Três Fronteiras e Votuporanga | P13: 400000 | Q13: 300000 | U13: =IF(SUM(PAPI20_22_23[[#This Row],[Recurso financeiro estimado no ano (R$) - Cobrança Estadual]:[Recurso financeiro estimado no ano (R$) - Outras]]) >0,SUM(PAPI20_22_23[[#This Row],[Recurso financeiro estimado no ano (R$) - Cobrança Estadual]:[Recurso financeiro estimado no ano (R$) - Outras]]),"") -> 700000
A14: SID052023 | J14: Elaborar Projetos (básicos e/ou executivos), obras ou serviços em sistemas de abastecimento, visando controle e redução de perdas de água | K14: Alcance de uma média de 25% de perdas globais nos municípios da Bacia | M14: Município | N14: Município | O14: Ilha Solteira, Suzanápolis, Santa Fé do Sul, Neves Paulista e São João de Iracema. | P14: 300000 | U14: =IF(SUM(PAPI20_22_23[[#This Row],[Recurso financeiro estimado no ano (R$) - Cobrança Estadual]:[Recurso financeiro estimado no ano (R$) - Outras]]) >0,SUM(PAPI20_22_23[[#This Row],[Recurso financeiro estimado no ano (R$) - Cobrança Estadual]:[Recurso financeiro estimado no ano (R$) - Outras]]),"") -> 300000
A15: SID092023 | J15: Aquisição de equipamentos para operacionalização de sistemas de alerta, radares meteorológicos ou redes telemétricas integrados a sistemas de suporte à decisão; divulgação de informações e apoio à defesa civil (AG. 24) | K15: MG. 8 - Estruturar 01 Sala de Situação visando o Monitoramento de eventos extremos e sistemas de suporte a decisão | N15: Sub-bacia | O15: UGRHi 18 | P15: 400000 | U15: =IF(SUM(PAPI20_22_23[[#This Row],[Recurso financeiro estimado no ano (R$) - Cobrança Estadual]:[Recurso financeiro estimado no ano (R$) - Outras]]) >0,SUM(PAPI20_22_23[[#This Row],[Recurso financeiro estimado no ano (R$) - Cobrança Estadual]:[Recurso financeiro estimado no ano (R$) - Outras]]),"") -> 400000 | V15: 851322.1 | W15: 0 | X15: adiantamos a indicação da ação prevista para 2023 - empreendimento cancelado
A16: SID07023 | J16: Elaborar projetos (básicos e/ou executivos), serviços, obras em municípios com sistema de coleta e disposição final de resíduos sólidos ineficientes e/ou inadequadas; e implantar pontos de entrega voluntária (PEV), e programas de coleta seletiva | K16: Aumentar a cobertura da coleta de resíduos sólidos em áreas urbanas e rurais dos municípios | M16: Município | N16: Município | O16: Município | P16: 308323.15 | U16: =IF(SUM(PAPI20_22_23[[#This Row],[Recurso financeiro estimado no ano (R$) - Cobrança Estadual]:[Recurso financeiro estimado no ano (R$) - Outras]]) >0,SUM(PAPI20_22_23[[#This Row],[Recurso financeiro estimado no ano (R$) - Cobrança Estadual]:[Recurso financeiro estimado no ano (R$) - Outras]]),"") -> 308323.15
A17: SID08023 | J17: Elaborar projetos (básicos e/ou executivos), executar obras ou serviços em sistemas de abastecimento, visando propor soluções alternativas e a ampliação da rede de distribuição, das demais estruturas de apoio ao abastecimento | K17: Aproveitamento dos recursos hídricos e segurança hídrica | M17: Município | N17: Município | O17: Município | P17: 179324.92 | U17: =IF(SUM(PAPI20_22_23[[#This Row],[Recurso financeiro estimado no ano (R$) - Cobrança Estadual]:[Recurso financeiro estimado no ano (R$) - Outras]]) >0,SUM(PAPI20_22_23[[#This Row],[Recurso financeiro estimado no ano (R$) - Cobrança Estadual]:[Recurso financeiro estimado no ano (R$) - Outras]]),"") -> 179324.92
A18: SID06023 | J18: Elaborar projetos (básicos e/ou executivos), serviços ou obras para contenção de inundações, alagamentos, inclusive por técnicas de infiltração e armazenamento; e regularizações de descargas e dispositivos de lançamento de drenagem | K18: Contenção de inundações, alagamentos e regularizações de descargas na UGRHI | M18: Município | N18: Município | O18: Município | Q18: 1113141.65 | U18: =IF(SUM(PAPI20_22_23[[#This Row],[Recurso financeiro estimado no ano (R$) - Cobrança Estadual]:[Recurso financeiro estimado no ano (R$) - Outras]]) >0,SUM(PAPI20_22_23[[#This Row],[Recurso financeiro estimado no ano (R$) - Cobrança Estadual]:[Recurso financeiro estimado no ano (R$) - Outras]]),"") -> 1113141.65
U19: =IF(SUM(PAPI20_22_23[[#This Row],[Recurso financeiro estimado no ano (R$) - Cobrança Estadual]:[Recurso financeiro estimado no ano (R$) - Outras]]) >0,SUM(PAPI20_22_23[[#This Row],[Recurso financeiro estimado no ano (R$) - Cobrança Estadual]:[Recurso financeiro estimado no ano (R$) - Outras]]),"") -> 
U20: =IF(SUM(PAPI20_22_23[[#This Row],[Recurso financeiro estimado no ano (R$) - Cobrança Estadual]:[Recurso financeiro estimado no ano (R$) - Outras]]) >0,SUM(PAPI20_22_23[[#This Row],[Recurso financeiro estimado no ano (R$) - Cobrança Estadual]:[Recurso financeiro estimado no ano (R$) - Outras]]),"") -> 
U21: =IF(SUM(PAPI20_22_23[[#This Row],[Recurso financeiro estimado no ano (R$) - Cobrança Estadual]:[Recurso financeiro estimado no ano (R$) - Outras]]) >0,SUM(PAPI20_22_23[[#This Row],[Recurso financeiro estimado no ano (R$) - Cobrança Estadual]:[Recurso financeiro estimado no ano (R$) - Outras]]),"") -> 
U22: =IF(SUM(PAPI20_22_23[[#This Row],[Recurso financeiro estimado no ano (R$) - Cobrança Estadual]:[Recurso financeiro estimado no ano (R$) - Outras]]) >0,SUM(PAPI20_22_23[[#This Row],[Recurso financeiro estimado no ano (R$) - Cobrança Estadual]:[Recurso financeiro estimado no ano (R$) - Outras]]),"") -> 
U23: =IF(SUM(PAPI20_22_23[[#This Row],[Recurso financeiro estimado no ano (R$) - Cobrança Estadual]:[Recurso financeiro estimado no ano (R$) - Outras]]) >0,SUM(PAPI20_22_23[[#This Row],[Recurso financeiro estimado no ano (R$) - Cobrança Estadual]:[Recurso financeiro estimado no ano (R$) - Outras]]),"") -> 
U24: =IF(SUM(PAPI20_22_23[[#This Row],[Recurso financeiro estimado no ano (R$) - Cobrança Estadual]:[Recurso financeiro estimado no ano (R$) - Outras]]) >0,SUM(PAPI20_22_23[[#This Row],[Recurso financeiro estimado no ano (R$) - Cobrança Estadual]:[Recurso financeiro estimado no ano (R$) - Outras]]),"") -> 
U25: =IF(SUM(PAPI20_22_23[[#This Row],[Recurso financeiro estimado no ano (R$) - Cobrança Estadual]:[Recurso financeiro estimado no ano (R$) - Outras]]) >0,SUM(PAPI20_22_23[[#This Row],[Recurso financeiro estimado no ano (R$) - Cobrança Estadual]:[Recurso financeiro estimado no ano (R$) - Outras]]),"") -> 
U26: =IF(SUM(PAPI20_22_23[[#This Row],[Recurso financeiro estimado no ano (R$) - Cobrança Estadual]:[Recurso financeiro estimado no ano (R$) - Outras]]) >0,SUM(PAPI20_22_23[[#This Row],[Recurso financeiro estimado no ano (R$) - Cobrança Estadual]:[Recurso financeiro estimado no ano (R$) - Outras]]),"") -> 
U27: =IF(SUM(PAPI20_22_23[[#This Row],[Recurso financeiro estimado no ano (R$) - Cobrança Estadual]:[Recurso financeiro estimado no ano (R$) - Outras]]) >0,SUM(PAPI20_22_23[[#This Row],[Recurso financeiro estimado no ano (R$) - Cobrança Estadual]:[Recurso financeiro estimado no ano (R$) - Outras]]),"") -> 
U28: =IF(SUM(PAPI20_22_23[[#This Row],[Recurso financeiro estimado no ano (R$) - Cobrança Estadual]:[Recurso financeiro estimado no ano (R$) - Outras]]) >0,SUM(PAPI20_22_23[[#This Row],[Recurso financeiro estimado no ano (R$) - Cobrança Estadual]:[Recurso financeiro estimado no ano (R$) - Outras]]),"") -> 
U29: =IF(SUM(PAPI20_22_23[[#This Row],[Recurso financeiro estimado no ano (R$) - Cobrança Estadual]:[Recurso financeiro estimado no ano (R$) - Outras]]) >0,SUM(PAPI20_22_23[[#This Row],[Recurso financeiro estimado no ano (R$) - Cobrança Estadual]:[Recurso financeiro estimado no ano (R$) - Outras]]),"") -> 
U30: =IF(SUM(PAPI20_22_23[[#This Row],[Recurso financeiro estimado no ano (R$) - Cobrança Estadual]:[Recurso financeiro estimado no ano (R$) - Outras]]) >0,SUM(PAPI20_22_23[[#This Row],[Recurso financeiro estimado no ano (R$) - Cobrança Estadual]:[Recurso financeiro estimado no ano (R$) - Outras]]),"") -> 
U31: =IF(SUM(PAPI20_22_23[[#This Row],[Recurso financeiro estimado no ano (R$) - Cobrança Estadual]:[Recurso financeiro estimado no ano (R$) - Outras]]) >0,SUM(PAPI20_22_23[[#This Row],[Recurso financeiro estimado no ano (R$) - Cobrança Estadual]:[Recurso financeiro estimado no ano (R$) - Outras]]),"") -> 
U32: =IF(SUM(PAPI20_22_23[[#This Row],[Recurso financeiro estimado no ano (R$) - Cobrança Estadual]:[Recurso financeiro estimado no ano (R$) - Outras]]) >0,SUM(PAPI20_22_23[[#This Row],[Recurso financeiro estimado no ano (R$) - Cobrança Estadual]:[Recurso financeiro estimado no ano (R$) - Outras]]),"") -> 
U33: =IF(SUM(PAPI20_22_23[[#This Row],[Recurso financeiro estimado no ano (R$) - Cobrança Estadual]:[Recurso financeiro estimado no ano (R$) - Outras]]) >0,SUM(PAPI20_22_23[[#This Row],[Recurso financeiro estimado no ano (R$) - Cobrança Estadual]:[Recurso financeiro estimado no ano (R$) - Outras]]),"") -> 
U34: =IF(SUM(PAPI20_22_23[[#This Row],[Recurso financeiro estimado no ano (R$) - Cobrança Estadual]:[Recurso financeiro estimado no ano (R$) - Outras]]) >0,SUM(PAPI20_22_23[[#This Row],[Recurso financeiro estimado no ano (R$) - Cobrança Estadual]:[Recurso financeiro estimado no ano (R$) - Outras]]),"") -> 
U35: =IF(SUM(PAPI20_22_23[[#This Row],[Recurso financeiro estimado no ano (R$) - Cobrança Estadual]:[Recurso financeiro estimado no ano (R$) - Outras]]) >0,SUM(PAPI20_22_23[[#This Row],[Recurso financeiro estimado no ano (R$) - Cobrança Estadual]:[Recurso financeiro estimado no ano (R$) - Outras]]),"") -> 
U36: =IF(SUM(PAPI20_22_23[[#This Row],[Recurso financeiro estimado no ano (R$) - Cobrança Estadual]:[Recurso financeiro estimado no ano (R$) - Outras]]) >0,SUM(PAPI20_22_23[[#This Row],[Recurso financeiro estimado no ano (R$) - Cobrança Estadual]:[Recurso financeiro estimado no ano (R$) - Outras]]),"") -> 
U37: =IF(SUM(PAPI20_22_23[[#This Row],[Recurso financeiro estimado no ano (R$) - Cobrança Estadual]:[Recurso financeiro estimado no ano (R$) - Outras]]) >0,SUM(PAPI20_22_23[[#This Row],[Recurso financeiro estimado no ano (R$) - Cobrança Estadual]:[Recurso financeiro estimado no ano (R$) - Outras]]),"") -> 
U38: =IF(SUM(PAPI20_22_23[[#This Row],[Recurso financeiro estimado no ano (R$) - Cobrança Estadual]:[Recurso financeiro estimado no ano (R$) - Outras]]) >0,SUM(PAPI20_22_23[[#This Row],[Recurso financeiro estimado no ano (R$) - Cobrança Estadual]:[Recurso financeiro estimado no ano (R$) - Outras]]),"") -> 
U39: =IF(SUM(PAPI20_22_23[[#This Row],[Recurso financeiro estimado no ano (R$) - Cobrança Estadual]:[Recurso financeiro estimado no ano (R$) - Outras]]) >0,SUM(PAPI20_22_23[[#This Row],[Recurso financeiro estimado no ano (R$) - Cobrança Estadual]:[Recurso financeiro estimado no ano (R$) - Outras]]),"") -> 
U40: =IF(SUM(PAPI20_22_23[[#This Row],[Recurso financeiro estimado no ano (R$) - Cobrança Estadual]:[Recurso financeiro estimado no ano (R$) - Outras]]) >0,SUM(PAPI20_22_23[[#This Row],[Recurso financeiro estimado no ano (R$) - Cobrança Estadual]:[Recurso financeiro estimado no ano (R$) - Outras]]),"") -> 
U41: =IF(SUM(PAPI20_22_23[[#This Row],[Recurso financeiro estimado no ano (R$) - Cobrança Estadual]:[Recurso financeiro estimado no ano (R$) - Outras]]) >0,SUM(PAPI20_22_23[[#This Row],[Recurso financeiro estimado no ano (R$) - Cobrança Estadual]:[Recurso financeiro estimado no ano (R$) - Outras]]),"") -> 
U42: =IF(SUM(PAPI20_22_23[[#This Row],[Recurso financeiro estimado no ano (R$) - Cobrança Estadual]:[Recurso financeiro estimado no ano (R$) - Outras]]) >0,SUM(PAPI20_22_23[[#This Row],[Recurso financeiro estimado no ano (R$) - Cobrança Estadual]:[Recurso financeiro estimado no ano (R$) - Outras]]),"") -> 
U43: =IF(SUM(PAPI20_22_23[[#This Row],[Recurso financeiro estimado no ano (R$) - Cobrança Estadual]:[Recurso financeiro estimado no ano (R$) - Outras]]) >0,SUM(PAPI20_22_23[[#This Row],[Recurso financeiro estimado no ano (R$) - Cobrança Estadual]:[Recurso financeiro estimado no ano (R$) - Outras]]),"") -> 
U44: =IF(SUM(PAPI20_22_23[[#This Row],[Recurso financeiro estimado no ano (R$) - Cobrança Estadual]:[Recurso financeiro estimado no ano (R$) - Outras]]) >0,SUM(PAPI20_22_23[[#This Row],[Recurso financeiro estimado no ano (R$) - Cobrança Estadual]:[Recurso financeiro estimado no ano (R$) - Outras]]),"") -> 
U45: =IF(SUM(PAPI20_22_23[[#This Row],[Recurso financeiro estimado no ano (R$) - Cobrança Estadual]:[Recurso financeiro estimado no ano (R$) - Outras]]) >0,SUM(PAPI20_22_23[[#This Row],[Recurso financeiro estimado no ano (R$) - Cobrança Estadual]:[Recurso financeiro estimado no ano (R$) - Outras]]),"") -> 
U46: =IF(SUM(PAPI20_22_23[[#This Row],[Recurso financeiro estimado no ano (R$) - Cobrança Estadual]:[Recurso financeiro estimado no ano (R$) - Outras]]) >0,SUM(PAPI20_22_23[[#This Row],[Recurso financeiro estimado no ano (R$) - Cobrança Estadual]:[Recurso financeiro estimado no ano (R$) - Outras]]),"") -> 
U47: =IF(SUM(PAPI20_22_23[[#This Row],[Recurso financeiro estimado no ano (R$) - Cobrança Estadual]:[Recurso financeiro estimado no ano (R$) - Outras]]) >0,SUM(PAPI20_22_23[[#This Row],[Recurso financeiro estimado no ano (R$) - Cobrança Estadual]:[Recurso financeiro estimado no ano (R$) - Outras]]),"") -> 
U48: =IF(SUM(PAPI20_22_23[[#This Row],[Recurso financeiro estimado no ano (R$) - Cobrança Estadual]:[Recurso financeiro estimado no ano (R$) - Outras]]) >0,SUM(PAPI20_22_23[[#This Row],[Recurso financeiro estimado no ano (R$) - Cobrança Estadual]:[Recurso financeiro estimado no ano (R$) - Outras]]),"") -> 
U49: =IF(SUM(PAPI20_22_23[[#This Row],[Recurso financeiro estimado no ano (R$) - Cobrança Estadual]:[Recurso financeiro estimado no ano (R$) - Outras]]) >0,SUM(PAPI20_22_23[[#This Row],[Recurso financeiro estimado no ano (R$) - Cobrança Estadual]:[Recurso financeiro estimado no ano (R$) - Outras]]),"") -> 
U50: =IF(SUM(PAPI20_22_23[[#This Row],[Recurso financeiro estimado no ano (R$) - Cobrança Estadual]:[Recurso financeiro estimado no ano (R$) - Outras]]) >0,SUM(PAPI20_22_23[[#This Row],[Recurso financeiro estimado no ano (R$) - Cobrança Estadual]:[Recurso financeiro estimado no ano (R$) - Outras]]),"") -> 

Sheet Identificação das ações 24-27
A1: ID Ação | B1: Descrição da ação | C1: SubPDC | D1: Prioridade do PDC | E1: É (ou será) empreendimento FEHIDRO? | F1: Requer recursos financeiros? | G1: Quantidade de fontes de recursos | H1: Segmento do executor | I1: Área de abrangência | J1: Detalhamento da área de abrangência | K1: Início estimado da ação | L1: Fim estimado | M1: Observações
A2: PCJ3.3.1.2/2024 | B2: Fomento a Planos Municipais de Saneamento Rural | C2: 1.2 - Planejamento | D2: PDC 1 e 2 | E2: Sim | F2: Sim | G2: 2 | H2: Município | I2: Bacia | J2: Bacias PCJ, observando os municípios e ACs prioritários para saneamento rural | K2: 2025-07-01 | L2: 2029-12-31 | M2: Para recursos FEHIDRO, está sendo considerado o provável início da ação, após todo fluxo de análise do AT/AF e assinatura do contrato
A3: PCJ2.3.1.1/2024 | B3: Estudos de viabilidade para aumento de regularização de vazões em mananciais existentes e novos barramentos | C3: 1.2 - Planejamento | D3: PDC 1 e 2 | E3: Sim | F3: Sim | G3: 1 | H3: Município | I3: Corpo hídrico | J3: Bacias PCJ, observando os municípios e ACs prioritários | K3: 2025-07-01 | L3: 2029-12-31 | M3: Para recursos FEHIDRO, está sendo considerado o provável início da ação, após todo fluxo de análise do AT/AF e assinatura do contrato
A4: PCJ2.3.3.2/2024 | B4: Elaboração dos Planos Diretores de Drenagem Urbana e Manejo de Águas Pluviais | C4: 1.2 - Planejamento | D4: PDC 1 e 2 | E4: Sim | F4: Sim | G4: 1 | H4: Município | I4: Município | J4: Municípios observando as prioridades no Plano de Bacias | K4: 2025-07-01 | L4: 2029-12-31 | M4: Para recursos FEHIDRO, está sendo considerado o provável início da ação, após todo fluxo de análise do AT/AF e assinatura do contrato
A5: PCJ1.2.1.5/2024 | B5: Cadastro, caracterização e modelagem de cargas industriais | C5: 1.2 - Planejamento | D5: PDC 1 e 2 | E5: Sim | F5: Sim | G5: 1 | H5: Sociedade Civil | I5: Bacia | J5: Bacias PCJ | K5: 2025-07-01 | L5: 2025-12-31 | M5: Para recursos FEHIDRO, está sendo considerado o provável início da ação, após todo fluxo de análise do AT/AF e assinatura do contrato
A6: PCJ1.2.1.6/2026 | B6: Estudos de alternativas de diminuição da carga industrial | C6: 1.2 - Planejamento | D6: PDC 1 e 2 | E6: Sim | F6: Sim | G6: 1 | H6: Sociedade Civil | I6: Bacia | J6: Bacias PCJ, especialmente em municípios prioritários para tratamento secundário, nitrogênio e fósforo | K6: 2027-07-01 | L6: 2028-12-31 | M6: Para recursos FEHIDRO, está sendo considerado o provável início da ação, após todo fluxo de análise do AT/AF e assinatura do contrato
A7: PCJ1.2.2.1/2026 | B7: Elaboração de estudos sobre os impactos da cloração de efluentes nos mananciais | C7: 1.2 - Planejamento | D7: PDC 1 e 2 | E7: Sim | F7: Sim | G7: 1 | H7: Sociedade Civil | I7: Bacia | J7: Bacias PCJ | K7: 2027-07-01 | L7: 2028-12-31 | M7: Para recursos FEHIDRO, está sendo considerado o provável início da ação, após todo fluxo de análise do AT/AF e assinatura do contrato
A8: PCJ1.3.1.1/2027 | B8: Elaboração de estudo do background de fósforo nos corpos hídricos das Bacias PCJ e integração no SSD | C8: 1.2 - Planejamento | D8: PDC 1 e 2 | E8: Sim | F8: Sim | G8: 1 | H8: Sociedade Civil | I8: Bacia | J8: Bacias PCJ | K8: 2028-07-01 | L8: 2029-12-31 | M8: Para recursos FEHIDRO, está sendo considerado o provável início da ação, após todo fluxo de análise do AT/AF e assinatura do contrato
A9: PCJ1.3.1.3/2026 | B9: Elaboração de estudo sobre estruturas de controle e redução de cargas difusas e definição de metodologia para identificação e priorização de áreas potencialmente afetadas por cargas difusas de origem rural e urbana | C9: 1.2 - Planejamento | D9: PDC 1 e 2 | E9: Sim | F9: Sim | G9: 1 | H9: Sociedade Civil | I9: Bacia | J9: Bacias PCJ | K9: 2027-07-01 | L9: 2028-12-31 | M9: Para recursos FEHIDRO, está sendo considerado o provável início da ação, após todo fluxo de análise do AT/AF e assinatura do contrato
A10: PCJ1.3.2.2/2026 | B10: Elaboração de um Plano de Contenção de Cargas Difusas em locais prioritários nas Bacias PCJ | C10: 1.2 - Planejamento | D10: PDC 1 e 2 | E10: Sim | F10: Sim | G10: 1 | H10: Sociedade Civil | I10: Bacia | J10: Bacias PCJ, observando as prioridades para fósforo e nitrogênio. | K10: 2027-07-01 | L10: 2028-12-31 | M10: Para recursos FEHIDRO, está sendo considerado o provável início da ação, após todo fluxo de análise do AT/AF e assinatura do contrato
A11: PCJ6.3.2.1/2025 | B11: Estudo para articulação entre CBHs visando a pactuação de condições de entrega | C11: 1.2 - Planejamento | D11: PDC 1 e 2 | E11: Sim | F11: Sim | G11: 1 | H11: Sociedade Civil | I11: Bacia | J11: Bacias PCJ | K11: 2026-07-01 | L11: 2027-12-31 | M11: Para recursos FEHIDRO, está sendo considerado o provável início da ação, após todo fluxo de análise do AT/AF e assinatura do contrato
A12: PCJ1.1.1.2/2025 | B12: Elaboração de estudos para ampliação e melhoria dos sistemas de transporte de esgotos | C12: 1.2 - Planejamento | D12: PDC 1 e 2 | E12: Sim | F12: Sim | G12: 1 | H12: Município | I12: Município | J12: Municípios observando as prioridades no Plano de Bacias | K12: 2026-07-01 | L12: 2029-12-31 | M12: Para recursos FEHIDRO, está sendo considerado o provável início da ação, após todo fluxo de análise do AT/AF e assinatura do contrato
A13: PCJ1.1.2.2/2025 | B13: Elaboração de estudos para a implantação de novas ETEs visando tratamento secundário | C13: 1.2 - Planejamento | D13: PDC 1 e 2 | E13: Sim | F13: Sim | G13: 1 | H13: Município | I13: Município | J13: Municípios observando as prioridades para tratamento no Plano de Bacias | K13: 2026-07-01 | L13: 2029-12-31 | M13: Para recursos FEHIDRO, está sendo considerado o provável início da ação, após todo fluxo de análise do AT/AF e assinatura do contrato
A14: PCJ1.2.1.1/2025 | B14: Elaboração de estudos de melhorias da eficiência das ETEs na remoção de nutrientes | C14: 1.2 - Planejamento | D14: PDC 1 e 2 | E14: Sim | F14: Sim | G14: 1 | H14: Município | I14: Município | J14: Municípios observando as prioridades para remoção de nitrogênio e fósforo, no Plano de Bacias | K14: 2026-07-01 | L14: 2029-12-31 | M14: Para recursos FEHIDRO, está sendo considerado o provável início da ação, após todo fluxo de análise do AT/AF e assinatura do contrato
A15: PCJ1.1.2.4/2024 | B15: Elaboração de estudos e relatórios visando o licenciamento das ETEs projetadas | C15: 1.2 - Planejamento | D15: PDC 1 e 2 | E15: Sim | F15: Sim | G15: 1 | H15: Município | I15: Município | J15: Municípios observando as prioridades no Plano de Bacias | K15: 2025-07-01 | L15: 2028-12-31 | M15: Para recursos FEHIDRO, está sendo considerado o provável início da ação, após todo fluxo de análise do AT/AF e assinatura do contrato
A16: PCJ1.2.1.7/2024 | B16: Elaboração e revisão de planos municipais de saneamento básico | C16: 1.2 - Planejamento | D16: PDC 1 e 2 | E16: Sim | F16: Sim | G16: 1 | H16: Município | I16: Município | J16: Municípios observando as prioridades no Plano de Bacias | K16: 2025-07-01 | L16: 2028-12-31 | M16: Para recursos FEHIDRO, está sendo considerado o provável início da ação, após todo fluxo de análise do AT/AF e assinatura do contrato
A17: PCJ2.3.2.1/2024 | B17: Elaboração e revisão de Planos de Controle e Redução de Perdas | C17: 1.2 - Planejamento | D17: PDC 1 e 2 | E17: Sim | F17: Sim | G17: 1 | H17: Município | I17: Município | J17: Municípios observando as prioridades no Plano de Bacias | K17: 2025-07-01 | L17: 2028-12-31 | M17: Para recursos FEHIDRO, está sendo considerado o provável início da ação, após todo fluxo de análise do AT/AF e assinatura do contrato
A18: PCJ2.2.4.1/2024 | B18: Desenvolvimento de estudo de alternativas de aumento da disponibilidade hídrica nas sub-bacias dos rios Atibaia, Jundiaí e Capivari | C18: 1.2 - Planejamento | D18: PDC 1 e 2 | E18: Sim | F18: Sim | G18: 1 | H18: Sociedade Civil | I18: Sub-bacia | J18: Sub-bacias Atibaia, Jundiaí e Capivari | K18: 2025-07-01 | L18: 2026-12-31 | M18: Para recursos FEHIDRO, está sendo considerado o provável início da ação, após todo fluxo de análise do AT/AF e assinatura do contrato
A19: PCJ4.2.1.1/2026 | B19: Desenvolver estudo regional hidrogeológico nas Bacias PCJ | C19: 1.2 - Planejamento | D19: PDC 1 e 2 | E19: Sim | F19: Sim | G19: 1 | H19: Sociedade Civil | I19: Bacia | J19: Bacias PCJ | K19: 2027-07-01 | L19: 2028-12-31 | M19: Para recursos FEHIDRO, está sendo considerado o provável início da ação, após todo fluxo de análise do AT/AF e assinatura do contrato
A20: PCJ4.2.1.2/2026 | B20: Desenvolvimento de estudo para estimativa de balanços hídricos e recargas nas Bacias PCJ | C20: 1.2 - Planejamento | D20: PDC 1 e 2 | E20: Sim | F20: Sim | G20: 1 | H20: Sociedade Civil | I20: Bacia | J20: Bacias PCJ | K20: 2027-07-01 | L20: 2028-12-31 | M20: Para recursos FEHIDRO, está sendo considerado o provável início da ação, após todo fluxo de análise do AT/AF e assinatura do contrato
A21: PCJ4.2.1.3/2027 | B21: Delimitar as principais áreas de recarga e estabelecer diretrizes de proteção | C21: 1.2 - Planejamento | D21: PDC 1 e 2 | E21: Sim | F21: Sim | G21: 1 | H21: Sociedade Civil | I21: Bacia | J21: Bacias PCJ | K21: 2028-07-01 | L21: 2029-12-31 | M21: Para recursos FEHIDRO, está sendo considerado o provável início da ação, após todo fluxo de análise do AT/AF e assinatura do contrato
A22: PCJ4.2.2.1/2027 | B22: Elaboração do estudo hidrogeológico do aquífero Tubarão | C22: 1.2 - Planejamento | D22: PDC 1 e 2 | E22: Sim | F22: Sim | G22: 1 | H22: Sociedade Civil | I22: Bacia | J22: Bacias PCJ | K22: 2028-07-01 | L22: 2029-12-31 | M22: Para recursos FEHIDRO, está sendo considerado o provável início da ação, após todo fluxo de análise do AT/AF e assinatura do contrato
A23: PCJ6.3.1.4/2025 | B23: Estabelecer parcerias para pesquisa com universidade e institutos | C23: 1.2 - Planejamento | D23: PDC 1 e 2 | E23: Sim | F23: Sim | G23: 1 | H23: Sociedade Civil | I23: Bacia | J23: Bacias PCJ | K23: 2026-07-01 | L23: 2027-12-31 | M23: Para recursos FEHIDRO, está sendo considerado o provável início da ação, após todo fluxo de análise do AT/AF e assinatura do contrato
A24: PCJ4.1.1.2/2027 | B24: Desenvolvimento de banco de dados de poços e suporte à decisão | C24: 2.2 - Outorga | D24: PDC 1 e 2 | E24: Sim | F24: Sim | G24: 1 | H24: Estado | I24: Bacia | J24: Bacias PCJ | K24: 2027-07-01 | L24: 2028-12-31 | M24: Para recursos FEHIDRO, está sendo considerado o provável início da ação, após todo fluxo de análise do AT/AF e assinatura do contrato
A25: PCJ6.2.5.1/2024 | B25: Desenvolvimento de um plano de fiscalização de Outorgas em apoio ao órgão gestor | C25: 2.2 - Outorga | D25: PDC 1 e 2 | E25: Sim | F25: Sim | G25: 1 | H25: Estado | I25: Bacia | J25: Bacias PCJ | K25: - | L25: - | M25: Para recursos FEHIDRO, está sendo considerado o provável início da ação, após todo fluxo de análise do AT/AF e assinatura do contrato
A26: PCJ6.2.3.2/2026 | B26: Monitoramento de chuva, vazão, qualidade e nível de água subterrânea em pequenas bacias hidrográficas | C26: 2.5 - Redes de monitoramento e SI | D26: PDC 1 e 2 | E26: Sim | F26: Sim | G26: 1 | H26: Sociedade Civil | I26: Bacia | J26: Bacias PCJ | K26: 2027-07-01 | L26: 2029-12-31 | M26: Para recursos FEHIDRO, está sendo considerado o provável início da ação, após todo fluxo de análise do AT/AF e assinatura do contrato
A27: PCJ6.2.3.3/2026 | B27: Implantação, integração, operação e manutenção da rede de monitoramento quali-quantitativo das águas subterrâneas | C27: 2.5 - Redes de monitoramento e SI | D27: PDC 1 e 2 | E27: Sim | F27: Sim | G27: 1 | H27: Sociedade Civil | I27: Bacia | J27: Bacias PCJ | K27: 2027-07-01 | L27: 2028-12-31 | M27: Para recursos FEHIDRO, está sendo considerado o provável início da ação, após todo fluxo de análise do AT/AF e assinatura do contrato
A28: PCJ6.3.1.3/2025 | B28: Fomentar a adequação das redes de monitoramento | C28: 2.5 - Redes de monitoramento e SI | D28: PDC 1 e 2 | E28: Sim | F28: Sim | G28: 1 | H28: Sociedade Civil | I28: Bacia | J28: Bacia Hidrográfica do rio Tietê | K28: 2026-07-01 | L28: 2027-12-31 | M28: Para recursos FEHIDRO, está sendo considerado o provável início da ação, após todo fluxo de análise do AT/AF e assinatura do contrato
A29: PCJ6.3.1.6/2026 | B29: Integrar dados de monitoramento quali-quantitativos | C29: 2.5 - Redes de monitoramento e SI | D29: PDC 1 e 2 | E29: Sim | F29: Sim | G29: 1 | H29: Sociedade Civil | I29: Bacia | J29: Bacia Hidrográfica do rio Tietê | K29: 2027-07-01 | L29: 2028-12-31 | M29: Para recursos FEHIDRO, está sendo considerado o provável início da ação, após todo fluxo de análise do AT/AF e assinatura do contrato
A30: PCJ6.3.2.2/2025 | B30: Apoio à gestão administrativa da Fundação da Agência da Bacia Hidrográfica dos Rios Sorocaba e Médio Tietê | C30: 2.7 - CORHI | D30: PDC 1 e 2 | E30: Sim | F30: Sim | G30: 1 | H30: Sociedade Civil | I30: Bacia | J30: Bacia Hidrográfica do rio Tietê | K30: 2026-07-01 | L30: 2027-12-31 | M30: Para recursos FEHIDRO, está sendo considerado o provável início da ação, após todo fluxo de análise do AT/AF e assinatura do contrato
A31: PCJ6.3.1.1/2025 | B31: Discutir a possibilidade de implantação de agências de bacia | C31: 2.7 - CORHI | D31: PDC 1 e 2 | E31: Sim | F31: Sim | G31: 1 | H31: Sociedade Civil | I31: Bacia | J31: Bacia Hidrográfica do rio Tietê | K31: 2026-07-01 | L31: 2027-12-31 | M31: Para recursos FEHIDRO, está sendo considerado o provável início da ação, após todo fluxo de análise do AT/AF e assinatura do contrato
A32: PCJ3.3.1.1/2024 | B32: Substituição de sistemas rudimentares de tratamento de esgoto (fossa negra) por sistemas mais eficientes | C32: 3.1 - Efluentes | D32: Prioritário | E32: Sim | F32: Sim | G32: 1 | H32: Município | I32: Município | J32: Município | K32: 2025-07-01 | L32: 2029-12-31 | M32: Para recursos FEHIDRO, está sendo considerado o provável início da ação, após todo fluxo de análise do AT/AF e assinatura do contrato
A33: PCJ1.1.1.4/2024 | B33: Elaboração de projetos de ampliação e melhoria dos sistemas de transporte de esgotos | C33: 3.1 - Efluentes | D33: Prioritário | E33: Sim | F33: Sim | G33: 1 | H33: Município | I33: Município | J33: Municípios observando asprioridades para remoção de nitrogênio e fósforo, no Plano de Bacias | K33: 2025-07-01 | L33: 2029-12-31 | M33: Para recursos FEHIDRO, está sendo considerado o provável início da ação, após todo fluxo de análise do AT/AF e assinatura do contrato
A34: PCJ1.1.2.3/2024 | B34: Elaboração de projetos para a implantação de novas ETEs visando tratamento secundário | C34: 3.1 - Efluentes | D34: Prioritário | E34: Sim | F34: Sim | G34: 1 | H34: Município | I34: Município | J34: Municípios observando as prioridades para remoção de nitrogênio e fósforo, no Plano de Bacias | K34: 2025-07-01 | L34: 2029-12-31 | M34: Para recursos FEHIDRO, está sendo considerado o provável início da ação, após todo fluxo de análise do AT/AF e assinatura do contrato
A35: PCJ1.2.1.2/2024 | B35: Elaboração de projetos de melhorias da eficiência das ETEs na remoção de nutrientes | C35: 3.1 - Efluentes | D35: Prioritário | E35: Sim | F35: Sim | G35: 1 | H35: Município | I35: Município | J35: Municípios observando as prioridades para remoção de nitrogênio e fósforo, no Plano de Bacias | K35: 2025-07-01 | L35: 2029-12-31 | M35: Para recursos FEHIDRO, está sendo considerado o provável início da ação, após todo fluxo de análise do AT/AF e assinatura do contrato
A36: PCJ1.2.2.2/2027 | B36: Elaboração de projetos de implantação de tecnologias de desinfecção de efluentes domésticos | C36: 3.1 - Efluentes | D36: Prioritário | E36: Sim | F36: Sim | G36: 1 | H36: Município | I36: Município | J36: Municípios observando as prioridades no Plano de Bacias | K36: 2028-07-01 | L36: 2029-12-31 | M36: Para recursos FEHIDRO, está sendo considerado o provável início da ação, após todo fluxo de análise do AT/AF e assinatura do contrato
A37: PCJ3.1.2.3/2024 | B37: Incentivo à proteção das áreas sujeitas à restrição de uso | C37: 4.2 - Soluções baseadas Natureza | D37: Não prioritário | E37: Sim | F37: Sim | G37: 1 | H37: Sociedade Civil | I37: Sub-bacia | J37: ACs prioritárias conforme mapa síntese Mapa Conservação, recuperação de nascentes, matas ciliares e áreas de recarga | K37: - | L37: - | M37: Para recursos FEHIDRO, está sendo considerado o provável início da ação, após todo fluxo de análise do AT/AF e assinatura do contrato
A38: PCJ2.3.2.2/2024 | B38: Controle de perdas em sistemas de abastecimento de água | C38: 5.1 - Perdas | D38: Prioritário | E38: Sim | F38: Sim | G38: 1 | H38: Município | I38: Município | J38: Para 2020, municípios prioritários indicados na Deliberação dos Comitês PCJ nº 324/2019. A partir de 2021, municípios observando as prioridades do Plano de Bacias | K38: 2025-07-01 | L38: 2029-12-31 | M38: Para recursos FEHIDRO, está sendo considerado o provável início da ação, após todo fluxo de análise do AT/AF e assinatura do contrato
A39: PCJ5.2.2.1/2024 | B39: Elaboração de propostas para órgãos de financiamento em pesquisas | C39: 8.1 - Capacitação | D39: Não prioritário | E39: Sim | F39: Sim | G39: 1 | H39: Sociedade Civil | I39: Bacia | J39: Bacias PCJ | K39: - | L39: - | M39: Para recursos FEHIDRO, está sendo considerado o provável início da ação, após todo fluxo de análise do AT/AF e assinatura do contrato
A40: PCJ5.2.2.3/2024 | B40: Apoio ao desenvolvimento e difusão de pesquisas e tecnologias que contribuam no enfrentamento dos desafios identificados no Plano das Bacias PCJ | C40: 8.2 - Educação | D40: Não prioritário | E40: Sim | F40: Sim | G40: 1 | H40: Sociedade Civil | I40: Bacia | J40: Bacias PCJ | K40: - | L40: - | M40: Para recursos FEHIDRO, está sendo considerado o provável início da ação, após todo fluxo de análise do AT/AF e assinatura do contrato
A41: PCJ6.2.5.2/2027 | B41: Apoio à regularização de outorga na área rural | C41: 8.3 - Comunicação | D41: Não prioritário | E41: Sim | F41: Sim | G41: 1 | H41: Sociedade Civil | I41: Bacia | J41: Bacias PCJ | K41: 2028-07-01 | L41: 2029-12-31 | M41: Para recursos FEHIDRO, está sendo considerado o provável início da ação, após todo fluxo de análise do AT/AF e assinatura do contrato
A42: PCJ1.1.1.1/2024 | B42: Elaboração de estudos para ampliação e melhoria dos sistemas de coleta de esgotos | C42: 1.2 - Planejamento | D42: PDC 1 e 2 | E42: Sim | F42: Sim | G42: 1 | H42: Município | I42: Município | J42: Municípios com prioridades para coleta, no Plano de Bacias | K42: - | L42: - | M42: Para recursos FEHIDRO, está sendo considerado o provável início da ação, após todo fluxo de análise do AT/AF e assinatura do contrato
A43: PCJ2.2.3.1/2024 | B43: Acompanhamento e apoio aos estudos de viabilidade, projetos de engenharia e licenciamento ambiental das barragens de Pedreira, Duas Pontes e do ribeirão Piraí e do trecho Oeste do SAR | C43: 1.2 - Planejamento | D43: PDC 1 e 2 | E43: Não | F43: Sim | G43: 1 | H43: Sociedade Civil | I43: Bacia | J43: Bacias PCJ | K43: 2025-07-01 | L43: 2026-12-31 | M43: Para recursos FEHIDRO, está sendo considerado o provável início da ação, após todo fluxo de análise do AT/AF e assinatura do contrato
A44: PCJ2.3.3.1/2024 | B44: Elaboração de um guia de manejo de drenagem e manejo de águas pluviais | C44: 1.2 - Planejamento | D44: PDC 1 e 2 | E44: Não | F44: Sim | G44: 1 | H44: Sociedade Civil | I44: Bacia | J44: Bacias PCJ | K44: 2024-12-01 | L44: 2025-12-31 | M44: Para recursos FEHIDRO, está sendo considerado o provável início da ação, após todo fluxo de análise do AT/AF e assinatura do contrato
A45: PCJ1.3.1.2/2025 | B45: Elaboração de estudo piloto para avaliação da carga difusa de origem urbana e rural afluente nos corpos hídricos das Bacias PCJ | C45: 1.2 - Planejamento | D45: PDC 1 e 2 | E45: Não | F45: Sim | G45: 1 | H45: Sociedade Civil | I45: Bacia | J45: Bacias PCJ | K45: 2025-12-01 | L45: 2025-12-31 | M45: Para recursos FEHIDRO, está sendo considerado o provável início da ação, após todo fluxo de análise do AT/AF e assinatura do contrato
A46: PCJ6.2.5.3/2024 | B46: Apoio operacional para fiscalização de outorgas | C46: 2.2 - Outorga | D46: PDC 1 e 2 | E46: Não | F46: Sim | G46: 1 | H46: Sociedade Civil | I46: Bacia | J46: Bacias PCJ | K46: 2024-03-29 | L46: 2028-03-29 | M46: Para recursos FEHIDRO, está sendo considerado o provável início da ação, após todo fluxo de análise do AT/AF e assinatura do contrato
A47: PCJ6.1.1.2/2024 | B47: Apoio operacional para a área de cobrança pelo uso dos recursos hídricos | C47: 2.3 - Cobrança | D47: PDC 1 e 2 | E47: Não | F47: Sim | G47: 1 | H47: Sociedade Civil | I47: Bacia | J47: Bacias PCJ | K47: 2024-07-01 | L47: 2028-07-01 | M47: Para recursos FEHIDRO, está sendo considerado o provável início da ação, após todo fluxo de análise do AT/AF e assinatura do contrato
A48: PCJ6.1.1.5/2024 | B48: Apoio operacional para acompanhamento de projetos da área de Sistema de Informações | C48: 2.5 - Redes de monitoramento e SI | D48: PDC 1 e 2 | E48: Não | F48: Sim | G48: 1 | H48: Sociedade Civil | I48: Bacia | J48: Bacias PCJ | K48: 2024-08-17 | L48: 2029-08-17 | M48: Para recursos FEHIDRO, está sendo considerado o provável início da ação, após todo fluxo de análise do AT/AF e assinatura do contrato
A49: PCJ6.2.3.1/2024 | B49: Expansão, integração, operação e manutenção da rede de monitoramento quali-quantitativo dos recursos hídricos | C49: 2.5 - Redes de monitoramento e SI | D49: PDC 1 e 2 | E49: Não | F49: Sim | G49: 1 | H49: Sociedade Civil | I49: Bacia | J49: Bacias PCJ | K49: 2024-07-01 | L49: 2027-12-31 | M49: Para recursos FEHIDRO, está sendo considerado o provável início da ação, após todo fluxo de análise do AT/AF e assinatura do contrato
A50: PCJ2.1.1.1/2024 | B50: Manutenção e aprimoramento de um modelo chuva-vazão para as Bacias PCJ | C50: 2.5 - Redes de monitoramento e SI | D50: PDC 1 e 2 | E50: Não | F50: Sim | G50: 1 | H50: Sociedade Civil | I50: Bacia | J50: Bacias PCJ | K50: 2024-07-01 | L50: 2027-12-31 | M50: Para recursos FEHIDRO, está sendo considerado o provável início da ação, após todo fluxo de análise do AT/AF e assinatura do contrato
A51: PCJ2.1.2.1/2025 | B51: Aprimoramento de modelo de simulação hidrodinâmica do tempo de trânsito e do amortecimento da vazão preferencialmente à jusante do Sistema Cantareira | C51: 2.5 - Redes de monitoramento e SI | D51: PDC 1 e 2 | E51: Não | F51: Sim | G51: 1 | H51: Sociedade Civil | I51: Bacia | J51: Bacias PCJ | K51: 2025-07-01 | L51: 2026-12-31 | M51: Para recursos FEHIDRO, está sendo considerado o provável início da ação, após todo fluxo de análise do AT/AF e assinatura do contrato
A52: PCJ6.2.6.1/2024 | B52: Apoio operacional para gerenciamento da implementação e da revisão do Plano de Bacias | C52: 2.6 - Integração | D52: PDC 1 e 2 | E52: Não | F52: Sim | G52: 1 | H52: Sociedade Civil | I52: Bacia | J52: Bacias PCJ | K52: 2024-11-01 | L52: 2025-12-31 | M52: Para recursos FEHIDRO, está sendo considerado o provável início da ação, após todo fluxo de análise do AT/AF e assinatura do contrato
A53: PCJ6.1.1.4/2024 | B53: Apoio Operacional para acompanhamento de empreendimentos de demanda espontânea | C53: 2.6 - Integração | D53: PDC 1 e 2 | E53: Não | F53: Sim | G53: 1 | H53: Sociedade Civil | I53: Bacia | J53: Bacias PCJ | K53: 2021-02-03 | L53: 2021-02-03 | M53: Para recursos FEHIDRO, está sendo considerado o provável início da ação, após todo fluxo de análise do AT/AF e assinatura do contrato
A54: PCJ6.1.2.2/2024 | B54: Remuneração de agentes técnicos e financeiros para empreendimentos deliberados pelos Comitês PCJ | C54: 2.6 - Integração | D54: PDC 1 e 2 | E54: Não | F54: Sim | G54: 1 | H54: Sociedade Civil | I54: Bacia | J54: Bacias PCJ | K54: 2024-01-01 | L54: 2024-12-31 | M54: Para recursos FEHIDRO, está sendo considerado o provável início da ação, após todo fluxo de análise do AT/AF e assinatura do contrato
A55: PCJ6.1.2.3/2024 | B55: Logística de Suporte às reuniões Plenárias e das CTs dos Comitês PCJ | C55: 2.6 - Integração | D55: PDC 1 e 2 | E55: Não | F55: Sim | G55: 1 | H55: Sociedade Civil | I55: Bacia | J55: Bacias PCJ | K55: 2024-01-01 | L55: 2024-12-31 | M55: Para recursos FEHIDRO, está sendo considerado o provável início da ação, após todo fluxo de análise do AT/AF e assinatura do contrato
A56: PCJ6.1.2.1/2024 | B56: Apoio operacional para a Secretaria Executiva dos Comitês PCJ | C56: 2.6 - Integração | D56: PDC 1 e 2 | E56: Não | F56: Sim | G56: 1 | H56: Sociedade Civil | I56: Bacia | J56: Bacias PCJ | K56: 2024-01-01 | L56: 2024-12-31 | M56: Para recursos FEHIDRO, está sendo considerado o provável início da ação, após todo fluxo de análise do AT/AF e assinatura do contrato
A57: PCJ6.1.1.7/2024 | B57: Apoio operacional para acompanhamento de ações da porção mineira | C57: 2.6 - Integração | D57: PDC 1 e 2 | E57: Não | F57: Sim | G57: 1 | H57: Sociedade Civil | I57: Bacia | J57: Bacias PCJ | K57: 2024-01-01 | L57: 2024-12-31 | M57: Para recursos FEHIDRO, está sendo considerado o provável início da ação, após todo fluxo de análise do AT/AF e assinatura do contrato
A58: PCJ6.1.1.1/2024 | B58: Apoio operacional para a Área de Tecnologia da Informação - TI | C58: 2.6 - Integração | D58: PDC 1 e 2 | E58: Não | F58: Sim | G58: 1 | H58: Sociedade Civil | I58: Bacia | J58: Bacias PCJ | K58: 2024-01-01 | L58: 2024-12-31 | M58: Para recursos FEHIDRO, está sendo considerado o provável início da ação, após todo fluxo de análise do AT/AF e assinatura do contrato
A59: PCJ6.1.2.4/2024 | B59: Participação de membros dos Comitês PCJ em eventos internos das CTs e eventos externos | C59: 2.6 - Integração | D59: PDC 1 e 2 | E59: Não | F59: Sim | G59: 1 | H59: Sociedade Civil | I59: Bacia | J59: Bacias PCJ | K59: 2024-01-01 | L59: 2024-12-31 | M59: Para recursos FEHIDRO, está sendo considerado o provável início da ação, após todo fluxo de análise do AT/AF e assinatura do contrato
A60: PCJ6.1.2.5/2024 | B60: Manutenção de licenciamento de sistemas de TI | C60: 2.7 - CORHI | D60: PDC 1 e 2 | E60: Não | F60: Sim | G60: 1 | H60: Sociedade Civil | I60: Bacia | J60: Bacias PCJ | K60: 2024-11-02 | L60: 2025-11-02 | M60: Para recursos FEHIDRO, está sendo considerado o provável início da ação, após todo fluxo de análise do AT/AF e assinatura do contrato
A61: PCJ1.2.2.3/2024 | B61: Implantação das tecnologias de desinfecção projetadas | C61: 3.1 - Efluentes | D61: Prioritário | E61: Sim | F61: Sim | G61: 1 | H61: Município | I61: Município | J61: Municípios observando as prioridades para coliformes termotolerantes no Plano de Bacias | K61: 2024-07-01 | L61: 2029-12-31 | M61: Para recursos FEHIDRO, está sendo considerado o provável início da ação, após todo fluxo de análise do AT/AF e assinatura do contrato
A62: PCJ1.1.2.5/2024 | B62: Implantação das ETEs projetadas e melhorias das ETEs existentes | C62: 3.1 - Efluentes | D62: Prioritário | E62: Sim | F62: Sim | G62: 1 | H62: Município | I62: Município | J62: Municípios observando as prioridades para tratamento no Plano de Bacias | K62: 2024-07-01 | L62: 2029-12-31 | M62: Para recursos FEHIDRO, está sendo considerado o provável início da ação, após todo fluxo de análise do AT/AF e assinatura do contrato
A63: PCJ1.2.1.9/2024 | B63: Implantação das melhorias das ETEs projetadas e retrofit de ETEs para remoção de nutrientes | C63: 3.1 - Efluentes | D63: Prioritário | E63: Sim | F63: Sim | G63: 1 | H63: Município | I63: Município | J63: Municípios observando as prioridades para remoção de nitrogênio e fósforo, no Plano de Bacias | K63: 2024-07-01 | L63: 2029-12-31 | M63: Para recursos FEHIDRO, está sendo considerado o provável início da ação, após todo fluxo de análise do AT/AF e assinatura do contrato
A64: PCJ1.2.1.8/2024 | B64: Implantação de Unidades de Tratamento de Lodo nas ETAs | C64: 3.1 - Efluentes | D64: Prioritário | E64: Sim | F64: Sim | G64: 1 | H64: Município | I64: Município | J64: Municípios observando as prioridades para tratamento no Plano de Bacias | K64: 2024-07-01 | L64: 2029-12-31 | M64: Para recursos FEHIDRO, está sendo considerado o provável início da ação, após todo fluxo de análise do AT/AF e assinatura do contrato
A65: PCJ1.1.1.3/2024 | B65: Elaboração de projetos de ampliação e melhoria dos sistemas de coleta de esgotos | C65: 3.1 - Efluentes | D65: Prioritário | E65: Não | F65: Sim | G65: 1 | H65: Município | I65: Município | J65: Municípios observando as prioridades para tratamento no Plano de Bacias | K65: - | L65: - | M65: Para recursos FEHIDRO, está sendo considerado o provável início da ação, após todo fluxo de análise do AT/AF e assinatura do contrato
A66: PCJ1.1.1.5/2024 | B66: Ampliações e melhoria dos sistemas de coleta de esgotos | C66: 3.1 - Efluentes | D66: Prioritário | E66: Sim | F66: Sim | G66: 1 | H66: Município | I66: Município | J66: Municípios com prioridades para coleta, no Plano de Bacias | K66: 2024-07-01 | L66: 2027-12-31 | M66: Para recursos FEHIDRO, está sendo considerado o provável início da ação, após todo fluxo de análise do AT/AF e assinatura do contrato
A67: PCJ1.3.2.1/2024 | B67: Elaboração de projetos demonstrativos para contenção de cargas difusas de origem rural e urbana | C67: 3.2 - Poluição | D67: Prioritário | E67: Não | F67: Sim | G67: 1 | H67: Sociedade Civil | I67: Bacia | J67: Bacias PCJ, observando as prioridades para fósforo e nitrogênio. | K67: - | L67: - | M67: Para recursos FEHIDRO, está sendo considerado o provável início da ação, após todo fluxo de análise do AT/AF e assinatura do contrato
A68: PCJ1.3.2.3/2024 | B68: Implantação de medidas de contenção de cargas difusas de origem rural e urbana em locais prioritários | C68: 3.2 - Poluição | D68: Prioritário | E68: Não | F68: Sim | G68: 1 | H68: Município | I68: Bacia | J68: Bacias PCJ observando as prioridades para fósforo e nitrogênio | K68: - | L68: - | M68: Para recursos FEHIDRO, está sendo considerado o provável início da ação, após todo fluxo de análise do AT/AF e assinatura do contrato
A69: PCJ3.1.2.5/2024 | B69: Estabilização de voçorocas nas propriedades que receberão projetos de recomposição florestal (fonte: PDRF) | C69: 4.1 - Controle erosão | D69: Não prioritário | E69: Não | F69: Sim | G69: 1 | H69: Sociedade Civil | I69: Bacia | J69: Áreas de Contribuição das Bacias PCJ prioritárias conforme mapa síntese Mapa Conservação, recuperação de nascentes, matas ciliares e áreas de recarga do Plano de Bacias | K69: - | L69: - | M69: Para recursos FEHIDRO, está sendo considerado o provável início da ação, após todo fluxo de análise do AT/AF e assinatura do contrato
A70: PCJ6.1.1.3/2024 | B70: Apoio operacional para acompanhamento de projetos de assessoria ambiental | C70: 4.2 - Soluções baseadas Natureza | D70: Não prioritário | E70: Não | F70: Sim | G70: 1 | H70: Sociedade Civil | I70: Bacia | J70: Áreas de Contribuição das Bacias PCJ prioritárias conforme mapa síntese Mapa Conservação, recuperação de nascentes, matas ciliares e áreas de recarga do Plano de Bacias | K70: 2024-04-01 | L70: 2024-12-31 | M70: Para recursos FEHIDRO, está sendo considerado o provável início da ação, após todo fluxo de análise do AT/AF e assinatura do contrato
A71: PCJ3.1.2.1/2024 | B71: Promoção da conservação e recuperação de nascentes, matas ciliares e áreas de recarga | C71: 4.2 - Soluções baseadas Natureza | D71: Não prioritário | E71: Não | F71: Sim | G71: 1 | H71: Sociedade Civil | I71: Bacia | J71: Áreas de Contribuição das Bacias PCJ prioritárias conforme mapa síntese Mapa Conservação, recuperação de nascentes, matas ciliares e áreas de recarga do Plano de Bacias | K71: 2024-07-01 | L71: 2024-12-31 | M71: Para recursos FEHIDRO, está sendo considerado o provável início da ação, após todo fluxo de análise do AT/AF e assinatura do contrato
A72: PCJ3.1.3.1/2024 | B72: Implementação de projetos de PSA | C72: 4.2 - Soluções baseadas Natureza | D72: Não prioritário | E72: Não | F72: Sim | G72: 1 | H72: Sociedade Civil | I72: Bacia | J72: Áreas de Contribuição das Bacias PCJ prioritárias conforme mapa síntese Mapa Conservação, recuperação de nascentes, matas ciliares e áreas de recarga do Plano de Bacias | K72: - | L72: - | M72: Para recursos FEHIDRO, está sendo considerado o provável início da ação, após todo fluxo de análise do AT/AF e assinatura do contrato
A73: PCJ3.1.1.1/2024 | B73: Desenvolvimento e monitoramento da implementação dos PIPs | C73: 4.3 - Mananciais | D73: Não prioritário | E73: Não | F73: Sim | G73: 1 | H73: Sociedade Civil | I73: Bacia | J73: Bacias PCJ | K73: 2024-07-01 | L73: 2024-12-31 | M73: Para recursos FEHIDRO, está sendo considerado o provável início da ação, após todo fluxo de análise do AT/AF e assinatura do contrato
A74: PCJ5.3.1.2/2024 | B74: Elaboração de um Plano de Capacitação Técnica e realização de processos formativos nas áreas de atuação das Câmaras Técnicas | C74: 8.1 - Capacitação | D74: Não prioritário | E74: Não | F74: Sim | G74: 1 | H74: Sociedade Civil | I74: Bacia | J74: Bacias PCJ | K74: 2024-04-01 | L74: 2024-12-31 | M74: Para recursos FEHIDRO, está sendo considerado o provável início da ação, após todo fluxo de análise do AT/AF e assinatura do contrato
A75: PCJ1.4.1.2/2024 | B75: Ampliação e divulgação do programa de capacitação (Escola da Água e Saneamento), fomento e incentivo à capacitação de operadores | C75: 8.1 - Capacitação | D75: Não prioritário | E75: Não | F75: Sim | G75: 1 | H75: Sociedade Civil | I75: Bacia | J75: Bacias PCJ | K75: 2024-07-01 | L75: 2024-12-31 | M75: Para recursos FEHIDRO, está sendo considerado o provável início da ação, após todo fluxo de análise do AT/AF e assinatura do contrato
A76: PCJ5.2.1.2/2024 | B76: Realização de processos formativos e campanhas educativas sobre a realidade das Bacias PCJ | C76: 8.2 - Educação | D76: Não prioritário | E76: Não | F76: Sim | G76: 1 | H76: Sociedade Civil | I76: Bacia | J76: Bacias PCJ | K76: 2024-12-01 | L76: 2025-12-01 | M76: Para recursos FEHIDRO, está sendo considerado o provável início da ação, após todo fluxo de análise do AT/AF e assinatura do contrato
A77: PCJ5.1.1.1/2024 | B77: Elaboração e execução de um Plano de Comunicação para o fortalecimento da comunicação entre a sociedade civil e os Comitês PCJ | C77: 8.3 - Comunicação | D77: Não prioritário | E77: Não | F77: Sim | G77: 1 | H77: Sociedade Civil | I77: Bacia | J77: Bacias PCJ | K77: 2024-09-01 | L77: 2025-09-01 | M77: Para recursos FEHIDRO, está sendo considerado o provável início da ação, após todo fluxo de análise do AT/AF e assinatura do contrato
A78: PCJ6.1.1.6/2024 | B78: Apoio operacional para a área de comunicação social | C78: 8.3 - Comunicação | D78: Não prioritário | E78: Não | F78: Sim | G78: 1 | H78: Sociedade Civil | I78: Bacia | J78: Bacias PCJ | K78: 2024-07-01 | L78: 2025-07-01 | M78: Para recursos FEHIDRO, está sendo considerado o provável início da ação, após todo fluxo de análise do AT/AF e assinatura do contrato
A79: PCJ5.2.1.3/2024 | B79: Elaboração e divulgação de materiais educativos | C79: 8.3 - Comunicação | D79: Não prioritário | E79: Não | F79: Sim | G79: 1 | H79: Sociedade Civil | I79: Bacia | J79: Bacias PCJ | K79: 2024-07-31 | L79: 2025-07-31 | M79: Para recursos FEHIDRO, está sendo considerado o provável início da ação, após todo fluxo de análise do AT/AF e assinatura do contrato

Sheet Acompanhamento das metas 24-27
A1: ID | B1: Descrição da ação | C1: Meta do quadriênio | D1: Meta 2024 | E1: % de execução física da meta (2024) | F1: Meta 2025 | G1: % de execução física da meta (2025) | H1: Meta 2026 | I1: % de execução física da meta (2026) | J1: Meta 2027 | K1: % de execução física da meta (2027) | L1: Observações
A2: =IF(INDEX(IdentAcoes[],,1)=0,"",(INDEX(IdentAcoes[],,1))) -> PCJ3.3.1.2/2024 | B2: =IF(INDEX(IdentAcoes[],,4)=0,"",(INDEX(IdentAcoes[],,2))) -> Fomento a Planos Municipais de Saneamento Rural | C2: 15 Planos Municipais de Saneamento Rural elaborados | D2: 0 | F2: 0 | H2: 0 | J2: 15 | L2: Está previsto início das contratações para 2024 com início da execução em 2025.
A3: PCJ2.3.1.1/2024 | B3: Estudos de viabilidade para aumento de regularização de vazões em mananciais existentes e novos barramentos | C3: Termos de referência; Estudo elaborado | D3: 0 | F3: 0 | H3: 0 | J3: 1 | L3: Previsão de início em 2024 e conclusão em 2029
A4: PCJ2.3.3.2/2024 | B4: Elaboração dos Planos Diretores de Drenagem Urbana e Manejo de Águas Pluviais | C4: Elaboração de ao menos 01 Plano, considerando os trechos vulneráveis indicados no Plano de Bacias | D4: 0 | F4: 0 | H4: 0 | J4: 1 | L4: Previsão de início em 2024 e conclusão em 2029
A5: PCJ1.2.1.5/2024 | B5: Cadastro, caracterização e modelagem de cargas industriais | C5: Ao menos 01 estudo realizado | D5: 0 | F5: 1 | H5: 0 | J5: 0 | L5: Previsão de início em 2024 e execução em 2025
A6: PCJ1.2.1.6/2026 | B6: Estudos de alternativas de diminuição da carga industrial | C6: Estudos realizados até 2026 | D6: 0 | F6: 0 | H6: 0 | J6: 1 | L6: Previsão de início em 2026 e execução em 2027
A7: PCJ1.2.2.1/2026 | B7: Elaboração de estudos sobre os impactos da cloração de efluentes nos mananciais | C7: Estudos realizados até 2026 | D7: 0 | F7: 0 | H7: 0 | J7: 1 | L7: Previsão de início em 2026 e execução em 2027
A8: PCJ1.3.1.1/2027 | B8: Elaboração de estudo do background de fósforo nos corpos hídricos das Bacias PCJ e integração no SSD | C8: Concentrações inseridas no SSD | D8: 0 | F8: 0 | H8: 0 | J8: 0 | L8: Previsão de início em 2027 e execução em 2028
A9: PCJ1.3.1.3/2026 | B9: Elaboração de estudo sobre estruturas de controle e redução de cargas difusas e definição de metodologia para identificação e priorização de áreas potencialmente afetadas por cargas difusas de origem rural e urbana | C9: Estudo elaborado até final de 2026 | D9: 0 | F9: 0 | H9: 1 | J9: 0 | L9: Estudo elaborado em 2026
A10: PCJ1.3.2.2/2026 | B10: Elaboração de um Plano de Contenção de Cargas Difusas em locais prioritários nas Bacias PCJ | C10: Estudo elaborado até final de 2026 | D10: 0 | F10: 0 | H10: 1 | J10: 0 | L10: Estudo elaborado em 2026
A11: PCJ6.3.2.1/2025 | B11: Estudo para articulação entre CBHs visando a pactuação de condições de entrega | C11: Estudo elaborado até final de 2025 | D11: 0 | F11: 0 | H11: 1 | J11: 0 | L11: Estudo elaborado em 2025, com envolvimento dos CBHs da vertente
A12: PCJ1.1.1.2/2025 | B12: Elaboração de estudos para ampliação e melhoria dos sistemas de transporte de esgotos | C12: Elaboração de ao menos 01 estudo | D12: 0 | F12: 0 | H12: 0 | J12: 1 | L12: Previsão de início em 2025 e conclusão em 2029
A13: PCJ1.1.2.2/2025 | B13: Elaboração de estudos para a implantação de novas ETEs visando tratamento secundário | C13: Elaboração de ao menos 01 estudo | D13: 0 | F13: 0 | H13: 0 | J13: 1 | L13: Previsão de início em 2025 e conclusão em 2029
A14: PCJ1.2.1.1/2025 | B14: Elaboração de estudos de melhorias da eficiência das ETEs na remoção de nutrientes | C14: Elaboração de ao menos 01 estudo | D14: 0 | F14: 0 | H14: 0 | J14: 1 | L14: Previsão de início em 2025 e conclusão em 2029
A15: PCJ1.1.2.4/2024 | B15: Elaboração de estudos e relatórios visando o licenciamento das ETEs projetadas | C15: Elaboração de ao menos 01 estudo | D15: 0 | F15: 0 | H15: 0 | J15: 0 | L15: Inicialmente sem recurso previsto para o quadriênio - Aguardando desdobramentos junto aos Comitês PCJ
A16: PCJ1.2.1.7/2024 | B16: Elaboração e revisão de planos municipais de saneamento básico | C16: Ao menos 05 planos revisados/elaborados | D16: 0 | F16: 0 | H16: 0 | J16: 5 | L16: Está previsto início das contratações para 2024 com início da execução em 2025.
A17: PCJ2.3.2.1/2024 | B17: Elaboração e revisão de Planos de Controle e Redução de Perdas | C17: Ao menos 05 planos revisados/elaborados | D17: 0 | F17: 0 | H17: 0 | J17: 5 | L17: Está previsto início das contratações para 2024 com início da execução em 2025.
A18: PCJ2.2.4.1/2024 | B18: Desenvolvimento de estudo de alternativas de aumento da disponibilidade hídrica nas sub-bacias dos rios Atibaia, Jundiaí e Capivari | C18: Ao menos 01 estudo elaborado | D18: 0 | F18: 1 | H18: 0 | J18: 0 | L18: Previsão de início em 2024 e execução em 2025
A19: PCJ4.2.1.1/2026 | B19: Desenvolver estudo regional hidrogeológico nas Bacias PCJ | C19: 1. Desenvolvimento de termos de referência com arranjos institucionais e operacionais definidos; 2. Estudo desenvolvido e incorporado às práticas de gestão; 3. Validação por parte da CT-AS. | D19: 0 | F19: 0 | H19: 0 | J19: 1 | L19: Previsão de início em 2026 e execução em 2027
A20: PCJ4.2.1.2/2026 | B20: Desenvolvimento de estudo para estimativa de balanços hídricos e recargas nas Bacias PCJ | C20: 1. Termos de referência desenvolvidos com arranjos institucionais e operacionais definidos; 2. Estudo desenvolvido e incorporado às práticas de gestão; 3. Validação por parte da CT-AS | D20: 0 | F20: 0 | H20: 0 | J20: 1 | L20: Previsão de início em 2026 e execução em 2027
A21: PCJ4.2.1.3/2027 | B21: Delimitar as principais áreas de recarga e estabelecer diretrizes de proteção | C21: 1. Termos de referência desenvolvidos com arranjos operacionais definidos; 2. Estudo desenvolvido com mapas e diretrizes de proteção; 3. Validação por parte da CT-AS | D21: 0 | F21: 0 | H21: 0 | J21: 0 | L21: Previsão de início em 2027 e execução em 2028
A22: PCJ4.2.2.1/2027 | B22: Elaboração do estudo hidrogeológico do aquífero Tubarão | C22: 1. Realizar levantamentos e diagnósticos; 2. Definir e atualizar o modelo hidrogeológico conceitual; 3. Desenvolver modelos matemáticos; 4. Propor diretrizes para gestão de água subterrânea | D22: 0 | F22: 0 | H22: 0 | J22: 0 | L22: Previsão de início em 2027 e execução em 2028
A23: PCJ6.3.1.4/2025 | B23: Estabelecer parcerias para pesquisa com universidade e institutos | C23: Ao menos 01 parceria firmada | D23: 0 | F23: 1 | H23: 0 | J23: 0 | L23: Previsão de início em 2025 e execução em 2025
A24: PCJ4.1.1.2/2027 | B24: Desenvolvimento de banco de dados de poços e suporte à decisão | C24: Ao menos 01 banco de dados | D24: 0 | F24: 0 | H24: 0 | J24: 0 | L24: Previsão de início em 2027 e execução em 2028
A25: PCJ6.2.5.1/2024 | B25: Desenvolvimento de um plano de fiscalização de Outorgas em apoio ao órgão gestor | C25: 1. Arranjo institucional formalizado; 2. Plano elaborado e executado; 3. Aumento da agilidade e precisão técnica na concessão de outorgas e maior efetividade da fiscalização | D25: 0 | F25: 0 | H25: 0 | J25: 0 | L25: Inicialmente sem recurso previsto para o quadriênio - Aguardando desdobramentos junto aos Comitês PCJ
A26: PCJ6.2.3.2/2026 | B26: Monitoramento de chuva, vazão, qualidade e nível de água subterrânea em pequenas bacias hidrográficas | C26: 1. Projeto da rede; 2. Implementação da rede; 3. Operação da rede; | D26: 0 | F26: 0 | H26: 0 | J26: 1 | L26: Previsão de início em 2026 e conclusão em 2027
A27: PCJ6.2.3.3/2026 | B27: Implantação, integração, operação e manutenção da rede de monitoramento quali-quantitativo das águas subterrâneas | C27: Disponibilização dos dados de ao menos 02 postos ativos | D27: 0 | F27: 0 | H27: 0 | J27: 2 | L27: Previsão de início em 2026 e conclusão em 2027
A28: PCJ6.3.1.3/2025 | B28: Fomentar a adequação das redes de monitoramento | C28: Contratação de 01 plano integrado de monitoramento | D28: 0 | F28: 1 | H28: 0 | J28: 0 | L28: Previsão de início em 2025 e conclusão em 2025
A29: PCJ6.3.1.6/2026 | B29: Integrar dados de monitoramento quali-quantitativos | C29: Contratação de plano integrado de monitoramento | D29: 0 | F29: 0 | H29: 1 | J29: 0 | L29: Previsão de início em 2026 e conclusão em 2026
A30: PCJ6.3.2.2/2025 | B30: Apoio à gestão administrativa da Fundação da Agência da Bacia Hidrográfica dos Rios Sorocaba e Médio Tietê | C30: Apoio prestado | D30: 0 | F30: 1 | H30: 1 | J30: 1 | L30: Apoio com gerenciadora contratada em 2025, podendo ser mantida para os próximos anos
A31: PCJ6.3.1.1/2025 | B31: Discutir a possibilidade de implantação de agências de bacia | C31: Realização de um estudo sobre a implantação de agências de bacia | D31: 0 | F31: 1 | H31: 0 | J31: 0 | L31: Previsão de início em 2025 e conclusão em 2025
A32: PCJ3.3.1.1/2024 | B32: Substituição de sistemas rudimentares de tratamento de esgoto (fossa negra) por sistemas mais eficientes | C32: Substituição de 30 sistemas | D32: 0 | F32: 0 | H32: 0 | J32: 30 | L32: Está previsto início das contratações para 2024 com início da execução em 2025.
A33: PCJ1.1.1.4/2024 | B33: Elaboração de projetos de ampliação e melhoria dos sistemas de transporte de esgotos | C33: Elaboração de ao menos 01 projeto | D33: 0 | F33: 0 | H33: 0 | J33: 1 | L33: Está previsto início das contratações para 2024 com conclusão em 2027
A34: PCJ1.1.2.3/2024 | B34: Elaboração de projetos para a implantação de novas ETEs visando tratamento secundário | C34: Elaboração de ao menos 01 projeto | D34: 0 | F34: 0 | H34: 0 | J34: 1 | L34: Está previsto início das contratações para 2024 com conclusão em 2027
A35: PCJ1.2.1.2/2024 | B35: Elaboração de projetos de melhorias da eficiência das ETEs na remoção de nutrientes | C35: Elaboração de ao menos 01 projeto | D35: 0 | F35: 0 | H35: 0 | J35: 1 | L35: Está previsto início das contratações para 2024 com conclusão em 2027
A36: PCJ1.2.2.2/2027 | B36: Elaboração de projetos de implantação de tecnologias de desinfecção de efluentes domésticos | C36: Elaboração de ao menos 01 projeto por ano | D36: 0 | F36: 0 | H36: 0 | J36: 0 | L36: Previsão de início em 2027 e execução em 2028
A37: PCJ3.1.2.3/2024 | B37: Incentivo à proteção das áreas sujeitas à restrição de uso | C37: Implementação da RAP-PCJ; Disponibilização e atualização de dados e informações sobre áreas protegidas nas Bacias PCJ; Elaboração de diagnóstico com a mensuração dos benefícios hídricos das áreas protegidas. | D37: 0 | F37: 0 | H37: 0 | J37: 0 | L37: Inicialmente sem recurso previsto para o quadriênio - Aguardando desdobramentos junto aos Comitês PCJ
A38: PCJ2.3.2.2/2024 | B38: Controle de perdas em sistemas de abastecimento de água | C38: Alcance das metas intermediárias dos cenários de referência para planejamento, conforme descrito no Plano de Bacias | D38: 0 | F38: 0 | H38: Os municípios que receberam investimentos deverão alcancar as metas intermediárias previstas pelo PBH para o ano de 2025 | J38: 0 | L38: Para fins de acompanhamento foi adotado como ano para verificação das metas intermediárias o ano de 2026
A39: PCJ5.2.2.1/2024 | B39: Elaboração de propostas para órgãos de financiamento em pesquisas | C39: Propostas de linhas de fomento encaminhadas para órgãos de financiamento de pesquisas. | D39: 0 | F39: 0 | H39: 0 | J39: 0 | L39: Inicialmente sem recurso previsto para o quadriênio - Aguardando desdobramentos junto aos Comitês PCJ
A40: PCJ5.2.2.3/2024 | B40: Apoio ao desenvolvimento e difusão de pesquisas e tecnologias que contribuam no enfrentamento dos desafios identificados no Plano das Bacias PCJ | C40: 1 parcerias ou convênios firmados até 2027 | D40: 0 | F40: 0 | H40: 0 | J40: 0 | L40: Inicialmente sem recurso previsto para o quadriênio - Aguardando desdobramentos junto aos Comitês PCJ
A41: PCJ6.2.5.2/2027 | B41: Apoio à regularização de outorga na área rural | C41: Campanhas de divulgação realizadas e suporte técnico fornecido | D41: 0 | F41: 0 | H41: 0 | J41: 1 | L41: Previsão de início e conclusão em 2027
A42: PCJ1.1.1.1/2024 | B42: Elaboração de estudos para ampliação e melhoria dos sistemas de coleta de esgotos | C42: Elaboração de ao menos 01 estudo | D42: 0 | F42: 0 | H42: 0 | J42: 0 | L42: Inicialmente sem recurso previsto para o quadriênio - Aguardando desdobramentos junto aos Comitês PCJ
A43: PCJ2.2.3.1/2024 | B43: Acompanhamento e apoio aos estudos de viabilidade, projetos de engenharia e licenciamento ambiental das barragens de Pedreira, Duas Pontes e do ribeirão Piraí e do trecho Oeste do SAR | C43: Criação de GT para acompanhamento | D43: 0 | F43: 0 | H43: 1 | J43: 0 | L43: Cobrança Federal
A44: PCJ2.3.3.1/2024 | B44: Elaboração de um guia de manejo de drenagem e manejo de águas pluviais | C44: 01 Manual elaborado | D44: 1 | F44: 0 | H44: 0 | J44: 0 | L44: Cobrança Federal
A45: PCJ1.3.1.2/2025 | B45: Elaboração de estudo piloto para avaliação da carga difusa de origem urbana e rural afluente nos corpos hídricos das Bacias PCJ | C45: 01 estudo elaborado | D45: 0 | F45: 1 | H45: 0 | J45: 0 | L45: Cobrança Federal
A46: PCJ6.2.5.3/2024 | B46: Apoio operacional para fiscalização de outorgas | C46: Apoio operacional contínuo | D46: 1 | F46: 1 | H46: 0 | J46: 0 | L46: Cobrança Federal
A47: PCJ6.1.1.2/2024 | B47: Apoio operacional para a área de cobrança pelo uso dos recursos hídricos | C47: Apoio operacional contínuo | D47: 1 | F47: 1 | H47: 0 | J47: 0 | L47: Cobrança Federal
A48: PCJ6.1.1.5/2024 | B48: Apoio operacional para acompanhamento de projetos da área de Sistema de Informações | C48: Apoio operacional contínuo | D48: 1 | F48: 1 | H48: 0 | J48: 0 | L48: Cobrança Federal
A49: PCJ6.2.3.1/2024 | B49: Expansão, integração, operação e manutenção da rede de monitoramento quali-quantitativo dos recursos hídricos | C49: Disponibilização de dados de ao menos 36 postos ativos | D49: 36 | F49: 36 | H49: 0 | J49: 0 | L49: Cobrança Federal
A50: PCJ2.1.1.1/2024 | B50: Manutenção e aprimoramento de um modelo chuva-vazão para as Bacias PCJ | C50: Disponibilidade de ao menos 01 modelo | D50: 1 | F50: 1 | H50: 0 | J50: 0 | L50: Cobrança Federal
A51: PCJ2.1.2.1/2025 | B51: Aprimoramento de modelo de simulação hidrodinâmica do tempo de trânsito e do amortecimento da vazão preferencialmente à jusante do Sistema Cantareira | C51: 01 modelo calibrado | D51: 0 | F51: 1 | H51: 0 | J51: 0 | L51: Cobrança Federal
A52: PCJ6.2.6.1/2024 | B52: Apoio operacional para gerenciamento da implementação e da revisão do Plano de Bacias | C52: Contratação de ao menos 01 pessoa | D52: 1 | F52: 1 | H52: 0 | J52: 0 | L52: Cobrança Federal
A53: PCJ6.1.1.4/2024 | B53: Apoio Operacional para acompanhamento de empreendimentos de demanda espontânea | C53: Remuneração de agentes técnicos e financeiros para empreendimentos deliberados pelos Comitês PCJ | D53: 1 | F53: 1 | H53: 0 | J53: 0 | L53: Cobrança Federal
A54: PCJ6.1.2.2/2024 | B54: Remuneração de agentes técnicos e financeiros para empreendimentos deliberados pelos Comitês PCJ | C54: Desembolso de ao menos 50% do valor previsto | D54: 0.036 | F54: 0.036 | H54: 0.036 | J54: 0.036 | L54: Cobrança Federal - Meta definida de acordo com horizonte previsto pelo PBH PCJ (15 anos)
A55: PCJ6.1.2.3/2024 | B55: Logística de Suporte às reuniões Plenárias e das CTs dos Comitês PCJ | C55: Apoio operacional contínuo | D55: 1 | F55: 1 | H55: 0 | J55: 0 | L55: Cobrança Federal
A56: PCJ6.1.2.1/2024 | B56: Apoio operacional para a Secretaria Executiva dos Comitês PCJ | C56: Apoio operacional contínuo | D56: 1 | F56: 1 | H56: 0 | J56: 0 | L56: Cobrança Federal
A57: PCJ6.1.1.7/2024 | B57: Apoio operacional para acompanhamento de ações da porção mineira | C57: Apoio operacional contínuo | D57: 1 | F57: 1 | H57: 0 | J57: 0 | L57: Cobrança Federal
A58: PCJ6.1.1.1/2024 | B58: Apoio operacional para a Área de Tecnologia da Informação - TI | C58: Apoio operacional contínuo | D58: 1 | F58: 1 | H58: 0 | J58: 0 | L58: Cobrança Federal
A59: PCJ6.1.2.4/2024 | B59: Participação de membros dos Comitês PCJ em eventos internos das CTs e eventos externos | C59: Apoio operacional contínuo | D59: 1 | F59: 1 | H59: 0 | J59: 0 | L59: Cobrança Federal
A60: PCJ6.1.2.5/2024 | B60: Manutenção de licenciamento de sistemas de TI | C60: Apoio operacional contínuo | D60: 1 | F60: 1 | H60: 0 | J60: 0 | L60: Cobrança Federal
A61: PCJ1.2.2.3/2024 | B61: Implantação das tecnologias de desinfecção projetadas | C61: Ao menos 01 melhoria implantada | D61: 0 | F61: 0 | H61: 0 | J61: 1 | L61: Previsão de início em 2024 e conclusão em 2029
A62: PCJ1.1.2.5/2024 | B62: Implantação das ETEs projetadas e melhorias das ETEs existentes | C62: Ao menos 01 ETE implantada | D62: 0 | F62: 0 | H62: 0 | J62: 1 | L62: Previsão de início em 2024 e conclusão em 2029
A63: PCJ1.2.1.9/2024 | B63: Implantação das melhorias das ETEs projetadas e retrofit de ETEs para remoção de nutrientes | C63: Ao menos 01 melhoria implantada | D63: 0 | F63: 0 | H63: 0 | J63: 1 | L63: Previsão de início em 2024 e conclusão em 2029
A64: PCJ1.2.1.8/2024 | B64: Implantação de Unidades de Tratamento de Lodo nas ETAs | C64: Ao menos 01 UTLs implantada em ETA | D64: 0 | F64: 0 | H64: 0 | J64: 1 | L64: Previsão de início das contratações em 2024 e 2025 e conclusão em 2027
A65: PCJ1.1.1.3/2024 | B65: Elaboração de projetos de ampliação e melhoria dos sistemas de coleta de esgotos | C65: Elaboração de ao menos 01 projeto | D65: 0 | F65: 0 | H65: 0 | J65: 0 | L65: Inicialmente sem recurso previsto para o quadriênio - Aguardando desdobramentos junto aos Comitês PCJ
A66: PCJ1.1.1.5/2024 | B66: Ampliações e melhoria dos sistemas de coleta de esgotos | C66: Ampliação dos sistemas de coleta de esgotos de pelo menos 20% dos municípios prioritários | D66: 0 | F66: 0 | H66: 0 | J66: 0 | L66: Meta prevista pelo PBH para 2035. Esse tipo de meta pode se alcançada sem relação direta com investimento do CBH.
A67: PCJ1.3.2.1/2024 | B67: Elaboração de projetos demonstrativos para contenção de cargas difusas de origem rural e urbana | C67: Estudo elaborado até final de 2025 | D67: 0 | F67: 0 | H67: 0 | J67: 0 | L67: Inicialmente sem recurso previsto para o quadriênio - Aguardando desdobramentos junto aos Comitês PCJ
A68: PCJ1.3.2.3/2024 | B68: Implantação de medidas de contenção de cargas difusas de origem rural e urbana em locais prioritários | C68: Todos os locais prioritários contemplados com as medidas propostas de mitigação da poluição difusa de maneira contínua até o fim de 2035 | D68: 0 | F68: 0 | H68: 0 | J68: 0 | L68: Inicialmente sem recurso previsto para o quadriênio - Aguardando desdobramentos junto aos Comitês PCJ
A69: PCJ3.1.2.5/2024 | B69: Estabilização de voçorocas nas propriedades que receberão projetos de recomposição florestal (fonte: PDRF) | C69: Estabilização de ao menos 10 voçorocas/ano nas propriedades que recebem projetos de recomposição florestal | D69: 0 | F69: 0 | H69: 0 | J69: 0 | L69: Inicialmente sem recurso previsto para o quadriênio - Aguardando desdobramentos junto aos Comitês PCJ
A70: PCJ6.1.1.3/2024 | B70: Apoio operacional para acompanhamento de projetos de assessoria ambiental | C70: Apoio operacional contínuo | D70: 1 | F70: 1 | H70: 0 | J70: 0 | L70: Cobrança Federal
A71: PCJ3.1.2.1/2024 | B71: Promoção da conservação e recuperação de nascentes, matas ciliares e áreas de recarga | C71: Recuperação de 40 hectares de áreas prioritárias por ano | D71: 40 | F71: 40 | H71: 0 | J71: 0 | L71: Cobrança Federal
A72: PCJ3.1.3.1/2024 | B72: Implementação de projetos de PSA | C72: Contratação de ao menos 01 projeto aprovado no Edital anualmente | D72: 0 | F72: 0 | H72: 0 | J72: 0 | L72: Cobrança Federal
A73: PCJ3.1.1.1/2024 | B73: Desenvolvimento e monitoramento da implementação dos PIPs | C73: Contratação da elaboração de PIPs para 1.000 hectares por ano | D73: 1000 | F73: 1000 | H73: 0 | J73: 0 | L73: Cobrança Federal
A74: PCJ5.3.1.2/2024 | B74: Elaboração de um Plano de Capacitação Técnica e realização de processos formativos nas áreas de atuação das Câmaras Técnicas | C74: 01 Plano elaborado e ao menos 12 membros capacitados em nível de pós-graduação | D74: 12 | F74: 12 | H74: 0 | J74: 0 | L74: Cobrança Federal
A75: PCJ1.4.1.2/2024 | B75: Ampliação e divulgação do programa de capacitação (Escola da Água e Saneamento), fomento e incentivo à capacitação de operadores | C75: Capacitação de ao menos 05 turmas por ano | D75: 5 | F75: 5 | H75: 0 | J75: 0 | L75: Cobrança Federal
A76: PCJ5.2.1.2/2024 | B76: Realização de processos formativos e campanhas educativas sobre a realidade das Bacias PCJ | C76: Ao menos 01 processo formativo e uma campanha educativa realizada | D76: 0 | F76: 0 | H76: 1 | J76: 0 | L76: Cobrança Federal
A77: PCJ5.1.1.1/2024 | B77: Elaboração e execução de um Plano de Comunicação para o fortalecimento da comunicação entre a sociedade civil e os Comitês PCJ | C77: 01 Plano elaborado e ações implementadas | D77: 0 | F77: 0 | H77: 1 | J77: 0 | L77: Cobrança Federal
A78: PCJ6.1.1.6/2024 | B78: Apoio operacional para a área de comunicação social | C78: Apoio operacional contínuo | D78: 1 | F78: 1 | H78: 0 | J78: 0 | L78: Cobrança Federal
A79: PCJ5.2.1.3/2024 | B79: Elaboração e divulgação de materiais educativos | C79: Materiais educativos elaborados e distribuídos, conforme planejado pelo plano de comunicação. | D79: 0 | F79: 0 | H79: Materiais educativos elaborados | J79: 0 | L79: Cobrança Federal

Sheet Acomp. financeiro 24-27
A1: id_ação_Fonte_oculta | B1: ID Ação | C1: Descrição da ação | D1: Fonte | E1: R$ Planejado (2024) | F1: R$ Disponibilizado (2024) | G1: R$ Executado (2024) | H1: R$ Planejado (2025) | I1: R$ Disponibilizado (2025) | J1: R$ Executado (2025) | K1: R$ Planejado (2026) | L1: R$ Disponibilizado (2026) | M1: R$ Executado (2026) | N1: R$ Planejado (2027) | O1: R$ Disponibilizado (2027) | P1: R$ Executado (2027) | Q1: Observações sobre execução financeira da meta
A2: =Financeiro[[#This Row],[ID Ação]]&Financeiro[[#This Row],[Fonte]] -> PCJ3.3.1.2/2024FEHIDRO - Cobrança estadual | B2: =IFERROR(INDEX(IdentAcoes[ID Ação],MATCH(0,INDEX(--(COUNTIF(B$1:B1,IdentAcoes[ID Ação])=IdentAcoes[[Quantidade de fontes de recursos ]]),0),0)),"") -> PCJ3.3.1.2/2024 | C2: =IFERROR(INDEX(IdentAcoes[Descrição da ação],MATCH(0,INDEX(--(COUNTIF(C$1:C1,IdentAcoes[Descrição da ação])=IdentAcoes[[Quantidade de fontes de recursos ]]),0),0)),"") -> Fomento a Planos Municipais de Saneamento Rural | D2: FEHIDRO - Cobrança estadual | E2: 1000000 | H2: 2000000 | K2: 1000000 | N2: 1341614.128
A3: =Financeiro[[#This Row],[ID Ação]]&Financeiro[[#This Row],[Fonte]] -> PCJ3.3.1.2/2024FEHIDRO - CFURH | B3: =IFERROR(INDEX(IdentAcoes[ID Ação],MATCH(0,INDEX(--(COUNTIF(B$1:B2,IdentAcoes[ID Ação])=IdentAcoes[[Quantidade de fontes de recursos ]]),0),0)),"") -> PCJ3.3.1.2/2024 | C3: =IFERROR(INDEX(IdentAcoes[Descrição da ação],MATCH(0,INDEX(--(COUNTIF(C$1:C2,IdentAcoes[Descrição da ação])=IdentAcoes[[Quantidade de fontes de recursos ]]),0),0)),"") -> Fomento a Planos Municipais de Saneamento Rural | D3: FEHIDRO - CFURH | E3: 822566.3 | H3: 861129.6 | K3: 901617 | N3: 944164
A4: =Financeiro[[#This Row],[ID Ação]]&Financeiro[[#This Row],[Fonte]] -> PCJ2.3.1.1/2024FEHIDRO - Cobrança estadual | B4: =IFERROR(INDEX(IdentAcoes[ID Ação],MATCH(0,INDEX(--(COUNTIF(B$1:B3,IdentAcoes[ID Ação])=IdentAcoes[[Quantidade de fontes de recursos ]]),0),0)),"") -> PCJ2.3.1.1/2024 | C4: =IFERROR(INDEX(IdentAcoes[Descrição da ação],MATCH(0,INDEX(--(COUNTIF(C$1:C3,IdentAcoes[Descrição da ação])=IdentAcoes[[Quantidade de fontes de recursos ]]),0),0)),"") -> Estudos de viabilidade para aumento de regularização de vazões em mananciais existentes e novos barramentos | D4: FEHIDRO - Cobrança estadual | E4: 1000000 | H4: 1500000 | K4: 500000 | N4: 500000
A5: =Financeiro[[#This Row],[ID Ação]]&Financeiro[[#This Row],[Fonte]] -> PCJ2.3.3.2/2024FEHIDRO - Cobrança estadual | B5: =IFERROR(INDEX(IdentAcoes[ID Ação],MATCH(0,INDEX(--(COUNTIF(B$1:B4,IdentAcoes[ID Ação])=IdentAcoes[[Quantidade de fontes de recursos ]]),0),0)),"") -> PCJ2.3.3.2/2024 | C5: =IFERROR(INDEX(IdentAcoes[Descrição da ação],MATCH(0,INDEX(--(COUNTIF(C$1:C4,IdentAcoes[Descrição da ação])=IdentAcoes[[Quantidade de fontes de recursos ]]),0),0)),"") -> Elaboração dos Planos Diretores de Drenagem Urbana e Manejo de Águas Pluviais | D5: FEHIDRO - Cobrança estadual | E5: 1500000 | H5: 1500000 | K5: 1000000 | N5: 1000000
A6: =Financeiro[[#This Row],[ID Ação]]&Financeiro[[#This Row],[Fonte]] -> PCJ1.2.1.5/2024FEHIDRO - Cobrança estadual | B6: =IFERROR(INDEX(IdentAcoes[ID Ação],MATCH(0,INDEX(--(COUNTIF(B$1:B5,IdentAcoes[ID Ação])=IdentAcoes[[Quantidade de fontes de recursos ]]),0),0)),"") -> PCJ1.2.1.5/2024 | C6: =IFERROR(INDEX(IdentAcoes[Descrição da ação],MATCH(0,INDEX(--(COUNTIF(C$1:C5,IdentAcoes[Descrição da ação])=IdentAcoes[[Quantidade de fontes de recursos ]]),0),0)),"") -> Cadastro, caracterização e modelagem de cargas industriais | D6: FEHIDRO - Cobrança estadual | E6: 2000000 | H6: 0 | K6: 0 | N6: 0
A7: =Financeiro[[#This Row],[ID Ação]]&Financeiro[[#This Row],[Fonte]] -> PCJ1.2.1.6/2026FEHIDRO - Cobrança estadual | B7: =IFERROR(INDEX(IdentAcoes[ID Ação],MATCH(0,INDEX(--(COUNTIF(B$1:B6,IdentAcoes[ID Ação])=IdentAcoes[[Quantidade de fontes de recursos ]]),0),0)),"") -> PCJ1.2.1.6/2026 | C7: =IFERROR(INDEX(IdentAcoes[Descrição da ação],MATCH(0,INDEX(--(COUNTIF(C$1:C6,IdentAcoes[Descrição da ação])=IdentAcoes[[Quantidade de fontes de recursos ]]),0),0)),"") -> Estudos de alternativas de diminuição da carga industrial | D7: FEHIDRO - Cobrança estadual | E7: 0 | H7: 0 | K7: 513285.72 | N7: 0
A8: =Financeiro[[#This Row],[ID Ação]]&Financeiro[[#This Row],[Fonte]] -> PCJ1.2.2.1/2026FEHIDRO - Cobrança estadual | B8: =IFERROR(INDEX(IdentAcoes[ID Ação],MATCH(0,INDEX(--(COUNTIF(B$1:B7,IdentAcoes[ID Ação])=IdentAcoes[[Quantidade de fontes de recursos ]]),0),0)),"") -> PCJ1.2.2.1/2026 | C8: =IFERROR(INDEX(IdentAcoes[Descrição da ação],MATCH(0,INDEX(--(COUNTIF(C$1:C7,IdentAcoes[Descrição da ação])=IdentAcoes[[Quantidade de fontes de recursos ]]),0),0)),"") -> Elaboração de estudos sobre os impactos da cloração de efluentes nos mananciais | D8: FEHIDRO - Cobrança estadual | E8: 0 | H8: 0 | K8: 700000 | N8: 0
A9: =Financeiro[[#This Row],[ID Ação]]&Financeiro[[#This Row],[Fonte]] -> PCJ1.3.1.1/2027FEHIDRO - Cobrança estadual | B9: =IFERROR(INDEX(IdentAcoes[ID Ação],MATCH(0,INDEX(--(COUNTIF(B$1:B8,IdentAcoes[ID Ação])=IdentAcoes[[Quantidade de fontes de recursos ]]),0),0)),"") -> PCJ1.3.1.1/2027 | C9: =IFERROR(INDEX(IdentAcoes[Descrição da ação],MATCH(0,INDEX(--(COUNTIF(C$1:C8,IdentAcoes[Descrição da ação])=IdentAcoes[[Quantidade de fontes de recursos ]]),0),0)),"") -> Elaboração de estudo do background de fósforo nos corpos hídricos das Bacias PCJ e integração no SSD | D9: FEHIDRO - Cobrança estadual | E9: 0 | H9: 0 | K9: 0 | N9: 1707385.872
A10: =Financeiro[[#This Row],[ID Ação]]&Financeiro[[#This Row],[Fonte]] -> PCJ1.3.1.3/2026FEHIDRO - Cobrança estadual | B10: =IFERROR(INDEX(IdentAcoes[ID Ação],MATCH(0,INDEX(--(COUNTIF(B$1:B9,IdentAcoes[ID Ação])=IdentAcoes[[Quantidade de fontes de recursos ]]),0),0)),"") -> PCJ1.3.1.3/2026 | C10: =IFERROR(INDEX(IdentAcoes[Descrição da ação],MATCH(0,INDEX(--(COUNTIF(C$1:C9,IdentAcoes[Descrição da ação])=IdentAcoes[[Quantidade de fontes de recursos ]]),0),0)),"") -> Elaboração de estudo sobre estruturas de controle e redução de cargas difusas e definição de metodologia para identificação e priorização de áreas potencialmente afetadas por cargas difusas de origem rural e urbana | D10: FEHIDRO - Cobrança estadual | E10: 0 | H10: 0 | K10: 2700000 | N10: 0
A11: =Financeiro[[#This Row],[ID Ação]]&Financeiro[[#This Row],[Fonte]] -> PCJ1.3.2.2/2026FEHIDRO - Cobrança estadual | B11: =IFERROR(INDEX(IdentAcoes[ID Ação],MATCH(0,INDEX(--(COUNTIF(B$1:B10,IdentAcoes[ID Ação])=IdentAcoes[[Quantidade de fontes de recursos ]]),0),0)),"") -> PCJ1.3.2.2/2026 | C11: =IFERROR(INDEX(IdentAcoes[Descrição da ação],MATCH(0,INDEX(--(COUNTIF(C$1:C10,IdentAcoes[Descrição da ação])=IdentAcoes[[Quantidade de fontes de recursos ]]),0),0)),"") -> Elaboração de um Plano de Contenção de Cargas Difusas em locais prioritários nas Bacias PCJ | D11: FEHIDRO - Cobrança estadual | E11: 0 | H11: 0 | K11: 2000000 | N11: 0
A12: =Financeiro[[#This Row],[ID Ação]]&Financeiro[[#This Row],[Fonte]] -> PCJ6.3.2.1/2025FEHIDRO - Cobrança estadual | B12: =IFERROR(INDEX(IdentAcoes[ID Ação],MATCH(0,INDEX(--(COUNTIF(B$1:B11,IdentAcoes[ID Ação])=IdentAcoes[[Quantidade de fontes de recursos ]]),0),0)),"") -> PCJ6.3.2.1/2025 | C12: =IFERROR(INDEX(IdentAcoes[Descrição da ação],MATCH(0,INDEX(--(COUNTIF(C$1:C11,IdentAcoes[Descrição da ação])=IdentAcoes[[Quantidade de fontes de recursos ]]),0),0)),"") -> Estudo para articulação entre CBHs visando a pactuação de condições de entrega | D12: FEHIDRO - Cobrança estadual | E12: 0 | H12: 600000 | K12: 0 | N12: 0
A13: =Financeiro[[#This Row],[ID Ação]]&Financeiro[[#This Row],[Fonte]] -> PCJ1.1.1.2/2025FEHIDRO - Cobrança estadual | B13: =IFERROR(INDEX(IdentAcoes[ID Ação],MATCH(0,INDEX(--(COUNTIF(B$1:B12,IdentAcoes[ID Ação])=IdentAcoes[[Quantidade de fontes de recursos ]]),0),0)),"") -> PCJ1.1.1.2/2025 | C13: =IFERROR(INDEX(IdentAcoes[Descrição da ação],MATCH(0,INDEX(--(COUNTIF(C$1:C12,IdentAcoes[Descrição da ação])=IdentAcoes[[Quantidade de fontes de recursos ]]),0),0)),"") -> Elaboração de estudos para ampliação e melhoria dos sistemas de transporte de esgotos | D13: FEHIDRO - Cobrança estadual | E13: 0 | H13: 1000000 | K13: 1000000 | N13: 1000000
A14: =Financeiro[[#This Row],[ID Ação]]&Financeiro[[#This Row],[Fonte]] -> PCJ1.1.2.2/2025FEHIDRO - Cobrança estadual | B14: =IFERROR(INDEX(IdentAcoes[ID Ação],MATCH(0,INDEX(--(COUNTIF(B$1:B13,IdentAcoes[ID Ação])=IdentAcoes[[Quantidade de fontes de recursos ]]),0),0)),"") -> PCJ1.1.2.2/2025 | C14: =IFERROR(INDEX(IdentAcoes[Descrição da ação],MATCH(0,INDEX(--(COUNTIF(C$1:C13,IdentAcoes[Descrição da ação])=IdentAcoes[[Quantidade de fontes de recursos ]]),0),0)),"") -> Elaboração de estudos para a implantação de novas ETEs visando tratamento secundário | D14: FEHIDRO - Cobrança estadual | E14: 0 | H14: 1000000 | K14: 750000 | N14: 700000
A15: =Financeiro[[#This Row],[ID Ação]]&Financeiro[[#This Row],[Fonte]] -> PCJ1.2.1.1/2025FEHIDRO - Cobrança estadual | B15: =IFERROR(INDEX(IdentAcoes[ID Ação],MATCH(0,INDEX(--(COUNTIF(B$1:B14,IdentAcoes[ID Ação])=IdentAcoes[[Quantidade de fontes de recursos ]]),0),0)),"") -> PCJ1.2.1.1/2025 | C15: =IFERROR(INDEX(IdentAcoes[Descrição da ação],MATCH(0,INDEX(--(COUNTIF(C$1:C14,IdentAcoes[Descrição da ação])=IdentAcoes[[Quantidade de fontes de recursos ]]),0),0)),"") -> Elaboração de estudos de melhorias da eficiência das ETEs na remoção de nutrientes | D15: FEHIDRO - Cobrança estadual | E15: 0 | H15: 1000000 | K15: 1000000 | N15: 1500000
A16: =Financeiro[[#This Row],[ID Ação]]&Financeiro[[#This Row],[Fonte]] -> PCJ1.1.2.4/2024FEHIDRO - Cobrança estadual | B16: =IFERROR(INDEX(IdentAcoes[ID Ação],MATCH(0,INDEX(--(COUNTIF(B$1:B15,IdentAcoes[ID Ação])=IdentAcoes[[Quantidade de fontes de recursos ]]),0),0)),"") -> PCJ1.1.2.4/2024 | C16: =IFERROR(INDEX(IdentAcoes[Descrição da ação],MATCH(0,INDEX(--(COUNTIF(C$1:C15,IdentAcoes[Descrição da ação])=IdentAcoes[[Quantidade de fontes de recursos ]]),0),0)),"") -> Elaboração de estudos e relatórios visando o licenciamento das ETEs projetadas | D16: FEHIDRO - Cobrança estadual | E16: 0 | H16: 0 | K16: 0 | N16: 0
A17: =Financeiro[[#This Row],[ID Ação]]&Financeiro[[#This Row],[Fonte]] -> PCJ1.2.1.7/2024FEHIDRO - Cobrança estadual | B17: =IFERROR(INDEX(IdentAcoes[ID Ação],MATCH(0,INDEX(--(COUNTIF(B$1:B16,IdentAcoes[ID Ação])=IdentAcoes[[Quantidade de fontes de recursos ]]),0),0)),"") -> PCJ1.2.1.7/2024 | C17: =IFERROR(INDEX(IdentAcoes[Descrição da ação],MATCH(0,INDEX(--(COUNTIF(C$1:C16,IdentAcoes[Descrição da ação])=IdentAcoes[[Quantidade de fontes de recursos ]]),0),0)),"") -> Elaboração e revisão de planos municipais de saneamento básico | D17: FEHIDRO - Cobrança estadual | E17: 2500000 | H17: 1750000 | K17: 1750000 | N17: 1750000
A18: =Financeiro[[#This Row],[ID Ação]]&Financeiro[[#This Row],[Fonte]] -> PCJ2.3.2.1/2024FEHIDRO - Cobrança estadual | B18: =IFERROR(INDEX(IdentAcoes[ID Ação],MATCH(0,INDEX(--(COUNTIF(B$1:B17,IdentAcoes[ID Ação])=IdentAcoes[[Quantidade de fontes de recursos ]]),0),0)),"") -> PCJ2.3.2.1/2024 | C18: =IFERROR(INDEX(IdentAcoes[Descrição da ação],MATCH(0,INDEX(--(COUNTIF(C$1:C17,IdentAcoes[Descrição da ação])=IdentAcoes[[Quantidade de fontes de recursos ]]),0),0)),"") -> Elaboração e revisão de Planos de Controle e Redução de Perdas | D18: FEHIDRO - Cobrança estadual | E18: 1500000 | H18: 1750000 | K18: 1250000 | N18: 1250000
A19: =Financeiro[[#This Row],[ID Ação]]&Financeiro[[#This Row],[Fonte]] -> PCJ2.2.4.1/2024FEHIDRO - Cobrança estadual | B19: =IFERROR(INDEX(IdentAcoes[ID Ação],MATCH(0,INDEX(--(COUNTIF(B$1:B18,IdentAcoes[ID Ação])=IdentAcoes[[Quantidade de fontes de recursos ]]),0),0)),"") -> PCJ2.2.4.1/2024 | C19: =IFERROR(INDEX(IdentAcoes[Descrição da ação],MATCH(0,INDEX(--(COUNTIF(C$1:C18,IdentAcoes[Descrição da ação])=IdentAcoes[[Quantidade de fontes de recursos ]]),0),0)),"") -> Desenvolvimento de estudo de alternativas de aumento da disponibilidade hídrica nas sub-bacias dos rios Atibaia, Jundiaí e Capivari | D19: FEHIDRO - Cobrança estadual | E19: 1500000 | H19: 0 | K19: 0 | N19: 0
A20: =Financeiro[[#This Row],[ID Ação]]&Financeiro[[#This Row],[Fonte]] -> PCJ4.2.1.1/2026FEHIDRO - Cobrança estadual | B20: =IFERROR(INDEX(IdentAcoes[ID Ação],MATCH(0,INDEX(--(COUNTIF(B$1:B19,IdentAcoes[ID Ação])=IdentAcoes[[Quantidade de fontes de recursos ]]),0),0)),"") -> PCJ4.2.1.1/2026 | C20: =IFERROR(INDEX(IdentAcoes[Descrição da ação],MATCH(0,INDEX(--(COUNTIF(C$1:C19,IdentAcoes[Descrição da ação])=IdentAcoes[[Quantidade de fontes de recursos ]]),0),0)),"") -> Desenvolver estudo regional hidrogeológico nas Bacias PCJ | D20: FEHIDRO - Cobrança estadual | E20: 0 | H20: 0 | K20: 2000000 | N20: 0
A21: =Financeiro[[#This Row],[ID Ação]]&Financeiro[[#This Row],[Fonte]] -> PCJ4.2.1.2/2026FEHIDRO - Cobrança estadual | B21: =IFERROR(INDEX(IdentAcoes[ID Ação],MATCH(0,INDEX(--(COUNTIF(B$1:B20,IdentAcoes[ID Ação])=IdentAcoes[[Quantidade de fontes de recursos ]]),0),0)),"") -> PCJ4.2.1.2/2026 | C21: =IFERROR(INDEX(IdentAcoes[Descrição da ação],MATCH(0,INDEX(--(COUNTIF(C$1:C20,IdentAcoes[Descrição da ação])=IdentAcoes[[Quantidade de fontes de recursos ]]),0),0)),"") -> Desenvolvimento de estudo para estimativa de balanços hídricos e recargas nas Bacias PCJ | D21: FEHIDRO - Cobrança estadual | E21: 0 | H21: 0 | K21: 2250000 | N21: 0
A22: =Financeiro[[#This Row],[ID Ação]]&Financeiro[[#This Row],[Fonte]] -> PCJ4.2.1.3/2027FEHIDRO - Cobrança estadual | B22: =IFERROR(INDEX(IdentAcoes[ID Ação],MATCH(0,INDEX(--(COUNTIF(B$1:B21,IdentAcoes[ID Ação])=IdentAcoes[[Quantidade de fontes de recursos ]]),0),0)),"") -> PCJ4.2.1.3/2027 | C22: =IFERROR(INDEX(IdentAcoes[Descrição da ação],MATCH(0,INDEX(--(COUNTIF(C$1:C21,IdentAcoes[Descrição da ação])=IdentAcoes[[Quantidade de fontes de recursos ]]),0),0)),"") -> Delimitar as principais áreas de recarga e estabelecer diretrizes de proteção | D22: FEHIDRO - Cobrança estadual | E22: 0 | H22: 0 | K22: 0 | N22: 2550000
A23: =Financeiro[[#This Row],[ID Ação]]&Financeiro[[#This Row],[Fonte]] -> PCJ4.2.2.1/2027FEHIDRO - Cobrança estadual | B23: =IFERROR(INDEX(IdentAcoes[ID Ação],MATCH(0,INDEX(--(COUNTIF(B$1:B22,IdentAcoes[ID Ação])=IdentAcoes[[Quantidade de fontes de recursos ]]),0),0)),"") -> PCJ4.2.2.1/2027 | C23: =IFERROR(INDEX(IdentAcoes[Descrição da ação],MATCH(0,INDEX(--(COUNTIF(C$1:C22,IdentAcoes[Descrição da ação])=IdentAcoes[[Quantidade de fontes de recursos ]]),0),0)),"") -> Elaboração do estudo hidrogeológico do aquífero Tubarão | D23: FEHIDRO - Cobrança estadual | E23: 0 | H23: 0 | K23: 0 | N23: 1200000
A24: =Financeiro[[#This Row],[ID Ação]]&Financeiro[[#This Row],[Fonte]] -> PCJ6.3.1.4/2025FEHIDRO - Cobrança estadual | B24: =IFERROR(INDEX(IdentAcoes[ID Ação],MATCH(0,INDEX(--(COUNTIF(B$1:B23,IdentAcoes[ID Ação])=IdentAcoes[[Quantidade de fontes de recursos ]]),0),0)),"") -> PCJ6.3.1.4/2025 | C24: =IFERROR(INDEX(IdentAcoes[Descrição da ação],MATCH(0,INDEX(--(COUNTIF(C$1:C23,IdentAcoes[Descrição da ação])=IdentAcoes[[Quantidade de fontes de recursos ]]),0),0)),"") -> Estabelecer parcerias para pesquisa com universidade e institutos | D24: FEHIDRO - Cobrança estadual | E24: 0 | H24: 71428.56 | K24: 0 | N24: 0
A25: =Financeiro[[#This Row],[ID Ação]]&Financeiro[[#This Row],[Fonte]] -> PCJ4.1.1.2/2027FEHIDRO - Cobrança estadual | B25: =IFERROR(INDEX(IdentAcoes[ID Ação],MATCH(0,INDEX(--(COUNTIF(B$1:B24,IdentAcoes[ID Ação])=IdentAcoes[[Quantidade de fontes de recursos ]]),0),0)),"") -> PCJ4.1.1.2/2027 | C25: =IFERROR(INDEX(IdentAcoes[Descrição da ação],MATCH(0,INDEX(--(COUNTIF(C$1:C24,IdentAcoes[Descrição da ação])=IdentAcoes[[Quantidade de fontes de recursos ]]),0),0)),"") -> Desenvolvimento de banco de dados de poços e suporte à decisão | D25: FEHIDRO - Cobrança estadual | E25: 0 | H25: 0 | K25: 0 | N25: 1500000
A26: =Financeiro[[#This Row],[ID Ação]]&Financeiro[[#This Row],[Fonte]] -> PCJ6.2.5.1/2024FEHIDRO - Cobrança estadual | B26: =IFERROR(INDEX(IdentAcoes[ID Ação],MATCH(0,INDEX(--(COUNTIF(B$1:B25,IdentAcoes[ID Ação])=IdentAcoes[[Quantidade de fontes de recursos ]]),0),0)),"") -> PCJ6.2.5.1/2024 | C26: =IFERROR(INDEX(IdentAcoes[Descrição da ação],MATCH(0,INDEX(--(COUNTIF(C$1:C25,IdentAcoes[Descrição da ação])=IdentAcoes[[Quantidade de fontes de recursos ]]),0),0)),"") -> Desenvolvimento de um plano de fiscalização de Outorgas em apoio ao órgão gestor | D26: FEHIDRO - Cobrança estadual | E26: 0 | H26: 0 | K26: 0 | N26: 0
A27: =Financeiro[[#This Row],[ID Ação]]&Financeiro[[#This Row],[Fonte]] -> PCJ6.2.3.2/2026FEHIDRO - Cobrança estadual | B27: =IFERROR(INDEX(IdentAcoes[ID Ação],MATCH(0,INDEX(--(COUNTIF(B$1:B26,IdentAcoes[ID Ação])=IdentAcoes[[Quantidade de fontes de recursos ]]),0),0)),"") -> PCJ6.2.3.2/2026 | C27: =IFERROR(INDEX(IdentAcoes[Descrição da ação],MATCH(0,INDEX(--(COUNTIF(C$1:C26,IdentAcoes[Descrição da ação])=IdentAcoes[[Quantidade de fontes de recursos ]]),0),0)),"") -> Monitoramento de chuva, vazão, qualidade e nível de água subterrânea em pequenas bacias hidrográficas | D27: FEHIDRO - Cobrança estadual | E27: 0 | H27: 0 | K27: 1000000 | N27: 1200000
A28: =Financeiro[[#This Row],[ID Ação]]&Financeiro[[#This Row],[Fonte]] -> PCJ6.2.3.3/2026FEHIDRO - Cobrança estadual | B28: =IFERROR(INDEX(IdentAcoes[ID Ação],MATCH(0,INDEX(--(COUNTIF(B$1:B27,IdentAcoes[ID Ação])=IdentAcoes[[Quantidade de fontes de recursos ]]),0),0)),"") -> PCJ6.2.3.3/2026 | C28: =IFERROR(INDEX(IdentAcoes[Descrição da ação],MATCH(0,INDEX(--(COUNTIF(C$1:C27,IdentAcoes[Descrição da ação])=IdentAcoes[[Quantidade de fontes de recursos ]]),0),0)),"") -> Implantação, integração, operação e manutenção da rede de monitoramento quali-quantitativo das águas subterrâneas | D28: FEHIDRO - Cobrança estadual | E28: 0 | H28: 0 | K28: 1000000 | N28: 0
A29: =Financeiro[[#This Row],[ID Ação]]&Financeiro[[#This Row],[Fonte]] -> PCJ6.3.1.3/2025FEHIDRO - Cobrança estadual | B29: =IFERROR(INDEX(IdentAcoes[ID Ação],MATCH(0,INDEX(--(COUNTIF(B$1:B28,IdentAcoes[ID Ação])=IdentAcoes[[Quantidade de fontes de recursos ]]),0),0)),"") -> PCJ6.3.1.3/2025 | C29: =IFERROR(INDEX(IdentAcoes[Descrição da ação],MATCH(0,INDEX(--(COUNTIF(C$1:C28,IdentAcoes[Descrição da ação])=IdentAcoes[[Quantidade de fontes de recursos ]]),0),0)),"") -> Fomentar a adequação das redes de monitoramento | D29: FEHIDRO - Cobrança estadual | E29: 0 | H29: 35714.28 | K29: 0 | N29: 0
A30: =Financeiro[[#This Row],[ID Ação]]&Financeiro[[#This Row],[Fonte]] -> PCJ6.3.1.6/2026FEHIDRO - Cobrança estadual | B30: =IFERROR(INDEX(IdentAcoes[ID Ação],MATCH(0,INDEX(--(COUNTIF(B$1:B29,IdentAcoes[ID Ação])=IdentAcoes[[Quantidade de fontes de recursos ]]),0),0)),"") -> PCJ6.3.1.6/2026 | C30: =IFERROR(INDEX(IdentAcoes[Descrição da ação],MATCH(0,INDEX(--(COUNTIF(C$1:C29,IdentAcoes[Descrição da ação])=IdentAcoes[[Quantidade de fontes de recursos ]]),0),0)),"") -> Integrar dados de monitoramento quali-quantitativos | D30: FEHIDRO - Cobrança estadual | E30: 0 | H30: 0 | K30: 35714.28 | N30: 0
A31: =Financeiro[[#This Row],[ID Ação]]&Financeiro[[#This Row],[Fonte]] -> PCJ6.3.2.2/2025FEHIDRO - Cobrança estadual | B31: =IFERROR(INDEX(IdentAcoes[ID Ação],MATCH(0,INDEX(--(COUNTIF(B$1:B30,IdentAcoes[ID Ação])=IdentAcoes[[Quantidade de fontes de recursos ]]),0),0)),"") -> PCJ6.3.2.2/2025 | C31: =IFERROR(INDEX(IdentAcoes[Descrição da ação],MATCH(0,INDEX(--(COUNTIF(C$1:C30,IdentAcoes[Descrição da ação])=IdentAcoes[[Quantidade de fontes de recursos ]]),0),0)),"") -> Apoio à gestão administrativa da Fundação da Agência da Bacia Hidrográfica dos Rios Sorocaba e Médio Tietê | D31: FEHIDRO - Cobrança estadual | E31: 0 | H31: 40000 | K31: 0 | N31: 0
A32: =Financeiro[[#This Row],[ID Ação]]&Financeiro[[#This Row],[Fonte]] -> PCJ6.3.1.1/2025FEHIDRO - Cobrança estadual | B32: =IFERROR(INDEX(IdentAcoes[ID Ação],MATCH(0,INDEX(--(COUNTIF(B$1:B31,IdentAcoes[ID Ação])=IdentAcoes[[Quantidade de fontes de recursos ]]),0),0)),"") -> PCJ6.3.1.1/2025 | C32: =IFERROR(INDEX(IdentAcoes[Descrição da ação],MATCH(0,INDEX(--(COUNTIF(C$1:C31,IdentAcoes[Descrição da ação])=IdentAcoes[[Quantidade de fontes de recursos ]]),0),0)),"") -> Discutir a possibilidade de implantação de agências de bacia | D32: FEHIDRO - Cobrança estadual | E32: 0 | H32: 300000 | K32: 0 | N32: 0
A33: =Financeiro[[#This Row],[ID Ação]]&Financeiro[[#This Row],[Fonte]] -> PCJ3.3.1.1/2024FEHIDRO - Cobrança estadual | B33: =IFERROR(INDEX(IdentAcoes[ID Ação],MATCH(0,INDEX(--(COUNTIF(B$1:B32,IdentAcoes[ID Ação])=IdentAcoes[[Quantidade de fontes de recursos ]]),0),0)),"") -> PCJ3.3.1.1/2024 | C33: =IFERROR(INDEX(IdentAcoes[Descrição da ação],MATCH(0,INDEX(--(COUNTIF(C$1:C32,IdentAcoes[Descrição da ação])=IdentAcoes[[Quantidade de fontes de recursos ]]),0),0)),"") -> Substituição de sistemas rudimentares de tratamento de esgoto (fossa negra) por sistemas mais eficientes | D33: FEHIDRO - Cobrança estadual | E33: 2300000 | H33: 2000000 | K33: 1000000 | N33: 1250000
A34: =Financeiro[[#This Row],[ID Ação]]&Financeiro[[#This Row],[Fonte]] -> PCJ1.1.1.4/2024FEHIDRO - Cobrança estadual | B34: =IFERROR(INDEX(IdentAcoes[ID Ação],MATCH(0,INDEX(--(COUNTIF(B$1:B33,IdentAcoes[ID Ação])=IdentAcoes[[Quantidade de fontes de recursos ]]),0),0)),"") -> PCJ1.1.1.4/2024 | C34: =IFERROR(INDEX(IdentAcoes[Descrição da ação],MATCH(0,INDEX(--(COUNTIF(C$1:C33,IdentAcoes[Descrição da ação])=IdentAcoes[[Quantidade de fontes de recursos ]]),0),0)),"") -> Elaboração de projetos de ampliação e melhoria dos sistemas de transporte de esgotos | D34: FEHIDRO - Cobrança estadual | E34: 2000000 | H34: 1000000 | K34: 650000 | N34: 750000
A35: =Financeiro[[#This Row],[ID Ação]]&Financeiro[[#This Row],[Fonte]] -> PCJ1.1.2.3/2024FEHIDRO - Cobrança estadual | B35: =IFERROR(INDEX(IdentAcoes[ID Ação],MATCH(0,INDEX(--(COUNTIF(B$1:B34,IdentAcoes[ID Ação])=IdentAcoes[[Quantidade de fontes de recursos ]]),0),0)),"") -> PCJ1.1.2.3/2024 | C35: =IFERROR(INDEX(IdentAcoes[Descrição da ação],MATCH(0,INDEX(--(COUNTIF(C$1:C34,IdentAcoes[Descrição da ação])=IdentAcoes[[Quantidade de fontes de recursos ]]),0),0)),"") -> Elaboração de projetos para a implantação de novas ETEs visando tratamento secundário | D35: FEHIDRO - Cobrança estadual | E35: 1300000 | H35: 1000000 | K35: 750000 | N35: 750000
A36: =Financeiro[[#This Row],[ID Ação]]&Financeiro[[#This Row],[Fonte]] -> PCJ1.2.1.2/2024FEHIDRO - Cobrança estadual | B36: =IFERROR(INDEX(IdentAcoes[ID Ação],MATCH(0,INDEX(--(COUNTIF(B$1:B35,IdentAcoes[ID Ação])=IdentAcoes[[Quantidade de fontes de recursos ]]),0),0)),"") -> PCJ1.2.1.2/2024 | C36: =IFERROR(INDEX(IdentAcoes[Descrição da ação],MATCH(0,INDEX(--(COUNTIF(C$1:C35,IdentAcoes[Descrição da ação])=IdentAcoes[[Quantidade de fontes de recursos ]]),0),0)),"") -> Elaboração de projetos de melhorias da eficiência das ETEs na remoção de nutrientes | D36: FEHIDRO - Cobrança estadual | E36: 1300000 | H36: 1000000 | K36: 750000 | N36: 750000
A37: =Financeiro[[#This Row],[ID Ação]]&Financeiro[[#This Row],[Fonte]] -> PCJ1.2.2.2/2027FEHIDRO - Cobrança estadual | B37: =IFERROR(INDEX(IdentAcoes[ID Ação],MATCH(0,INDEX(--(COUNTIF(B$1:B36,IdentAcoes[ID Ação])=IdentAcoes[[Quantidade de fontes de recursos ]]),0),0)),"") -> PCJ1.2.2.2/2027 | C37: =IFERROR(INDEX(IdentAcoes[Descrição da ação],MATCH(0,INDEX(--(COUNTIF(C$1:C36,IdentAcoes[Descrição da ação])=IdentAcoes[[Quantidade de fontes de recursos ]]),0),0)),"") -> Elaboração de projetos de implantação de tecnologias de desinfecção de efluentes domésticos | D37: FEHIDRO - Cobrança estadual | E37: 0 | H37: 0 | K37: 0 | N37: 500000
A38: =Financeiro[[#This Row],[ID Ação]]&Financeiro[[#This Row],[Fonte]] -> PCJ3.1.2.3/2024FEHIDRO - Cobrança estadual | B38: =IFERROR(INDEX(IdentAcoes[ID Ação],MATCH(0,INDEX(--(COUNTIF(B$1:B37,IdentAcoes[ID Ação])=IdentAcoes[[Quantidade de fontes de recursos ]]),0),0)),"") -> PCJ3.1.2.3/2024 | C38: =IFERROR(INDEX(IdentAcoes[Descrição da ação],MATCH(0,INDEX(--(COUNTIF(C$1:C37,IdentAcoes[Descrição da ação])=IdentAcoes[[Quantidade de fontes de recursos ]]),0),0)),"") -> Incentivo à proteção das áreas sujeitas à restrição de uso | D38: FEHIDRO - Cobrança estadual | E38: 0 | H38: 0 | K38: 0 | N38: 0
A39: =Financeiro[[#This Row],[ID Ação]]&Financeiro[[#This Row],[Fonte]] -> PCJ2.3.2.2/2024FEHIDRO - Cobrança estadual | B39: =IFERROR(INDEX(IdentAcoes[ID Ação],MATCH(0,INDEX(--(COUNTIF(B$1:B38,IdentAcoes[ID Ação])=IdentAcoes[[Quantidade de fontes de recursos ]]),0),0)),"") -> PCJ2.3.2.2/2024 | C39: =IFERROR(INDEX(IdentAcoes[Descrição da ação],MATCH(0,INDEX(--(COUNTIF(C$1:C38,IdentAcoes[Descrição da ação])=IdentAcoes[[Quantidade de fontes de recursos ]]),0),0)),"") -> Controle de perdas em sistemas de abastecimento de água | D39: FEHIDRO - Cobrança estadual | E39: 5120748.1 | H39: 4551857.16 | K39: 1500000 | N39: 1500000
A40: =Financeiro[[#This Row],[ID Ação]]&Financeiro[[#This Row],[Fonte]] -> PCJ5.2.2.1/2024FEHIDRO - Cobrança estadual | B40: =IFERROR(INDEX(IdentAcoes[ID Ação],MATCH(0,INDEX(--(COUNTIF(B$1:B39,IdentAcoes[ID Ação])=IdentAcoes[[Quantidade de fontes de recursos ]]),0),0)),"") -> PCJ5.2.2.1/2024 | C40: =IFERROR(INDEX(IdentAcoes[Descrição da ação],MATCH(0,INDEX(--(COUNTIF(C$1:C39,IdentAcoes[Descrição da ação])=IdentAcoes[[Quantidade de fontes de recursos ]]),0),0)),"") -> Elaboração de propostas para órgãos de financiamento em pesquisas | D40: FEHIDRO - Cobrança estadual | E40: 0 | H40: 0 | K40: 0 | N40: 0
A41: =Financeiro[[#This Row],[ID Ação]]&Financeiro[[#This Row],[Fonte]] -> PCJ5.2.2.3/2024FEHIDRO - Cobrança estadual | B41: =IFERROR(INDEX(IdentAcoes[ID Ação],MATCH(0,INDEX(--(COUNTIF(B$1:B40,IdentAcoes[ID Ação])=IdentAcoes[[Quantidade de fontes de recursos ]]),0),0)),"") -> PCJ5.2.2.3/2024 | C41: =IFERROR(INDEX(IdentAcoes[Descrição da ação],MATCH(0,INDEX(--(COUNTIF(C$1:C40,IdentAcoes[Descrição da ação])=IdentAcoes[[Quantidade de fontes de recursos ]]),0),0)),"") -> Apoio ao desenvolvimento e difusão de pesquisas e tecnologias que contribuam no enfrentamento dos desafios identificados no Plano das Bacias PCJ | D41: FEHIDRO - Cobrança estadual | E41: 0 | H41: 0 | K41: 0 | N41: 0
A42: =Financeiro[[#This Row],[ID Ação]]&Financeiro[[#This Row],[Fonte]] -> PCJ6.2.5.2/2027FEHIDRO - Cobrança estadual | B42: =IFERROR(INDEX(IdentAcoes[ID Ação],MATCH(0,INDEX(--(COUNTIF(B$1:B41,IdentAcoes[ID Ação])=IdentAcoes[[Quantidade de fontes de recursos ]]),0),0)),"") -> PCJ6.2.5.2/2027 | C42: =IFERROR(INDEX(IdentAcoes[Descrição da ação],MATCH(0,INDEX(--(COUNTIF(C$1:C41,IdentAcoes[Descrição da ação])=IdentAcoes[[Quantidade de fontes de recursos ]]),0),0)),"") -> Apoio à regularização de outorga na área rural | D42: FEHIDRO - Cobrança estadual | E42: 0 | H42: 0 | K42: 0 | N42: 400000
A43: =Financeiro[[#This Row],[ID Ação]]&Financeiro[[#This Row],[Fonte]] -> PCJ1.1.1.1/2024Outras fontes | B43: =IFERROR(INDEX(IdentAcoes[ID Ação],MATCH(0,INDEX(--(COUNTIF(B$1:B42,IdentAcoes[ID Ação])=IdentAcoes[[Quantidade de fontes de recursos ]]),0),0)),"") -> PCJ1.1.1.1/2024 | C43: =IFERROR(INDEX(IdentAcoes[Descrição da ação],MATCH(0,INDEX(--(COUNTIF(C$1:C42,IdentAcoes[Descrição da ação])=IdentAcoes[[Quantidade de fontes de recursos ]]),0),0)),"") -> Elaboração de estudos para ampliação e melhoria dos sistemas de coleta de esgotos | D43: Outras fontes | E43: 0 | H43: 0 | K43: 0 | N43: 0
A44: =Financeiro[[#This Row],[ID Ação]]&Financeiro[[#This Row],[Fonte]] -> PCJ2.2.3.1/2024Cobrança Federal | B44: =IFERROR(INDEX(IdentAcoes[ID Ação],MATCH(0,INDEX(--(COUNTIF(B$1:B43,IdentAcoes[ID Ação])=IdentAcoes[[Quantidade de fontes de recursos ]]),0),0)),"") -> PCJ2.2.3.1/2024 | C44: =IFERROR(INDEX(IdentAcoes[Descrição da ação],MATCH(0,INDEX(--(COUNTIF(C$1:C43,IdentAcoes[Descrição da ação])=IdentAcoes[[Quantidade de fontes de recursos ]]),0),0)),"") -> Acompanhamento e apoio aos estudos de viabilidade, projetos de engenharia e licenciamento ambiental das barragens de Pedreira, Duas Pontes e do ribeirão Piraí e do trecho Oeste do SAR | D44: Cobrança Federal | E44: 387303.25 | H44: 0 | K44: 0 | N44: 0
A45: =Financeiro[[#This Row],[ID Ação]]&Financeiro[[#This Row],[Fonte]] -> PCJ2.3.3.1/2024Cobrança Federal | B45: =IFERROR(INDEX(IdentAcoes[ID Ação],MATCH(0,INDEX(--(COUNTIF(B$1:B44,IdentAcoes[ID Ação])=IdentAcoes[[Quantidade de fontes de recursos ]]),0),0)),"") -> PCJ2.3.3.1/2024 | C45: =IFERROR(INDEX(IdentAcoes[Descrição da ação],MATCH(0,INDEX(--(COUNTIF(C$1:C44,IdentAcoes[Descrição da ação])=IdentAcoes[[Quantidade de fontes de recursos ]]),0),0)),"") -> Elaboração de um guia de manejo de drenagem e manejo de águas pluviais | D45: Cobrança Federal | E45: 170000 | H45: 0 | K45: 0 | N45: 0
A46: =Financeiro[[#This Row],[ID Ação]]&Financeiro[[#This Row],[Fonte]] -> PCJ1.3.1.2/2025Cobrança Federal | B46: =IFERROR(INDEX(IdentAcoes[ID Ação],MATCH(0,INDEX(--(COUNTIF(B$1:B45,IdentAcoes[ID Ação])=IdentAcoes[[Quantidade de fontes de recursos ]]),0),0)),"") -> PCJ1.3.1.2/2025 | C46: =IFERROR(INDEX(IdentAcoes[Descrição da ação],MATCH(0,INDEX(--(COUNTIF(C$1:C45,IdentAcoes[Descrição da ação])=IdentAcoes[[Quantidade de fontes de recursos ]]),0),0)),"") -> Elaboração de estudo piloto para avaliação da carga difusa de origem urbana e rural afluente nos corpos hídricos das Bacias PCJ | D46: Cobrança Federal | E46: 0 | H46: 490046.8413 | K46: 0 | N46: 0
A47: =Financeiro[[#This Row],[ID Ação]]&Financeiro[[#This Row],[Fonte]] -> PCJ6.2.5.3/2024Cobrança Federal | B47: =IFERROR(INDEX(IdentAcoes[ID Ação],MATCH(0,INDEX(--(COUNTIF(B$1:B46,IdentAcoes[ID Ação])=IdentAcoes[[Quantidade de fontes de recursos ]]),0),0)),"") -> PCJ6.2.5.3/2024 | C47: =IFERROR(INDEX(IdentAcoes[Descrição da ação],MATCH(0,INDEX(--(COUNTIF(C$1:C46,IdentAcoes[Descrição da ação])=IdentAcoes[[Quantidade de fontes de recursos ]]),0),0)),"") -> Apoio operacional para fiscalização de outorgas | D47: Cobrança Federal | E47: 2200000 | H47: 1400000 | K47: 0 | N47: 0
A48: =Financeiro[[#This Row],[ID Ação]]&Financeiro[[#This Row],[Fonte]] -> PCJ6.1.1.2/2024Cobrança Federal | B48: =IFERROR(INDEX(IdentAcoes[ID Ação],MATCH(0,INDEX(--(COUNTIF(B$1:B47,IdentAcoes[ID Ação])=IdentAcoes[[Quantidade de fontes de recursos ]]),0),0)),"") -> PCJ6.1.1.2/2024 | C48: =IFERROR(INDEX(IdentAcoes[Descrição da ação],MATCH(0,INDEX(--(COUNTIF(C$1:C47,IdentAcoes[Descrição da ação])=IdentAcoes[[Quantidade de fontes de recursos ]]),0),0)),"") -> Apoio operacional para a área de cobrança pelo uso dos recursos hídricos | D48: Cobrança Federal | E48: 3715960.39 | H48: 3822087.082 | K48: 0 | N48: 0
A49: =Financeiro[[#This Row],[ID Ação]]&Financeiro[[#This Row],[Fonte]] -> PCJ6.1.1.5/2024Cobrança Federal | B49: =IFERROR(INDEX(IdentAcoes[ID Ação],MATCH(0,INDEX(--(COUNTIF(B$1:B48,IdentAcoes[ID Ação])=IdentAcoes[[Quantidade de fontes de recursos ]]),0),0)),"") -> PCJ6.1.1.5/2024 | C49: =IFERROR(INDEX(IdentAcoes[Descrição da ação],MATCH(0,INDEX(--(COUNTIF(C$1:C48,IdentAcoes[Descrição da ação])=IdentAcoes[[Quantidade de fontes de recursos ]]),0),0)),"") -> Apoio operacional para acompanhamento de projetos da área de Sistema de Informações | D49: Cobrança Federal | E49: 3200000 | H49: 3200000 | K49: 0 | N49: 0
A50: =Financeiro[[#This Row],[ID Ação]]&Financeiro[[#This Row],[Fonte]] -> PCJ6.2.3.1/2024Cobrança Federal | B50: =IFERROR(INDEX(IdentAcoes[ID Ação],MATCH(0,INDEX(--(COUNTIF(B$1:B49,IdentAcoes[ID Ação])=IdentAcoes[[Quantidade de fontes de recursos ]]),0),0)),"") -> PCJ6.2.3.1/2024 | C50: =IFERROR(INDEX(IdentAcoes[Descrição da ação],MATCH(0,INDEX(--(COUNTIF(C$1:C49,IdentAcoes[Descrição da ação])=IdentAcoes[[Quantidade de fontes de recursos ]]),0),0)),"") -> Expansão, integração, operação e manutenção da rede de monitoramento quali-quantitativo dos recursos hídricos | D50: Cobrança Federal | E50: 5183320.44 | H50: 4340020.015 | K50: 0 | N50: 0
A51: =Financeiro[[#This Row],[ID Ação]]&Financeiro[[#This Row],[Fonte]] -> PCJ2.1.1.1/2024Cobrança Federal | B51: =IFERROR(INDEX(IdentAcoes[ID Ação],MATCH(0,INDEX(--(COUNTIF(B$1:B50,IdentAcoes[ID Ação])=IdentAcoes[[Quantidade de fontes de recursos ]]),0),0)),"") -> PCJ2.1.1.1/2024 | C51: =IFERROR(INDEX(IdentAcoes[Descrição da ação],MATCH(0,INDEX(--(COUNTIF(C$1:C50,IdentAcoes[Descrição da ação])=IdentAcoes[[Quantidade de fontes de recursos ]]),0),0)),"") -> Manutenção e aprimoramento de um modelo chuva-vazão para as Bacias PCJ | D51: Cobrança Federal | E51: 538170.04 | H51: 555929.6499 | K51: 0 | N51: 0
A52: =Financeiro[[#This Row],[ID Ação]]&Financeiro[[#This Row],[Fonte]] -> PCJ2.1.2.1/2025Cobrança Federal | B52: =IFERROR(INDEX(IdentAcoes[ID Ação],MATCH(0,INDEX(--(COUNTIF(B$1:B51,IdentAcoes[ID Ação])=IdentAcoes[[Quantidade de fontes de recursos ]]),0),0)),"") -> PCJ2.1.2.1/2025 | C52: =IFERROR(INDEX(IdentAcoes[Descrição da ação],MATCH(0,INDEX(--(COUNTIF(C$1:C51,IdentAcoes[Descrição da ação])=IdentAcoes[[Quantidade de fontes de recursos ]]),0),0)),"") -> Aprimoramento de modelo de simulação hidrodinâmica do tempo de trânsito e do amortecimento da vazão preferencialmente à jusante do Sistema Cantareira | D52: Cobrança Federal | E52: 0 | H52: 541863.21 | K52: 0 | N52: 0
A53: =Financeiro[[#This Row],[ID Ação]]&Financeiro[[#This Row],[Fonte]] -> PCJ6.2.6.1/2024Cobrança Federal | B53: =IFERROR(INDEX(IdentAcoes[ID Ação],MATCH(0,INDEX(--(COUNTIF(B$1:B52,IdentAcoes[ID Ação])=IdentAcoes[[Quantidade de fontes de recursos ]]),0),0)),"") -> PCJ6.2.6.1/2024 | C53: =IFERROR(INDEX(IdentAcoes[Descrição da ação],MATCH(0,INDEX(--(COUNTIF(C$1:C52,IdentAcoes[Descrição da ação])=IdentAcoes[[Quantidade de fontes de recursos ]]),0),0)),"") -> Apoio operacional para gerenciamento da implementação e da revisão do Plano de Bacias | D53: Cobrança Federal | E53: 1869464.32 | H53: 1898156.643 | K53: 0 | N53: 0
A54: =Financeiro[[#This Row],[ID Ação]]&Financeiro[[#This Row],[Fonte]] -> PCJ6.1.1.4/2024Cobrança Federal | B54: =IFERROR(INDEX(IdentAcoes[ID Ação],MATCH(0,INDEX(--(COUNTIF(B$1:B53,IdentAcoes[ID Ação])=IdentAcoes[[Quantidade de fontes de recursos ]]),0),0)),"") -> PCJ6.1.1.4/2024 | C54: =IFERROR(INDEX(IdentAcoes[Descrição da ação],MATCH(0,INDEX(--(COUNTIF(C$1:C53,IdentAcoes[Descrição da ação])=IdentAcoes[[Quantidade de fontes de recursos ]]),0),0)),"") -> Apoio Operacional para acompanhamento de empreendimentos de demanda espontânea | D54: Cobrança Federal | E54: 1506712.43 | H54: 1556433.939 | K54: 0 | N54: 0
A55: =Financeiro[[#This Row],[ID Ação]]&Financeiro[[#This Row],[Fonte]] -> PCJ6.1.2.2/2024Cobrança Federal | B55: =IFERROR(INDEX(IdentAcoes[ID Ação],MATCH(0,INDEX(--(COUNTIF(B$1:B54,IdentAcoes[ID Ação])=IdentAcoes[[Quantidade de fontes de recursos ]]),0),0)),"") -> PCJ6.1.2.2/2024 | C55: =IFERROR(INDEX(IdentAcoes[Descrição da ação],MATCH(0,INDEX(--(COUNTIF(C$1:C54,IdentAcoes[Descrição da ação])=IdentAcoes[[Quantidade de fontes de recursos ]]),0),0)),"") -> Remuneração de agentes técnicos e financeiros para empreendimentos deliberados pelos Comitês PCJ | D55: Cobrança Federal | E55: 1316626.55 | H55: 1316626.55 | K55: 0 | N55: 0
A56: =Financeiro[[#This Row],[ID Ação]]&Financeiro[[#This Row],[Fonte]] -> PCJ6.1.2.3/2024Cobrança Federal | B56: =IFERROR(INDEX(IdentAcoes[ID Ação],MATCH(0,INDEX(--(COUNTIF(B$1:B55,IdentAcoes[ID Ação])=IdentAcoes[[Quantidade de fontes de recursos ]]),0),0)),"") -> PCJ6.1.2.3/2024 | C56: =IFERROR(INDEX(IdentAcoes[Descrição da ação],MATCH(0,INDEX(--(COUNTIF(C$1:C55,IdentAcoes[Descrição da ação])=IdentAcoes[[Quantidade de fontes de recursos ]]),0),0)),"") -> Logística de Suporte às reuniões Plenárias e das CTs dos Comitês PCJ | D56: Cobrança Federal | E56: 400000 | H56: 400000 | K56: 0 | N56: 0
A57: =Financeiro[[#This Row],[ID Ação]]&Financeiro[[#This Row],[Fonte]] -> PCJ6.1.2.1/2024Cobrança Federal | B57: =IFERROR(INDEX(IdentAcoes[ID Ação],MATCH(0,INDEX(--(COUNTIF(B$1:B56,IdentAcoes[ID Ação])=IdentAcoes[[Quantidade de fontes de recursos ]]),0),0)),"") -> PCJ6.1.2.1/2024 | C57: =IFERROR(INDEX(IdentAcoes[Descrição da ação],MATCH(0,INDEX(--(COUNTIF(C$1:C56,IdentAcoes[Descrição da ação])=IdentAcoes[[Quantidade de fontes de recursos ]]),0),0)),"") -> Apoio operacional para a Secretaria Executiva dos Comitês PCJ | D57: Cobrança Federal | E57: 4342000 | H57: 2300000 | K57: 0 | N57: 0
A58: =Financeiro[[#This Row],[ID Ação]]&Financeiro[[#This Row],[Fonte]] -> PCJ6.1.1.7/2024Cobrança Federal | B58: =IFERROR(INDEX(IdentAcoes[ID Ação],MATCH(0,INDEX(--(COUNTIF(B$1:B57,IdentAcoes[ID Ação])=IdentAcoes[[Quantidade de fontes de recursos ]]),0),0)),"") -> PCJ6.1.1.7/2024 | C58: =IFERROR(INDEX(IdentAcoes[Descrição da ação],MATCH(0,INDEX(--(COUNTIF(C$1:C57,IdentAcoes[Descrição da ação])=IdentAcoes[[Quantidade de fontes de recursos ]]),0),0)),"") -> Apoio operacional para acompanhamento de ações da porção mineira | D58: Cobrança Federal | E58: 385560 | H58: 385560 | K58: 0 | N58: 0
A59: =Financeiro[[#This Row],[ID Ação]]&Financeiro[[#This Row],[Fonte]] -> PCJ6.1.1.1/2024Cobrança Federal | B59: =IFERROR(INDEX(IdentAcoes[ID Ação],MATCH(0,INDEX(--(COUNTIF(B$1:B58,IdentAcoes[ID Ação])=IdentAcoes[[Quantidade de fontes de recursos ]]),0),0)),"") -> PCJ6.1.1.1/2024 | C59: =IFERROR(INDEX(IdentAcoes[Descrição da ação],MATCH(0,INDEX(--(COUNTIF(C$1:C58,IdentAcoes[Descrição da ação])=IdentAcoes[[Quantidade de fontes de recursos ]]),0),0)),"") -> Apoio operacional para a Área de Tecnologia da Informação - TI | D59: Cobrança Federal | E59: 809312.42 | H59: 836019.7262 | K59: 0 | N59: 0
A60: =Financeiro[[#This Row],[ID Ação]]&Financeiro[[#This Row],[Fonte]] -> PCJ6.1.2.4/2024Cobrança Federal | B60: =IFERROR(INDEX(IdentAcoes[ID Ação],MATCH(0,INDEX(--(COUNTIF(B$1:B59,IdentAcoes[ID Ação])=IdentAcoes[[Quantidade de fontes de recursos ]]),0),0)),"") -> PCJ6.1.2.4/2024 | C60: =IFERROR(INDEX(IdentAcoes[Descrição da ação],MATCH(0,INDEX(--(COUNTIF(C$1:C59,IdentAcoes[Descrição da ação])=IdentAcoes[[Quantidade de fontes de recursos ]]),0),0)),"") -> Participação de membros dos Comitês PCJ em eventos internos das CTs e eventos externos | D60: Cobrança Federal | E60: 326049.12 | H60: 336808.741 | K60: 0 | N60: 0
A61: =Financeiro[[#This Row],[ID Ação]]&Financeiro[[#This Row],[Fonte]] -> PCJ6.1.2.5/2024Cobrança Federal | B61: =IFERROR(INDEX(IdentAcoes[ID Ação],MATCH(0,INDEX(--(COUNTIF(B$1:B60,IdentAcoes[ID Ação])=IdentAcoes[[Quantidade de fontes de recursos ]]),0),0)),"") -> PCJ6.1.2.5/2024 | C61: =IFERROR(INDEX(IdentAcoes[Descrição da ação],MATCH(0,INDEX(--(COUNTIF(C$1:C60,IdentAcoes[Descrição da ação])=IdentAcoes[[Quantidade de fontes de recursos ]]),0),0)),"") -> Manutenção de licenciamento de sistemas de TI | D61: Cobrança Federal | E61: 2178708 | H61: 2250605.364 | K61: 0 | N61: 0
A62: =Financeiro[[#This Row],[ID Ação]]&Financeiro[[#This Row],[Fonte]] -> PCJ1.2.2.3/2024FEHIDRO - Cobrança estadual | B62: =IFERROR(INDEX(IdentAcoes[ID Ação],MATCH(0,INDEX(--(COUNTIF(B$1:B61,IdentAcoes[ID Ação])=IdentAcoes[[Quantidade de fontes de recursos ]]),0),0)),"") -> PCJ1.2.2.3/2024 | C62: =IFERROR(INDEX(IdentAcoes[Descrição da ação],MATCH(0,INDEX(--(COUNTIF(C$1:C61,IdentAcoes[Descrição da ação])=IdentAcoes[[Quantidade de fontes de recursos ]]),0),0)),"") -> Implantação das tecnologias de desinfecção projetadas | D62: FEHIDRO - Cobrança estadual | E62: 1500000 | H62: 750000 | K62: 750000 | N62: 750000
A63: =Financeiro[[#This Row],[ID Ação]]&Financeiro[[#This Row],[Fonte]] -> PCJ1.1.2.5/2024FEHIDRO - Cobrança estadual | B63: =IFERROR(INDEX(IdentAcoes[ID Ação],MATCH(0,INDEX(--(COUNTIF(B$1:B62,IdentAcoes[ID Ação])=IdentAcoes[[Quantidade de fontes de recursos ]]),0),0)),"") -> PCJ1.1.2.5/2024 | C63: =IFERROR(INDEX(IdentAcoes[Descrição da ação],MATCH(0,INDEX(--(COUNTIF(C$1:C62,IdentAcoes[Descrição da ação])=IdentAcoes[[Quantidade de fontes de recursos ]]),0),0)),"") -> Implantação das ETEs projetadas e melhorias das ETEs existentes | D63: FEHIDRO - Cobrança estadual | E63: 3000000 | H63: 1500000 | K63: 1000000 | N63: 1500000
A64: =Financeiro[[#This Row],[ID Ação]]&Financeiro[[#This Row],[Fonte]] -> PCJ1.2.1.9/2024FEHIDRO - Cobrança estadual | B64: =IFERROR(INDEX(IdentAcoes[ID Ação],MATCH(0,INDEX(--(COUNTIF(B$1:B63,IdentAcoes[ID Ação])=IdentAcoes[[Quantidade de fontes de recursos ]]),0),0)),"") -> PCJ1.2.1.9/2024 | C64: =IFERROR(INDEX(IdentAcoes[Descrição da ação],MATCH(0,INDEX(--(COUNTIF(C$1:C63,IdentAcoes[Descrição da ação])=IdentAcoes[[Quantidade de fontes de recursos ]]),0),0)),"") -> Implantação das melhorias das ETEs projetadas e retrofit de ETEs para remoção de nutrientes | D64: FEHIDRO - Cobrança estadual | E64: 3000000 | H64: 1500000 | K64: 1000000 | N64: 2000000
A65: =Financeiro[[#This Row],[ID Ação]]&Financeiro[[#This Row],[Fonte]] -> PCJ1.2.1.8/2024FEHIDRO - Cobrança estadual | B65: =IFERROR(INDEX(IdentAcoes[ID Ação],MATCH(0,INDEX(--(COUNTIF(B$1:B64,IdentAcoes[ID Ação])=IdentAcoes[[Quantidade de fontes de recursos ]]),0),0)),"") -> PCJ1.2.1.8/2024 | C65: =IFERROR(INDEX(IdentAcoes[Descrição da ação],MATCH(0,INDEX(--(COUNTIF(C$1:C64,IdentAcoes[Descrição da ação])=IdentAcoes[[Quantidade de fontes de recursos ]]),0),0)),"") -> Implantação de Unidades de Tratamento de Lodo nas ETAs | D65: FEHIDRO - Cobrança estadual | E65: 2300000 | H65: 1000000 | K65: 0 | N65: 0
A66: =Financeiro[[#This Row],[ID Ação]]&Financeiro[[#This Row],[Fonte]] -> PCJ1.1.1.3/2024Outras fontes | B66: =IFERROR(INDEX(IdentAcoes[ID Ação],MATCH(0,INDEX(--(COUNTIF(B$1:B65,IdentAcoes[ID Ação])=IdentAcoes[[Quantidade de fontes de recursos ]]),0),0)),"") -> PCJ1.1.1.3/2024 | C66: =IFERROR(INDEX(IdentAcoes[Descrição da ação],MATCH(0,INDEX(--(COUNTIF(C$1:C65,IdentAcoes[Descrição da ação])=IdentAcoes[[Quantidade de fontes de recursos ]]),0),0)),"") -> Elaboração de projetos de ampliação e melhoria dos sistemas de coleta de esgotos | D66: Outras fontes | E66: 0 | H66: 0 | K66: 0 | N66: 0
A67: =Financeiro[[#This Row],[ID Ação]]&Financeiro[[#This Row],[Fonte]] -> PCJ1.1.1.5/2024FEHIDRO - Cobrança estadual | B67: =IFERROR(INDEX(IdentAcoes[ID Ação],MATCH(0,INDEX(--(COUNTIF(B$1:B66,IdentAcoes[ID Ação])=IdentAcoes[[Quantidade de fontes de recursos ]]),0),0)),"") -> PCJ1.1.1.5/2024 | C67: =IFERROR(INDEX(IdentAcoes[Descrição da ação],MATCH(0,INDEX(--(COUNTIF(C$1:C66,IdentAcoes[Descrição da ação])=IdentAcoes[[Quantidade de fontes de recursos ]]),0),0)),"") -> Ampliações e melhoria dos sistemas de coleta de esgotos | D67: FEHIDRO - Cobrança estadual | E67: 2500000 | H67: 1000000 | K67: 0 | N67: 0
A68: =Financeiro[[#This Row],[ID Ação]]&Financeiro[[#This Row],[Fonte]] -> PCJ1.3.2.1/2024Outras fontes | B68: =IFERROR(INDEX(IdentAcoes[ID Ação],MATCH(0,INDEX(--(COUNTIF(B$1:B67,IdentAcoes[ID Ação])=IdentAcoes[[Quantidade de fontes de recursos ]]),0),0)),"") -> PCJ1.3.2.1/2024 | C68: =IFERROR(INDEX(IdentAcoes[Descrição da ação],MATCH(0,INDEX(--(COUNTIF(C$1:C67,IdentAcoes[Descrição da ação])=IdentAcoes[[Quantidade de fontes de recursos ]]),0),0)),"") -> Elaboração de projetos demonstrativos para contenção de cargas difusas de origem rural e urbana | D68: Outras fontes | E68: 0 | H68: 0 | K68: 0 | N68: 0
A69: =Financeiro[[#This Row],[ID Ação]]&Financeiro[[#This Row],[Fonte]] -> PCJ1.3.2.3/2024Outras fontes | B69: =IFERROR(INDEX(IdentAcoes[ID Ação],MATCH(0,INDEX(--(COUNTIF(B$1:B68,IdentAcoes[ID Ação])=IdentAcoes[[Quantidade de fontes de recursos ]]),0),0)),"") -> PCJ1.3.2.3/2024 | C69: =IFERROR(INDEX(IdentAcoes[Descrição da ação],MATCH(0,INDEX(--(COUNTIF(C$1:C68,IdentAcoes[Descrição da ação])=IdentAcoes[[Quantidade de fontes de recursos ]]),0),0)),"") -> Implantação de medidas de contenção de cargas difusas de origem rural e urbana em locais prioritários | D69: Outras fontes | E69: 0 | H69: 0 | K69: 0 | N69: 0
A70: =Financeiro[[#This Row],[ID Ação]]&Financeiro[[#This Row],[Fonte]] -> PCJ3.1.2.5/2024Cobrança Federal | B70: =IFERROR(INDEX(IdentAcoes[ID Ação],MATCH(0,INDEX(--(COUNTIF(B$1:B69,IdentAcoes[ID Ação])=IdentAcoes[[Quantidade de fontes de recursos ]]),0),0)),"") -> PCJ3.1.2.5/2024 | C70: =IFERROR(INDEX(IdentAcoes[Descrição da ação],MATCH(0,INDEX(--(COUNTIF(C$1:C69,IdentAcoes[Descrição da ação])=IdentAcoes[[Quantidade de fontes de recursos ]]),0),0)),"") -> Estabilização de voçorocas nas propriedades que receberão projetos de recomposição florestal (fonte: PDRF) | D70: Cobrança Federal | E70: 0 | H70: 0 | K70: 0 | N70: 0
A71: =Financeiro[[#This Row],[ID Ação]]&Financeiro[[#This Row],[Fonte]] -> PCJ6.1.1.3/2024Cobrança Federal | B71: =IFERROR(INDEX(IdentAcoes[ID Ação],MATCH(0,INDEX(--(COUNTIF(B$1:B70,IdentAcoes[ID Ação])=IdentAcoes[[Quantidade de fontes de recursos ]]),0),0)),"") -> PCJ6.1.1.3/2024 | C71: =IFERROR(INDEX(IdentAcoes[Descrição da ação],MATCH(0,INDEX(--(COUNTIF(C$1:C70,IdentAcoes[Descrição da ação])=IdentAcoes[[Quantidade de fontes de recursos ]]),0),0)),"") -> Apoio operacional para acompanhamento de projetos de assessoria ambiental | D71: Cobrança Federal | E71: 2100000 | H71: 2100000 | K71: 0 | N71: 0
A72: =Financeiro[[#This Row],[ID Ação]]&Financeiro[[#This Row],[Fonte]] -> PCJ3.1.2.1/2024Cobrança Federal | B72: =IFERROR(INDEX(IdentAcoes[ID Ação],MATCH(0,INDEX(--(COUNTIF(B$1:B71,IdentAcoes[ID Ação])=IdentAcoes[[Quantidade de fontes de recursos ]]),0),0)),"") -> PCJ3.1.2.1/2024 | C72: =IFERROR(INDEX(IdentAcoes[Descrição da ação],MATCH(0,INDEX(--(COUNTIF(C$1:C71,IdentAcoes[Descrição da ação])=IdentAcoes[[Quantidade de fontes de recursos ]]),0),0)),"") -> Promoção da conservação e recuperação de nascentes, matas ciliares e áreas de recarga | D72: Cobrança Federal | E72: 500000 | H72: 500000 | K72: 0 | N72: 0
A73: =Financeiro[[#This Row],[ID Ação]]&Financeiro[[#This Row],[Fonte]] -> PCJ3.1.3.1/2024Cobrança Federal | B73: =IFERROR(INDEX(IdentAcoes[ID Ação],MATCH(0,INDEX(--(COUNTIF(B$1:B72,IdentAcoes[ID Ação])=IdentAcoes[[Quantidade de fontes de recursos ]]),0),0)),"") -> PCJ3.1.3.1/2024 | C73: =IFERROR(INDEX(IdentAcoes[Descrição da ação],MATCH(0,INDEX(--(COUNTIF(C$1:C72,IdentAcoes[Descrição da ação])=IdentAcoes[[Quantidade de fontes de recursos ]]),0),0)),"") -> Implementação de projetos de PSA | D73: Cobrança Federal | E73: 0 | H73: 0 | K73: 0 | N73: 0
A74: =Financeiro[[#This Row],[ID Ação]]&Financeiro[[#This Row],[Fonte]] -> PCJ3.1.1.1/2024Cobrança Federal | B74: =IFERROR(INDEX(IdentAcoes[ID Ação],MATCH(0,INDEX(--(COUNTIF(B$1:B73,IdentAcoes[ID Ação])=IdentAcoes[[Quantidade de fontes de recursos ]]),0),0)),"") -> PCJ3.1.1.1/2024 | C74: =IFERROR(INDEX(IdentAcoes[Descrição da ação],MATCH(0,INDEX(--(COUNTIF(C$1:C73,IdentAcoes[Descrição da ação])=IdentAcoes[[Quantidade de fontes de recursos ]]),0),0)),"") -> Desenvolvimento e monitoramento da implementação dos PIPs | D74: Cobrança Federal | E74: 600000 | H74: 600000 | K74: 0 | N74: 0
A75: =Financeiro[[#This Row],[ID Ação]]&Financeiro[[#This Row],[Fonte]] -> PCJ5.3.1.2/2024Cobrança Federal | B75: =IFERROR(INDEX(IdentAcoes[ID Ação],MATCH(0,INDEX(--(COUNTIF(B$1:B74,IdentAcoes[ID Ação])=IdentAcoes[[Quantidade de fontes de recursos ]]),0),0)),"") -> PCJ5.3.1.2/2024 | C75: =IFERROR(INDEX(IdentAcoes[Descrição da ação],MATCH(0,INDEX(--(COUNTIF(C$1:C74,IdentAcoes[Descrição da ação])=IdentAcoes[[Quantidade de fontes de recursos ]]),0),0)),"") -> Elaboração de um Plano de Capacitação Técnica e realização de processos formativos nas áreas de atuação das Câmaras Técnicas | D75: Cobrança Federal | E75: 191079.13 | H75: 197384.7418 | K75: 0 | N75: 0
A76: =Financeiro[[#This Row],[ID Ação]]&Financeiro[[#This Row],[Fonte]] -> PCJ1.4.1.2/2024Cobrança Federal | B76: =IFERROR(INDEX(IdentAcoes[ID Ação],MATCH(0,INDEX(--(COUNTIF(B$1:B75,IdentAcoes[ID Ação])=IdentAcoes[[Quantidade de fontes de recursos ]]),0),0)),"") -> PCJ1.4.1.2/2024 | C76: =IFERROR(INDEX(IdentAcoes[Descrição da ação],MATCH(0,INDEX(--(COUNTIF(C$1:C75,IdentAcoes[Descrição da ação])=IdentAcoes[[Quantidade de fontes de recursos ]]),0),0)),"") -> Ampliação e divulgação do programa de capacitação (Escola da Água e Saneamento), fomento e incentivo à capacitação de operadores | D76: Cobrança Federal | E76: 75000 | H76: 75000 | K76: 0 | N76: 0
A77: =Financeiro[[#This Row],[ID Ação]]&Financeiro[[#This Row],[Fonte]] -> PCJ5.2.1.2/2024Cobrança Federal | B77: =IFERROR(INDEX(IdentAcoes[ID Ação],MATCH(0,INDEX(--(COUNTIF(B$1:B76,IdentAcoes[ID Ação])=IdentAcoes[[Quantidade de fontes de recursos ]]),0),0)),"") -> PCJ5.2.1.2/2024 | C77: =IFERROR(INDEX(IdentAcoes[Descrição da ação],MATCH(0,INDEX(--(COUNTIF(C$1:C76,IdentAcoes[Descrição da ação])=IdentAcoes[[Quantidade de fontes de recursos ]]),0),0)),"") -> Realização de processos formativos e campanhas educativas sobre a realidade das Bacias PCJ | D77: Cobrança Federal | E77: 1000000 | H77: 750000 | K77: 0 | N77: 0
A78: =Financeiro[[#This Row],[ID Ação]]&Financeiro[[#This Row],[Fonte]] -> PCJ5.1.1.1/2024Cobrança Federal | B78: =IFERROR(INDEX(IdentAcoes[ID Ação],MATCH(0,INDEX(--(COUNTIF(B$1:B77,IdentAcoes[ID Ação])=IdentAcoes[[Quantidade de fontes de recursos ]]),0),0)),"") -> PCJ5.1.1.1/2024 | C78: =IFERROR(INDEX(IdentAcoes[Descrição da ação],MATCH(0,INDEX(--(COUNTIF(C$1:C77,IdentAcoes[Descrição da ação])=IdentAcoes[[Quantidade de fontes de recursos ]]),0),0)),"") -> Elaboração e execução de um Plano de Comunicação para o fortalecimento da comunicação entre a sociedade civil e os Comitês PCJ | D78: Cobrança Federal | E78: 750000 | H78: 750000 | K78: 0 | N78: 0
A79: =Financeiro[[#This Row],[ID Ação]]&Financeiro[[#This Row],[Fonte]] -> PCJ6.1.1.6/2024Cobrança Federal | B79: =IFERROR(INDEX(IdentAcoes[ID Ação],MATCH(0,INDEX(--(COUNTIF(B$1:B78,IdentAcoes[ID Ação])=IdentAcoes[[Quantidade de fontes de recursos ]]),0),0)),"") -> PCJ6.1.1.6/2024 | C79: =IFERROR(INDEX(IdentAcoes[Descrição da ação],MATCH(0,INDEX(--(COUNTIF(C$1:C78,IdentAcoes[Descrição da ação])=IdentAcoes[[Quantidade de fontes de recursos ]]),0),0)),"") -> Apoio operacional para a área de comunicação social | D79: Cobrança Federal | E79: 375902.03 | H79: 388306.7975 | K79: 0 | N79: 0
A80: =Financeiro[[#This Row],[ID Ação]]&Financeiro[[#This Row],[Fonte]] -> PCJ5.2.1.3/2024Cobrança Federal | B80: =IFERROR(INDEX(IdentAcoes[ID Ação],MATCH(0,INDEX(--(COUNTIF(B$1:B79,IdentAcoes[ID Ação])=IdentAcoes[[Quantidade de fontes de recursos ]]),0),0)),"") -> PCJ5.2.1.3/2024 | C80: =IFERROR(INDEX(IdentAcoes[Descrição da ação],MATCH(0,INDEX(--(COUNTIF(C$1:C79,IdentAcoes[Descrição da ação])=IdentAcoes[[Quantidade de fontes de recursos ]]),0),0)),"") -> Elaboração e divulgação de materiais educativos | D80: Cobrança Federal | E80: 500000 | H80: 500000 | K80: 0 | N80: 0
A81: =Financeiro[[#This Row],[ID Ação]]&Financeiro[[#This Row],[Fonte]] ->  | B81: =IFERROR(INDEX(IdentAcoes[ID Ação],MATCH(0,INDEX(--(COUNTIF(B$1:B80,IdentAcoes[ID Ação])=IdentAcoes[[Quantidade de fontes de recursos ]]),0),0)),"") ->  | C81: =IFERROR(INDEX(IdentAcoes[Descrição da ação],MATCH(0,INDEX(--(COUNTIF(C$1:C80,IdentAcoes[Descrição da ação])=IdentAcoes[[Quantidade de fontes de recursos ]]),0),0)),"") -> 
A82: =Financeiro[[#This Row],[ID Ação]]&Financeiro[[#This Row],[Fonte]] ->  | B82: =IFERROR(INDEX(IdentAcoes[ID Ação],MATCH(0,INDEX(--(COUNTIF(B$1:B81,IdentAcoes[ID Ação])=IdentAcoes[[Quantidade de fontes de recursos ]]),0),0)),"") ->  | C82: =IFERROR(INDEX(IdentAcoes[Descrição da ação],MATCH(0,INDEX(--(COUNTIF(C$1:C81,IdentAcoes[Descrição da ação])=IdentAcoes[[Quantidade de fontes de recursos ]]),0),0)),"") -> 
A83: =Financeiro[[#This Row],[ID Ação]]&Financeiro[[#This Row],[Fonte]] ->  | B83: =IFERROR(INDEX(IdentAcoes[ID Ação],MATCH(0,INDEX(--(COUNTIF(B$1:B82,IdentAcoes[ID Ação])=IdentAcoes[[Quantidade de fontes de recursos ]]),0),0)),"") ->  | C83: =IFERROR(INDEX(IdentAcoes[Descrição da ação],MATCH(0,INDEX(--(COUNTIF(C$1:C82,IdentAcoes[Descrição da ação])=IdentAcoes[[Quantidade de fontes de recursos ]]),0),0)),"") -> 
A84: =Financeiro[[#This Row],[ID Ação]]&Financeiro[[#This Row],[Fonte]] ->  | B84: =IFERROR(INDEX(IdentAcoes[ID Ação],MATCH(0,INDEX(--(COUNTIF(B$1:B83,IdentAcoes[ID Ação])=IdentAcoes[[Quantidade de fontes de recursos ]]),0),0)),"") ->  | C84: =IFERROR(INDEX(IdentAcoes[Descrição da ação],MATCH(0,INDEX(--(COUNTIF(C$1:C83,IdentAcoes[Descrição da ação])=IdentAcoes[[Quantidade de fontes de recursos ]]),0),0)),"") -> 
A85: =Financeiro[[#This Row],[ID Ação]]&Financeiro[[#This Row],[Fonte]] ->  | B85: =IFERROR(INDEX(IdentAcoes[ID Ação],MATCH(0,INDEX(--(COUNTIF(B$1:B84,IdentAcoes[ID Ação])=IdentAcoes[[Quantidade de fontes de recursos ]]),0),0)),"") ->  | C85: =IFERROR(INDEX(IdentAcoes[Descrição da ação],MATCH(0,INDEX(--(COUNTIF(C$1:C84,IdentAcoes[Descrição da ação])=IdentAcoes[[Quantidade de fontes de recursos ]]),0),0)),"") -> 
A86: =Financeiro[[#This Row],[ID Ação]]&Financeiro[[#This Row],[Fonte]] ->  | B86: =IFERROR(INDEX(IdentAcoes[ID Ação],MATCH(0,INDEX(--(COUNTIF(B$1:B85,IdentAcoes[ID Ação])=IdentAcoes[[Quantidade de fontes de recursos ]]),0),0)),"") ->  | C86: =IFERROR(INDEX(IdentAcoes[Descrição da ação],MATCH(0,INDEX(--(COUNTIF(C$1:C85,IdentAcoes[Descrição da ação])=IdentAcoes[[Quantidade de fontes de recursos ]]),0),0)),"") -> 
A87: =Financeiro[[#This Row],[ID Ação]]&Financeiro[[#This Row],[Fonte]] ->  | B87: =IFERROR(INDEX(IdentAcoes[ID Ação],MATCH(0,INDEX(--(COUNTIF(B$1:B86,IdentAcoes[ID Ação])=IdentAcoes[[Quantidade de fontes de recursos ]]),0),0)),"") ->  | C87: =IFERROR(INDEX(IdentAcoes[Descrição da ação],MATCH(0,INDEX(--(COUNTIF(C$1:C86,IdentAcoes[Descrição da ação])=IdentAcoes[[Quantidade de fontes de recursos ]]),0),0)),"") -> 
A88: =Financeiro[[#This Row],[ID Ação]]&Financeiro[[#This Row],[Fonte]] ->  | B88: =IFERROR(INDEX(IdentAcoes[ID Ação],MATCH(0,INDEX(--(COUNTIF(B$1:B87,IdentAcoes[ID Ação])=IdentAcoes[[Quantidade de fontes de recursos ]]),0),0)),"") ->  | C88: =IFERROR(INDEX(IdentAcoes[Descrição da ação],MATCH(0,INDEX(--(COUNTIF(C$1:C87,IdentAcoes[Descrição da ação])=IdentAcoes[[Quantidade de fontes de recursos ]]),0),0)),"") -> 
A89: =Financeiro[[#This Row],[ID Ação]]&Financeiro[[#This Row],[Fonte]] ->  | B89: =IFERROR(INDEX(IdentAcoes[ID Ação],MATCH(0,INDEX(--(COUNTIF(B$1:B88,IdentAcoes[ID Ação])=IdentAcoes[[Quantidade de fontes de recursos ]]),0),0)),"") ->  | C89: =IFERROR(INDEX(IdentAcoes[Descrição da ação],MATCH(0,INDEX(--(COUNTIF(C$1:C88,IdentAcoes[Descrição da ação])=IdentAcoes[[Quantidade de fontes de recursos ]]),0),0)),"") -> 
A90: =Financeiro[[#This Row],[ID Ação]]&Financeiro[[#This Row],[Fonte]] ->  | B90: =IFERROR(INDEX(IdentAcoes[ID Ação],MATCH(0,INDEX(--(COUNTIF(B$1:B89,IdentAcoes[ID Ação])=IdentAcoes[[Quantidade de fontes de recursos ]]),0),0)),"") ->  | C90: =IFERROR(INDEX(IdentAcoes[Descrição da ação],MATCH(0,INDEX(--(COUNTIF(C$1:C89,IdentAcoes[Descrição da ação])=IdentAcoes[[Quantidade de fontes de recursos ]]),0),0)),"") -> 
A91: =Financeiro[[#This Row],[ID Ação]]&Financeiro[[#This Row],[Fonte]] ->  | B91: =IFERROR(INDEX(IdentAcoes[ID Ação],MATCH(0,INDEX(--(COUNTIF(B$1:B90,IdentAcoes[ID Ação])=IdentAcoes[[Quantidade de fontes de recursos ]]),0),0)),"") ->  | C91: =IFERROR(INDEX(IdentAcoes[Descrição da ação],MATCH(0,INDEX(--(COUNTIF(C$1:C90,IdentAcoes[Descrição da ação])=IdentAcoes[[Quantidade de fontes de recursos ]]),0),0)),"") -> 
A92: =Financeiro[[#This Row],[ID Ação]]&Financeiro[[#This Row],[Fonte]] ->  | B92: =IFERROR(INDEX(IdentAcoes[ID Ação],MATCH(0,INDEX(--(COUNTIF(B$1:B91,IdentAcoes[ID Ação])=IdentAcoes[[Quantidade de fontes de recursos ]]),0),0)),"") ->  | C92: =IFERROR(INDEX(IdentAcoes[Descrição da ação],MATCH(0,INDEX(--(COUNTIF(C$1:C91,IdentAcoes[Descrição da ação])=IdentAcoes[[Quantidade de fontes de recursos ]]),0),0)),"") -> 
A93: =Financeiro[[#This Row],[ID Ação]]&Financeiro[[#This Row],[Fonte]] ->  | B93: =IFERROR(INDEX(IdentAcoes[ID Ação],MATCH(0,INDEX(--(COUNTIF(B$1:B92,IdentAcoes[ID Ação])=IdentAcoes[[Quantidade de fontes de recursos ]]),0),0)),"") ->  | C93: =IFERROR(INDEX(IdentAcoes[Descrição da ação],MATCH(0,INDEX(--(COUNTIF(C$1:C92,IdentAcoes[Descrição da ação])=IdentAcoes[[Quantidade de fontes de recursos ]]),0),0)),"") -> 
A94: =Financeiro[[#This Row],[ID Ação]]&Financeiro[[#This Row],[Fonte]] ->  | B94: =IFERROR(INDEX(IdentAcoes[ID Ação],MATCH(0,INDEX(--(COUNTIF(B$1:B93,IdentAcoes[ID Ação])=IdentAcoes[[Quantidade de fontes de recursos ]]),0),0)),"") ->  | C94: =IFERROR(INDEX(IdentAcoes[Descrição da ação],MATCH(0,INDEX(--(COUNTIF(C$1:C93,IdentAcoes[Descrição da ação])=IdentAcoes[[Quantidade de fontes de recursos ]]),0),0)),"") -> 
A95: =Financeiro[[#This Row],[ID Ação]]&Financeiro[[#This Row],[Fonte]] ->  | B95: =IFERROR(INDEX(IdentAcoes[ID Ação],MATCH(0,INDEX(--(COUNTIF(B$1:B94,IdentAcoes[ID Ação])=IdentAcoes[[Quantidade de fontes de recursos ]]),0),0)),"") ->  | C95: =IFERROR(INDEX(IdentAcoes[Descrição da ação],MATCH(0,INDEX(--(COUNTIF(C$1:C94,IdentAcoes[Descrição da ação])=IdentAcoes[[Quantidade de fontes de recursos ]]),0),0)),"") -> 
A96: =Financeiro[[#This Row],[ID Ação]]&Financeiro[[#This Row],[Fonte]] ->  | B96: =IFERROR(INDEX(IdentAcoes[ID Ação],MATCH(0,INDEX(--(COUNTIF(B$1:B95,IdentAcoes[ID Ação])=IdentAcoes[[Quantidade de fontes de recursos ]]),0),0)),"") ->  | C96: =IFERROR(INDEX(IdentAcoes[Descrição da ação],MATCH(0,INDEX(--(COUNTIF(C$1:C95,IdentAcoes[Descrição da ação])=IdentAcoes[[Quantidade de fontes de recursos ]]),0),0)),"") -> 
A97: =Financeiro[[#This Row],[ID Ação]]&Financeiro[[#This Row],[Fonte]] ->  | B97: =IFERROR(INDEX(IdentAcoes[ID Ação],MATCH(0,INDEX(--(COUNTIF(B$1:B96,IdentAcoes[ID Ação])=IdentAcoes[[Quantidade de fontes de recursos ]]),0),0)),"") ->  | C97: =IFERROR(INDEX(IdentAcoes[Descrição da ação],MATCH(0,INDEX(--(COUNTIF(C$1:C96,IdentAcoes[Descrição da ação])=IdentAcoes[[Quantidade de fontes de recursos ]]),0),0)),"") -> 
A98: =Financeiro[[#This Row],[ID Ação]]&Financeiro[[#This Row],[Fonte]] ->  | B98: =IFERROR(INDEX(IdentAcoes[ID Ação],MATCH(0,INDEX(--(COUNTIF(B$1:B97,IdentAcoes[ID Ação])=IdentAcoes[[Quantidade de fontes de recursos ]]),0),0)),"") ->  | C98: =IFERROR(INDEX(IdentAcoes[Descrição da ação],MATCH(0,INDEX(--(COUNTIF(C$1:C97,IdentAcoes[Descrição da ação])=IdentAcoes[[Quantidade de fontes de recursos ]]),0),0)),"") -> 
A99: =Financeiro[[#This Row],[ID Ação]]&Financeiro[[#This Row],[Fonte]] ->  | B99: =IFERROR(INDEX(IdentAcoes[ID Ação],MATCH(0,INDEX(--(COUNTIF(B$1:B98,IdentAcoes[ID Ação])=IdentAcoes[[Quantidade de fontes de recursos ]]),0),0)),"") ->  | C99: =IFERROR(INDEX(IdentAcoes[Descrição da ação],MATCH(0,INDEX(--(COUNTIF(C$1:C98,IdentAcoes[Descrição da ação])=IdentAcoes[[Quantidade de fontes de recursos ]]),0),0)),"") -> 
A100: =Financeiro[[#This Row],[ID Ação]]&Financeiro[[#This Row],[Fonte]] ->  | B100: =IFERROR(INDEX(IdentAcoes[ID Ação],MATCH(0,INDEX(--(COUNTIF(B$1:B99,IdentAcoes[ID Ação])=IdentAcoes[[Quantidade de fontes de recursos ]]),0),0)),"") ->  | C100: =IFERROR(INDEX(IdentAcoes[Descrição da ação],MATCH(0,INDEX(--(COUNTIF(C$1:C99,IdentAcoes[Descrição da ação])=IdentAcoes[[Quantidade de fontes de recursos ]]),0),0)),"") -> 

Sheet PAPI 2024-2027
F1: R$ Planejado
A2: id_ação_Fonte_oculta | B2: ID Ação | C2: Descrição da ação | D2: Meta | E2: Fonte | F2: 2024 | G2: 2025 | H2: 2026 | I2: 2027 | J2: Total | K2: SubPDC | L2: Prioridade do PDC | M2: Segmento do executor | N2: Área de abrangência | O2: Nome da área de abrangência
A3: =IF(INDEX(Financeiro[],,1)=0,"",(INDEX(Financeiro[],,1))) -> PCJ3.3.1.2/2024FEHIDRO - Cobrança estadual | B3: =IF(INDEX(Financeiro[],,2)=0,"",(INDEX(Financeiro[],,2))) -> PCJ3.3.1.2/2024 | C3: =INDEX(Financeiro[Descrição da ação],MATCH(B3,Financeiro[ID Ação], 0)) -> Fomento a Planos Municipais de Saneamento Rural | D3: =IF(INDEX('Acompanhamento das metas 24-27'!$C$2:$C$50,MATCH(B3,'Acompanhamento das metas 24-27'!$A$2:$A$50,0))<>0,INDEX('Acompanhamento das metas 24-27'!$C$2:$C$50,MATCH(B3,'Acompanhamento das metas 24-27'!$A$2:$A$50,0)),"") -> 15 Planos Municipais de Saneamento Rural elaborados | E3: =IF(VLOOKUP(A3,Financeiro[[id_ação_Fonte_oculta]:[R$ Executado (2027)]],4,FALSE)=0,"",VLOOKUP(A3,Financeiro[[id_ação_Fonte_oculta]:[R$ Executado (2027)]],4,FALSE)) -> FEHIDRO - Cobrança estadual | F3: =IF(VLOOKUP(A3,Financeiro[[id_ação_Fonte_oculta]:[R$ Executado (2027)]],4,FALSE)=0,"",VLOOKUP(A3,Financeiro[[id_ação_Fonte_oculta]:[R$ Executado (2027)]],5,FALSE)) -> 1000000 | G3: =IF(VLOOKUP(A3,Financeiro[[id_ação_Fonte_oculta]:[R$ Executado (2027)]],4,FALSE)=0,"",VLOOKUP(A3,Financeiro[[id_ação_Fonte_oculta]:[R$ Executado (2027)]],8,FALSE)) -> 2000000 | H3: =IF(VLOOKUP(A3,Financeiro[[id_ação_Fonte_oculta]:[R$ Executado (2027)]],4,FALSE)=0,"",VLOOKUP(A3,Financeiro[[id_ação_Fonte_oculta]:[R$ Executado (2027)]],11,FALSE)) -> 1000000 | I3: =IF(VLOOKUP(A3,Financeiro[[id_ação_Fonte_oculta]:[R$ Executado (2027)]],4,FALSE)=0,"",VLOOKUP(A3,Financeiro[[id_ação_Fonte_oculta]:[R$ Executado (2027)]],14,FALSE)) -> 1341614.128 | J3: =SUM(F3:I3) -> 5341614.128 | K3: =IFERROR(INDEX(IdentAcoes[SubPDC],MATCH(B3,IdentAcoes[ID Ação],0)),"") -> 1.2 - Planejamento | L3: =IFERROR(INDEX(IdentAcoes[Prioridade do PDC],MATCH($B3,IdentAcoes[ID Ação],0)),"") -> PDC 1 e 2 | M3: =IFERROR(INDEX(IdentAcoes[Segmento do executor],MATCH($B3,IdentAcoes[ID Ação],0)),"") -> Município | N3: =IFERROR(INDEX(IdentAcoes[Área de abrangência],MATCH($B3,IdentAcoes[ID Ação],0)),"") -> Bacia | O3: =IFERROR(INDEX(IdentAcoes[Detalhamento da área de abrangência],MATCH($B3,IdentAcoes[ID Ação],0)),"") -> Bacias PCJ, observando os municípios e ACs prioritários para saneamento rural
A4: PCJ3.3.1.2/2024FEHIDRO - CFURH | B4: PCJ3.3.1.2/2024 | C4: =INDEX(Financeiro[Descrição da ação],MATCH(B4,Financeiro[ID Ação], 0)) -> Fomento a Planos Municipais de Saneamento Rural | D4: =IF(INDEX('Acompanhamento das metas 24-27'!$C$2:$C$50,MATCH(B4,'Acompanhamento das metas 24-27'!$A$2:$A$50,0))<>0,INDEX('Acompanhamento das metas 24-27'!$C$2:$C$50,MATCH(B4,'Acompanhamento das metas 24-27'!$A$2:$A$50,0)),"") -> 15 Planos Municipais de Saneamento Rural elaborados | E4: =IF(VLOOKUP(A4,Financeiro[[id_ação_Fonte_oculta]:[R$ Executado (2027)]],4,FALSE)=0,"",VLOOKUP(A4,Financeiro[[id_ação_Fonte_oculta]:[R$ Executado (2027)]],4,FALSE)) -> FEHIDRO - CFURH | F4: =IF(VLOOKUP(A4,Financeiro[[id_ação_Fonte_oculta]:[R$ Executado (2027)]],4,FALSE)=0,"",VLOOKUP(A4,Financeiro[[id_ação_Fonte_oculta]:[R$ Executado (2027)]],5,FALSE)) -> 822566.3 | G4: =IF(VLOOKUP(A4,Financeiro[[id_ação_Fonte_oculta]:[R$ Executado (2027)]],4,FALSE)=0,"",VLOOKUP(A4,Financeiro[[id_ação_Fonte_oculta]:[R$ Executado (2027)]],8,FALSE)) -> 861129.6 | H4: =IF(VLOOKUP(A4,Financeiro[[id_ação_Fonte_oculta]:[R$ Executado (2027)]],4,FALSE)=0,"",VLOOKUP(A4,Financeiro[[id_ação_Fonte_oculta]:[R$ Executado (2027)]],11,FALSE)) -> 901617 | I4: =IF(VLOOKUP(A4,Financeiro[[id_ação_Fonte_oculta]:[R$ Executado (2027)]],4,FALSE)=0,"",VLOOKUP(A4,Financeiro[[id_ação_Fonte_oculta]:[R$ Executado (2027)]],14,FALSE)) -> 944164 | J4: =SUM(F4:I4) -> 3529476.9 | K4: =IFERROR(INDEX(IdentAcoes[SubPDC],MATCH(B4,IdentAcoes[ID Ação],0)),"") -> 1.2 - Planejamento | L4: =IFERROR(INDEX(IdentAcoes[Prioridade do PDC],MATCH(B4,IdentAcoes[ID Ação],0)),"") -> PDC 1 e 2 | M4: =IFERROR(INDEX(IdentAcoes[Segmento do executor],MATCH($B4,IdentAcoes[ID Ação],0)),"") -> Município | N4: =IFERROR(INDEX(IdentAcoes[Área de abrangência],MATCH($B4,IdentAcoes[ID Ação],0)),"") -> Bacia | O4: =IFERROR(INDEX(IdentAcoes[Detalhamento da área de abrangência],MATCH($B4,IdentAcoes[ID Ação],0)),"") -> Bacias PCJ, observando os municípios e ACs prioritários para saneamento rural
A5: PCJ2.3.1.1/2024FEHIDRO - Cobrança estadual | B5: PCJ2.3.1.1/2024 | C5: =INDEX(Financeiro[Descrição da ação],MATCH(B5,Financeiro[ID Ação], 0)) -> Estudos de viabilidade para aumento de regularização de vazões em mananciais existentes e novos barramentos | D5: =IF(INDEX('Acompanhamento das metas 24-27'!$C$2:$C$50,MATCH(B5,'Acompanhamento das metas 24-27'!$A$2:$A$50,0))<>0,INDEX('Acompanhamento das metas 24-27'!$C$2:$C$50,MATCH(B5,'Acompanhamento das metas 24-27'!$A$2:$A$50,0)),"") -> Termos de referência; Estudo elaborado | E5: =IF(VLOOKUP(A5,Financeiro[[id_ação_Fonte_oculta]:[R$ Executado (2027)]],4,FALSE)=0,"",VLOOKUP(A5,Financeiro[[id_ação_Fonte_oculta]:[R$ Executado (2027)]],4,FALSE)) -> FEHIDRO - Cobrança estadual | F5: =IF(VLOOKUP(A5,Financeiro[[id_ação_Fonte_oculta]:[R$ Executado (2027)]],4,FALSE)=0,"",VLOOKUP(A5,Financeiro[[id_ação_Fonte_oculta]:[R$ Executado (2027)]],5,FALSE)) -> 1000000 | G5: =IF(VLOOKUP(A5,Financeiro[[id_ação_Fonte_oculta]:[R$ Executado (2027)]],4,FALSE)=0,"",VLOOKUP(A5,Financeiro[[id_ação_Fonte_oculta]:[R$ Executado (2027)]],8,FALSE)) -> 1500000 | H5: =IF(VLOOKUP(A5,Financeiro[[id_ação_Fonte_oculta]:[R$ Executado (2027)]],4,FALSE)=0,"",VLOOKUP(A5,Financeiro[[id_ação_Fonte_oculta]:[R$ Executado (2027)]],11,FALSE)) -> 500000 | I5: =IF(VLOOKUP(A5,Financeiro[[id_ação_Fonte_oculta]:[R$ Executado (2027)]],4,FALSE)=0,"",VLOOKUP(A5,Financeiro[[id_ação_Fonte_oculta]:[R$ Executado (2027)]],14,FALSE)) -> 500000 | J5: 3500000 | K5: =IFERROR(INDEX(IdentAcoes[SubPDC],MATCH(B5,IdentAcoes[ID Ação],0)),"") -> 1.2 - Planejamento | L5: =IFERROR(INDEX(IdentAcoes[Prioridade do PDC],MATCH(B5,IdentAcoes[ID Ação],0)),"") -> PDC 1 e 2 | M5: =IFERROR(INDEX(IdentAcoes[Segmento do executor],MATCH($B5,IdentAcoes[ID Ação],0)),"") -> Município | N5: =IFERROR(INDEX(IdentAcoes[Área de abrangência],MATCH($B5,IdentAcoes[ID Ação],0)),"") -> Corpo hídrico | O5: =IFERROR(INDEX(IdentAcoes[Detalhamento da área de abrangência],MATCH($B5,IdentAcoes[ID Ação],0)),"") -> Bacias PCJ, observando os municípios e ACs prioritários
A6: PCJ2.3.3.2/2024FEHIDRO - Cobrança estadual | B6: PCJ2.3.3.2/2024 | C6: =INDEX(Financeiro[Descrição da ação],MATCH(B6,Financeiro[ID Ação], 0)) -> Elaboração dos Planos Diretores de Drenagem Urbana e Manejo de Águas Pluviais | D6: =IF(INDEX('Acompanhamento das metas 24-27'!$C$2:$C$50,MATCH(B6,'Acompanhamento das metas 24-27'!$A$2:$A$50,0))<>0,INDEX('Acompanhamento das metas 24-27'!$C$2:$C$50,MATCH(B6,'Acompanhamento das metas 24-27'!$A$2:$A$50,0)),"") -> Elaboração de ao menos 01 Plano, considerando os trechos vulneráveis indicados no Plano de Bacias | E6: =IF(VLOOKUP(A6,Financeiro[[id_ação_Fonte_oculta]:[R$ Executado (2027)]],4,FALSE)=0,"",VLOOKUP(A6,Financeiro[[id_ação_Fonte_oculta]:[R$ Executado (2027)]],4,FALSE)) -> FEHIDRO - Cobrança estadual | F6: =IF(VLOOKUP(A6,Financeiro[[id_ação_Fonte_oculta]:[R$ Executado (2027)]],4,FALSE)=0,"",VLOOKUP(A6,Financeiro[[id_ação_Fonte_oculta]:[R$ Executado (2027)]],5,FALSE)) -> 1500000 | G6: =IF(VLOOKUP(A6,Financeiro[[id_ação_Fonte_oculta]:[R$ Executado (2027)]],4,FALSE)=0,"",VLOOKUP(A6,Financeiro[[id_ação_Fonte_oculta]:[R$ Executado (2027)]],8,FALSE)) -> 1500000 | H6: =IF(VLOOKUP(A6,Financeiro[[id_ação_Fonte_oculta]:[R$ Executado (2027)]],4,FALSE)=0,"",VLOOKUP(A6,Financeiro[[id_ação_Fonte_oculta]:[R$ Executado (2027)]],11,FALSE)) -> 1000000 | I6: =IF(VLOOKUP(A6,Financeiro[[id_ação_Fonte_oculta]:[R$ Executado (2027)]],4,FALSE)=0,"",VLOOKUP(A6,Financeiro[[id_ação_Fonte_oculta]:[R$ Executado (2027)]],14,FALSE)) -> 1000000 | J6: 5000000 | K6: =IFERROR(INDEX(IdentAcoes[SubPDC],MATCH(B6,IdentAcoes[ID Ação],0)),"") -> 1.2 - Planejamento | L6: =IFERROR(INDEX(IdentAcoes[Prioridade do PDC],MATCH(B6,IdentAcoes[ID Ação],0)),"") -> PDC 1 e 2 | M6: =IFERROR(INDEX(IdentAcoes[Segmento do executor],MATCH($B6,IdentAcoes[ID Ação],0)),"") -> Município | N6: =IFERROR(INDEX(IdentAcoes[Área de abrangência],MATCH($B6,IdentAcoes[ID Ação],0)),"") -> Município | O6: =IFERROR(INDEX(IdentAcoes[Detalhamento da área de abrangência],MATCH($B6,IdentAcoes[ID Ação],0)),"") -> Municípios observando as prioridades no Plano de Bacias
A7: PCJ1.2.1.5/2024FEHIDRO - Cobrança estadual | B7: PCJ1.2.1.5/2024 | C7: =INDEX(Financeiro[Descrição da ação],MATCH(B7,Financeiro[ID Ação], 0)) -> Cadastro, caracterização e modelagem de cargas industriais | D7: =IF(INDEX('Acompanhamento das metas 24-27'!$C$2:$C$50,MATCH(B7,'Acompanhamento das metas 24-27'!$A$2:$A$50,0))<>0,INDEX('Acompanhamento das metas 24-27'!$C$2:$C$50,MATCH(B7,'Acompanhamento das metas 24-27'!$A$2:$A$50,0)),"") -> Ao menos 01 estudo realizado | E7: =IF(VLOOKUP(A7,Financeiro[[id_ação_Fonte_oculta]:[R$ Executado (2027)]],4,FALSE)=0,"",VLOOKUP(A7,Financeiro[[id_ação_Fonte_oculta]:[R$ Executado (2027)]],4,FALSE)) -> FEHIDRO - Cobrança estadual | F7: =IF(VLOOKUP(A7,Financeiro[[id_ação_Fonte_oculta]:[R$ Executado (2027)]],4,FALSE)=0,"",VLOOKUP(A7,Financeiro[[id_ação_Fonte_oculta]:[R$ Executado (2027)]],5,FALSE)) -> 2000000 | G7: =IF(VLOOKUP(A7,Financeiro[[id_ação_Fonte_oculta]:[R$ Executado (2027)]],4,FALSE)=0,"",VLOOKUP(A7,Financeiro[[id_ação_Fonte_oculta]:[R$ Executado (2027)]],8,FALSE)) -> 0 | H7: =IF(VLOOKUP(A7,Financeiro[[id_ação_Fonte_oculta]:[R$ Executado (2027)]],4,FALSE)=0,"",VLOOKUP(A7,Financeiro[[id_ação_Fonte_oculta]:[R$ Executado (2027)]],11,FALSE)) -> 0 | I7: =IF(VLOOKUP(A7,Financeiro[[id_ação_Fonte_oculta]:[R$ Executado (2027)]],4,FALSE)=0,"",VLOOKUP(A7,Financeiro[[id_ação_Fonte_oculta]:[R$ Executado (2027)]],14,FALSE)) -> 0 | J7: 2000000 | K7: =IFERROR(INDEX(IdentAcoes[SubPDC],MATCH(B7,IdentAcoes[ID Ação],0)),"") -> 1.2 - Planejamento | L7: =IFERROR(INDEX(IdentAcoes[Prioridade do PDC],MATCH(B7,IdentAcoes[ID Ação],0)),"") -> PDC 1 e 2 | M7: =IFERROR(INDEX(IdentAcoes[Segmento do executor],MATCH($B7,IdentAcoes[ID Ação],0)),"") -> Sociedade Civil | N7: =IFERROR(INDEX(IdentAcoes[Área de abrangência],MATCH($B7,IdentAcoes[ID Ação],0)),"") -> Bacia | O7: =IFERROR(INDEX(IdentAcoes[Detalhamento da área de abrangência],MATCH($B7,IdentAcoes[ID Ação],0)),"") -> Bacias PCJ
A8: PCJ1.2.1.6/2026FEHIDRO - Cobrança estadual | B8: PCJ1.2.1.6/2026 | C8: =INDEX(Financeiro[Descrição da ação],MATCH(B8,Financeiro[ID Ação], 0)) -> Estudos de alternativas de diminuição da carga industrial | D8: =IF(INDEX('Acompanhamento das metas 24-27'!$C$2:$C$50,MATCH(B8,'Acompanhamento das metas 24-27'!$A$2:$A$50,0))<>0,INDEX('Acompanhamento das metas 24-27'!$C$2:$C$50,MATCH(B8,'Acompanhamento das metas 24-27'!$A$2:$A$50,0)),"") -> Estudos realizados até 2026 | E8: =IF(VLOOKUP(A8,Financeiro[[id_ação_Fonte_oculta]:[R$ Executado (2027)]],4,FALSE)=0,"",VLOOKUP(A8,Financeiro[[id_ação_Fonte_oculta]:[R$ Executado (2027)]],4,FALSE)) -> FEHIDRO - Cobrança estadual | F8: =IF(VLOOKUP(A8,Financeiro[[id_ação_Fonte_oculta]:[R$ Executado (2027)]],4,FALSE)=0,"",VLOOKUP(A8,Financeiro[[id_ação_Fonte_oculta]:[R$ Executado (2027)]],5,FALSE)) -> 0 | G8: =IF(VLOOKUP(A8,Financeiro[[id_ação_Fonte_oculta]:[R$ Executado (2027)]],4,FALSE)=0,"",VLOOKUP(A8,Financeiro[[id_ação_Fonte_oculta]:[R$ Executado (2027)]],8,FALSE)) -> 0 | H8: =IF(VLOOKUP(A8,Financeiro[[id_ação_Fonte_oculta]:[R$ Executado (2027)]],4,FALSE)=0,"",VLOOKUP(A8,Financeiro[[id_ação_Fonte_oculta]:[R$ Executado (2027)]],11,FALSE)) -> 513285.72 | I8: =IF(VLOOKUP(A8,Financeiro[[id_ação_Fonte_oculta]:[R$ Executado (2027)]],4,FALSE)=0,"",VLOOKUP(A8,Financeiro[[id_ação_Fonte_oculta]:[R$ Executado (2027)]],14,FALSE)) -> 0 | J8: 513285.72 | K8: =IFERROR(INDEX(IdentAcoes[SubPDC],MATCH(B8,IdentAcoes[ID Ação],0)),"") -> 1.2 - Planejamento | L8: =IFERROR(INDEX(IdentAcoes[Prioridade do PDC],MATCH(B8,IdentAcoes[ID Ação],0)),"") -> PDC 1 e 2 | M8: =IFERROR(INDEX(IdentAcoes[Segmento do executor],MATCH($B8,IdentAcoes[ID Ação],0)),"") -> Sociedade Civil | N8: =IFERROR(INDEX(IdentAcoes[Área de abrangência],MATCH($B8,IdentAcoes[ID Ação],0)),"") -> Bacia | O8: =IFERROR(INDEX(IdentAcoes[Detalhamento da área de abrangência],MATCH($B8,IdentAcoes[ID Ação],0)),"") -> Bacias PCJ, especialmente em municípios prioritários para tratamento secundário, nitrogênio e fósforo
A9: PCJ1.2.2.1/2026FEHIDRO - Cobrança estadual | B9: PCJ1.2.2.1/2026 | C9: =INDEX(Financeiro[Descrição da ação],MATCH(B9,Financeiro[ID Ação], 0)) -> Elaboração de estudos sobre os impactos da cloração de efluentes nos mananciais | D9: =IF(INDEX('Acompanhamento das metas 24-27'!$C$2:$C$50,MATCH(B9,'Acompanhamento das metas 24-27'!$A$2:$A$50,0))<>0,INDEX('Acompanhamento das metas 24-27'!$C$2:$C$50,MATCH(B9,'Acompanhamento das metas 24-27'!$A$2:$A$50,0)),"") -> Estudos realizados até 2026 | E9: =IF(VLOOKUP(A9,Financeiro[[id_ação_Fonte_oculta]:[R$ Executado (2027)]],4,FALSE)=0,"",VLOOKUP(A9,Financeiro[[id_ação_Fonte_oculta]:[R$ Executado (2027)]],4,FALSE)) -> FEHIDRO - Cobrança estadual | F9: =IF(VLOOKUP(A9,Financeiro[[id_ação_Fonte_oculta]:[R$ Executado (2027)]],4,FALSE)=0,"",VLOOKUP(A9,Financeiro[[id_ação_Fonte_oculta]:[R$ Executado (2027)]],5,FALSE)) -> 0 | G9: =IF(VLOOKUP(A9,Financeiro[[id_ação_Fonte_oculta]:[R$ Executado (2027)]],4,FALSE)=0,"",VLOOKUP(A9,Financeiro[[id_ação_Fonte_oculta]:[R$ Executado (2027)]],8,FALSE)) -> 0 | H9: =IF(VLOOKUP(A9,Financeiro[[id_ação_Fonte_oculta]:[R$ Executado (2027)]],4,FALSE)=0,"",VLOOKUP(A9,Financeiro[[id_ação_Fonte_oculta]:[R$ Executado (2027)]],11,FALSE)) -> 700000 | I9: =IF(VLOOKUP(A9,Financeiro[[id_ação_Fonte_oculta]:[R$ Executado (2027)]],4,FALSE)=0,"",VLOOKUP(A9,Financeiro[[id_ação_Fonte_oculta]:[R$ Executado (2027)]],14,FALSE)) -> 0 | J9: 700000 | K9: =IFERROR(INDEX(IdentAcoes[SubPDC],MATCH(B9,IdentAcoes[ID Ação],0)),"") -> 1.2 - Planejamento | L9: =IFERROR(INDEX(IdentAcoes[Prioridade do PDC],MATCH(B9,IdentAcoes[ID Ação],0)),"") -> PDC 1 e 2 | M9: =IFERROR(INDEX(IdentAcoes[Segmento do executor],MATCH($B9,IdentAcoes[ID Ação],0)),"") -> Sociedade Civil | N9: =IFERROR(INDEX(IdentAcoes[Área de abrangência],MATCH($B9,IdentAcoes[ID Ação],0)),"") -> Bacia | O9: =IFERROR(INDEX(IdentAcoes[Detalhamento da área de abrangência],MATCH($B9,IdentAcoes[ID Ação],0)),"") -> Bacias PCJ
A10: PCJ1.3.1.1/2027FEHIDRO - Cobrança estadual | B10: PCJ1.3.1.1/2027 | C10: =INDEX(Financeiro[Descrição da ação],MATCH(B10,Financeiro[ID Ação], 0)) -> Elaboração de estudo do background de fósforo nos corpos hídricos das Bacias PCJ e integração no SSD | E10: =IF(VLOOKUP(A10,Financeiro[[id_ação_Fonte_oculta]:[R$ Executado (2027)]],4,FALSE)=0,"",VLOOKUP(A10,Financeiro[[id_ação_Fonte_oculta]:[R$ Executado (2027)]],4,FALSE)) -> FEHIDRO - Cobrança estadual | F10: =IF(VLOOKUP(A10,Financeiro[[id_ação_Fonte_oculta]:[R$ Executado (2027)]],4,FALSE)=0,"",VLOOKUP(A10,Financeiro[[id_ação_Fonte_oculta]:[R$ Executado (2027)]],5,FALSE)) -> 0 | G10: =IF(VLOOKUP(A10,Financeiro[[id_ação_Fonte_oculta]:[R$ Executado (2027)]],4,FALSE)=0,"",VLOOKUP(A10,Financeiro[[id_ação_Fonte_oculta]:[R$ Executado (2027)]],8,FALSE)) -> 0 | H10: =IF(VLOOKUP(A10,Financeiro[[id_ação_Fonte_oculta]:[R$ Executado (2027)]],4,FALSE)=0,"",VLOOKUP(A10,Financeiro[[id_ação_Fonte_oculta]:[R$ Executado (2027)]],11,FALSE)) -> 0 | I10: =IF(VLOOKUP(A10,Financeiro[[id_ação_Fonte_oculta]:[R$ Executado (2027)]],4,FALSE)=0,"",VLOOKUP(A10,Financeiro[[id_ação_Fonte_oculta]:[R$ Executado (2027)]],14,FALSE)) -> 1707385.872 | J10: 1707385.872 | K10: =IFERROR(INDEX(IdentAcoes[SubPDC],MATCH(B10,IdentAcoes[ID Ação],0)),"") -> 1.2 - Planejamento | L10: =IFERROR(INDEX(IdentAcoes[Prioridade do PDC],MATCH(B10,IdentAcoes[ID Ação],0)),"") -> PDC 1 e 2 | M10: =IFERROR(INDEX(IdentAcoes[Segmento do executor],MATCH($B10,IdentAcoes[ID Ação],0)),"") -> Sociedade Civil | N10: =IFERROR(INDEX(IdentAcoes[Área de abrangência],MATCH($B10,IdentAcoes[ID Ação],0)),"") -> Bacia | O10: =IFERROR(INDEX(IdentAcoes[Detalhamento da área de abrangência],MATCH($B10,IdentAcoes[ID Ação],0)),"") -> Bacias PCJ
A11: PCJ1.3.1.3/2026FEHIDRO - Cobrança estadual | B11: PCJ1.3.1.3/2026 | C11: =INDEX(Financeiro[Descrição da ação],MATCH(B11,Financeiro[ID Ação], 0)) -> Elaboração de estudo sobre estruturas de controle e redução de cargas difusas e definição de metodologia para identificação e priorização de áreas potencialmente afetadas por cargas difusas de origem rural e urbana | D11: =IF(INDEX('Acompanhamento das metas 24-27'!$C$2:$C$50,MATCH(B11,'Acompanhamento das metas 24-27'!$A$2:$A$50,0))<>0,INDEX('Acompanhamento das metas 24-27'!$C$2:$C$50,MATCH(B11,'Acompanhamento das metas 24-27'!$A$2:$A$50,0)),"") -> Estudo elaborado até final de 2026 | E11: =IF(VLOOKUP(A11,Financeiro[[id_ação_Fonte_oculta]:[R$ Executado (2027)]],4,FALSE)=0,"",VLOOKUP(A11,Financeiro[[id_ação_Fonte_oculta]:[R$ Executado (2027)]],4,FALSE)) -> FEHIDRO - Cobrança estadual | F11: =IF(VLOOKUP(A11,Financeiro[[id_ação_Fonte_oculta]:[R$ Executado (2027)]],4,FALSE)=0,"",VLOOKUP(A11,Financeiro[[id_ação_Fonte_oculta]:[R$ Executado (2027)]],5,FALSE)) -> 0 | G11: =IF(VLOOKUP(A11,Financeiro[[id_ação_Fonte_oculta]:[R$ Executado (2027)]],4,FALSE)=0,"",VLOOKUP(A11,Financeiro[[id_ação_Fonte_oculta]:[R$ Executado (2027)]],8,FALSE)) -> 0 | H11: =IF(VLOOKUP(A11,Financeiro[[id_ação_Fonte_oculta]:[R$ Executado (2027)]],4,FALSE)=0,"",VLOOKUP(A11,Financeiro[[id_ação_Fonte_oculta]:[R$ Executado (2027)]],11,FALSE)) -> 2700000 | I11: =IF(VLOOKUP(A11,Financeiro[[id_ação_Fonte_oculta]:[R$ Executado (2027)]],4,FALSE)=0,"",VLOOKUP(A11,Financeiro[[id_ação_Fonte_oculta]:[R$ Executado (2027)]],14,FALSE)) -> 0 | J11: 2700000 | K11: =IFERROR(INDEX(IdentAcoes[SubPDC],MATCH(B11,IdentAcoes[ID Ação],0)),"") -> 1.2 - Planejamento | L11: =IFERROR(INDEX(IdentAcoes[Prioridade do PDC],MATCH(B11,IdentAcoes[ID Ação],0)),"") -> PDC 1 e 2 | M11: =IFERROR(INDEX(IdentAcoes[Segmento do executor],MATCH($B11,IdentAcoes[ID Ação],0)),"") -> Sociedade Civil | N11: =IFERROR(INDEX(IdentAcoes[Área de abrangência],MATCH($B11,IdentAcoes[ID Ação],0)),"") -> Bacia | O11: =IFERROR(INDEX(IdentAcoes[Detalhamento da área de abrangência],MATCH($B11,IdentAcoes[ID Ação],0)),"") -> Bacias PCJ
A12: PCJ1.3.2.2/2026FEHIDRO - Cobrança estadual | B12: PCJ1.3.2.2/2026 | C12: =INDEX(Financeiro[Descrição da ação],MATCH(B12,Financeiro[ID Ação], 0)) -> Elaboração de um Plano de Contenção de Cargas Difusas em locais prioritários nas Bacias PCJ | D12: =IF(INDEX('Acompanhamento das metas 24-27'!$C$2:$C$50,MATCH(B12,'Acompanhamento das metas 24-27'!$A$2:$A$50,0))<>0,INDEX('Acompanhamento das metas 24-27'!$C$2:$C$50,MATCH(B12,'Acompanhamento das metas 24-27'!$A$2:$A$50,0)),"") -> Estudo elaborado até final de 2026 | E12: =IF(VLOOKUP(A12,Financeiro[[id_ação_Fonte_oculta]:[R$ Executado (2027)]],4,FALSE)=0,"",VLOOKUP(A12,Financeiro[[id_ação_Fonte_oculta]:[R$ Executado (2027)]],4,FALSE)) -> FEHIDRO - Cobrança estadual | F12: =IF(VLOOKUP(A12,Financeiro[[id_ação_Fonte_oculta]:[R$ Executado (2027)]],4,FALSE)=0,"",VLOOKUP(A12,Financeiro[[id_ação_Fonte_oculta]:[R$ Executado (2027)]],5,FALSE)) -> 0 | G12: =IF(VLOOKUP(A12,Financeiro[[id_ação_Fonte_oculta]:[R$ Executado (2027)]],4,FALSE)=0,"",VLOOKUP(A12,Financeiro[[id_ação_Fonte_oculta]:[R$ Executado (2027)]],8,FALSE)) -> 0 | H12: =IF(VLOOKUP(A12,Financeiro[[id_ação_Fonte_oculta]:[R$ Executado (2027)]],4,FALSE)=0,"",VLOOKUP(A12,Financeiro[[id_ação_Fonte_oculta]:[R$ Executado (2027)]],11,FALSE)) -> 2000000 | I12: =IF(VLOOKUP(A12,Financeiro[[id_ação_Fonte_oculta]:[R$ Executado (2027)]],4,FALSE)=0,"",VLOOKUP(A12,Financeiro[[id_ação_Fonte_oculta]:[R$ Executado (2027)]],14,FALSE)) -> 0 | J12: 2000000 | K12: =IFERROR(INDEX(IdentAcoes[SubPDC],MATCH(B12,IdentAcoes[ID Ação],0)),"") -> 1.2 - Planejamento | L12: =IFERROR(INDEX(IdentAcoes[Prioridade do PDC],MATCH(B12,IdentAcoes[ID Ação],0)),"") -> PDC 1 e 2 | M12: =IFERROR(INDEX(IdentAcoes[Segmento do executor],MATCH($B12,IdentAcoes[ID Ação],0)),"") -> Sociedade Civil | N12: =IFERROR(INDEX(IdentAcoes[Área de abrangência],MATCH($B12,IdentAcoes[ID Ação],0)),"") -> Bacia | O12: =IFERROR(INDEX(IdentAcoes[Detalhamento da área de abrangência],MATCH($B12,IdentAcoes[ID Ação],0)),"") -> Bacias PCJ, observando as prioridades para fósforo e nitrogênio.
A13: PCJ6.3.2.1/2025FEHIDRO - Cobrança estadual | B13: PCJ6.3.2.1/2025 | C13: =INDEX(Financeiro[Descrição da ação],MATCH(B13,Financeiro[ID Ação], 0)) -> Estudo para articulação entre CBHs visando a pactuação de condições de entrega | D13: =IF(INDEX('Acompanhamento das metas 24-27'!$C$2:$C$50,MATCH(B13,'Acompanhamento das metas 24-27'!$A$2:$A$50,0))<>0,INDEX('Acompanhamento das metas 24-27'!$C$2:$C$50,MATCH(B13,'Acompanhamento das metas 24-27'!$A$2:$A$50,0)),"") -> Estudo elaborado até final de 2025 | E13: =IF(VLOOKUP(A13,Financeiro[[id_ação_Fonte_oculta]:[R$ Executado (2027)]],4,FALSE)=0,"",VLOOKUP(A13,Financeiro[[id_ação_Fonte_oculta]:[R$ Executado (2027)]],4,FALSE)) -> FEHIDRO - Cobrança estadual | F13: =IF(VLOOKUP(A13,Financeiro[[id_ação_Fonte_oculta]:[R$ Executado (2027)]],4,FALSE)=0,"",VLOOKUP(A13,Financeiro[[id_ação_Fonte_oculta]:[R$ Executado (2027)]],5,FALSE)) -> 0 | G13: =IF(VLOOKUP(A13,Financeiro[[id_ação_Fonte_oculta]:[R$ Executado (2027)]],4,FALSE)=0,"",VLOOKUP(A13,Financeiro[[id_ação_Fonte_oculta]:[R$ Executado (2027)]],8,FALSE)) -> 600000 | H13: =IF(VLOOKUP(A13,Financeiro[[id_ação_Fonte_oculta]:[R$ Executado (2027)]],4,FALSE)=0,"",VLOOKUP(A13,Financeiro[[id_ação_Fonte_oculta]:[R$ Executado (2027)]],11,FALSE)) -> 0 | I13: =IF(VLOOKUP(A13,Financeiro[[id_ação_Fonte_oculta]:[R$ Executado (2027)]],4,FALSE)=0,"",VLOOKUP(A13,Financeiro[[id_ação_Fonte_oculta]:[R$ Executado (2027)]],14,FALSE)) -> 0 | J13: 600000 | K13: =IFERROR(INDEX(IdentAcoes[SubPDC],MATCH(B13,IdentAcoes[ID Ação],0)),"") -> 1.2 - Planejamento | L13: =IFERROR(INDEX(IdentAcoes[Prioridade do PDC],MATCH(B13,IdentAcoes[ID Ação],0)),"") -> PDC 1 e 2 | M13: =IFERROR(INDEX(IdentAcoes[Segmento do executor],MATCH($B13,IdentAcoes[ID Ação],0)),"") -> Sociedade Civil | N13: =IFERROR(INDEX(IdentAcoes[Área de abrangência],MATCH($B13,IdentAcoes[ID Ação],0)),"") -> Bacia | O13: =IFERROR(INDEX(IdentAcoes[Detalhamento da área de abrangência],MATCH($B13,IdentAcoes[ID Ação],0)),"") -> Bacias PCJ
A14: PCJ1.1.1.2/2025FEHIDRO - Cobrança estadual | B14: PCJ1.1.1.2/2025 | C14: =INDEX(Financeiro[Descrição da ação],MATCH(B14,Financeiro[ID Ação], 0)) -> Elaboração de estudos para ampliação e melhoria dos sistemas de transporte de esgotos | D14: =IF(INDEX('Acompanhamento das metas 24-27'!$C$2:$C$50,MATCH(B14,'Acompanhamento das metas 24-27'!$A$2:$A$50,0))<>0,INDEX('Acompanhamento das metas 24-27'!$C$2:$C$50,MATCH(B14,'Acompanhamento das metas 24-27'!$A$2:$A$50,0)),"") -> Elaboração de ao menos 01 estudo | E14: =IF(VLOOKUP(A14,Financeiro[[id_ação_Fonte_oculta]:[R$ Executado (2027)]],4,FALSE)=0,"",VLOOKUP(A14,Financeiro[[id_ação_Fonte_oculta]:[R$ Executado (2027)]],4,FALSE)) -> FEHIDRO - Cobrança estadual | F14: =IF(VLOOKUP(A14,Financeiro[[id_ação_Fonte_oculta]:[R$ Executado (2027)]],4,FALSE)=0,"",VLOOKUP(A14,Financeiro[[id_ação_Fonte_oculta]:[R$ Executado (2027)]],5,FALSE)) -> 0 | G14: =IF(VLOOKUP(A14,Financeiro[[id_ação_Fonte_oculta]:[R$ Executado (2027)]],4,FALSE)=0,"",VLOOKUP(A14,Financeiro[[id_ação_Fonte_oculta]:[R$ Executado (2027)]],8,FALSE)) -> 1000000 | H14: =IF(VLOOKUP(A14,Financeiro[[id_ação_Fonte_oculta]:[R$ Executado (2027)]],4,FALSE)=0,"",VLOOKUP(A14,Financeiro[[id_ação_Fonte_oculta]:[R$ Executado (2027)]],11,FALSE)) -> 1000000 | I14: =IF(VLOOKUP(A14,Financeiro[[id_ação_Fonte_oculta]:[R$ Executado (2027)]],4,FALSE)=0,"",VLOOKUP(A14,Financeiro[[id_ação_Fonte_oculta]:[R$ Executado (2027)]],14,FALSE)) -> 1000000 | J14: 3000000 | K14: =IFERROR(INDEX(IdentAcoes[SubPDC],MATCH(B14,IdentAcoes[ID Ação],0)),"") -> 1.2 - Planejamento | L14: =IFERROR(INDEX(IdentAcoes[Prioridade do PDC],MATCH(B14,IdentAcoes[ID Ação],0)),"") -> PDC 1 e 2 | M14: =IFERROR(INDEX(IdentAcoes[Segmento do executor],MATCH($B14,IdentAcoes[ID Ação],0)),"") -> Município | N14: =IFERROR(INDEX(IdentAcoes[Área de abrangência],MATCH($B14,IdentAcoes[ID Ação],0)),"") -> Município | O14: =IFERROR(INDEX(IdentAcoes[Detalhamento da área de abrangência],MATCH($B14,IdentAcoes[ID Ação],0)),"") -> Municípios observando as prioridades no Plano de Bacias
A15: PCJ1.1.2.2/2025FEHIDRO - Cobrança estadual | B15: PCJ1.1.2.2/2025 | C15: =INDEX(Financeiro[Descrição da ação],MATCH(B15,Financeiro[ID Ação], 0)) -> Elaboração de estudos para a implantação de novas ETEs visando tratamento secundário | D15: =IF(INDEX('Acompanhamento das metas 24-27'!$C$2:$C$50,MATCH(B15,'Acompanhamento das metas 24-27'!$A$2:$A$50,0))<>0,INDEX('Acompanhamento das metas 24-27'!$C$2:$C$50,MATCH(B15,'Acompanhamento das metas 24-27'!$A$2:$A$50,0)),"") -> Elaboração de ao menos 01 estudo | E15: =IF(VLOOKUP(A15,Financeiro[[id_ação_Fonte_oculta]:[R$ Executado (2027)]],4,FALSE)=0,"",VLOOKUP(A15,Financeiro[[id_ação_Fonte_oculta]:[R$ Executado (2027)]],4,FALSE)) -> FEHIDRO - Cobrança estadual | F15: =IF(VLOOKUP(A15,Financeiro[[id_ação_Fonte_oculta]:[R$ Executado (2027)]],4,FALSE)=0,"",VLOOKUP(A15,Financeiro[[id_ação_Fonte_oculta]:[R$ Executado (2027)]],5,FALSE)) -> 0 | G15: =IF(VLOOKUP(A15,Financeiro[[id_ação_Fonte_oculta]:[R$ Executado (2027)]],4,FALSE)=0,"",VLOOKUP(A15,Financeiro[[id_ação_Fonte_oculta]:[R$ Executado (2027)]],8,FALSE)) -> 1000000 | H15: =IF(VLOOKUP(A15,Financeiro[[id_ação_Fonte_oculta]:[R$ Executado (2027)]],4,FALSE)=0,"",VLOOKUP(A15,Financeiro[[id_ação_Fonte_oculta]:[R$ Executado (2027)]],11,FALSE)) -> 750000 | I15: =IF(VLOOKUP(A15,Financeiro[[id_ação_Fonte_oculta]:[R$ Executado (2027)]],4,FALSE)=0,"",VLOOKUP(A15,Financeiro[[id_ação_Fonte_oculta]:[R$ Executado (2027)]],14,FALSE)) -> 700000 | J15: 2450000 | K15: =IFERROR(INDEX(IdentAcoes[SubPDC],MATCH(B15,IdentAcoes[ID Ação],0)),"") -> 1.2 - Planejamento | L15: =IFERROR(INDEX(IdentAcoes[Prioridade do PDC],MATCH(B15,IdentAcoes[ID Ação],0)),"") -> PDC 1 e 2 | M15: =IFERROR(INDEX(IdentAcoes[Segmento do executor],MATCH($B15,IdentAcoes[ID Ação],0)),"") -> Município | N15: =IFERROR(INDEX(IdentAcoes[Área de abrangência],MATCH($B15,IdentAcoes[ID Ação],0)),"") -> Município | O15: =IFERROR(INDEX(IdentAcoes[Detalhamento da área de abrangência],MATCH($B15,IdentAcoes[ID Ação],0)),"") -> Municípios observando as prioridades para tratamento no Plano de Bacias
A16: PCJ1.2.1.1/2025FEHIDRO - Cobrança estadual | B16: PCJ1.2.1.1/2025 | C16: =INDEX(Financeiro[Descrição da ação],MATCH(B16,Financeiro[ID Ação], 0)) -> Elaboração de estudos de melhorias da eficiência das ETEs na remoção de nutrientes | D16: =IF(INDEX('Acompanhamento das metas 24-27'!$C$2:$C$50,MATCH(B16,'Acompanhamento das metas 24-27'!$A$2:$A$50,0))<>0,INDEX('Acompanhamento das metas 24-27'!$C$2:$C$50,MATCH(B16,'Acompanhamento das metas 24-27'!$A$2:$A$50,0)),"") -> Elaboração de ao menos 01 estudo | E16: =IF(VLOOKUP(A16,Financeiro[[id_ação_Fonte_oculta]:[R$ Executado (2027)]],4,FALSE)=0,"",VLOOKUP(A16,Financeiro[[id_ação_Fonte_oculta]:[R$ Executado (2027)]],4,FALSE)) -> FEHIDRO - Cobrança estadual | F16: =IF(VLOOKUP(A16,Financeiro[[id_ação_Fonte_oculta]:[R$ Executado (2027)]],4,FALSE)=0,"",VLOOKUP(A16,Financeiro[[id_ação_Fonte_oculta]:[R$ Executado (2027)]],5,FALSE)) -> 0 | G16: =IF(VLOOKUP(A16,Financeiro[[id_ação_Fonte_oculta]:[R$ Executado (2027)]],4,FALSE)=0,"",VLOOKUP(A16,Financeiro[[id_ação_Fonte_oculta]:[R$ Executado (2027)]],8,FALSE)) -> 1000000 | H16: =IF(VLOOKUP(A16,Financeiro[[id_ação_Fonte_oculta]:[R$ Executado (2027)]],4,FALSE)=0,"",VLOOKUP(A16,Financeiro[[id_ação_Fonte_oculta]:[R$ Executado (2027)]],11,FALSE)) -> 1000000 | I16: =IF(VLOOKUP(A16,Financeiro[[id_ação_Fonte_oculta]:[R$ Executado (2027)]],4,FALSE)=0,"",VLOOKUP(A16,Financeiro[[id_ação_Fonte_oculta]:[R$ Executado (2027)]],14,FALSE)) -> 1500000 | J16: 3500000 | K16: =IFERROR(INDEX(IdentAcoes[SubPDC],MATCH(B16,IdentAcoes[ID Ação],0)),"") -> 1.2 - Planejamento | L16: =IFERROR(INDEX(IdentAcoes[Prioridade do PDC],MATCH(B16,IdentAcoes[ID Ação],0)),"") -> PDC 1 e 2 | M16: =IFERROR(INDEX(IdentAcoes[Segmento do executor],MATCH($B16,IdentAcoes[ID Ação],0)),"") -> Município | N16: =IFERROR(INDEX(IdentAcoes[Área de abrangência],MATCH($B16,IdentAcoes[ID Ação],0)),"") -> Município | O16: =IFERROR(INDEX(IdentAcoes[Detalhamento da área de abrangência],MATCH($B16,IdentAcoes[ID Ação],0)),"") -> Municípios observando as prioridades para remoção de nitrogênio e fósforo, no Plano de Bacias
A17: PCJ1.1.2.4/2024FEHIDRO - Cobrança estadual | B17: PCJ1.1.2.4/2024 | C17: =INDEX(Financeiro[Descrição da ação],MATCH(B17,Financeiro[ID Ação], 0)) -> Elaboração de estudos e relatórios visando o licenciamento das ETEs projetadas | D17: =IF(INDEX('Acompanhamento das metas 24-27'!$C$2:$C$50,MATCH(B17,'Acompanhamento das metas 24-27'!$A$2:$A$50,0))<>0,INDEX('Acompanhamento das metas 24-27'!$C$2:$C$50,MATCH(B17,'Acompanhamento das metas 24-27'!$A$2:$A$50,0)),"") -> Elaboração de ao menos 01 estudo | E17: =IF(VLOOKUP(A17,Financeiro[[id_ação_Fonte_oculta]:[R$ Executado (2027)]],4,FALSE)=0,"",VLOOKUP(A17,Financeiro[[id_ação_Fonte_oculta]:[R$ Executado (2027)]],4,FALSE)) -> FEHIDRO - Cobrança estadual | F17: =IF(VLOOKUP(A17,Financeiro[[id_ação_Fonte_oculta]:[R$ Executado (2027)]],4,FALSE)=0,"",VLOOKUP(A17,Financeiro[[id_ação_Fonte_oculta]:[R$ Executado (2027)]],5,FALSE)) -> 0 | G17: =IF(VLOOKUP(A17,Financeiro[[id_ação_Fonte_oculta]:[R$ Executado (2027)]],4,FALSE)=0,"",VLOOKUP(A17,Financeiro[[id_ação_Fonte_oculta]:[R$ Executado (2027)]],8,FALSE)) -> 0 | H17: =IF(VLOOKUP(A17,Financeiro[[id_ação_Fonte_oculta]:[R$ Executado (2027)]],4,FALSE)=0,"",VLOOKUP(A17,Financeiro[[id_ação_Fonte_oculta]:[R$ Executado (2027)]],11,FALSE)) -> 0 | I17: =IF(VLOOKUP(A17,Financeiro[[id_ação_Fonte_oculta]:[R$ Executado (2027)]],4,FALSE)=0,"",VLOOKUP(A17,Financeiro[[id_ação_Fonte_oculta]:[R$ Executado (2027)]],14,FALSE)) -> 0 | J17: 0 | K17: =IFERROR(INDEX(IdentAcoes[SubPDC],MATCH(B17,IdentAcoes[ID Ação],0)),"") -> 1.2 - Planejamento | L17: =IFERROR(INDEX(IdentAcoes[Prioridade do PDC],MATCH(B17,IdentAcoes[ID Ação],0)),"") -> PDC 1 e 2 | M17: =IFERROR(INDEX(IdentAcoes[Segmento do executor],MATCH($B17,IdentAcoes[ID Ação],0)),"") -> Município | N17: =IFERROR(INDEX(IdentAcoes[Área de abrangência],MATCH($B17,IdentAcoes[ID Ação],0)),"") -> Município | O17: =IFERROR(INDEX(IdentAcoes[Detalhamento da área de abrangência],MATCH($B17,IdentAcoes[ID Ação],0)),"") -> Municípios observando as prioridades no Plano de Bacias
A18: PCJ1.2.1.7/2024FEHIDRO - Cobrança estadual | B18: PCJ1.2.1.7/2024 | C18: =INDEX(Financeiro[Descrição da ação],MATCH(B18,Financeiro[ID Ação], 0)) -> Elaboração e revisão de planos municipais de saneamento básico | D18: =IF(INDEX('Acompanhamento das metas 24-27'!$C$2:$C$50,MATCH(B18,'Acompanhamento das metas 24-27'!$A$2:$A$50,0))<>0,INDEX('Acompanhamento das metas 24-27'!$C$2:$C$50,MATCH(B18,'Acompanhamento das metas 24-27'!$A$2:$A$50,0)),"") -> Ao menos 05 planos revisados/elaborados | E18: =IF(VLOOKUP(A18,Financeiro[[id_ação_Fonte_oculta]:[R$ Executado (2027)]],4,FALSE)=0,"",VLOOKUP(A18,Financeiro[[id_ação_Fonte_oculta]:[R$ Executado (2027)]],4,FALSE)) -> FEHIDRO - Cobrança estadual | F18: =IF(VLOOKUP(A18,Financeiro[[id_ação_Fonte_oculta]:[R$ Executado (2027)]],4,FALSE)=0,"",VLOOKUP(A18,Financeiro[[id_ação_Fonte_oculta]:[R$ Executado (2027)]],5,FALSE)) -> 2500000 | G18: =IF(VLOOKUP(A18,Financeiro[[id_ação_Fonte_oculta]:[R$ Executado (2027)]],4,FALSE)=0,"",VLOOKUP(A18,Financeiro[[id_ação_Fonte_oculta]:[R$ Executado (2027)]],8,FALSE)) -> 1750000 | H18: =IF(VLOOKUP(A18,Financeiro[[id_ação_Fonte_oculta]:[R$ Executado (2027)]],4,FALSE)=0,"",VLOOKUP(A18,Financeiro[[id_ação_Fonte_oculta]:[R$ Executado (2027)]],11,FALSE)) -> 1750000 | I18: =IF(VLOOKUP(A18,Financeiro[[id_ação_Fonte_oculta]:[R$ Executado (2027)]],4,FALSE)=0,"",VLOOKUP(A18,Financeiro[[id_ação_Fonte_oculta]:[R$ Executado (2027)]],14,FALSE)) -> 1750000 | J18: 7750000 | K18: =IFERROR(INDEX(IdentAcoes[SubPDC],MATCH(B18,IdentAcoes[ID Ação],0)),"") -> 1.2 - Planejamento | L18: =IFERROR(INDEX(IdentAcoes[Prioridade do PDC],MATCH(B18,IdentAcoes[ID Ação],0)),"") -> PDC 1 e 2 | M18: =IFERROR(INDEX(IdentAcoes[Segmento do executor],MATCH($B18,IdentAcoes[ID Ação],0)),"") -> Município | N18: =IFERROR(INDEX(IdentAcoes[Área de abrangência],MATCH($B18,IdentAcoes[ID Ação],0)),"") -> Município | O18: =IFERROR(INDEX(IdentAcoes[Detalhamento da área de abrangência],MATCH($B18,IdentAcoes[ID Ação],0)),"") -> Municípios observando as prioridades no Plano de Bacias
A19: PCJ2.3.2.1/2024FEHIDRO - Cobrança estadual | B19: PCJ2.3.2.1/2024 | C19: =INDEX(Financeiro[Descrição da ação],MATCH(B19,Financeiro[ID Ação], 0)) -> Elaboração e revisão de Planos de Controle e Redução de Perdas | D19: =IF(INDEX('Acompanhamento das metas 24-27'!$C$2:$C$50,MATCH(B19,'Acompanhamento das metas 24-27'!$A$2:$A$50,0))<>0,INDEX('Acompanhamento das metas 24-27'!$C$2:$C$50,MATCH(B19,'Acompanhamento das metas 24-27'!$A$2:$A$50,0)),"") -> Ao menos 05 planos revisados/elaborados | E19: =IF(VLOOKUP(A19,Financeiro[[id_ação_Fonte_oculta]:[R$ Executado (2027)]],4,FALSE)=0,"",VLOOKUP(A19,Financeiro[[id_ação_Fonte_oculta]:[R$ Executado (2027)]],4,FALSE)) -> FEHIDRO - Cobrança estadual | F19: =IF(VLOOKUP(A19,Financeiro[[id_ação_Fonte_oculta]:[R$ Executado (2027)]],4,FALSE)=0,"",VLOOKUP(A19,Financeiro[[id_ação_Fonte_oculta]:[R$ Executado (2027)]],5,FALSE)) -> 1500000 | G19: =IF(VLOOKUP(A19,Financeiro[[id_ação_Fonte_oculta]:[R$ Executado (2027)]],4,FALSE)=0,"",VLOOKUP(A19,Financeiro[[id_ação_Fonte_oculta]:[R$ Executado (2027)]],8,FALSE)) -> 1750000 | H19: =IF(VLOOKUP(A19,Financeiro[[id_ação_Fonte_oculta]:[R$ Executado (2027)]],4,FALSE)=0,"",VLOOKUP(A19,Financeiro[[id_ação_Fonte_oculta]:[R$ Executado (2027)]],11,FALSE)) -> 1250000 | I19: =IF(VLOOKUP(A19,Financeiro[[id_ação_Fonte_oculta]:[R$ Executado (2027)]],4,FALSE)=0,"",VLOOKUP(A19,Financeiro[[id_ação_Fonte_oculta]:[R$ Executado (2027)]],14,FALSE)) -> 1250000 | J19: 5750000 | K19: =IFERROR(INDEX(IdentAcoes[SubPDC],MATCH(B19,IdentAcoes[ID Ação],0)),"") -> 1.2 - Planejamento | L19: =IFERROR(INDEX(IdentAcoes[Prioridade do PDC],MATCH(B19,IdentAcoes[ID Ação],0)),"") -> PDC 1 e 2 | M19: =IFERROR(INDEX(IdentAcoes[Segmento do executor],MATCH($B19,IdentAcoes[ID Ação],0)),"") -> Município | N19: =IFERROR(INDEX(IdentAcoes[Área de abrangência],MATCH($B19,IdentAcoes[ID Ação],0)),"") -> Município | O19: =IFERROR(INDEX(IdentAcoes[Detalhamento da área de abrangência],MATCH($B19,IdentAcoes[ID Ação],0)),"") -> Municípios observando as prioridades no Plano de Bacias
A20: PCJ2.2.4.1/2024FEHIDRO - Cobrança estadual | B20: PCJ2.2.4.1/2024 | C20: =INDEX(Financeiro[Descrição da ação],MATCH(B20,Financeiro[ID Ação], 0)) -> Desenvolvimento de estudo de alternativas de aumento da disponibilidade hídrica nas sub-bacias dos rios Atibaia, Jundiaí e Capivari | D20: =IF(INDEX('Acompanhamento das metas 24-27'!$C$2:$C$50,MATCH(B20,'Acompanhamento das metas 24-27'!$A$2:$A$50,0))<>0,INDEX('Acompanhamento das metas 24-27'!$C$2:$C$50,MATCH(B20,'Acompanhamento das metas 24-27'!$A$2:$A$50,0)),"") -> Ao menos 01 estudo elaborado | E20: =IF(VLOOKUP(A20,Financeiro[[id_ação_Fonte_oculta]:[R$ Executado (2027)]],4,FALSE)=0,"",VLOOKUP(A20,Financeiro[[id_ação_Fonte_oculta]:[R$ Executado (2027)]],4,FALSE)) -> FEHIDRO - Cobrança estadual | F20: =IF(VLOOKUP(A20,Financeiro[[id_ação_Fonte_oculta]:[R$ Executado (2027)]],4,FALSE)=0,"",VLOOKUP(A20,Financeiro[[id_ação_Fonte_oculta]:[R$ Executado (2027)]],5,FALSE)) -> 1500000 | G20: =IF(VLOOKUP(A20,Financeiro[[id_ação_Fonte_oculta]:[R$ Executado (2027)]],4,FALSE)=0,"",VLOOKUP(A20,Financeiro[[id_ação_Fonte_oculta]:[R$ Executado (2027)]],8,FALSE)) -> 0 | H20: =IF(VLOOKUP(A20,Financeiro[[id_ação_Fonte_oculta]:[R$ Executado (2027)]],4,FALSE)=0,"",VLOOKUP(A20,Financeiro[[id_ação_Fonte_oculta]:[R$ Executado (2027)]],11,FALSE)) -> 0 | I20: =IF(VLOOKUP(A20,Financeiro[[id_ação_Fonte_oculta]:[R$ Executado (2027)]],4,FALSE)=0,"",VLOOKUP(A20,Financeiro[[id_ação_Fonte_oculta]:[R$ Executado (2027)]],14,FALSE)) -> 0 | J20: 1500000 | K20: =IFERROR(INDEX(IdentAcoes[SubPDC],MATCH(B20,IdentAcoes[ID Ação],0)),"") -> 1.2 - Planejamento | L20: =IFERROR(INDEX(IdentAcoes[Prioridade do PDC],MATCH(B20,IdentAcoes[ID Ação],0)),"") -> PDC 1 e 2 | M20: =IFERROR(INDEX(IdentAcoes[Segmento do executor],MATCH($B20,IdentAcoes[ID Ação],0)),"") -> Sociedade Civil | N20: =IFERROR(INDEX(IdentAcoes[Área de abrangência],MATCH($B20,IdentAcoes[ID Ação],0)),"") -> Sub-bacia | O20: =IFERROR(INDEX(IdentAcoes[Detalhamento da área de abrangência],MATCH($B20,IdentAcoes[ID Ação],0)),"") -> Sub-bacias Atibaia, Jundiaí e Capivari
A21: PCJ4.2.1.1/2026FEHIDRO - Cobrança estadual | B21: PCJ4.2.1.1/2026 | C21: =INDEX(Financeiro[Descrição da ação],MATCH(B21,Financeiro[ID Ação], 0)) -> Desenvolver estudo regional hidrogeológico nas Bacias PCJ | D21: =IF(INDEX('Acompanhamento das metas 24-27'!$C$2:$C$50,MATCH(B21,'Acompanhamento das metas 24-27'!$A$2:$A$50,0))<>0,INDEX('Acompanhamento das metas 24-27'!$C$2:$C$50,MATCH(B21,'Acompanhamento das metas 24-27'!$A$2:$A$50,0)),"") -> 1. Desenvolvimento de termos de referência com arranjos institucionais e operacionais definidos; 2. Estudo desenvolvido e incorporado às práticas de gestão; 3. Validação por parte da CT-AS. | E21: =IF(VLOOKUP(A21,Financeiro[[id_ação_Fonte_oculta]:[R$ Executado (2027)]],4,FALSE)=0,"",VLOOKUP(A21,Financeiro[[id_ação_Fonte_oculta]:[R$ Executado (2027)]],4,FALSE)) -> FEHIDRO - Cobrança estadual | F21: =IF(VLOOKUP(A21,Financeiro[[id_ação_Fonte_oculta]:[R$ Executado (2027)]],4,FALSE)=0,"",VLOOKUP(A21,Financeiro[[id_ação_Fonte_oculta]:[R$ Executado (2027)]],5,FALSE)) -> 0 | G21: =IF(VLOOKUP(A21,Financeiro[[id_ação_Fonte_oculta]:[R$ Executado (2027)]],4,FALSE)=0,"",VLOOKUP(A21,Financeiro[[id_ação_Fonte_oculta]:[R$ Executado (2027)]],8,FALSE)) -> 0 | H21: =IF(VLOOKUP(A21,Financeiro[[id_ação_Fonte_oculta]:[R$ Executado (2027)]],4,FALSE)=0,"",VLOOKUP(A21,Financeiro[[id_ação_Fonte_oculta]:[R$ Executado (2027)]],11,FALSE)) -> 2000000 | I21: =IF(VLOOKUP(A21,Financeiro[[id_ação_Fonte_oculta]:[R$ Executado (2027)]],4,FALSE)=0,"",VLOOKUP(A21,Financeiro[[id_ação_Fonte_oculta]:[R$ Executado (2027)]],14,FALSE)) -> 0 | J21: 2000000 | K21: =IFERROR(INDEX(IdentAcoes[SubPDC],MATCH(B21,IdentAcoes[ID Ação],0)),"") -> 1.2 - Planejamento | L21: =IFERROR(INDEX(IdentAcoes[Prioridade do PDC],MATCH(B21,IdentAcoes[ID Ação],0)),"") -> PDC 1 e 2 | M21: =IFERROR(INDEX(IdentAcoes[Segmento do executor],MATCH($B21,IdentAcoes[ID Ação],0)),"") -> Sociedade Civil | N21: =IFERROR(INDEX(IdentAcoes[Área de abrangência],MATCH($B21,IdentAcoes[ID Ação],0)),"") -> Bacia | O21: =IFERROR(INDEX(IdentAcoes[Detalhamento da área de abrangência],MATCH($B21,IdentAcoes[ID Ação],0)),"") -> Bacias PCJ
A22: PCJ4.2.1.2/2026FEHIDRO - Cobrança estadual | B22: PCJ4.2.1.2/2026 | C22: =INDEX(Financeiro[Descrição da ação],MATCH(B22,Financeiro[ID Ação], 0)) -> Desenvolvimento de estudo para estimativa de balanços hídricos e recargas nas Bacias PCJ | D22: =IF(INDEX('Acompanhamento das metas 24-27'!$C$2:$C$50,MATCH(B22,'Acompanhamento das metas 24-27'!$A$2:$A$50,0))<>0,INDEX('Acompanhamento das metas 24-27'!$C$2:$C$50,MATCH(B22,'Acompanhamento das metas 24-27'!$A$2:$A$50,0)),"") -> 1. Termos de referência desenvolvidos com arranjos institucionais e operacionais definidos; 2. Estudo desenvolvido e incorporado às práticas de gestão; 3. Validação por parte da CT-AS | E22: =IF(VLOOKUP(A22,Financeiro[[id_ação_Fonte_oculta]:[R$ Executado (2027)]],4,FALSE)=0,"",VLOOKUP(A22,Financeiro[[id_ação_Fonte_oculta]:[R$ Executado (2027)]],4,FALSE)) -> FEHIDRO - Cobrança estadual | F22: =IF(VLOOKUP(A22,Financeiro[[id_ação_Fonte_oculta]:[R$ Executado (2027)]],4,FALSE)=0,"",VLOOKUP(A22,Financeiro[[id_ação_Fonte_oculta]:[R$ Executado (2027)]],5,FALSE)) -> 0 | G22: =IF(VLOOKUP(A22,Financeiro[[id_ação_Fonte_oculta]:[R$ Executado (2027)]],4,FALSE)=0,"",VLOOKUP(A22,Financeiro[[id_ação_Fonte_oculta]:[R$ Executado (2027)]],8,FALSE)) -> 0 | H22: =IF(VLOOKUP(A22,Financeiro[[id_ação_Fonte_oculta]:[R$ Executado (2027)]],4,FALSE)=0,"",VLOOKUP(A22,Financeiro[[id_ação_Fonte_oculta]:[R$ Executado (2027)]],11,FALSE)) -> 2250000 | I22: =IF(VLOOKUP(A22,Financeiro[[id_ação_Fonte_oculta]:[R$ Executado (2027)]],4,FALSE)=0,"",VLOOKUP(A22,Financeiro[[id_ação_Fonte_oculta]:[R$ Executado (2027)]],14,FALSE)) -> 0 | J22: 2250000 | K22: =IFERROR(INDEX(IdentAcoes[SubPDC],MATCH(B22,IdentAcoes[ID Ação],0)),"") -> 1.2 - Planejamento | L22: =IFERROR(INDEX(IdentAcoes[Prioridade do PDC],MATCH(B22,IdentAcoes[ID Ação],0)),"") -> PDC 1 e 2 | M22: =IFERROR(INDEX(IdentAcoes[Segmento do executor],MATCH($B22,IdentAcoes[ID Ação],0)),"") -> Sociedade Civil | N22: =IFERROR(INDEX(IdentAcoes[Área de abrangência],MATCH($B22,IdentAcoes[ID Ação],0)),"") -> Bacia | O22: =IFERROR(INDEX(IdentAcoes[Detalhamento da área de abrangência],MATCH($B22,IdentAcoes[ID Ação],0)),"") -> Bacias PCJ
A23: PCJ4.2.1.3/2027FEHIDRO - Cobrança estadual | B23: PCJ4.2.1.3/2027 | C23: =INDEX(Financeiro[Descrição da ação],MATCH(B23,Financeiro[ID Ação], 0)) -> Delimitar as principais áreas de recarga e estabelecer diretrizes de proteção | D23: =IF(INDEX('Acompanhamento das metas 24-27'!$C$2:$C$50,MATCH(B23,'Acompanhamento das metas 24-27'!$A$2:$A$50,0))<>0,INDEX('Acompanhamento das metas 24-27'!$C$2:$C$50,MATCH(B23,'Acompanhamento das metas 24-27'!$A$2:$A$50,0)),"") -> 1. Termos de referência desenvolvidos com arranjos operacionais definidos; 2. Estudo desenvolvido com mapas e diretrizes de proteção; 3. Validação por parte da CT-AS | E23: =IF(VLOOKUP(A23,Financeiro[[id_ação_Fonte_oculta]:[R$ Executado (2027)]],4,FALSE)=0,"",VLOOKUP(A23,Financeiro[[id_ação_Fonte_oculta]:[R$ Executado (2027)]],4,FALSE)) -> FEHIDRO - Cobrança estadual | F23: =IF(VLOOKUP(A23,Financeiro[[id_ação_Fonte_oculta]:[R$ Executado (2027)]],4,FALSE)=0,"",VLOOKUP(A23,Financeiro[[id_ação_Fonte_oculta]:[R$ Executado (2027)]],5,FALSE)) -> 0 | G23: =IF(VLOOKUP(A23,Financeiro[[id_ação_Fonte_oculta]:[R$ Executado (2027)]],4,FALSE)=0,"",VLOOKUP(A23,Financeiro[[id_ação_Fonte_oculta]:[R$ Executado (2027)]],8,FALSE)) -> 0 | H23: =IF(VLOOKUP(A23,Financeiro[[id_ação_Fonte_oculta]:[R$ Executado (2027)]],4,FALSE)=0,"",VLOOKUP(A23,Financeiro[[id_ação_Fonte_oculta]:[R$ Executado (2027)]],11,FALSE)) -> 0 | I23: =IF(VLOOKUP(A23,Financeiro[[id_ação_Fonte_oculta]:[R$ Executado (2027)]],4,FALSE)=0,"",VLOOKUP(A23,Financeiro[[id_ação_Fonte_oculta]:[R$ Executado (2027)]],14,FALSE)) -> 2550000 | J23: 2550000 | K23: =IFERROR(INDEX(IdentAcoes[SubPDC],MATCH(B23,IdentAcoes[ID Ação],0)),"") -> 1.2 - Planejamento | L23: =IFERROR(INDEX(IdentAcoes[Prioridade do PDC],MATCH(B23,IdentAcoes[ID Ação],0)),"") -> PDC 1 e 2 | M23: =IFERROR(INDEX(IdentAcoes[Segmento do executor],MATCH($B23,IdentAcoes[ID Ação],0)),"") -> Sociedade Civil | N23: =IFERROR(INDEX(IdentAcoes[Área de abrangência],MATCH($B23,IdentAcoes[ID Ação],0)),"") -> Bacia | O23: =IFERROR(INDEX(IdentAcoes[Detalhamento da área de abrangência],MATCH($B23,IdentAcoes[ID Ação],0)),"") -> Bacias PCJ
A24: PCJ4.2.2.1/2027FEHIDRO - Cobrança estadual | B24: PCJ4.2.2.1/2027 | C24: =INDEX(Financeiro[Descrição da ação],MATCH(B24,Financeiro[ID Ação], 0)) -> Elaboração do estudo hidrogeológico do aquífero Tubarão | D24: =IF(INDEX('Acompanhamento das metas 24-27'!$C$2:$C$50,MATCH(B24,'Acompanhamento das metas 24-27'!$A$2:$A$50,0))<>0,INDEX('Acompanhamento das metas 24-27'!$C$2:$C$50,MATCH(B24,'Acompanhamento das metas 24-27'!$A$2:$A$50,0)),"") -> 1. Realizar levantamentos e diagnósticos; 2. Definir e atualizar o modelo hidrogeológico conceitual; 3. Desenvolver modelos matemáticos; 4. Propor diretrizes para gestão de água subterrânea | E24: =IF(VLOOKUP(A24,Financeiro[[id_ação_Fonte_oculta]:[R$ Executado (2027)]],4,FALSE)=0,"",VLOOKUP(A24,Financeiro[[id_ação_Fonte_oculta]:[R$ Executado (2027)]],4,FALSE)) -> FEHIDRO - Cobrança estadual | F24: =IF(VLOOKUP(A24,Financeiro[[id_ação_Fonte_oculta]:[R$ Executado (2027)]],4,FALSE)=0,"",VLOOKUP(A24,Financeiro[[id_ação_Fonte_oculta]:[R$ Executado (2027)]],5,FALSE)) -> 0 | G24: =IF(VLOOKUP(A24,Financeiro[[id_ação_Fonte_oculta]:[R$ Executado (2027)]],4,FALSE)=0,"",VLOOKUP(A24,Financeiro[[id_ação_Fonte_oculta]:[R$ Executado (2027)]],8,FALSE)) -> 0 | H24: =IF(VLOOKUP(A24,Financeiro[[id_ação_Fonte_oculta]:[R$ Executado (2027)]],4,FALSE)=0,"",VLOOKUP(A24,Financeiro[[id_ação_Fonte_oculta]:[R$ Executado (2027)]],11,FALSE)) -> 0 | I24: =IF(VLOOKUP(A24,Financeiro[[id_ação_Fonte_oculta]:[R$ Executado (2027)]],4,FALSE)=0,"",VLOOKUP(A24,Financeiro[[id_ação_Fonte_oculta]:[R$ Executado (2027)]],14,FALSE)) -> 1200000 | J24: 1200000 | K24: =IFERROR(INDEX(IdentAcoes[SubPDC],MATCH(B24,IdentAcoes[ID Ação],0)),"") -> 1.2 - Planejamento | L24: =IFERROR(INDEX(IdentAcoes[Prioridade do PDC],MATCH(B24,IdentAcoes[ID Ação],0)),"") -> PDC 1 e 2 | M24: =IFERROR(INDEX(IdentAcoes[Segmento do executor],MATCH($B24,IdentAcoes[ID Ação],0)),"") -> Sociedade Civil | N24: =IFERROR(INDEX(IdentAcoes[Área de abrangência],MATCH($B24,IdentAcoes[ID Ação],0)),"") -> Bacia | O24: =IFERROR(INDEX(IdentAcoes[Detalhamento da área de abrangência],MATCH($B24,IdentAcoes[ID Ação],0)),"") -> Bacias PCJ
A25: PCJ6.3.1.4/2025FEHIDRO - Cobrança estadual | B25: PCJ6.3.1.4/2025 | C25: =INDEX(Financeiro[Descrição da ação],MATCH(B25,Financeiro[ID Ação], 0)) -> Estabelecer parcerias para pesquisa com universidade e institutos | D25: =IF(INDEX('Acompanhamento das metas 24-27'!$C$2:$C$50,MATCH(B25,'Acompanhamento das metas 24-27'!$A$2:$A$50,0))<>0,INDEX('Acompanhamento das metas 24-27'!$C$2:$C$50,MATCH(B25,'Acompanhamento das metas 24-27'!$A$2:$A$50,0)),"") -> Ao menos 01 parceria firmada | E25: =IF(VLOOKUP(A25,Financeiro[[id_ação_Fonte_oculta]:[R$ Executado (2027)]],4,FALSE)=0,"",VLOOKUP(A25,Financeiro[[id_ação_Fonte_oculta]:[R$ Executado (2027)]],4,FALSE)) -> FEHIDRO - Cobrança estadual | F25: =IF(VLOOKUP(A25,Financeiro[[id_ação_Fonte_oculta]:[R$ Executado (2027)]],4,FALSE)=0,"",VLOOKUP(A25,Financeiro[[id_ação_Fonte_oculta]:[R$ Executado (2027)]],5,FALSE)) -> 0 | G25: =IF(VLOOKUP(A25,Financeiro[[id_ação_Fonte_oculta]:[R$ Executado (2027)]],4,FALSE)=0,"",VLOOKUP(A25,Financeiro[[id_ação_Fonte_oculta]:[R$ Executado (2027)]],8,FALSE)) -> 71428.56 | H25: =IF(VLOOKUP(A25,Financeiro[[id_ação_Fonte_oculta]:[R$ Executado (2027)]],4,FALSE)=0,"",VLOOKUP(A25,Financeiro[[id_ação_Fonte_oculta]:[R$ Executado (2027)]],11,FALSE)) -> 0 | I25: =IF(VLOOKUP(A25,Financeiro[[id_ação_Fonte_oculta]:[R$ Executado (2027)]],4,FALSE)=0,"",VLOOKUP(A25,Financeiro[[id_ação_Fonte_oculta]:[R$ Executado (2027)]],14,FALSE)) -> 0 | J25: 71428.56 | K25: =IFERROR(INDEX(IdentAcoes[SubPDC],MATCH(B25,IdentAcoes[ID Ação],0)),"") -> 1.2 - Planejamento | L25: =IFERROR(INDEX(IdentAcoes[Prioridade do PDC],MATCH(B25,IdentAcoes[ID Ação],0)),"") -> PDC 1 e 2 | M25: =IFERROR(INDEX(IdentAcoes[Segmento do executor],MATCH($B25,IdentAcoes[ID Ação],0)),"") -> Sociedade Civil | N25: =IFERROR(INDEX(IdentAcoes[Área de abrangência],MATCH($B25,IdentAcoes[ID Ação],0)),"") -> Bacia | O25: =IFERROR(INDEX(IdentAcoes[Detalhamento da área de abrangência],MATCH($B25,IdentAcoes[ID Ação],0)),"") -> Bacias PCJ
A26: PCJ4.1.1.2/2027FEHIDRO - Cobrança estadual | B26: PCJ4.1.1.2/2027 | C26: =INDEX(Financeiro[Descrição da ação],MATCH(B26,Financeiro[ID Ação], 0)) -> Desenvolvimento de banco de dados de poços e suporte à decisão | D26: =IF(INDEX('Acompanhamento das metas 24-27'!$C$2:$C$50,MATCH(B26,'Acompanhamento das metas 24-27'!$A$2:$A$50,0))<>0,INDEX('Acompanhamento das metas 24-27'!$C$2:$C$50,MATCH(B26,'Acompanhamento das metas 24-27'!$A$2:$A$50,0)),"") -> Ao menos 01 banco de dados | E26: =IF(VLOOKUP(A26,Financeiro[[id_ação_Fonte_oculta]:[R$ Executado (2027)]],4,FALSE)=0,"",VLOOKUP(A26,Financeiro[[id_ação_Fonte_oculta]:[R$ Executado (2027)]],4,FALSE)) -> FEHIDRO - Cobrança estadual | F26: =IF(VLOOKUP(A26,Financeiro[[id_ação_Fonte_oculta]:[R$ Executado (2027)]],4,FALSE)=0,"",VLOOKUP(A26,Financeiro[[id_ação_Fonte_oculta]:[R$ Executado (2027)]],5,FALSE)) -> 0 | G26: =IF(VLOOKUP(A26,Financeiro[[id_ação_Fonte_oculta]:[R$ Executado (2027)]],4,FALSE)=0,"",VLOOKUP(A26,Financeiro[[id_ação_Fonte_oculta]:[R$ Executado (2027)]],8,FALSE)) -> 0 | H26: =IF(VLOOKUP(A26,Financeiro[[id_ação_Fonte_oculta]:[R$ Executado (2027)]],4,FALSE)=0,"",VLOOKUP(A26,Financeiro[[id_ação_Fonte_oculta]:[R$ Executado (2027)]],11,FALSE)) -> 0 | I26: =IF(VLOOKUP(A26,Financeiro[[id_ação_Fonte_oculta]:[R$ Executado (2027)]],4,FALSE)=0,"",VLOOKUP(A26,Financeiro[[id_ação_Fonte_oculta]:[R$ Executado (2027)]],14,FALSE)) -> 1500000 | J26: 1500000 | K26: =IFERROR(INDEX(IdentAcoes[SubPDC],MATCH(B26,IdentAcoes[ID Ação],0)),"") -> 2.2 - Outorga | L26: =IFERROR(INDEX(IdentAcoes[Prioridade do PDC],MATCH(B26,IdentAcoes[ID Ação],0)),"") -> PDC 1 e 2 | M26: =IFERROR(INDEX(IdentAcoes[Segmento do executor],MATCH($B26,IdentAcoes[ID Ação],0)),"") -> Estado | N26: =IFERROR(INDEX(IdentAcoes[Área de abrangência],MATCH($B26,IdentAcoes[ID Ação],0)),"") -> Bacia | O26: =IFERROR(INDEX(IdentAcoes[Detalhamento da área de abrangência],MATCH($B26,IdentAcoes[ID Ação],0)),"") -> Bacias PCJ
A27: PCJ6.2.5.1/2024FEHIDRO - Cobrança estadual | B27: PCJ6.2.5.1/2024 | C27: =INDEX(Financeiro[Descrição da ação],MATCH(B27,Financeiro[ID Ação], 0)) -> Desenvolvimento de um plano de fiscalização de Outorgas em apoio ao órgão gestor | D27: =IF(INDEX('Acompanhamento das metas 24-27'!$C$2:$C$50,MATCH(B27,'Acompanhamento das metas 24-27'!$A$2:$A$50,0))<>0,INDEX('Acompanhamento das metas 24-27'!$C$2:$C$50,MATCH(B27,'Acompanhamento das metas 24-27'!$A$2:$A$50,0)),"") -> 1. Arranjo institucional formalizado; 2. Plano elaborado e executado; 3. Aumento da agilidade e precisão técnica na concessão de outorgas e maior efetividade da fiscalização | E27: =IF(VLOOKUP(A27,Financeiro[[id_ação_Fonte_oculta]:[R$ Executado (2027)]],4,FALSE)=0,"",VLOOKUP(A27,Financeiro[[id_ação_Fonte_oculta]:[R$ Executado (2027)]],4,FALSE)) -> FEHIDRO - Cobrança estadual | F27: =IF(VLOOKUP(A27,Financeiro[[id_ação_Fonte_oculta]:[R$ Executado (2027)]],4,FALSE)=0,"",VLOOKUP(A27,Financeiro[[id_ação_Fonte_oculta]:[R$ Executado (2027)]],5,FALSE)) -> 0 | G27: =IF(VLOOKUP(A27,Financeiro[[id_ação_Fonte_oculta]:[R$ Executado (2027)]],4,FALSE)=0,"",VLOOKUP(A27,Financeiro[[id_ação_Fonte_oculta]:[R$ Executado (2027)]],8,FALSE)) -> 0 | H27: =IF(VLOOKUP(A27,Financeiro[[id_ação_Fonte_oculta]:[R$ Executado (2027)]],4,FALSE)=0,"",VLOOKUP(A27,Financeiro[[id_ação_Fonte_oculta]:[R$ Executado (2027)]],11,FALSE)) -> 0 | I27: =IF(VLOOKUP(A27,Financeiro[[id_ação_Fonte_oculta]:[R$ Executado (2027)]],4,FALSE)=0,"",VLOOKUP(A27,Financeiro[[id_ação_Fonte_oculta]:[R$ Executado (2027)]],14,FALSE)) -> 0 | J27: 0 | K27: =IFERROR(INDEX(IdentAcoes[SubPDC],MATCH(B27,IdentAcoes[ID Ação],0)),"") -> 2.2 - Outorga | L27: =IFERROR(INDEX(IdentAcoes[Prioridade do PDC],MATCH(B27,IdentAcoes[ID Ação],0)),"") -> PDC 1 e 2 | M27: =IFERROR(INDEX(IdentAcoes[Segmento do executor],MATCH($B27,IdentAcoes[ID Ação],0)),"") -> Estado | N27: =IFERROR(INDEX(IdentAcoes[Área de abrangência],MATCH($B27,IdentAcoes[ID Ação],0)),"") -> Bacia | O27: =IFERROR(INDEX(IdentAcoes[Detalhamento da área de abrangência],MATCH($B27,IdentAcoes[ID Ação],0)),"") -> Bacias PCJ
A28: PCJ6.2.3.2/2026FEHIDRO - Cobrança estadual | B28: PCJ6.2.3.2/2026 | C28: =INDEX(Financeiro[Descrição da ação],MATCH(B28,Financeiro[ID Ação], 0)) -> Monitoramento de chuva, vazão, qualidade e nível de água subterrânea em pequenas bacias hidrográficas | D28: =IF(INDEX('Acompanhamento das metas 24-27'!$C$2:$C$50,MATCH(B28,'Acompanhamento das metas 24-27'!$A$2:$A$50,0))<>0,INDEX('Acompanhamento das metas 24-27'!$C$2:$C$50,MATCH(B28,'Acompanhamento das metas 24-27'!$A$2:$A$50,0)),"") -> 1. Projeto da rede; 2. Implementação da rede; 3. Operação da rede; | E28: =IF(VLOOKUP(A28,Financeiro[[id_ação_Fonte_oculta]:[R$ Executado (2027)]],4,FALSE)=0,"",VLOOKUP(A28,Financeiro[[id_ação_Fonte_oculta]:[R$ Executado (2027)]],4,FALSE)) -> FEHIDRO - Cobrança estadual | F28: =IF(VLOOKUP(A28,Financeiro[[id_ação_Fonte_oculta]:[R$ Executado (2027)]],4,FALSE)=0,"",VLOOKUP(A28,Financeiro[[id_ação_Fonte_oculta]:[R$ Executado (2027)]],5,FALSE)) -> 0 | G28: =IF(VLOOKUP(A28,Financeiro[[id_ação_Fonte_oculta]:[R$ Executado (2027)]],4,FALSE)=0,"",VLOOKUP(A28,Financeiro[[id_ação_Fonte_oculta]:[R$ Executado (2027)]],8,FALSE)) -> 0 | H28: =IF(VLOOKUP(A28,Financeiro[[id_ação_Fonte_oculta]:[R$ Executado (2027)]],4,FALSE)=0,"",VLOOKUP(A28,Financeiro[[id_ação_Fonte_oculta]:[R$ Executado (2027)]],11,FALSE)) -> 1000000 | I28: =IF(VLOOKUP(A28,Financeiro[[id_ação_Fonte_oculta]:[R$ Executado (2027)]],4,FALSE)=0,"",VLOOKUP(A28,Financeiro[[id_ação_Fonte_oculta]:[R$ Executado (2027)]],14,FALSE)) -> 1200000 | J28: 2200000 | K28: =IFERROR(INDEX(IdentAcoes[SubPDC],MATCH(B28,IdentAcoes[ID Ação],0)),"") -> 2.5 - Redes de monitoramento e SI | L28: =IFERROR(INDEX(IdentAcoes[Prioridade do PDC],MATCH(B28,IdentAcoes[ID Ação],0)),"") -> PDC 1 e 2 | M28: =IFERROR(INDEX(IdentAcoes[Segmento do executor],MATCH($B28,IdentAcoes[ID Ação],0)),"") -> Sociedade Civil | N28: =IFERROR(INDEX(IdentAcoes[Área de abrangência],MATCH($B28,IdentAcoes[ID Ação],0)),"") -> Bacia | O28: =IFERROR(INDEX(IdentAcoes[Detalhamento da área de abrangência],MATCH($B28,IdentAcoes[ID Ação],0)),"") -> Bacias PCJ
A29: PCJ6.2.3.3/2026FEHIDRO - Cobrança estadual | B29: PCJ6.2.3.3/2026 | C29: =INDEX(Financeiro[Descrição da ação],MATCH(B29,Financeiro[ID Ação], 0)) -> Implantação, integração, operação e manutenção da rede de monitoramento quali-quantitativo das águas subterrâneas | D29: =IF(INDEX('Acompanhamento das metas 24-27'!$C$2:$C$50,MATCH(B29,'Acompanhamento das metas 24-27'!$A$2:$A$50,0))<>0,INDEX('Acompanhamento das metas 24-27'!$C$2:$C$50,MATCH(B29,'Acompanhamento das metas 24-27'!$A$2:$A$50,0)),"") -> Disponibilização dos dados de ao menos 02 postos ativos | E29: =IF(VLOOKUP(A29,Financeiro[[id_ação_Fonte_oculta]:[R$ Executado (2027)]],4,FALSE)=0,"",VLOOKUP(A29,Financeiro[[id_ação_Fonte_oculta]:[R$ Executado (2027)]],4,FALSE)) -> FEHIDRO - Cobrança estadual | F29: =IF(VLOOKUP(A29,Financeiro[[id_ação_Fonte_oculta]:[R$ Executado (2027)]],4,FALSE)=0,"",VLOOKUP(A29,Financeiro[[id_ação_Fonte_oculta]:[R$ Executado (2027)]],5,FALSE)) -> 0 | G29: =IF(VLOOKUP(A29,Financeiro[[id_ação_Fonte_oculta]:[R$ Executado (2027)]],4,FALSE)=0,"",VLOOKUP(A29,Financeiro[[id_ação_Fonte_oculta]:[R$ Executado (2027)]],8,FALSE)) -> 0 | H29: =IF(VLOOKUP(A29,Financeiro[[id_ação_Fonte_oculta]:[R$ Executado (2027)]],4,FALSE)=0,"",VLOOKUP(A29,Financeiro[[id_ação_Fonte_oculta]:[R$ Executado (2027)]],11,FALSE)) -> 1000000 | I29: =IF(VLOOKUP(A29,Financeiro[[id_ação_Fonte_oculta]:[R$ Executado (2027)]],4,FALSE)=0,"",VLOOKUP(A29,Financeiro[[id_ação_Fonte_oculta]:[R$ Executado (2027)]],14,FALSE)) -> 0 | J29: 1000000 | K29: =IFERROR(INDEX(IdentAcoes[SubPDC],MATCH(B29,IdentAcoes[ID Ação],0)),"") -> 2.5 - Redes de monitoramento e SI | L29: =IFERROR(INDEX(IdentAcoes[Prioridade do PDC],MATCH(B29,IdentAcoes[ID Ação],0)),"") -> PDC 1 e 2 | M29: =IFERROR(INDEX(IdentAcoes[Segmento do executor],MATCH($B29,IdentAcoes[ID Ação],0)),"") -> Sociedade Civil | N29: =IFERROR(INDEX(IdentAcoes[Área de abrangência],MATCH($B29,IdentAcoes[ID Ação],0)),"") -> Bacia | O29: =IFERROR(INDEX(IdentAcoes[Detalhamento da área de abrangência],MATCH($B29,IdentAcoes[ID Ação],0)),"") -> Bacias PCJ
A30: PCJ6.3.1.3/2025FEHIDRO - Cobrança estadual | B30: PCJ6.3.1.3/2025 | C30: =INDEX(Financeiro[Descrição da ação],MATCH(B30,Financeiro[ID Ação], 0)) -> Fomentar a adequação das redes de monitoramento | D30: =IF(INDEX('Acompanhamento das metas 24-27'!$C$2:$C$50,MATCH(B30,'Acompanhamento das metas 24-27'!$A$2:$A$50,0))<>0,INDEX('Acompanhamento das metas 24-27'!$C$2:$C$50,MATCH(B30,'Acompanhamento das metas 24-27'!$A$2:$A$50,0)),"") -> Contratação de 01 plano integrado de monitoramento | E30: =IF(VLOOKUP(A30,Financeiro[[id_ação_Fonte_oculta]:[R$ Executado (2027)]],4,FALSE)=0,"",VLOOKUP(A30,Financeiro[[id_ação_Fonte_oculta]:[R$ Executado (2027)]],4,FALSE)) -> FEHIDRO - Cobrança estadual | F30: =IF(VLOOKUP(A30,Financeiro[[id_ação_Fonte_oculta]:[R$ Executado (2027)]],4,FALSE)=0,"",VLOOKUP(A30,Financeiro[[id_ação_Fonte_oculta]:[R$ Executado (2027)]],5,FALSE)) -> 0 | G30: =IF(VLOOKUP(A30,Financeiro[[id_ação_Fonte_oculta]:[R$ Executado (2027)]],4,FALSE)=0,"",VLOOKUP(A30,Financeiro[[id_ação_Fonte_oculta]:[R$ Executado (2027)]],8,FALSE)) -> 35714.28 | H30: =IF(VLOOKUP(A30,Financeiro[[id_ação_Fonte_oculta]:[R$ Executado (2027)]],4,FALSE)=0,"",VLOOKUP(A30,Financeiro[[id_ação_Fonte_oculta]:[R$ Executado (2027)]],11,FALSE)) -> 0 | I30: =IF(VLOOKUP(A30,Financeiro[[id_ação_Fonte_oculta]:[R$ Executado (2027)]],4,FALSE)=0,"",VLOOKUP(A30,Financeiro[[id_ação_Fonte_oculta]:[R$ Executado (2027)]],14,FALSE)) -> 0 | J30: 35714.28 | K30: =IFERROR(INDEX(IdentAcoes[SubPDC],MATCH(B30,IdentAcoes[ID Ação],0)),"") -> 2.5 - Redes de monitoramento e SI | L30: =IFERROR(INDEX(IdentAcoes[Prioridade do PDC],MATCH(B30,IdentAcoes[ID Ação],0)),"") -> PDC 1 e 2 | M30: =IFERROR(INDEX(IdentAcoes[Segmento do executor],MATCH($B30,IdentAcoes[ID Ação],0)),"") -> Sociedade Civil | N30: =IFERROR(INDEX(IdentAcoes[Área de abrangência],MATCH($B30,IdentAcoes[ID Ação],0)),"") -> Bacia | O30: =IFERROR(INDEX(IdentAcoes[Detalhamento da área de abrangência],MATCH($B30,IdentAcoes[ID Ação],0)),"") -> Bacia Hidrográfica do rio Tietê
A31: PCJ6.3.1.6/2026FEHIDRO - Cobrança estadual | B31: PCJ6.3.1.6/2026 | C31: =INDEX(Financeiro[Descrição da ação],MATCH(B31,Financeiro[ID Ação], 0)) -> Integrar dados de monitoramento quali-quantitativos | D31: =IF(INDEX('Acompanhamento das metas 24-27'!$C$2:$C$50,MATCH(B31,'Acompanhamento das metas 24-27'!$A$2:$A$50,0))<>0,INDEX('Acompanhamento das metas 24-27'!$C$2:$C$50,MATCH(B31,'Acompanhamento das metas 24-27'!$A$2:$A$50,0)),"") -> Contratação de plano integrado de monitoramento | E31: =IF(VLOOKUP(A31,Financeiro[[id_ação_Fonte_oculta]:[R$ Executado (2027)]],4,FALSE)=0,"",VLOOKUP(A31,Financeiro[[id_ação_Fonte_oculta]:[R$ Executado (2027)]],4,FALSE)) -> FEHIDRO - Cobrança estadual | F31: =IF(VLOOKUP(A31,Financeiro[[id_ação_Fonte_oculta]:[R$ Executado (2027)]],4,FALSE)=0,"",VLOOKUP(A31,Financeiro[[id_ação_Fonte_oculta]:[R$ Executado (2027)]],5,FALSE)) -> 0 | G31: =IF(VLOOKUP(A31,Financeiro[[id_ação_Fonte_oculta]:[R$ Executado (2027)]],4,FALSE)=0,"",VLOOKUP(A31,Financeiro[[id_ação_Fonte_oculta]:[R$ Executado (2027)]],8,FALSE)) -> 0 | H31: =IF(VLOOKUP(A31,Financeiro[[id_ação_Fonte_oculta]:[R$ Executado (2027)]],4,FALSE)=0,"",VLOOKUP(A31,Financeiro[[id_ação_Fonte_oculta]:[R$ Executado (2027)]],11,FALSE)) -> 35714.28 | I31: =IF(VLOOKUP(A31,Financeiro[[id_ação_Fonte_oculta]:[R$ Executado (2027)]],4,FALSE)=0,"",VLOOKUP(A31,Financeiro[[id_ação_Fonte_oculta]:[R$ Executado (2027)]],14,FALSE)) -> 0 | J31: 35714.28 | K31: =IFERROR(INDEX(IdentAcoes[SubPDC],MATCH(B31,IdentAcoes[ID Ação],0)),"") -> 2.5 - Redes de monitoramento e SI | L31: =IFERROR(INDEX(IdentAcoes[Prioridade do PDC],MATCH(B31,IdentAcoes[ID Ação],0)),"") -> PDC 1 e 2 | M31: =IFERROR(INDEX(IdentAcoes[Segmento do executor],MATCH($B31,IdentAcoes[ID Ação],0)),"") -> Sociedade Civil | N31: =IFERROR(INDEX(IdentAcoes[Área de abrangência],MATCH($B31,IdentAcoes[ID Ação],0)),"") -> Bacia | O31: =IFERROR(INDEX(IdentAcoes[Detalhamento da área de abrangência],MATCH($B31,IdentAcoes[ID Ação],0)),"") -> Bacia Hidrográfica do rio Tietê
A32: PCJ6.3.2.2/2025FEHIDRO - Cobrança estadual | B32: PCJ6.3.2.2/2025 | C32: =INDEX(Financeiro[Descrição da ação],MATCH(B32,Financeiro[ID Ação], 0)) -> Apoio à gestão administrativa da Fundação da Agência da Bacia Hidrográfica dos Rios Sorocaba e Médio Tietê | D32: =IF(INDEX('Acompanhamento das metas 24-27'!$C$2:$C$50,MATCH(B32,'Acompanhamento das metas 24-27'!$A$2:$A$50,0))<>0,INDEX('Acompanhamento das metas 24-27'!$C$2:$C$50,MATCH(B32,'Acompanhamento das metas 24-27'!$A$2:$A$50,0)),"") -> Apoio prestado | E32: =IF(VLOOKUP(A32,Financeiro[[id_ação_Fonte_oculta]:[R$ Executado (2027)]],4,FALSE)=0,"",VLOOKUP(A32,Financeiro[[id_ação_Fonte_oculta]:[R$ Executado (2027)]],4,FALSE)) -> FEHIDRO - Cobrança estadual | F32: =IF(VLOOKUP(A32,Financeiro[[id_ação_Fonte_oculta]:[R$ Executado (2027)]],4,FALSE)=0,"",VLOOKUP(A32,Financeiro[[id_ação_Fonte_oculta]:[R$ Executado (2027)]],5,FALSE)) -> 0 | G32: =IF(VLOOKUP(A32,Financeiro[[id_ação_Fonte_oculta]:[R$ Executado (2027)]],4,FALSE)=0,"",VLOOKUP(A32,Financeiro[[id_ação_Fonte_oculta]:[R$ Executado (2027)]],8,FALSE)) -> 40000 | H32: =IF(VLOOKUP(A32,Financeiro[[id_ação_Fonte_oculta]:[R$ Executado (2027)]],4,FALSE)=0,"",VLOOKUP(A32,Financeiro[[id_ação_Fonte_oculta]:[R$ Executado (2027)]],11,FALSE)) -> 0 | I32: =IF(VLOOKUP(A32,Financeiro[[id_ação_Fonte_oculta]:[R$ Executado (2027)]],4,FALSE)=0,"",VLOOKUP(A32,Financeiro[[id_ação_Fonte_oculta]:[R$ Executado (2027)]],14,FALSE)) -> 0 | J32: 40000 | K32: =IFERROR(INDEX(IdentAcoes[SubPDC],MATCH(B32,IdentAcoes[ID Ação],0)),"") -> 2.7 - CORHI | L32: =IFERROR(INDEX(IdentAcoes[Prioridade do PDC],MATCH(B32,IdentAcoes[ID Ação],0)),"") -> PDC 1 e 2 | M32: =IFERROR(INDEX(IdentAcoes[Segmento do executor],MATCH($B32,IdentAcoes[ID Ação],0)),"") -> Sociedade Civil | N32: =IFERROR(INDEX(IdentAcoes[Área de abrangência],MATCH($B32,IdentAcoes[ID Ação],0)),"") -> Bacia | O32: =IFERROR(INDEX(IdentAcoes[Detalhamento da área de abrangência],MATCH($B32,IdentAcoes[ID Ação],0)),"") -> Bacia Hidrográfica do rio Tietê
A33: PCJ6.3.1.1/2025FEHIDRO - Cobrança estadual | B33: PCJ6.3.1.1/2025 | C33: =INDEX(Financeiro[Descrição da ação],MATCH(B33,Financeiro[ID Ação], 0)) -> Discutir a possibilidade de implantação de agências de bacia | D33: =IF(INDEX('Acompanhamento das metas 24-27'!$C$2:$C$50,MATCH(B33,'Acompanhamento das metas 24-27'!$A$2:$A$50,0))<>0,INDEX('Acompanhamento das metas 24-27'!$C$2:$C$50,MATCH(B33,'Acompanhamento das metas 24-27'!$A$2:$A$50,0)),"") -> Realização de um estudo sobre a implantação de agências de bacia | E33: =IF(VLOOKUP(A33,Financeiro[[id_ação_Fonte_oculta]:[R$ Executado (2027)]],4,FALSE)=0,"",VLOOKUP(A33,Financeiro[[id_ação_Fonte_oculta]:[R$ Executado (2027)]],4,FALSE)) -> FEHIDRO - Cobrança estadual | F33: =IF(VLOOKUP(A33,Financeiro[[id_ação_Fonte_oculta]:[R$ Executado (2027)]],4,FALSE)=0,"",VLOOKUP(A33,Financeiro[[id_ação_Fonte_oculta]:[R$ Executado (2027)]],5,FALSE)) -> 0 | G33: =IF(VLOOKUP(A33,Financeiro[[id_ação_Fonte_oculta]:[R$ Executado (2027)]],4,FALSE)=0,"",VLOOKUP(A33,Financeiro[[id_ação_Fonte_oculta]:[R$ Executado (2027)]],8,FALSE)) -> 300000 | H33: =IF(VLOOKUP(A33,Financeiro[[id_ação_Fonte_oculta]:[R$ Executado (2027)]],4,FALSE)=0,"",VLOOKUP(A33,Financeiro[[id_ação_Fonte_oculta]:[R$ Executado (2027)]],11,FALSE)) -> 0 | I33: =IF(VLOOKUP(A33,Financeiro[[id_ação_Fonte_oculta]:[R$ Executado (2027)]],4,FALSE)=0,"",VLOOKUP(A33,Financeiro[[id_ação_Fonte_oculta]:[R$ Executado (2027)]],14,FALSE)) -> 0 | J33: 300000 | K33: =IFERROR(INDEX(IdentAcoes[SubPDC],MATCH(B33,IdentAcoes[ID Ação],0)),"") -> 2.7 - CORHI | L33: =IFERROR(INDEX(IdentAcoes[Prioridade do PDC],MATCH(B33,IdentAcoes[ID Ação],0)),"") -> PDC 1 e 2 | M33: =IFERROR(INDEX(IdentAcoes[Segmento do executor],MATCH($B33,IdentAcoes[ID Ação],0)),"") -> Sociedade Civil | N33: =IFERROR(INDEX(IdentAcoes[Área de abrangência],MATCH($B33,IdentAcoes[ID Ação],0)),"") -> Bacia | O33: =IFERROR(INDEX(IdentAcoes[Detalhamento da área de abrangência],MATCH($B33,IdentAcoes[ID Ação],0)),"") -> Bacia Hidrográfica do rio Tietê
A34: PCJ3.3.1.1/2024FEHIDRO - Cobrança estadual | B34: PCJ3.3.1.1/2024 | C34: =INDEX(Financeiro[Descrição da ação],MATCH(B34,Financeiro[ID Ação], 0)) -> Substituição de sistemas rudimentares de tratamento de esgoto (fossa negra) por sistemas mais eficientes | D34: =IF(INDEX('Acompanhamento das metas 24-27'!$C$2:$C$50,MATCH(B34,'Acompanhamento das metas 24-27'!$A$2:$A$50,0))<>0,INDEX('Acompanhamento das metas 24-27'!$C$2:$C$50,MATCH(B34,'Acompanhamento das metas 24-27'!$A$2:$A$50,0)),"") -> Substituição de 30 sistemas | E34: =IF(VLOOKUP(A34,Financeiro[[id_ação_Fonte_oculta]:[R$ Executado (2027)]],4,FALSE)=0,"",VLOOKUP(A34,Financeiro[[id_ação_Fonte_oculta]:[R$ Executado (2027)]],4,FALSE)) -> FEHIDRO - Cobrança estadual | F34: =IF(VLOOKUP(A34,Financeiro[[id_ação_Fonte_oculta]:[R$ Executado (2027)]],4,FALSE)=0,"",VLOOKUP(A34,Financeiro[[id_ação_Fonte_oculta]:[R$ Executado (2027)]],5,FALSE)) -> 2300000 | G34: =IF(VLOOKUP(A34,Financeiro[[id_ação_Fonte_oculta]:[R$ Executado (2027)]],4,FALSE)=0,"",VLOOKUP(A34,Financeiro[[id_ação_Fonte_oculta]:[R$ Executado (2027)]],8,FALSE)) -> 2000000 | H34: =IF(VLOOKUP(A34,Financeiro[[id_ação_Fonte_oculta]:[R$ Executado (2027)]],4,FALSE)=0,"",VLOOKUP(A34,Financeiro[[id_ação_Fonte_oculta]:[R$ Executado (2027)]],11,FALSE)) -> 1000000 | I34: =IF(VLOOKUP(A34,Financeiro[[id_ação_Fonte_oculta]:[R$ Executado (2027)]],4,FALSE)=0,"",VLOOKUP(A34,Financeiro[[id_ação_Fonte_oculta]:[R$ Executado (2027)]],14,FALSE)) -> 1250000 | J34: 6550000 | K34: =IFERROR(INDEX(IdentAcoes[SubPDC],MATCH(B34,IdentAcoes[ID Ação],0)),"") -> 3.1 - Efluentes | L34: =IFERROR(INDEX(IdentAcoes[Prioridade do PDC],MATCH(B34,IdentAcoes[ID Ação],0)),"") -> Prioritário | M34: =IFERROR(INDEX(IdentAcoes[Segmento do executor],MATCH($B34,IdentAcoes[ID Ação],0)),"") -> Município | N34: =IFERROR(INDEX(IdentAcoes[Área de abrangência],MATCH($B34,IdentAcoes[ID Ação],0)),"") -> Município | O34: =IFERROR(INDEX(IdentAcoes[Detalhamento da área de abrangência],MATCH($B34,IdentAcoes[ID Ação],0)),"") -> Município
A35: PCJ1.1.1.4/2024FEHIDRO - Cobrança estadual | B35: PCJ1.1.1.4/2024 | C35: =INDEX(Financeiro[Descrição da ação],MATCH(B35,Financeiro[ID Ação], 0)) -> Elaboração de projetos de ampliação e melhoria dos sistemas de transporte de esgotos | D35: =IF(INDEX('Acompanhamento das metas 24-27'!$C$2:$C$50,MATCH(B35,'Acompanhamento das metas 24-27'!$A$2:$A$50,0))<>0,INDEX('Acompanhamento das metas 24-27'!$C$2:$C$50,MATCH(B35,'Acompanhamento das metas 24-27'!$A$2:$A$50,0)),"") -> Elaboração de ao menos 01 projeto | E35: =IF(VLOOKUP(A35,Financeiro[[id_ação_Fonte_oculta]:[R$ Executado (2027)]],4,FALSE)=0,"",VLOOKUP(A35,Financeiro[[id_ação_Fonte_oculta]:[R$ Executado (2027)]],4,FALSE)) -> FEHIDRO - Cobrança estadual | F35: =IF(VLOOKUP(A35,Financeiro[[id_ação_Fonte_oculta]:[R$ Executado (2027)]],4,FALSE)=0,"",VLOOKUP(A35,Financeiro[[id_ação_Fonte_oculta]:[R$ Executado (2027)]],5,FALSE)) -> 2000000 | G35: =IF(VLOOKUP(A35,Financeiro[[id_ação_Fonte_oculta]:[R$ Executado (2027)]],4,FALSE)=0,"",VLOOKUP(A35,Financeiro[[id_ação_Fonte_oculta]:[R$ Executado (2027)]],8,FALSE)) -> 1000000 | H35: =IF(VLOOKUP(A35,Financeiro[[id_ação_Fonte_oculta]:[R$ Executado (2027)]],4,FALSE)=0,"",VLOOKUP(A35,Financeiro[[id_ação_Fonte_oculta]:[R$ Executado (2027)]],11,FALSE)) -> 650000 | I35: =IF(VLOOKUP(A35,Financeiro[[id_ação_Fonte_oculta]:[R$ Executado (2027)]],4,FALSE)=0,"",VLOOKUP(A35,Financeiro[[id_ação_Fonte_oculta]:[R$ Executado (2027)]],14,FALSE)) -> 750000 | J35: 4400000 | K35: =IFERROR(INDEX(IdentAcoes[SubPDC],MATCH(B35,IdentAcoes[ID Ação],0)),"") -> 3.1 - Efluentes | L35: =IFERROR(INDEX(IdentAcoes[Prioridade do PDC],MATCH(B35,IdentAcoes[ID Ação],0)),"") -> Prioritário | M35: =IFERROR(INDEX(IdentAcoes[Segmento do executor],MATCH($B35,IdentAcoes[ID Ação],0)),"") -> Município | N35: =IFERROR(INDEX(IdentAcoes[Área de abrangência],MATCH($B35,IdentAcoes[ID Ação],0)),"") -> Município | O35: =IFERROR(INDEX(IdentAcoes[Detalhamento da área de abrangência],MATCH($B35,IdentAcoes[ID Ação],0)),"") -> Municípios observando asprioridades para remoção de nitrogênio e fósforo, no Plano de Bacias
A36: PCJ1.1.2.3/2024FEHIDRO - Cobrança estadual | B36: PCJ1.1.2.3/2024 | C36: =INDEX(Financeiro[Descrição da ação],MATCH(B36,Financeiro[ID Ação], 0)) -> Elaboração de projetos para a implantação de novas ETEs visando tratamento secundário | D36: =IF(INDEX('Acompanhamento das metas 24-27'!$C$2:$C$50,MATCH(B36,'Acompanhamento das metas 24-27'!$A$2:$A$50,0))<>0,INDEX('Acompanhamento das metas 24-27'!$C$2:$C$50,MATCH(B36,'Acompanhamento das metas 24-27'!$A$2:$A$50,0)),"") -> Elaboração de ao menos 01 projeto | E36: =IF(VLOOKUP(A36,Financeiro[[id_ação_Fonte_oculta]:[R$ Executado (2027)]],4,FALSE)=0,"",VLOOKUP(A36,Financeiro[[id_ação_Fonte_oculta]:[R$ Executado (2027)]],4,FALSE)) -> FEHIDRO - Cobrança estadual | F36: =IF(VLOOKUP(A36,Financeiro[[id_ação_Fonte_oculta]:[R$ Executado (2027)]],4,FALSE)=0,"",VLOOKUP(A36,Financeiro[[id_ação_Fonte_oculta]:[R$ Executado (2027)]],5,FALSE)) -> 1300000 | G36: =IF(VLOOKUP(A36,Financeiro[[id_ação_Fonte_oculta]:[R$ Executado (2027)]],4,FALSE)=0,"",VLOOKUP(A36,Financeiro[[id_ação_Fonte_oculta]:[R$ Executado (2027)]],8,FALSE)) -> 1000000 | H36: =IF(VLOOKUP(A36,Financeiro[[id_ação_Fonte_oculta]:[R$ Executado (2027)]],4,FALSE)=0,"",VLOOKUP(A36,Financeiro[[id_ação_Fonte_oculta]:[R$ Executado (2027)]],11,FALSE)) -> 750000 | I36: =IF(VLOOKUP(A36,Financeiro[[id_ação_Fonte_oculta]:[R$ Executado (2027)]],4,FALSE)=0,"",VLOOKUP(A36,Financeiro[[id_ação_Fonte_oculta]:[R$ Executado (2027)]],14,FALSE)) -> 750000 | J36: 3800000 | K36: =IFERROR(INDEX(IdentAcoes[SubPDC],MATCH(B36,IdentAcoes[ID Ação],0)),"") -> 3.1 - Efluentes | L36: =IFERROR(INDEX(IdentAcoes[Prioridade do PDC],MATCH(B36,IdentAcoes[ID Ação],0)),"") -> Prioritário | M36: =IFERROR(INDEX(IdentAcoes[Segmento do executor],MATCH($B36,IdentAcoes[ID Ação],0)),"") -> Município | N36: =IFERROR(INDEX(IdentAcoes[Área de abrangência],MATCH($B36,IdentAcoes[ID Ação],0)),"") -> Município | O36: =IFERROR(INDEX(IdentAcoes[Detalhamento da área de abrangência],MATCH($B36,IdentAcoes[ID Ação],0)),"") -> Municípios observando as prioridades para remoção de nitrogênio e fósforo, no Plano de Bacias
A37: PCJ1.2.1.2/2024FEHIDRO - Cobrança estadual | B37: PCJ1.2.1.2/2024 | C37: =INDEX(Financeiro[Descrição da ação],MATCH(B37,Financeiro[ID Ação], 0)) -> Elaboração de projetos de melhorias da eficiência das ETEs na remoção de nutrientes | D37: =IF(INDEX('Acompanhamento das metas 24-27'!$C$2:$C$50,MATCH(B37,'Acompanhamento das metas 24-27'!$A$2:$A$50,0))<>0,INDEX('Acompanhamento das metas 24-27'!$C$2:$C$50,MATCH(B37,'Acompanhamento das metas 24-27'!$A$2:$A$50,0)),"") -> Elaboração de ao menos 01 projeto | E37: =IF(VLOOKUP(A37,Financeiro[[id_ação_Fonte_oculta]:[R$ Executado (2027)]],4,FALSE)=0,"",VLOOKUP(A37,Financeiro[[id_ação_Fonte_oculta]:[R$ Executado (2027)]],4,FALSE)) -> FEHIDRO - Cobrança estadual | F37: =IF(VLOOKUP(A37,Financeiro[[id_ação_Fonte_oculta]:[R$ Executado (2027)]],4,FALSE)=0,"",VLOOKUP(A37,Financeiro[[id_ação_Fonte_oculta]:[R$ Executado (2027)]],5,FALSE)) -> 1300000 | G37: =IF(VLOOKUP(A37,Financeiro[[id_ação_Fonte_oculta]:[R$ Executado (2027)]],4,FALSE)=0,"",VLOOKUP(A37,Financeiro[[id_ação_Fonte_oculta]:[R$ Executado (2027)]],8,FALSE)) -> 1000000 | H37: =IF(VLOOKUP(A37,Financeiro[[id_ação_Fonte_oculta]:[R$ Executado (2027)]],4,FALSE)=0,"",VLOOKUP(A37,Financeiro[[id_ação_Fonte_oculta]:[R$ Executado (2027)]],11,FALSE)) -> 750000 | I37: =IF(VLOOKUP(A37,Financeiro[[id_ação_Fonte_oculta]:[R$ Executado (2027)]],4,FALSE)=0,"",VLOOKUP(A37,Financeiro[[id_ação_Fonte_oculta]:[R$ Executado (2027)]],14,FALSE)) -> 750000 | J37: 3800000 | K37: =IFERROR(INDEX(IdentAcoes[SubPDC],MATCH(B37,IdentAcoes[ID Ação],0)),"") -> 3.1 - Efluentes | L37: =IFERROR(INDEX(IdentAcoes[Prioridade do PDC],MATCH(B37,IdentAcoes[ID Ação],0)),"") -> Prioritário | M37: =IFERROR(INDEX(IdentAcoes[Segmento do executor],MATCH($B37,IdentAcoes[ID Ação],0)),"") -> Município | N37: =IFERROR(INDEX(IdentAcoes[Área de abrangência],MATCH($B37,IdentAcoes[ID Ação],0)),"") -> Município | O37: =IFERROR(INDEX(IdentAcoes[Detalhamento da área de abrangência],MATCH($B37,IdentAcoes[ID Ação],0)),"") -> Municípios observando as prioridades para remoção de nitrogênio e fósforo, no Plano de Bacias
A38: PCJ1.2.2.2/2027FEHIDRO - Cobrança estadual | B38: PCJ1.2.2.2/2027 | C38: =INDEX(Financeiro[Descrição da ação],MATCH(B38,Financeiro[ID Ação], 0)) -> Elaboração de projetos de implantação de tecnologias de desinfecção de efluentes domésticos | D38: =IF(INDEX('Acompanhamento das metas 24-27'!$C$2:$C$50,MATCH(B38,'Acompanhamento das metas 24-27'!$A$2:$A$50,0))<>0,INDEX('Acompanhamento das metas 24-27'!$C$2:$C$50,MATCH(B38,'Acompanhamento das metas 24-27'!$A$2:$A$50,0)),"") -> Elaboração de ao menos 01 projeto por ano | E38: =IF(VLOOKUP(A38,Financeiro[[id_ação_Fonte_oculta]:[R$ Executado (2027)]],4,FALSE)=0,"",VLOOKUP(A38,Financeiro[[id_ação_Fonte_oculta]:[R$ Executado (2027)]],4,FALSE)) -> FEHIDRO - Cobrança estadual | F38: =IF(VLOOKUP(A38,Financeiro[[id_ação_Fonte_oculta]:[R$ Executado (2027)]],4,FALSE)=0,"",VLOOKUP(A38,Financeiro[[id_ação_Fonte_oculta]:[R$ Executado (2027)]],5,FALSE)) -> 0 | G38: =IF(VLOOKUP(A38,Financeiro[[id_ação_Fonte_oculta]:[R$ Executado (2027)]],4,FALSE)=0,"",VLOOKUP(A38,Financeiro[[id_ação_Fonte_oculta]:[R$ Executado (2027)]],8,FALSE)) -> 0 | H38: =IF(VLOOKUP(A38,Financeiro[[id_ação_Fonte_oculta]:[R$ Executado (2027)]],4,FALSE)=0,"",VLOOKUP(A38,Financeiro[[id_ação_Fonte_oculta]:[R$ Executado (2027)]],11,FALSE)) -> 0 | I38: =IF(VLOOKUP(A38,Financeiro[[id_ação_Fonte_oculta]:[R$ Executado (2027)]],4,FALSE)=0,"",VLOOKUP(A38,Financeiro[[id_ação_Fonte_oculta]:[R$ Executado (2027)]],14,FALSE)) -> 500000 | J38: 500000 | K38: =IFERROR(INDEX(IdentAcoes[SubPDC],MATCH(B38,IdentAcoes[ID Ação],0)),"") -> 3.1 - Efluentes | L38: =IFERROR(INDEX(IdentAcoes[Prioridade do PDC],MATCH(B38,IdentAcoes[ID Ação],0)),"") -> Prioritário | M38: =IFERROR(INDEX(IdentAcoes[Segmento do executor],MATCH($B38,IdentAcoes[ID Ação],0)),"") -> Município | N38: =IFERROR(INDEX(IdentAcoes[Área de abrangência],MATCH($B38,IdentAcoes[ID Ação],0)),"") -> Município | O38: =IFERROR(INDEX(IdentAcoes[Detalhamento da área de abrangência],MATCH($B38,IdentAcoes[ID Ação],0)),"") -> Municípios observando as prioridades no Plano de Bacias
A39: PCJ3.1.2.3/2024FEHIDRO - Cobrança estadual | B39: PCJ3.1.2.3/2024 | C39: =INDEX(Financeiro[Descrição da ação],MATCH(B39,Financeiro[ID Ação], 0)) -> Incentivo à proteção das áreas sujeitas à restrição de uso | D39: =IF(INDEX('Acompanhamento das metas 24-27'!$C$2:$C$50,MATCH(B39,'Acompanhamento das metas 24-27'!$A$2:$A$50,0))<>0,INDEX('Acompanhamento das metas 24-27'!$C$2:$C$50,MATCH(B39,'Acompanhamento das metas 24-27'!$A$2:$A$50,0)),"") -> Implementação da RAP-PCJ; Disponibilização e atualização de dados e informações sobre áreas protegidas nas Bacias PCJ; Elaboração de diagnóstico com a mensuração dos benefícios hídricos das áreas protegidas. | E39: =IF(VLOOKUP(A39,Financeiro[[id_ação_Fonte_oculta]:[R$ Executado (2027)]],4,FALSE)=0,"",VLOOKUP(A39,Financeiro[[id_ação_Fonte_oculta]:[R$ Executado (2027)]],4,FALSE)) -> FEHIDRO - Cobrança estadual | F39: =IF(VLOOKUP(A39,Financeiro[[id_ação_Fonte_oculta]:[R$ Executado (2027)]],4,FALSE)=0,"",VLOOKUP(A39,Financeiro[[id_ação_Fonte_oculta]:[R$ Executado (2027)]],5,FALSE)) -> 0 | G39: =IF(VLOOKUP(A39,Financeiro[[id_ação_Fonte_oculta]:[R$ Executado (2027)]],4,FALSE)=0,"",VLOOKUP(A39,Financeiro[[id_ação_Fonte_oculta]:[R$ Executado (2027)]],8,FALSE)) -> 0 | H39: =IF(VLOOKUP(A39,Financeiro[[id_ação_Fonte_oculta]:[R$ Executado (2027)]],4,FALSE)=0,"",VLOOKUP(A39,Financeiro[[id_ação_Fonte_oculta]:[R$ Executado (2027)]],11,FALSE)) -> 0 | I39: =IF(VLOOKUP(A39,Financeiro[[id_ação_Fonte_oculta]:[R$ Executado (2027)]],4,FALSE)=0,"",VLOOKUP(A39,Financeiro[[id_ação_Fonte_oculta]:[R$ Executado (2027)]],14,FALSE)) -> 0 | J39: 0 | K39: =IFERROR(INDEX(IdentAcoes[SubPDC],MATCH(B39,IdentAcoes[ID Ação],0)),"") -> 4.2 - Soluções baseadas Natureza | L39: =IFERROR(INDEX(IdentAcoes[Prioridade do PDC],MATCH(B39,IdentAcoes[ID Ação],0)),"") -> Não prioritário | M39: =IFERROR(INDEX(IdentAcoes[Segmento do executor],MATCH($B39,IdentAcoes[ID Ação],0)),"") -> Sociedade Civil | N39: =IFERROR(INDEX(IdentAcoes[Área de abrangência],MATCH($B39,IdentAcoes[ID Ação],0)),"") -> Sub-bacia | O39: =IFERROR(INDEX(IdentAcoes[Detalhamento da área de abrangência],MATCH($B39,IdentAcoes[ID Ação],0)),"") -> ACs prioritárias conforme mapa síntese Mapa Conservação, recuperação de nascentes, matas ciliares e áreas de recarga
A40: PCJ2.3.2.2/2024FEHIDRO - Cobrança estadual | B40: PCJ2.3.2.2/2024 | C40: =INDEX(Financeiro[Descrição da ação],MATCH(B40,Financeiro[ID Ação], 0)) -> Controle de perdas em sistemas de abastecimento de água | D40: =IF(INDEX('Acompanhamento das metas 24-27'!$C$2:$C$50,MATCH(B40,'Acompanhamento das metas 24-27'!$A$2:$A$50,0))<>0,INDEX('Acompanhamento das metas 24-27'!$C$2:$C$50,MATCH(B40,'Acompanhamento das metas 24-27'!$A$2:$A$50,0)),"") -> Alcance das metas intermediárias dos cenários de referência para planejamento, conforme descrito no Plano de Bacias | E40: =IF(VLOOKUP(A40,Financeiro[[id_ação_Fonte_oculta]:[R$ Executado (2027)]],4,FALSE)=0,"",VLOOKUP(A40,Financeiro[[id_ação_Fonte_oculta]:[R$ Executado (2027)]],4,FALSE)) -> FEHIDRO - Cobrança estadual | F40: =IF(VLOOKUP(A40,Financeiro[[id_ação_Fonte_oculta]:[R$ Executado (2027)]],4,FALSE)=0,"",VLOOKUP(A40,Financeiro[[id_ação_Fonte_oculta]:[R$ Executado (2027)]],5,FALSE)) -> 5120748.1 | G40: =IF(VLOOKUP(A40,Financeiro[[id_ação_Fonte_oculta]:[R$ Executado (2027)]],4,FALSE)=0,"",VLOOKUP(A40,Financeiro[[id_ação_Fonte_oculta]:[R$ Executado (2027)]],8,FALSE)) -> 4551857.16 | H40: =IF(VLOOKUP(A40,Financeiro[[id_ação_Fonte_oculta]:[R$ Executado (2027)]],4,FALSE)=0,"",VLOOKUP(A40,Financeiro[[id_ação_Fonte_oculta]:[R$ Executado (2027)]],11,FALSE)) -> 1500000 | I40: =IF(VLOOKUP(A40,Financeiro[[id_ação_Fonte_oculta]:[R$ Executado (2027)]],4,FALSE)=0,"",VLOOKUP(A40,Financeiro[[id_ação_Fonte_oculta]:[R$ Executado (2027)]],14,FALSE)) -> 1500000 | J40: 12672605.26 | K40: =IFERROR(INDEX(IdentAcoes[SubPDC],MATCH(B40,IdentAcoes[ID Ação],0)),"") -> 5.1 - Perdas | L40: =IFERROR(INDEX(IdentAcoes[Prioridade do PDC],MATCH(B40,IdentAcoes[ID Ação],0)),"") -> Prioritário | M40: =IFERROR(INDEX(IdentAcoes[Segmento do executor],MATCH($B40,IdentAcoes[ID Ação],0)),"") -> Município | N40: =IFERROR(INDEX(IdentAcoes[Área de abrangência],MATCH($B40,IdentAcoes[ID Ação],0)),"") -> Município | O40: =IFERROR(INDEX(IdentAcoes[Detalhamento da área de abrangência],MATCH($B40,IdentAcoes[ID Ação],0)),"") -> Para 2020, municípios prioritários indicados na Deliberação dos Comitês PCJ nº 324/2019. A partir de 2021, municípios observando as prioridades do Plano de Bacias
A41: PCJ5.2.2.1/2024FEHIDRO - Cobrança estadual | B41: PCJ5.2.2.1/2024 | C41: =INDEX(Financeiro[Descrição da ação],MATCH(B41,Financeiro[ID Ação], 0)) -> Elaboração de propostas para órgãos de financiamento em pesquisas | D41: =IF(INDEX('Acompanhamento das metas 24-27'!$C$2:$C$50,MATCH(B41,'Acompanhamento das metas 24-27'!$A$2:$A$50,0))<>0,INDEX('Acompanhamento das metas 24-27'!$C$2:$C$50,MATCH(B41,'Acompanhamento das metas 24-27'!$A$2:$A$50,0)),"") -> Propostas de linhas de fomento encaminhadas para órgãos de financiamento de pesquisas. | E41: =IF(VLOOKUP(A41,Financeiro[[id_ação_Fonte_oculta]:[R$ Executado (2027)]],4,FALSE)=0,"",VLOOKUP(A41,Financeiro[[id_ação_Fonte_oculta]:[R$ Executado (2027)]],4,FALSE)) -> FEHIDRO - Cobrança estadual | F41: =IF(VLOOKUP(A41,Financeiro[[id_ação_Fonte_oculta]:[R$ Executado (2027)]],4,FALSE)=0,"",VLOOKUP(A41,Financeiro[[id_ação_Fonte_oculta]:[R$ Executado (2027)]],5,FALSE)) -> 0 | G41: =IF(VLOOKUP(A41,Financeiro[[id_ação_Fonte_oculta]:[R$ Executado (2027)]],4,FALSE)=0,"",VLOOKUP(A41,Financeiro[[id_ação_Fonte_oculta]:[R$ Executado (2027)]],8,FALSE)) -> 0 | H41: =IF(VLOOKUP(A41,Financeiro[[id_ação_Fonte_oculta]:[R$ Executado (2027)]],4,FALSE)=0,"",VLOOKUP(A41,Financeiro[[id_ação_Fonte_oculta]:[R$ Executado (2027)]],11,FALSE)) -> 0 | I41: =IF(VLOOKUP(A41,Financeiro[[id_ação_Fonte_oculta]:[R$ Executado (2027)]],4,FALSE)=0,"",VLOOKUP(A41,Financeiro[[id_ação_Fonte_oculta]:[R$ Executado (2027)]],14,FALSE)) -> 0 | J41: 0 | K41: =IFERROR(INDEX(IdentAcoes[SubPDC],MATCH(B41,IdentAcoes[ID Ação],0)),"") -> 8.1 - Capacitação | L41: =IFERROR(INDEX(IdentAcoes[Prioridade do PDC],MATCH(B41,IdentAcoes[ID Ação],0)),"") -> Não prioritário | M41: =IFERROR(INDEX(IdentAcoes[Segmento do executor],MATCH($B41,IdentAcoes[ID Ação],0)),"") -> Sociedade Civil | N41: =IFERROR(INDEX(IdentAcoes[Área de abrangência],MATCH($B41,IdentAcoes[ID Ação],0)),"") -> Bacia | O41: =IFERROR(INDEX(IdentAcoes[Detalhamento da área de abrangência],MATCH($B41,IdentAcoes[ID Ação],0)),"") -> Bacias PCJ
A42: PCJ5.2.2.3/2024FEHIDRO - Cobrança estadual | B42: PCJ5.2.2.3/2024 | C42: =INDEX(Financeiro[Descrição da ação],MATCH(B42,Financeiro[ID Ação], 0)) -> Apoio ao desenvolvimento e difusão de pesquisas e tecnologias que contribuam no enfrentamento dos desafios identificados no Plano das Bacias PCJ | D42: =IF(INDEX('Acompanhamento das metas 24-27'!$C$2:$C$50,MATCH(B42,'Acompanhamento das metas 24-27'!$A$2:$A$50,0))<>0,INDEX('Acompanhamento das metas 24-27'!$C$2:$C$50,MATCH(B42,'Acompanhamento das metas 24-27'!$A$2:$A$50,0)),"") -> 1 parcerias ou convênios firmados até 2027 | E42: =IF(VLOOKUP(A42,Financeiro[[id_ação_Fonte_oculta]:[R$ Executado (2027)]],4,FALSE)=0,"",VLOOKUP(A42,Financeiro[[id_ação_Fonte_oculta]:[R$ Executado (2027)]],4,FALSE)) -> FEHIDRO - Cobrança estadual | F42: =IF(VLOOKUP(A42,Financeiro[[id_ação_Fonte_oculta]:[R$ Executado (2027)]],4,FALSE)=0,"",VLOOKUP(A42,Financeiro[[id_ação_Fonte_oculta]:[R$ Executado (2027)]],5,FALSE)) -> 0 | G42: =IF(VLOOKUP(A42,Financeiro[[id_ação_Fonte_oculta]:[R$ Executado (2027)]],4,FALSE)=0,"",VLOOKUP(A42,Financeiro[[id_ação_Fonte_oculta]:[R$ Executado (2027)]],8,FALSE)) -> 0 | H42: =IF(VLOOKUP(A42,Financeiro[[id_ação_Fonte_oculta]:[R$ Executado (2027)]],4,FALSE)=0,"",VLOOKUP(A42,Financeiro[[id_ação_Fonte_oculta]:[R$ Executado (2027)]],11,FALSE)) -> 0 | I42: =IF(VLOOKUP(A42,Financeiro[[id_ação_Fonte_oculta]:[R$ Executado (2027)]],4,FALSE)=0,"",VLOOKUP(A42,Financeiro[[id_ação_Fonte_oculta]:[R$ Executado (2027)]],14,FALSE)) -> 0 | J42: 0 | K42: =IFERROR(INDEX(IdentAcoes[SubPDC],MATCH(B42,IdentAcoes[ID Ação],0)),"") -> 8.2 - Educação | L42: =IFERROR(INDEX(IdentAcoes[Prioridade do PDC],MATCH(B42,IdentAcoes[ID Ação],0)),"") -> Não prioritário | M42: =IFERROR(INDEX(IdentAcoes[Segmento do executor],MATCH($B42,IdentAcoes[ID Ação],0)),"") -> Sociedade Civil | N42: =IFERROR(INDEX(IdentAcoes[Área de abrangência],MATCH($B42,IdentAcoes[ID Ação],0)),"") -> Bacia | O42: =IFERROR(INDEX(IdentAcoes[Detalhamento da área de abrangência],MATCH($B42,IdentAcoes[ID Ação],0)),"") -> Bacias PCJ
A43: PCJ6.2.5.2/2027FEHIDRO - Cobrança estadual | B43: PCJ6.2.5.2/2027 | C43: =INDEX(Financeiro[Descrição da ação],MATCH(B43,Financeiro[ID Ação], 0)) -> Apoio à regularização de outorga na área rural | D43: =IF(INDEX('Acompanhamento das metas 24-27'!$C$2:$C$50,MATCH(B43,'Acompanhamento das metas 24-27'!$A$2:$A$50,0))<>0,INDEX('Acompanhamento das metas 24-27'!$C$2:$C$50,MATCH(B43,'Acompanhamento das metas 24-27'!$A$2:$A$50,0)),"") -> Campanhas de divulgação realizadas e suporte técnico fornecido | E43: =IF(VLOOKUP(A43,Financeiro[[id_ação_Fonte_oculta]:[R$ Executado (2027)]],4,FALSE)=0,"",VLOOKUP(A43,Financeiro[[id_ação_Fonte_oculta]:[R$ Executado (2027)]],4,FALSE)) -> FEHIDRO - Cobrança estadual | F43: =IF(VLOOKUP(A43,Financeiro[[id_ação_Fonte_oculta]:[R$ Executado (2027)]],4,FALSE)=0,"",VLOOKUP(A43,Financeiro[[id_ação_Fonte_oculta]:[R$ Executado (2027)]],5,FALSE)) -> 0 | G43: =IF(VLOOKUP(A43,Financeiro[[id_ação_Fonte_oculta]:[R$ Executado (2027)]],4,FALSE)=0,"",VLOOKUP(A43,Financeiro[[id_ação_Fonte_oculta]:[R$ Executado (2027)]],8,FALSE)) -> 0 | H43: =IF(VLOOKUP(A43,Financeiro[[id_ação_Fonte_oculta]:[R$ Executado (2027)]],4,FALSE)=0,"",VLOOKUP(A43,Financeiro[[id_ação_Fonte_oculta]:[R$ Executado (2027)]],11,FALSE)) -> 0 | I43: =IF(VLOOKUP(A43,Financeiro[[id_ação_Fonte_oculta]:[R$ Executado (2027)]],4,FALSE)=0,"",VLOOKUP(A43,Financeiro[[id_ação_Fonte_oculta]:[R$ Executado (2027)]],14,FALSE)) -> 400000 | J43: 400000 | K43: =IFERROR(INDEX(IdentAcoes[SubPDC],MATCH(B43,IdentAcoes[ID Ação],0)),"") -> 8.3 - Comunicação | L43: =IFERROR(INDEX(IdentAcoes[Prioridade do PDC],MATCH(B43,IdentAcoes[ID Ação],0)),"") -> Não prioritário | M43: =IFERROR(INDEX(IdentAcoes[Segmento do executor],MATCH($B43,IdentAcoes[ID Ação],0)),"") -> Sociedade Civil | N43: =IFERROR(INDEX(IdentAcoes[Área de abrangência],MATCH($B43,IdentAcoes[ID Ação],0)),"") -> Bacia | O43: =IFERROR(INDEX(IdentAcoes[Detalhamento da área de abrangência],MATCH($B43,IdentAcoes[ID Ação],0)),"") -> Bacias PCJ
A44: PCJ1.1.1.1/2024Outras fontes | B44: PCJ1.1.1.1/2024 | C44: =INDEX(Financeiro[Descrição da ação],MATCH(B44,Financeiro[ID Ação], 0)) -> Elaboração de estudos para ampliação e melhoria dos sistemas de coleta de esgotos | D44: =IF(INDEX('Acompanhamento das metas 24-27'!$C$2:$C$50,MATCH(B44,'Acompanhamento das metas 24-27'!$A$2:$A$50,0))<>0,INDEX('Acompanhamento das metas 24-27'!$C$2:$C$50,MATCH(B44,'Acompanhamento das metas 24-27'!$A$2:$A$50,0)),"") -> Elaboração de ao menos 01 estudo | E44: =IF(VLOOKUP(A44,Financeiro[[id_ação_Fonte_oculta]:[R$ Executado (2027)]],4,FALSE)=0,"",VLOOKUP(A44,Financeiro[[id_ação_Fonte_oculta]:[R$ Executado (2027)]],4,FALSE)) -> Outras fontes | F44: =IF(VLOOKUP(A44,Financeiro[[id_ação_Fonte_oculta]:[R$ Executado (2027)]],4,FALSE)=0,"",VLOOKUP(A44,Financeiro[[id_ação_Fonte_oculta]:[R$ Executado (2027)]],5,FALSE)) -> 0 | G44: =IF(VLOOKUP(A44,Financeiro[[id_ação_Fonte_oculta]:[R$ Executado (2027)]],4,FALSE)=0,"",VLOOKUP(A44,Financeiro[[id_ação_Fonte_oculta]:[R$ Executado (2027)]],8,FALSE)) -> 0 | H44: =IF(VLOOKUP(A44,Financeiro[[id_ação_Fonte_oculta]:[R$ Executado (2027)]],4,FALSE)=0,"",VLOOKUP(A44,Financeiro[[id_ação_Fonte_oculta]:[R$ Executado (2027)]],11,FALSE)) -> 0 | I44: =IF(VLOOKUP(A44,Financeiro[[id_ação_Fonte_oculta]:[R$ Executado (2027)]],4,FALSE)=0,"",VLOOKUP(A44,Financeiro[[id_ação_Fonte_oculta]:[R$ Executado (2027)]],14,FALSE)) -> 0 | J44: 0 | K44: =IFERROR(INDEX(IdentAcoes[SubPDC],MATCH(B44,IdentAcoes[ID Ação],0)),"") -> 1.2 - Planejamento | L44: =IFERROR(INDEX(IdentAcoes[Prioridade do PDC],MATCH(B44,IdentAcoes[ID Ação],0)),"") -> PDC 1 e 2 | M44: =IFERROR(INDEX(IdentAcoes[Segmento do executor],MATCH($B44,IdentAcoes[ID Ação],0)),"") -> Município | N44: =IFERROR(INDEX(IdentAcoes[Área de abrangência],MATCH($B44,IdentAcoes[ID Ação],0)),"") -> Município | O44: =IFERROR(INDEX(IdentAcoes[Detalhamento da área de abrangência],MATCH($B44,IdentAcoes[ID Ação],0)),"") -> Municípios com prioridades para coleta, no Plano de Bacias
A45: PCJ2.2.3.1/2024Cobrança Federal | B45: PCJ2.2.3.1/2024 | C45: =INDEX(Financeiro[Descrição da ação],MATCH(B45,Financeiro[ID Ação], 0)) -> Acompanhamento e apoio aos estudos de viabilidade, projetos de engenharia e licenciamento ambiental das barragens de Pedreira, Duas Pontes e do ribeirão Piraí e do trecho Oeste do SAR | D45: =IF(INDEX('Acompanhamento das metas 24-27'!$C$2:$C$50,MATCH(B45,'Acompanhamento das metas 24-27'!$A$2:$A$50,0))<>0,INDEX('Acompanhamento das metas 24-27'!$C$2:$C$50,MATCH(B45,'Acompanhamento das metas 24-27'!$A$2:$A$50,0)),"") -> Criação de GT para acompanhamento | E45: =IF(VLOOKUP(A45,Financeiro[[id_ação_Fonte_oculta]:[R$ Executado (2027)]],4,FALSE)=0,"",VLOOKUP(A45,Financeiro[[id_ação_Fonte_oculta]:[R$ Executado (2027)]],4,FALSE)) -> Cobrança Federal | F45: =IF(VLOOKUP(A45,Financeiro[[id_ação_Fonte_oculta]:[R$ Executado (2027)]],4,FALSE)=0,"",VLOOKUP(A45,Financeiro[[id_ação_Fonte_oculta]:[R$ Executado (2027)]],5,FALSE)) -> 387303.25 | G45: =IF(VLOOKUP(A45,Financeiro[[id_ação_Fonte_oculta]:[R$ Executado (2027)]],4,FALSE)=0,"",VLOOKUP(A45,Financeiro[[id_ação_Fonte_oculta]:[R$ Executado (2027)]],8,FALSE)) -> 0 | H45: =IF(VLOOKUP(A45,Financeiro[[id_ação_Fonte_oculta]:[R$ Executado (2027)]],4,FALSE)=0,"",VLOOKUP(A45,Financeiro[[id_ação_Fonte_oculta]:[R$ Executado (2027)]],11,FALSE)) -> 0 | I45: =IF(VLOOKUP(A45,Financeiro[[id_ação_Fonte_oculta]:[R$ Executado (2027)]],4,FALSE)=0,"",VLOOKUP(A45,Financeiro[[id_ação_Fonte_oculta]:[R$ Executado (2027)]],14,FALSE)) -> 0 | J45: 387303.25 | K45: =IFERROR(INDEX(IdentAcoes[SubPDC],MATCH(B45,IdentAcoes[ID Ação],0)),"") -> 1.2 - Planejamento | L45: =IFERROR(INDEX(IdentAcoes[Prioridade do PDC],MATCH(B45,IdentAcoes[ID Ação],0)),"") -> PDC 1 e 2 | M45: =IFERROR(INDEX(IdentAcoes[Segmento do executor],MATCH($B45,IdentAcoes[ID Ação],0)),"") -> Sociedade Civil | N45: =IFERROR(INDEX(IdentAcoes[Área de abrangência],MATCH($B45,IdentAcoes[ID Ação],0)),"") -> Bacia | O45: =IFERROR(INDEX(IdentAcoes[Detalhamento da área de abrangência],MATCH($B45,IdentAcoes[ID Ação],0)),"") -> Bacias PCJ
A46: PCJ2.3.3.1/2024Cobrança Federal | B46: PCJ2.3.3.1/2024 | C46: =INDEX(Financeiro[Descrição da ação],MATCH(B46,Financeiro[ID Ação], 0)) -> Elaboração de um guia de manejo de drenagem e manejo de águas pluviais | D46: =IF(INDEX('Acompanhamento das metas 24-27'!$C$2:$C$50,MATCH(B46,'Acompanhamento das metas 24-27'!$A$2:$A$50,0))<>0,INDEX('Acompanhamento das metas 24-27'!$C$2:$C$50,MATCH(B46,'Acompanhamento das metas 24-27'!$A$2:$A$50,0)),"") -> 01 Manual elaborado | E46: =IF(VLOOKUP(A46,Financeiro[[id_ação_Fonte_oculta]:[R$ Executado (2027)]],4,FALSE)=0,"",VLOOKUP(A46,Financeiro[[id_ação_Fonte_oculta]:[R$ Executado (2027)]],4,FALSE)) -> Cobrança Federal | F46: =IF(VLOOKUP(A46,Financeiro[[id_ação_Fonte_oculta]:[R$ Executado (2027)]],4,FALSE)=0,"",VLOOKUP(A46,Financeiro[[id_ação_Fonte_oculta]:[R$ Executado (2027)]],5,FALSE)) -> 170000 | G46: =IF(VLOOKUP(A46,Financeiro[[id_ação_Fonte_oculta]:[R$ Executado (2027)]],4,FALSE)=0,"",VLOOKUP(A46,Financeiro[[id_ação_Fonte_oculta]:[R$ Executado (2027)]],8,FALSE)) -> 0 | H46: =IF(VLOOKUP(A46,Financeiro[[id_ação_Fonte_oculta]:[R$ Executado (2027)]],4,FALSE)=0,"",VLOOKUP(A46,Financeiro[[id_ação_Fonte_oculta]:[R$ Executado (2027)]],11,FALSE)) -> 0 | I46: =IF(VLOOKUP(A46,Financeiro[[id_ação_Fonte_oculta]:[R$ Executado (2027)]],4,FALSE)=0,"",VLOOKUP(A46,Financeiro[[id_ação_Fonte_oculta]:[R$ Executado (2027)]],14,FALSE)) -> 0 | J46: 170000 | K46: =IFERROR(INDEX(IdentAcoes[SubPDC],MATCH(B46,IdentAcoes[ID Ação],0)),"") -> 1.2 - Planejamento | L46: =IFERROR(INDEX(IdentAcoes[Prioridade do PDC],MATCH(B46,IdentAcoes[ID Ação],0)),"") -> PDC 1 e 2 | M46: =IFERROR(INDEX(IdentAcoes[Segmento do executor],MATCH($B46,IdentAcoes[ID Ação],0)),"") -> Sociedade Civil | N46: =IFERROR(INDEX(IdentAcoes[Área de abrangência],MATCH($B46,IdentAcoes[ID Ação],0)),"") -> Bacia | O46: =IFERROR(INDEX(IdentAcoes[Detalhamento da área de abrangência],MATCH($B46,IdentAcoes[ID Ação],0)),"") -> Bacias PCJ
A47: PCJ1.3.1.2/2025Cobrança Federal | B47: PCJ1.3.1.2/2025 | C47: =INDEX(Financeiro[Descrição da ação],MATCH(B47,Financeiro[ID Ação], 0)) -> Elaboração de estudo piloto para avaliação da carga difusa de origem urbana e rural afluente nos corpos hídricos das Bacias PCJ | D47: =IF(INDEX('Acompanhamento das metas 24-27'!$C$2:$C$50,MATCH(B47,'Acompanhamento das metas 24-27'!$A$2:$A$50,0))<>0,INDEX('Acompanhamento das metas 24-27'!$C$2:$C$50,MATCH(B47,'Acompanhamento das metas 24-27'!$A$2:$A$50,0)),"") -> 01 estudo elaborado | E47: =IF(VLOOKUP(A47,Financeiro[[id_ação_Fonte_oculta]:[R$ Executado (2027)]],4,FALSE)=0,"",VLOOKUP(A47,Financeiro[[id_ação_Fonte_oculta]:[R$ Executado (2027)]],4,FALSE)) -> Cobrança Federal | F47: =IF(VLOOKUP(A47,Financeiro[[id_ação_Fonte_oculta]:[R$ Executado (2027)]],4,FALSE)=0,"",VLOOKUP(A47,Financeiro[[id_ação_Fonte_oculta]:[R$ Executado (2027)]],5,FALSE)) -> 0 | G47: =IF(VLOOKUP(A47,Financeiro[[id_ação_Fonte_oculta]:[R$ Executado (2027)]],4,FALSE)=0,"",VLOOKUP(A47,Financeiro[[id_ação_Fonte_oculta]:[R$ Executado (2027)]],8,FALSE)) -> 490046.8413 | H47: =IF(VLOOKUP(A47,Financeiro[[id_ação_Fonte_oculta]:[R$ Executado (2027)]],4,FALSE)=0,"",VLOOKUP(A47,Financeiro[[id_ação_Fonte_oculta]:[R$ Executado (2027)]],11,FALSE)) -> 0 | I47: =IF(VLOOKUP(A47,Financeiro[[id_ação_Fonte_oculta]:[R$ Executado (2027)]],4,FALSE)=0,"",VLOOKUP(A47,Financeiro[[id_ação_Fonte_oculta]:[R$ Executado (2027)]],14,FALSE)) -> 0 | J47: 490046.8413 | K47: =IFERROR(INDEX(IdentAcoes[SubPDC],MATCH(B47,IdentAcoes[ID Ação],0)),"") -> 1.2 - Planejamento | L47: =IFERROR(INDEX(IdentAcoes[Prioridade do PDC],MATCH(B47,IdentAcoes[ID Ação],0)),"") -> PDC 1 e 2 | M47: =IFERROR(INDEX(IdentAcoes[Segmento do executor],MATCH($B47,IdentAcoes[ID Ação],0)),"") -> Sociedade Civil | N47: =IFERROR(INDEX(IdentAcoes[Área de abrangência],MATCH($B47,IdentAcoes[ID Ação],0)),"") -> Bacia | O47: =IFERROR(INDEX(IdentAcoes[Detalhamento da área de abrangência],MATCH($B47,IdentAcoes[ID Ação],0)),"") -> Bacias PCJ
A48: PCJ6.2.5.3/2024Cobrança Federal | B48: PCJ6.2.5.3/2024 | C48: =INDEX(Financeiro[Descrição da ação],MATCH(B48,Financeiro[ID Ação], 0)) -> Apoio operacional para fiscalização de outorgas | D48: =IF(INDEX('Acompanhamento das metas 24-27'!$C$2:$C$50,MATCH(B48,'Acompanhamento das metas 24-27'!$A$2:$A$50,0))<>0,INDEX('Acompanhamento das metas 24-27'!$C$2:$C$50,MATCH(B48,'Acompanhamento das metas 24-27'!$A$2:$A$50,0)),"") -> Apoio operacional contínuo | E48: =IF(VLOOKUP(A48,Financeiro[[id_ação_Fonte_oculta]:[R$ Executado (2027)]],4,FALSE)=0,"",VLOOKUP(A48,Financeiro[[id_ação_Fonte_oculta]:[R$ Executado (2027)]],4,FALSE)) -> Cobrança Federal | F48: =IF(VLOOKUP(A48,Financeiro[[id_ação_Fonte_oculta]:[R$ Executado (2027)]],4,FALSE)=0,"",VLOOKUP(A48,Financeiro[[id_ação_Fonte_oculta]:[R$ Executado (2027)]],5,FALSE)) -> 2200000 | G48: =IF(VLOOKUP(A48,Financeiro[[id_ação_Fonte_oculta]:[R$ Executado (2027)]],4,FALSE)=0,"",VLOOKUP(A48,Financeiro[[id_ação_Fonte_oculta]:[R$ Executado (2027)]],8,FALSE)) -> 1400000 | H48: =IF(VLOOKUP(A48,Financeiro[[id_ação_Fonte_oculta]:[R$ Executado (2027)]],4,FALSE)=0,"",VLOOKUP(A48,Financeiro[[id_ação_Fonte_oculta]:[R$ Executado (2027)]],11,FALSE)) -> 0 | I48: =IF(VLOOKUP(A48,Financeiro[[id_ação_Fonte_oculta]:[R$ Executado (2027)]],4,FALSE)=0,"",VLOOKUP(A48,Financeiro[[id_ação_Fonte_oculta]:[R$ Executado (2027)]],14,FALSE)) -> 0 | J48: 3600000 | K48: =IFERROR(INDEX(IdentAcoes[SubPDC],MATCH(B48,IdentAcoes[ID Ação],0)),"") -> 2.2 - Outorga | L48: =IFERROR(INDEX(IdentAcoes[Prioridade do PDC],MATCH(B48,IdentAcoes[ID Ação],0)),"") -> PDC 1 e 2 | M48: =IFERROR(INDEX(IdentAcoes[Segmento do executor],MATCH($B48,IdentAcoes[ID Ação],0)),"") -> Sociedade Civil | N48: =IFERROR(INDEX(IdentAcoes[Área de abrangência],MATCH($B48,IdentAcoes[ID Ação],0)),"") -> Bacia | O48: =IFERROR(INDEX(IdentAcoes[Detalhamento da área de abrangência],MATCH($B48,IdentAcoes[ID Ação],0)),"") -> Bacias PCJ
A49: PCJ6.1.1.2/2024Cobrança Federal | B49: PCJ6.1.1.2/2024 | C49: =INDEX(Financeiro[Descrição da ação],MATCH(B49,Financeiro[ID Ação], 0)) -> Apoio operacional para a área de cobrança pelo uso dos recursos hídricos | D49: =IF(INDEX('Acompanhamento das metas 24-27'!$C$2:$C$50,MATCH(B49,'Acompanhamento das metas 24-27'!$A$2:$A$50,0))<>0,INDEX('Acompanhamento das metas 24-27'!$C$2:$C$50,MATCH(B49,'Acompanhamento das metas 24-27'!$A$2:$A$50,0)),"") -> Apoio operacional contínuo | E49: =IF(VLOOKUP(A49,Financeiro[[id_ação_Fonte_oculta]:[R$ Executado (2027)]],4,FALSE)=0,"",VLOOKUP(A49,Financeiro[[id_ação_Fonte_oculta]:[R$ Executado (2027)]],4,FALSE)) -> Cobrança Federal | F49: =IF(VLOOKUP(A49,Financeiro[[id_ação_Fonte_oculta]:[R$ Executado (2027)]],4,FALSE)=0,"",VLOOKUP(A49,Financeiro[[id_ação_Fonte_oculta]:[R$ Executado (2027)]],5,FALSE)) -> 3715960.39 | G49: =IF(VLOOKUP(A49,Financeiro[[id_ação_Fonte_oculta]:[R$ Executado (2027)]],4,FALSE)=0,"",VLOOKUP(A49,Financeiro[[id_ação_Fonte_oculta]:[R$ Executado (2027)]],8,FALSE)) -> 3822087.082 | H49: =IF(VLOOKUP(A49,Financeiro[[id_ação_Fonte_oculta]:[R$ Executado (2027)]],4,FALSE)=0,"",VLOOKUP(A49,Financeiro[[id_ação_Fonte_oculta]:[R$ Executado (2027)]],11,FALSE)) -> 0 | I49: =IF(VLOOKUP(A49,Financeiro[[id_ação_Fonte_oculta]:[R$ Executado (2027)]],4,FALSE)=0,"",VLOOKUP(A49,Financeiro[[id_ação_Fonte_oculta]:[R$ Executado (2027)]],14,FALSE)) -> 0 | J49: 7538047.472 | K49: =IFERROR(INDEX(IdentAcoes[SubPDC],MATCH(B49,IdentAcoes[ID Ação],0)),"") -> 2.3 - Cobrança | L49: =IFERROR(INDEX(IdentAcoes[Prioridade do PDC],MATCH(B49,IdentAcoes[ID Ação],0)),"") -> PDC 1 e 2 | M49: =IFERROR(INDEX(IdentAcoes[Segmento do executor],MATCH($B49,IdentAcoes[ID Ação],0)),"") -> Sociedade Civil | N49: =IFERROR(INDEX(IdentAcoes[Área de abrangência],MATCH($B49,IdentAcoes[ID Ação],0)),"") -> Bacia | O49: =IFERROR(INDEX(IdentAcoes[Detalhamento da área de abrangência],MATCH($B49,IdentAcoes[ID Ação],0)),"") -> Bacias PCJ
A50: PCJ6.1.1.5/2024Cobrança Federal | B50: PCJ6.1.1.5/2024 | C50: =INDEX(Financeiro[Descrição da ação],MATCH(B50,Financeiro[ID Ação], 0)) -> Apoio operacional para acompanhamento de projetos da área de Sistema de Informações | D50: =IF(INDEX('Acompanhamento das metas 24-27'!$C$2:$C$50,MATCH(B50,'Acompanhamento das metas 24-27'!$A$2:$A$50,0))<>0,INDEX('Acompanhamento das metas 24-27'!$C$2:$C$50,MATCH(B50,'Acompanhamento das metas 24-27'!$A$2:$A$50,0)),"") -> Apoio operacional contínuo | E50: =IF(VLOOKUP(A50,Financeiro[[id_ação_Fonte_oculta]:[R$ Executado (2027)]],4,FALSE)=0,"",VLOOKUP(A50,Financeiro[[id_ação_Fonte_oculta]:[R$ Executado (2027)]],4,FALSE)) -> Cobrança Federal | F50: =IF(VLOOKUP(A50,Financeiro[[id_ação_Fonte_oculta]:[R$ Executado (2027)]],4,FALSE)=0,"",VLOOKUP(A50,Financeiro[[id_ação_Fonte_oculta]:[R$ Executado (2027)]],5,FALSE)) -> 3200000 | G50: =IF(VLOOKUP(A50,Financeiro[[id_ação_Fonte_oculta]:[R$ Executado (2027)]],4,FALSE)=0,"",VLOOKUP(A50,Financeiro[[id_ação_Fonte_oculta]:[R$ Executado (2027)]],8,FALSE)) -> 3200000 | H50: =IF(VLOOKUP(A50,Financeiro[[id_ação_Fonte_oculta]:[R$ Executado (2027)]],4,FALSE)=0,"",VLOOKUP(A50,Financeiro[[id_ação_Fonte_oculta]:[R$ Executado (2027)]],11,FALSE)) -> 0 | I50: =IF(VLOOKUP(A50,Financeiro[[id_ação_Fonte_oculta]:[R$ Executado (2027)]],4,FALSE)=0,"",VLOOKUP(A50,Financeiro[[id_ação_Fonte_oculta]:[R$ Executado (2027)]],14,FALSE)) -> 0 | J50: 6400000 | K50: =IFERROR(INDEX(IdentAcoes[SubPDC],MATCH(B50,IdentAcoes[ID Ação],0)),"") -> 2.5 - Redes de monitoramento e SI | L50: =IFERROR(INDEX(IdentAcoes[Prioridade do PDC],MATCH(B50,IdentAcoes[ID Ação],0)),"") -> PDC 1 e 2 | M50: =IFERROR(INDEX(IdentAcoes[Segmento do executor],MATCH($B50,IdentAcoes[ID Ação],0)),"") -> Sociedade Civil | N50: =IFERROR(INDEX(IdentAcoes[Área de abrangência],MATCH($B50,IdentAcoes[ID Ação],0)),"") -> Bacia | O50: =IFERROR(INDEX(IdentAcoes[Detalhamento da área de abrangência],MATCH($B50,IdentAcoes[ID Ação],0)),"") -> Bacias PCJ
A51: PCJ6.2.3.1/2024Cobrança Federal | B51: PCJ6.2.3.1/2024 | C51: =INDEX(Financeiro[Descrição da ação],MATCH(B51,Financeiro[ID Ação], 0)) -> Expansão, integração, operação e manutenção da rede de monitoramento quali-quantitativo dos recursos hídricos | D51: =IF(INDEX('Acompanhamento das metas 24-27'!$C$2:$C$50,MATCH(B51,'Acompanhamento das metas 24-27'!$A$2:$A$50,0))<>0,INDEX('Acompanhamento das metas 24-27'!$C$2:$C$50,MATCH(B51,'Acompanhamento das metas 24-27'!$A$2:$A$50,0)),"") -> Disponibilização de dados de ao menos 36 postos ativos | E51: =IF(VLOOKUP(A51,Financeiro[[id_ação_Fonte_oculta]:[R$ Executado (2027)]],4,FALSE)=0,"",VLOOKUP(A51,Financeiro[[id_ação_Fonte_oculta]:[R$ Executado (2027)]],4,FALSE)) -> Cobrança Federal | F51: =IF(VLOOKUP(A51,Financeiro[[id_ação_Fonte_oculta]:[R$ Executado (2027)]],4,FALSE)=0,"",VLOOKUP(A51,Financeiro[[id_ação_Fonte_oculta]:[R$ Executado (2027)]],5,FALSE)) -> 5183320.44 | G51: =IF(VLOOKUP(A51,Financeiro[[id_ação_Fonte_oculta]:[R$ Executado (2027)]],4,FALSE)=0,"",VLOOKUP(A51,Financeiro[[id_ação_Fonte_oculta]:[R$ Executado (2027)]],8,FALSE)) -> 4340020.015 | H51: =IF(VLOOKUP(A51,Financeiro[[id_ação_Fonte_oculta]:[R$ Executado (2027)]],4,FALSE)=0,"",VLOOKUP(A51,Financeiro[[id_ação_Fonte_oculta]:[R$ Executado (2027)]],11,FALSE)) -> 0 | I51: =IF(VLOOKUP(A51,Financeiro[[id_ação_Fonte_oculta]:[R$ Executado (2027)]],4,FALSE)=0,"",VLOOKUP(A51,Financeiro[[id_ação_Fonte_oculta]:[R$ Executado (2027)]],14,FALSE)) -> 0 | J51: 9523340.455 | K51: =IFERROR(INDEX(IdentAcoes[SubPDC],MATCH(B51,IdentAcoes[ID Ação],0)),"") -> 2.5 - Redes de monitoramento e SI | L51: =IFERROR(INDEX(IdentAcoes[Prioridade do PDC],MATCH(B51,IdentAcoes[ID Ação],0)),"") -> PDC 1 e 2 | M51: =IFERROR(INDEX(IdentAcoes[Segmento do executor],MATCH($B51,IdentAcoes[ID Ação],0)),"") -> Sociedade Civil | N51: =IFERROR(INDEX(IdentAcoes[Área de abrangência],MATCH($B51,IdentAcoes[ID Ação],0)),"") -> Bacia | O51: =IFERROR(INDEX(IdentAcoes[Detalhamento da área de abrangência],MATCH($B51,IdentAcoes[ID Ação],0)),"") -> Bacias PCJ
A52: PCJ2.1.1.1/2024Cobrança Federal | B52: PCJ2.1.1.1/2024 | C52: =INDEX(Financeiro[Descrição da ação],MATCH(B52,Financeiro[ID Ação], 0)) -> Manutenção e aprimoramento de um modelo chuva-vazão para as Bacias PCJ | D52: =IF(INDEX('Acompanhamento das metas 24-27'!$C$2:$C$100,MATCH(B52,'Acompanhamento das metas 24-27'!$A$2:$A$50,0))<>0,INDEX('Acompanhamento das metas 24-27'!$C$2:$C$50,MATCH(B52,'Acompanhamento das metas 24-27'!$A$2:$A$50,0)),"") -> Disponibilidade de ao menos 01 modelo | E52: =IF(VLOOKUP(A52,Financeiro[[id_ação_Fonte_oculta]:[R$ Executado (2027)]],4,FALSE)=0,"",VLOOKUP(A52,Financeiro[[id_ação_Fonte_oculta]:[R$ Executado (2027)]],4,FALSE)) -> Cobrança Federal | F52: =IF(VLOOKUP(A52,Financeiro[[id_ação_Fonte_oculta]:[R$ Executado (2027)]],4,FALSE)=0,"",VLOOKUP(A52,Financeiro[[id_ação_Fonte_oculta]:[R$ Executado (2027)]],5,FALSE)) -> 538170.04 | G52: =IF(VLOOKUP(A52,Financeiro[[id_ação_Fonte_oculta]:[R$ Executado (2027)]],4,FALSE)=0,"",VLOOKUP(A52,Financeiro[[id_ação_Fonte_oculta]:[R$ Executado (2027)]],8,FALSE)) -> 555929.6499 | H52: =IF(VLOOKUP(A52,Financeiro[[id_ação_Fonte_oculta]:[R$ Executado (2027)]],4,FALSE)=0,"",VLOOKUP(A52,Financeiro[[id_ação_Fonte_oculta]:[R$ Executado (2027)]],11,FALSE)) -> 0 | I52: =IF(VLOOKUP(A52,Financeiro[[id_ação_Fonte_oculta]:[R$ Executado (2027)]],4,FALSE)=0,"",VLOOKUP(A52,Financeiro[[id_ação_Fonte_oculta]:[R$ Executado (2027)]],14,FALSE)) -> 0 | J52: 1094099.69 | K52: =IFERROR(INDEX(IdentAcoes[SubPDC],MATCH(B52,IdentAcoes[ID Ação],0)),"") -> 2.5 - Redes de monitoramento e SI | L52: =IFERROR(INDEX(IdentAcoes[Prioridade do PDC],MATCH(B52,IdentAcoes[ID Ação],0)),"") -> PDC 1 e 2 | M52: =IFERROR(INDEX(IdentAcoes[Segmento do executor],MATCH($B52,IdentAcoes[ID Ação],0)),"") -> Sociedade Civil | N52: =IFERROR(INDEX(IdentAcoes[Área de abrangência],MATCH($B52,IdentAcoes[ID Ação],0)),"") -> Bacia | O52: =IFERROR(INDEX(IdentAcoes[Detalhamento da área de abrangência],MATCH($B52,IdentAcoes[ID Ação],0)),"") -> Bacias PCJ
A53: PCJ2.1.2.1/2025Cobrança Federal | B53: PCJ2.1.2.1/2025 | C53: =INDEX(Financeiro[Descrição da ação],MATCH(B53,Financeiro[ID Ação], 0)) -> Aprimoramento de modelo de simulação hidrodinâmica do tempo de trânsito e do amortecimento da vazão preferencialmente à jusante do Sistema Cantareira | D53: =IF(INDEX('Acompanhamento das metas 24-27'!$C$2:$C$100,MATCH(B53,'Acompanhamento das metas 24-27'!$A$2:$A$100,0))<>0,INDEX('Acompanhamento das metas 24-27'!$C$2:$C$100,MATCH(B53,'Acompanhamento das metas 24-27'!$A$2:$A$100,0)),"") -> 01 modelo calibrado | E53: =IF(VLOOKUP(A53,Financeiro[[id_ação_Fonte_oculta]:[R$ Executado (2027)]],4,FALSE)=0,"",VLOOKUP(A53,Financeiro[[id_ação_Fonte_oculta]:[R$ Executado (2027)]],4,FALSE)) -> Cobrança Federal | F53: =IF(VLOOKUP(A53,Financeiro[[id_ação_Fonte_oculta]:[R$ Executado (2027)]],4,FALSE)=0,"",VLOOKUP(A53,Financeiro[[id_ação_Fonte_oculta]:[R$ Executado (2027)]],5,FALSE)) -> 0 | G53: =IF(VLOOKUP(A53,Financeiro[[id_ação_Fonte_oculta]:[R$ Executado (2027)]],4,FALSE)=0,"",VLOOKUP(A53,Financeiro[[id_ação_Fonte_oculta]:[R$ Executado (2027)]],8,FALSE)) -> 541863.21 | H53: =IF(VLOOKUP(A53,Financeiro[[id_ação_Fonte_oculta]:[R$ Executado (2027)]],4,FALSE)=0,"",VLOOKUP(A53,Financeiro[[id_ação_Fonte_oculta]:[R$ Executado (2027)]],11,FALSE)) -> 0 | I53: =IF(VLOOKUP(A53,Financeiro[[id_ação_Fonte_oculta]:[R$ Executado (2027)]],4,FALSE)=0,"",VLOOKUP(A53,Financeiro[[id_ação_Fonte_oculta]:[R$ Executado (2027)]],14,FALSE)) -> 0 | J53: 541863.21 | K53: =IFERROR(INDEX(IdentAcoes[SubPDC],MATCH(B53,IdentAcoes[ID Ação],0)),"") -> 2.5 - Redes de monitoramento e SI | L53: =IFERROR(INDEX(IdentAcoes[Prioridade do PDC],MATCH(B53,IdentAcoes[ID Ação],0)),"") -> PDC 1 e 2 | M53: =IFERROR(INDEX(IdentAcoes[Segmento do executor],MATCH($B53,IdentAcoes[ID Ação],0)),"") -> Sociedade Civil | N53: =IFERROR(INDEX(IdentAcoes[Área de abrangência],MATCH($B53,IdentAcoes[ID Ação],0)),"") -> Bacia | O53: =IFERROR(INDEX(IdentAcoes[Detalhamento da área de abrangência],MATCH($B53,IdentAcoes[ID Ação],0)),"") -> Bacias PCJ
A54: PCJ6.2.6.1/2024Cobrança Federal | B54: PCJ6.2.6.1/2024 | C54: =INDEX(Financeiro[Descrição da ação],MATCH(B54,Financeiro[ID Ação], 0)) -> Apoio operacional para gerenciamento da implementação e da revisão do Plano de Bacias | D54: =IF(INDEX('Acompanhamento das metas 24-27'!$C$2:$C$100,MATCH(B54,'Acompanhamento das metas 24-27'!$A$2:$A$100,0))<>0,INDEX('Acompanhamento das metas 24-27'!$C$2:$C$100,MATCH(B54,'Acompanhamento das metas 24-27'!$A$2:$A$100,0)),"") -> Contratação de ao menos 01 pessoa | E54: =IF(VLOOKUP(A54,Financeiro[[id_ação_Fonte_oculta]:[R$ Executado (2027)]],4,FALSE)=0,"",VLOOKUP(A54,Financeiro[[id_ação_Fonte_oculta]:[R$ Executado (2027)]],4,FALSE)) -> Cobrança Federal | F54: =IF(VLOOKUP(A54,Financeiro[[id_ação_Fonte_oculta]:[R$ Executado (2027)]],4,FALSE)=0,"",VLOOKUP(A54,Financeiro[[id_ação_Fonte_oculta]:[R$ Executado (2027)]],5,FALSE)) -> 1869464.32 | G54: =IF(VLOOKUP(A54,Financeiro[[id_ação_Fonte_oculta]:[R$ Executado (2027)]],4,FALSE)=0,"",VLOOKUP(A54,Financeiro[[id_ação_Fonte_oculta]:[R$ Executado (2027)]],8,FALSE)) -> 1898156.643 | H54: =IF(VLOOKUP(A54,Financeiro[[id_ação_Fonte_oculta]:[R$ Executado (2027)]],4,FALSE)=0,"",VLOOKUP(A54,Financeiro[[id_ação_Fonte_oculta]:[R$ Executado (2027)]],11,FALSE)) -> 0 | I54: =IF(VLOOKUP(A54,Financeiro[[id_ação_Fonte_oculta]:[R$ Executado (2027)]],4,FALSE)=0,"",VLOOKUP(A54,Financeiro[[id_ação_Fonte_oculta]:[R$ Executado (2027)]],14,FALSE)) -> 0 | J54: 3767620.963 | K54: =IFERROR(INDEX(IdentAcoes[SubPDC],MATCH(B54,IdentAcoes[ID Ação],0)),"") -> 2.6 - Integração | L54: =IFERROR(INDEX(IdentAcoes[Prioridade do PDC],MATCH(B54,IdentAcoes[ID Ação],0)),"") -> PDC 1 e 2 | M54: =IFERROR(INDEX(IdentAcoes[Segmento do executor],MATCH($B54,IdentAcoes[ID Ação],0)),"") -> Sociedade Civil | N54: =IFERROR(INDEX(IdentAcoes[Área de abrangência],MATCH($B54,IdentAcoes[ID Ação],0)),"") -> Bacia | O54: =IFERROR(INDEX(IdentAcoes[Detalhamento da área de abrangência],MATCH($B54,IdentAcoes[ID Ação],0)),"") -> Bacias PCJ
A55: PCJ6.1.1.4/2024Cobrança Federal | B55: PCJ6.1.1.4/2024 | C55: =INDEX(Financeiro[Descrição da ação],MATCH(B55,Financeiro[ID Ação], 0)) -> Apoio Operacional para acompanhamento de empreendimentos de demanda espontânea | D55: =IF(INDEX('Acompanhamento das metas 24-27'!$C$2:$C$100,MATCH(B55,'Acompanhamento das metas 24-27'!$A$2:$A$100,0))<>0,INDEX('Acompanhamento das metas 24-27'!$C$2:$C$100,MATCH(B55,'Acompanhamento das metas 24-27'!$A$2:$A$100,0)),"") -> Remuneração de agentes técnicos e financeiros para empreendimentos deliberados pelos Comitês PCJ | E55: =IF(VLOOKUP(A55,Financeiro[[id_ação_Fonte_oculta]:[R$ Executado (2027)]],4,FALSE)=0,"",VLOOKUP(A55,Financeiro[[id_ação_Fonte_oculta]:[R$ Executado (2027)]],4,FALSE)) -> Cobrança Federal | F55: =IF(VLOOKUP(A55,Financeiro[[id_ação_Fonte_oculta]:[R$ Executado (2027)]],4,FALSE)=0,"",VLOOKUP(A55,Financeiro[[id_ação_Fonte_oculta]:[R$ Executado (2027)]],5,FALSE)) -> 1506712.43 | G55: =IF(VLOOKUP(A55,Financeiro[[id_ação_Fonte_oculta]:[R$ Executado (2027)]],4,FALSE)=0,"",VLOOKUP(A55,Financeiro[[id_ação_Fonte_oculta]:[R$ Executado (2027)]],8,FALSE)) -> 1556433.939 | H55: =IF(VLOOKUP(A55,Financeiro[[id_ação_Fonte_oculta]:[R$ Executado (2027)]],4,FALSE)=0,"",VLOOKUP(A55,Financeiro[[id_ação_Fonte_oculta]:[R$ Executado (2027)]],11,FALSE)) -> 0 | I55: =IF(VLOOKUP(A55,Financeiro[[id_ação_Fonte_oculta]:[R$ Executado (2027)]],4,FALSE)=0,"",VLOOKUP(A55,Financeiro[[id_ação_Fonte_oculta]:[R$ Executado (2027)]],14,FALSE)) -> 0 | J55: 3063146.369 | K55: =IFERROR(INDEX(IdentAcoes[SubPDC],MATCH(B55,IdentAcoes[ID Ação],0)),"") -> 2.6 - Integração | L55: =IFERROR(INDEX(IdentAcoes[Prioridade do PDC],MATCH(B55,IdentAcoes[ID Ação],0)),"") -> PDC 1 e 2 | M55: =IFERROR(INDEX(IdentAcoes[Segmento do executor],MATCH($B55,IdentAcoes[ID Ação],0)),"") -> Sociedade Civil | N55: =IFERROR(INDEX(IdentAcoes[Área de abrangência],MATCH($B55,IdentAcoes[ID Ação],0)),"") -> Bacia | O55: =IFERROR(INDEX(IdentAcoes[Detalhamento da área de abrangência],MATCH($B55,IdentAcoes[ID Ação],0)),"") -> Bacias PCJ
A56: PCJ6.1.2.2/2024Cobrança Federal | B56: PCJ6.1.2.2/2024 | C56: =INDEX(Financeiro[Descrição da ação],MATCH(B56,Financeiro[ID Ação], 0)) -> Remuneração de agentes técnicos e financeiros para empreendimentos deliberados pelos Comitês PCJ | D56: =IF(INDEX('Acompanhamento das metas 24-27'!$C$2:$C$100,MATCH(B56,'Acompanhamento das metas 24-27'!$A$2:$A$100,0))<>0,INDEX('Acompanhamento das metas 24-27'!$C$2:$C$100,MATCH(B56,'Acompanhamento das metas 24-27'!$A$2:$A$100,0)),"") -> Desembolso de ao menos 50% do valor previsto | E56: =IF(VLOOKUP(A56,Financeiro[[id_ação_Fonte_oculta]:[R$ Executado (2027)]],4,FALSE)=0,"",VLOOKUP(A56,Financeiro[[id_ação_Fonte_oculta]:[R$ Executado (2027)]],4,FALSE)) -> Cobrança Federal | F56: =IF(VLOOKUP(A56,Financeiro[[id_ação_Fonte_oculta]:[R$ Executado (2027)]],4,FALSE)=0,"",VLOOKUP(A56,Financeiro[[id_ação_Fonte_oculta]:[R$ Executado (2027)]],5,FALSE)) -> 1316626.55 | G56: =IF(VLOOKUP(A56,Financeiro[[id_ação_Fonte_oculta]:[R$ Executado (2027)]],4,FALSE)=0,"",VLOOKUP(A56,Financeiro[[id_ação_Fonte_oculta]:[R$ Executado (2027)]],8,FALSE)) -> 1316626.55 | H56: =IF(VLOOKUP(A56,Financeiro[[id_ação_Fonte_oculta]:[R$ Executado (2027)]],4,FALSE)=0,"",VLOOKUP(A56,Financeiro[[id_ação_Fonte_oculta]:[R$ Executado (2027)]],11,FALSE)) -> 0 | I56: =IF(VLOOKUP(A56,Financeiro[[id_ação_Fonte_oculta]:[R$ Executado (2027)]],4,FALSE)=0,"",VLOOKUP(A56,Financeiro[[id_ação_Fonte_oculta]:[R$ Executado (2027)]],14,FALSE)) -> 0 | J56: 2633253.1 | K56: =IFERROR(INDEX(IdentAcoes[SubPDC],MATCH(B56,IdentAcoes[ID Ação],0)),"") -> 2.6 - Integração | L56: =IFERROR(INDEX(IdentAcoes[Prioridade do PDC],MATCH(B56,IdentAcoes[ID Ação],0)),"") -> PDC 1 e 2 | M56: =IFERROR(INDEX(IdentAcoes[Segmento do executor],MATCH($B56,IdentAcoes[ID Ação],0)),"") -> Sociedade Civil | N56: =IFERROR(INDEX(IdentAcoes[Área de abrangência],MATCH($B56,IdentAcoes[ID Ação],0)),"") -> Bacia | O56: =IFERROR(INDEX(IdentAcoes[Detalhamento da área de abrangência],MATCH($B56,IdentAcoes[ID Ação],0)),"") -> Bacias PCJ
A57: PCJ6.1.2.3/2024Cobrança Federal | B57: PCJ6.1.2.3/2024 | C57: =INDEX(Financeiro[Descrição da ação],MATCH(B57,Financeiro[ID Ação], 0)) -> Logística de Suporte às reuniões Plenárias e das CTs dos Comitês PCJ | D57: =IF(INDEX('Acompanhamento das metas 24-27'!$C$2:$C$100,MATCH(B57,'Acompanhamento das metas 24-27'!$A$2:$A$100,0))<>0,INDEX('Acompanhamento das metas 24-27'!$C$2:$C$100,MATCH(B57,'Acompanhamento das metas 24-27'!$A$2:$A$100,0)),"") -> Apoio operacional contínuo | E57: =IF(VLOOKUP(A57,Financeiro[[id_ação_Fonte_oculta]:[R$ Executado (2027)]],4,FALSE)=0,"",VLOOKUP(A57,Financeiro[[id_ação_Fonte_oculta]:[R$ Executado (2027)]],4,FALSE)) -> Cobrança Federal | F57: =IF(VLOOKUP(A57,Financeiro[[id_ação_Fonte_oculta]:[R$ Executado (2027)]],4,FALSE)=0,"",VLOOKUP(A57,Financeiro[[id_ação_Fonte_oculta]:[R$ Executado (2027)]],5,FALSE)) -> 400000 | G57: =IF(VLOOKUP(A57,Financeiro[[id_ação_Fonte_oculta]:[R$ Executado (2027)]],4,FALSE)=0,"",VLOOKUP(A57,Financeiro[[id_ação_Fonte_oculta]:[R$ Executado (2027)]],8,FALSE)) -> 400000 | H57: =IF(VLOOKUP(A57,Financeiro[[id_ação_Fonte_oculta]:[R$ Executado (2027)]],4,FALSE)=0,"",VLOOKUP(A57,Financeiro[[id_ação_Fonte_oculta]:[R$ Executado (2027)]],11,FALSE)) -> 0 | I57: =IF(VLOOKUP(A57,Financeiro[[id_ação_Fonte_oculta]:[R$ Executado (2027)]],4,FALSE)=0,"",VLOOKUP(A57,Financeiro[[id_ação_Fonte_oculta]:[R$ Executado (2027)]],14,FALSE)) -> 0 | J57: 800000 | K57: =IFERROR(INDEX(IdentAcoes[SubPDC],MATCH(B57,IdentAcoes[ID Ação],0)),"") -> 2.6 - Integração | L57: =IFERROR(INDEX(IdentAcoes[Prioridade do PDC],MATCH(B57,IdentAcoes[ID Ação],0)),"") -> PDC 1 e 2 | M57: =IFERROR(INDEX(IdentAcoes[Segmento do executor],MATCH($B57,IdentAcoes[ID Ação],0)),"") -> Sociedade Civil | N57: =IFERROR(INDEX(IdentAcoes[Área de abrangência],MATCH($B57,IdentAcoes[ID Ação],0)),"") -> Bacia | O57: =IFERROR(INDEX(IdentAcoes[Detalhamento da área de abrangência],MATCH($B57,IdentAcoes[ID Ação],0)),"") -> Bacias PCJ
A58: PCJ6.1.2.1/2024Cobrança Federal | B58: PCJ6.1.2.1/2024 | C58: =INDEX(Financeiro[Descrição da ação],MATCH(B58,Financeiro[ID Ação], 0)) -> Apoio operacional para a Secretaria Executiva dos Comitês PCJ | D58: =IF(INDEX('Acompanhamento das metas 24-27'!$C$2:$C$100,MATCH(B58,'Acompanhamento das metas 24-27'!$A$2:$A$100,0))<>0,INDEX('Acompanhamento das metas 24-27'!$C$2:$C$100,MATCH(B58,'Acompanhamento das metas 24-27'!$A$2:$A$100,0)),"") -> Apoio operacional contínuo | E58: =IF(VLOOKUP(A58,Financeiro[[id_ação_Fonte_oculta]:[R$ Executado (2027)]],4,FALSE)=0,"",VLOOKUP(A58,Financeiro[[id_ação_Fonte_oculta]:[R$ Executado (2027)]],4,FALSE)) -> Cobrança Federal | F58: =IF(VLOOKUP(A58,Financeiro[[id_ação_Fonte_oculta]:[R$ Executado (2027)]],4,FALSE)=0,"",VLOOKUP(A58,Financeiro[[id_ação_Fonte_oculta]:[R$ Executado (2027)]],5,FALSE)) -> 4342000 | G58: =IF(VLOOKUP(A58,Financeiro[[id_ação_Fonte_oculta]:[R$ Executado (2027)]],4,FALSE)=0,"",VLOOKUP(A58,Financeiro[[id_ação_Fonte_oculta]:[R$ Executado (2027)]],8,FALSE)) -> 2300000 | H58: =IF(VLOOKUP(A58,Financeiro[[id_ação_Fonte_oculta]:[R$ Executado (2027)]],4,FALSE)=0,"",VLOOKUP(A58,Financeiro[[id_ação_Fonte_oculta]:[R$ Executado (2027)]],11,FALSE)) -> 0 | I58: =IF(VLOOKUP(A58,Financeiro[[id_ação_Fonte_oculta]:[R$ Executado (2027)]],4,FALSE)=0,"",VLOOKUP(A58,Financeiro[[id_ação_Fonte_oculta]:[R$ Executado (2027)]],14,FALSE)) -> 0 | J58: 6642000 | K58: =IFERROR(INDEX(IdentAcoes[SubPDC],MATCH(B58,IdentAcoes[ID Ação],0)),"") -> 2.6 - Integração | L58: =IFERROR(INDEX(IdentAcoes[Prioridade do PDC],MATCH(B58,IdentAcoes[ID Ação],0)),"") -> PDC 1 e 2 | M58: =IFERROR(INDEX(IdentAcoes[Segmento do executor],MATCH($B58,IdentAcoes[ID Ação],0)),"") -> Sociedade Civil | N58: =IFERROR(INDEX(IdentAcoes[Área de abrangência],MATCH($B58,IdentAcoes[ID Ação],0)),"") -> Bacia | O58: =IFERROR(INDEX(IdentAcoes[Detalhamento da área de abrangência],MATCH($B58,IdentAcoes[ID Ação],0)),"") -> Bacias PCJ
A59: PCJ6.1.1.7/2024Cobrança Federal | B59: PCJ6.1.1.7/2024 | C59: =INDEX(Financeiro[Descrição da ação],MATCH(B59,Financeiro[ID Ação], 0)) -> Apoio operacional para acompanhamento de ações da porção mineira | D59: =IF(INDEX('Acompanhamento das metas 24-27'!$C$2:$C$100,MATCH(B59,'Acompanhamento das metas 24-27'!$A$2:$A$100,0))<>0,INDEX('Acompanhamento das metas 24-27'!$C$2:$C$100,MATCH(B59,'Acompanhamento das metas 24-27'!$A$2:$A$100,0)),"") -> Apoio operacional contínuo | E59: =IF(VLOOKUP(A59,Financeiro[[id_ação_Fonte_oculta]:[R$ Executado (2027)]],4,FALSE)=0,"",VLOOKUP(A59,Financeiro[[id_ação_Fonte_oculta]:[R$ Executado (2027)]],4,FALSE)) -> Cobrança Federal | F59: =IF(VLOOKUP(A59,Financeiro[[id_ação_Fonte_oculta]:[R$ Executado (2027)]],4,FALSE)=0,"",VLOOKUP(A59,Financeiro[[id_ação_Fonte_oculta]:[R$ Executado (2027)]],5,FALSE)) -> 385560 | G59: =IF(VLOOKUP(A59,Financeiro[[id_ação_Fonte_oculta]:[R$ Executado (2027)]],4,FALSE)=0,"",VLOOKUP(A59,Financeiro[[id_ação_Fonte_oculta]:[R$ Executado (2027)]],8,FALSE)) -> 385560 | H59: =IF(VLOOKUP(A59,Financeiro[[id_ação_Fonte_oculta]:[R$ Executado (2027)]],4,FALSE)=0,"",VLOOKUP(A59,Financeiro[[id_ação_Fonte_oculta]:[R$ Executado (2027)]],11,FALSE)) -> 0 | I59: =IF(VLOOKUP(A59,Financeiro[[id_ação_Fonte_oculta]:[R$ Executado (2027)]],4,FALSE)=0,"",VLOOKUP(A59,Financeiro[[id_ação_Fonte_oculta]:[R$ Executado (2027)]],14,FALSE)) -> 0 | J59: 771120 | K59: =IFERROR(INDEX(IdentAcoes[SubPDC],MATCH(B59,IdentAcoes[ID Ação],0)),"") -> 2.6 - Integração | L59: =IFERROR(INDEX(IdentAcoes[Prioridade do PDC],MATCH(B59,IdentAcoes[ID Ação],0)),"") -> PDC 1 e 2 | M59: =IFERROR(INDEX(IdentAcoes[Segmento do executor],MATCH($B59,IdentAcoes[ID Ação],0)),"") -> Sociedade Civil | N59: =IFERROR(INDEX(IdentAcoes[Área de abrangência],MATCH($B59,IdentAcoes[ID Ação],0)),"") -> Bacia | O59: =IFERROR(INDEX(IdentAcoes[Detalhamento da área de abrangência],MATCH($B59,IdentAcoes[ID Ação],0)),"") -> Bacias PCJ
A60: PCJ6.1.1.1/2024Cobrança Federal | B60: PCJ6.1.1.1/2024 | C60: =INDEX(Financeiro[Descrição da ação],MATCH(B60,Financeiro[ID Ação], 0)) -> Apoio operacional para a Área de Tecnologia da Informação - TI | D60: =IF(INDEX('Acompanhamento das metas 24-27'!$C$2:$C$100,MATCH(B60,'Acompanhamento das metas 24-27'!$A$2:$A$100,0))<>0,INDEX('Acompanhamento das metas 24-27'!$C$2:$C$100,MATCH(B60,'Acompanhamento das metas 24-27'!$A$2:$A$100,0)),"") -> Apoio operacional contínuo | E60: =IF(VLOOKUP(A60,Financeiro[[id_ação_Fonte_oculta]:[R$ Executado (2027)]],4,FALSE)=0,"",VLOOKUP(A60,Financeiro[[id_ação_Fonte_oculta]:[R$ Executado (2027)]],4,FALSE)) -> Cobrança Federal | F60: =IF(VLOOKUP(A60,Financeiro[[id_ação_Fonte_oculta]:[R$ Executado (2027)]],4,FALSE)=0,"",VLOOKUP(A60,Financeiro[[id_ação_Fonte_oculta]:[R$ Executado (2027)]],5,FALSE)) -> 809312.42 | G60: =IF(VLOOKUP(A60,Financeiro[[id_ação_Fonte_oculta]:[R$ Executado (2027)]],4,FALSE)=0,"",VLOOKUP(A60,Financeiro[[id_ação_Fonte_oculta]:[R$ Executado (2027)]],8,FALSE)) -> 836019.7262 | H60: =IF(VLOOKUP(A60,Financeiro[[id_ação_Fonte_oculta]:[R$ Executado (2027)]],4,FALSE)=0,"",VLOOKUP(A60,Financeiro[[id_ação_Fonte_oculta]:[R$ Executado (2027)]],11,FALSE)) -> 0 | I60: =IF(VLOOKUP(A60,Financeiro[[id_ação_Fonte_oculta]:[R$ Executado (2027)]],4,FALSE)=0,"",VLOOKUP(A60,Financeiro[[id_ação_Fonte_oculta]:[R$ Executado (2027)]],14,FALSE)) -> 0 | J60: 1645332.146 | K60: =IFERROR(INDEX(IdentAcoes[SubPDC],MATCH(B60,IdentAcoes[ID Ação],0)),"") -> 2.6 - Integração | L60: =IFERROR(INDEX(IdentAcoes[Prioridade do PDC],MATCH(B60,IdentAcoes[ID Ação],0)),"") -> PDC 1 e 2 | M60: =IFERROR(INDEX(IdentAcoes[Segmento do executor],MATCH($B60,IdentAcoes[ID Ação],0)),"") -> Sociedade Civil | N60: =IFERROR(INDEX(IdentAcoes[Área de abrangência],MATCH($B60,IdentAcoes[ID Ação],0)),"") -> Bacia | O60: =IFERROR(INDEX(IdentAcoes[Detalhamento da área de abrangência],MATCH($B60,IdentAcoes[ID Ação],0)),"") -> Bacias PCJ
A61: PCJ6.1.2.4/2024Cobrança Federal | B61: PCJ6.1.2.4/2024 | C61: =INDEX(Financeiro[Descrição da ação],MATCH(B61,Financeiro[ID Ação], 0)) -> Participação de membros dos Comitês PCJ em eventos internos das CTs e eventos externos | D61: =IF(INDEX('Acompanhamento das metas 24-27'!$C$2:$C$100,MATCH(B61,'Acompanhamento das metas 24-27'!$A$2:$A$100,0))<>0,INDEX('Acompanhamento das metas 24-27'!$C$2:$C$100,MATCH(B61,'Acompanhamento das metas 24-27'!$A$2:$A$100,0)),"") -> Apoio operacional contínuo | E61: =IF(VLOOKUP(A61,Financeiro[[id_ação_Fonte_oculta]:[R$ Executado (2027)]],4,FALSE)=0,"",VLOOKUP(A61,Financeiro[[id_ação_Fonte_oculta]:[R$ Executado (2027)]],4,FALSE)) -> Cobrança Federal | F61: =IF(VLOOKUP(A61,Financeiro[[id_ação_Fonte_oculta]:[R$ Executado (2027)]],4,FALSE)=0,"",VLOOKUP(A61,Financeiro[[id_ação_Fonte_oculta]:[R$ Executado (2027)]],5,FALSE)) -> 326049.12 | G61: =IF(VLOOKUP(A61,Financeiro[[id_ação_Fonte_oculta]:[R$ Executado (2027)]],4,FALSE)=0,"",VLOOKUP(A61,Financeiro[[id_ação_Fonte_oculta]:[R$ Executado (2027)]],8,FALSE)) -> 336808.741 | H61: =IF(VLOOKUP(A61,Financeiro[[id_ação_Fonte_oculta]:[R$ Executado (2027)]],4,FALSE)=0,"",VLOOKUP(A61,Financeiro[[id_ação_Fonte_oculta]:[R$ Executado (2027)]],11,FALSE)) -> 0 | I61: =IF(VLOOKUP(A61,Financeiro[[id_ação_Fonte_oculta]:[R$ Executado (2027)]],4,FALSE)=0,"",VLOOKUP(A61,Financeiro[[id_ação_Fonte_oculta]:[R$ Executado (2027)]],14,FALSE)) -> 0 | J61: 662857.861 | K61: =IFERROR(INDEX(IdentAcoes[SubPDC],MATCH(B61,IdentAcoes[ID Ação],0)),"") -> 2.6 - Integração | L61: =IFERROR(INDEX(IdentAcoes[Prioridade do PDC],MATCH(B61,IdentAcoes[ID Ação],0)),"") -> PDC 1 e 2 | M61: =IFERROR(INDEX(IdentAcoes[Segmento do executor],MATCH($B61,IdentAcoes[ID Ação],0)),"") -> Sociedade Civil | N61: =IFERROR(INDEX(IdentAcoes[Área de abrangência],MATCH($B61,IdentAcoes[ID Ação],0)),"") -> Bacia | O61: =IFERROR(INDEX(IdentAcoes[Detalhamento da área de abrangência],MATCH($B61,IdentAcoes[ID Ação],0)),"") -> Bacias PCJ
A62: PCJ6.1.2.5/2024Cobrança Federal | B62: PCJ6.1.2.5/2024 | C62: =INDEX(Financeiro[Descrição da ação],MATCH(B62,Financeiro[ID Ação], 0)) -> Manutenção de licenciamento de sistemas de TI | D62: =IF(INDEX('Acompanhamento das metas 24-27'!$C$2:$C$100,MATCH(B62,'Acompanhamento das metas 24-27'!$A$2:$A$100,0))<>0,INDEX('Acompanhamento das metas 24-27'!$C$2:$C$100,MATCH(B62,'Acompanhamento das metas 24-27'!$A$2:$A$100,0)),"") -> Apoio operacional contínuo | E62: =IF(VLOOKUP(A62,Financeiro[[id_ação_Fonte_oculta]:[R$ Executado (2027)]],4,FALSE)=0,"",VLOOKUP(A62,Financeiro[[id_ação_Fonte_oculta]:[R$ Executado (2027)]],4,FALSE)) -> Cobrança Federal | F62: =IF(VLOOKUP(A62,Financeiro[[id_ação_Fonte_oculta]:[R$ Executado (2027)]],4,FALSE)=0,"",VLOOKUP(A62,Financeiro[[id_ação_Fonte_oculta]:[R$ Executado (2027)]],5,FALSE)) -> 2178708 | G62: =IF(VLOOKUP(A62,Financeiro[[id_ação_Fonte_oculta]:[R$ Executado (2027)]],4,FALSE)=0,"",VLOOKUP(A62,Financeiro[[id_ação_Fonte_oculta]:[R$ Executado (2027)]],8,FALSE)) -> 2250605.364 | H62: =IF(VLOOKUP(A62,Financeiro[[id_ação_Fonte_oculta]:[R$ Executado (2027)]],4,FALSE)=0,"",VLOOKUP(A62,Financeiro[[id_ação_Fonte_oculta]:[R$ Executado (2027)]],11,FALSE)) -> 0 | I62: =IF(VLOOKUP(A62,Financeiro[[id_ação_Fonte_oculta]:[R$ Executado (2027)]],4,FALSE)=0,"",VLOOKUP(A62,Financeiro[[id_ação_Fonte_oculta]:[R$ Executado (2027)]],14,FALSE)) -> 0 | J62: 4429313.364 | K62: =IFERROR(INDEX(IdentAcoes[SubPDC],MATCH(B62,IdentAcoes[ID Ação],0)),"") -> 2.7 - CORHI | L62: =IFERROR(INDEX(IdentAcoes[Prioridade do PDC],MATCH(B62,IdentAcoes[ID Ação],0)),"") -> PDC 1 e 2 | M62: =IFERROR(INDEX(IdentAcoes[Segmento do executor],MATCH($B62,IdentAcoes[ID Ação],0)),"") -> Sociedade Civil | N62: =IFERROR(INDEX(IdentAcoes[Área de abrangência],MATCH($B62,IdentAcoes[ID Ação],0)),"") -> Bacia | O62: =IFERROR(INDEX(IdentAcoes[Detalhamento da área de abrangência],MATCH($B62,IdentAcoes[ID Ação],0)),"") -> Bacias PCJ
A63: PCJ1.2.2.3/2024FEHIDRO - Cobrança estadual | B63: PCJ1.2.2.3/2024 | C63: =INDEX(Financeiro[Descrição da ação],MATCH(B63,Financeiro[ID Ação], 0)) -> Implantação das tecnologias de desinfecção projetadas | D63: =IF(INDEX('Acompanhamento das metas 24-27'!$C$2:$C$100,MATCH(B63,'Acompanhamento das metas 24-27'!$A$2:$A$100,0))<>0,INDEX('Acompanhamento das metas 24-27'!$C$2:$C$100,MATCH(B63,'Acompanhamento das metas 24-27'!$A$2:$A$100,0)),"") -> Ao menos 01 melhoria implantada | E63: =IF(VLOOKUP(A63,Financeiro[[id_ação_Fonte_oculta]:[R$ Executado (2027)]],4,FALSE)=0,"",VLOOKUP(A63,Financeiro[[id_ação_Fonte_oculta]:[R$ Executado (2027)]],4,FALSE)) -> FEHIDRO - Cobrança estadual | F63: =IF(VLOOKUP(A63,Financeiro[[id_ação_Fonte_oculta]:[R$ Executado (2027)]],4,FALSE)=0,"",VLOOKUP(A63,Financeiro[[id_ação_Fonte_oculta]:[R$ Executado (2027)]],5,FALSE)) -> 1500000 | G63: =IF(VLOOKUP(A63,Financeiro[[id_ação_Fonte_oculta]:[R$ Executado (2027)]],4,FALSE)=0,"",VLOOKUP(A63,Financeiro[[id_ação_Fonte_oculta]:[R$ Executado (2027)]],8,FALSE)) -> 750000 | H63: =IF(VLOOKUP(A63,Financeiro[[id_ação_Fonte_oculta]:[R$ Executado (2027)]],4,FALSE)=0,"",VLOOKUP(A63,Financeiro[[id_ação_Fonte_oculta]:[R$ Executado (2027)]],11,FALSE)) -> 750000 | I63: =IF(VLOOKUP(A63,Financeiro[[id_ação_Fonte_oculta]:[R$ Executado (2027)]],4,FALSE)=0,"",VLOOKUP(A63,Financeiro[[id_ação_Fonte_oculta]:[R$ Executado (2027)]],14,FALSE)) -> 750000 | J63: 3750000 | K63: =IFERROR(INDEX(IdentAcoes[SubPDC],MATCH(B63,IdentAcoes[ID Ação],0)),"") -> 3.1 - Efluentes | L63: =IFERROR(INDEX(IdentAcoes[Prioridade do PDC],MATCH(B63,IdentAcoes[ID Ação],0)),"") -> Prioritário | M63: =IFERROR(INDEX(IdentAcoes[Segmento do executor],MATCH($B63,IdentAcoes[ID Ação],0)),"") -> Município | N63: =IFERROR(INDEX(IdentAcoes[Área de abrangência],MATCH($B63,IdentAcoes[ID Ação],0)),"") -> Município | O63: =IFERROR(INDEX(IdentAcoes[Detalhamento da área de abrangência],MATCH($B63,IdentAcoes[ID Ação],0)),"") -> Municípios observando as prioridades para coliformes termotolerantes no Plano de Bacias
A64: PCJ1.1.2.5/2024FEHIDRO - Cobrança estadual | B64: PCJ1.1.2.5/2024 | C64: =INDEX(Financeiro[Descrição da ação],MATCH(B64,Financeiro[ID Ação], 0)) -> Implantação das ETEs projetadas e melhorias das ETEs existentes | D64: =IF(INDEX('Acompanhamento das metas 24-27'!$C$2:$C$100,MATCH(B64,'Acompanhamento das metas 24-27'!$A$2:$A$100,0))<>0,INDEX('Acompanhamento das metas 24-27'!$C$2:$C$100,MATCH(B64,'Acompanhamento das metas 24-27'!$A$2:$A$100,0)),"") -> Ao menos 01 ETE implantada | E64: =IF(VLOOKUP(A64,Financeiro[[id_ação_Fonte_oculta]:[R$ Executado (2027)]],4,FALSE)=0,"",VLOOKUP(A64,Financeiro[[id_ação_Fonte_oculta]:[R$ Executado (2027)]],4,FALSE)) -> FEHIDRO - Cobrança estadual | F64: =IF(VLOOKUP(A64,Financeiro[[id_ação_Fonte_oculta]:[R$ Executado (2027)]],4,FALSE)=0,"",VLOOKUP(A64,Financeiro[[id_ação_Fonte_oculta]:[R$ Executado (2027)]],5,FALSE)) -> 3000000 | G64: =IF(VLOOKUP(A64,Financeiro[[id_ação_Fonte_oculta]:[R$ Executado (2027)]],4,FALSE)=0,"",VLOOKUP(A64,Financeiro[[id_ação_Fonte_oculta]:[R$ Executado (2027)]],8,FALSE)) -> 1500000 | H64: =IF(VLOOKUP(A64,Financeiro[[id_ação_Fonte_oculta]:[R$ Executado (2027)]],4,FALSE)=0,"",VLOOKUP(A64,Financeiro[[id_ação_Fonte_oculta]:[R$ Executado (2027)]],11,FALSE)) -> 1000000 | I64: =IF(VLOOKUP(A64,Financeiro[[id_ação_Fonte_oculta]:[R$ Executado (2027)]],4,FALSE)=0,"",VLOOKUP(A64,Financeiro[[id_ação_Fonte_oculta]:[R$ Executado (2027)]],14,FALSE)) -> 1500000 | J64: 7000000 | K64: =IFERROR(INDEX(IdentAcoes[SubPDC],MATCH(B64,IdentAcoes[ID Ação],0)),"") -> 3.1 - Efluentes | L64: =IFERROR(INDEX(IdentAcoes[Prioridade do PDC],MATCH(B64,IdentAcoes[ID Ação],0)),"") -> Prioritário | M64: =IFERROR(INDEX(IdentAcoes[Segmento do executor],MATCH($B64,IdentAcoes[ID Ação],0)),"") -> Município | N64: =IFERROR(INDEX(IdentAcoes[Área de abrangência],MATCH($B64,IdentAcoes[ID Ação],0)),"") -> Município | O64: =IFERROR(INDEX(IdentAcoes[Detalhamento da área de abrangência],MATCH($B64,IdentAcoes[ID Ação],0)),"") -> Municípios observando as prioridades para tratamento no Plano de Bacias
A65: PCJ1.2.1.9/2024FEHIDRO - Cobrança estadual | B65: PCJ1.2.1.9/2024 | C65: =INDEX(Financeiro[Descrição da ação],MATCH(B65,Financeiro[ID Ação], 0)) -> Implantação das melhorias das ETEs projetadas e retrofit de ETEs para remoção de nutrientes | D65: =IF(INDEX('Acompanhamento das metas 24-27'!$C$2:$C$100,MATCH(B65,'Acompanhamento das metas 24-27'!$A$2:$A$100,0))<>0,INDEX('Acompanhamento das metas 24-27'!$C$2:$C$100,MATCH(B65,'Acompanhamento das metas 24-27'!$A$2:$A$100,0)),"") -> Ao menos 01 melhoria implantada | E65: =IF(VLOOKUP(A65,Financeiro[[id_ação_Fonte_oculta]:[R$ Executado (2027)]],4,FALSE)=0,"",VLOOKUP(A65,Financeiro[[id_ação_Fonte_oculta]:[R$ Executado (2027)]],4,FALSE)) -> FEHIDRO - Cobrança estadual | F65: =IF(VLOOKUP(A65,Financeiro[[id_ação_Fonte_oculta]:[R$ Executado (2027)]],4,FALSE)=0,"",VLOOKUP(A65,Financeiro[[id_ação_Fonte_oculta]:[R$ Executado (2027)]],5,FALSE)) -> 3000000 | G65: =IF(VLOOKUP(A65,Financeiro[[id_ação_Fonte_oculta]:[R$ Executado (2027)]],4,FALSE)=0,"",VLOOKUP(A65,Financeiro[[id_ação_Fonte_oculta]:[R$ Executado (2027)]],8,FALSE)) -> 1500000 | H65: =IF(VLOOKUP(A65,Financeiro[[id_ação_Fonte_oculta]:[R$ Executado (2027)]],4,FALSE)=0,"",VLOOKUP(A65,Financeiro[[id_ação_Fonte_oculta]:[R$ Executado (2027)]],11,FALSE)) -> 1000000 | I65: =IF(VLOOKUP(A65,Financeiro[[id_ação_Fonte_oculta]:[R$ Executado (2027)]],4,FALSE)=0,"",VLOOKUP(A65,Financeiro[[id_ação_Fonte_oculta]:[R$ Executado (2027)]],14,FALSE)) -> 2000000 | J65: 7500000 | K65: =IFERROR(INDEX(IdentAcoes[SubPDC],MATCH(B65,IdentAcoes[ID Ação],0)),"") -> 3.1 - Efluentes | L65: =IFERROR(INDEX(IdentAcoes[Prioridade do PDC],MATCH(B65,IdentAcoes[ID Ação],0)),"") -> Prioritário | M65: =IFERROR(INDEX(IdentAcoes[Segmento do executor],MATCH($B65,IdentAcoes[ID Ação],0)),"") -> Município | N65: =IFERROR(INDEX(IdentAcoes[Área de abrangência],MATCH($B65,IdentAcoes[ID Ação],0)),"") -> Município | O65: =IFERROR(INDEX(IdentAcoes[Detalhamento da área de abrangência],MATCH($B65,IdentAcoes[ID Ação],0)),"") -> Municípios observando as prioridades para remoção de nitrogênio e fósforo, no Plano de Bacias
A66: PCJ1.2.1.8/2024FEHIDRO - Cobrança estadual | B66: PCJ1.2.1.8/2024 | C66: =INDEX(Financeiro[Descrição da ação],MATCH(B66,Financeiro[ID Ação], 0)) -> Implantação de Unidades de Tratamento de Lodo nas ETAs | D66: =IF(INDEX('Acompanhamento das metas 24-27'!$C$2:$C$100,MATCH(B66,'Acompanhamento das metas 24-27'!$A$2:$A$100,0))<>0,INDEX('Acompanhamento das metas 24-27'!$C$2:$C$100,MATCH(B66,'Acompanhamento das metas 24-27'!$A$2:$A$100,0)),"") -> Ao menos 01 UTLs implantada em ETA | E66: =IF(VLOOKUP(A66,Financeiro[[id_ação_Fonte_oculta]:[R$ Executado (2027)]],4,FALSE)=0,"",VLOOKUP(A66,Financeiro[[id_ação_Fonte_oculta]:[R$ Executado (2027)]],4,FALSE)) -> FEHIDRO - Cobrança estadual | F66: =IF(VLOOKUP(A66,Financeiro[[id_ação_Fonte_oculta]:[R$ Executado (2027)]],4,FALSE)=0,"",VLOOKUP(A66,Financeiro[[id_ação_Fonte_oculta]:[R$ Executado (2027)]],5,FALSE)) -> 2300000 | G66: =IF(VLOOKUP(A66,Financeiro[[id_ação_Fonte_oculta]:[R$ Executado (2027)]],4,FALSE)=0,"",VLOOKUP(A66,Financeiro[[id_ação_Fonte_oculta]:[R$ Executado (2027)]],8,FALSE)) -> 1000000 | H66: =IF(VLOOKUP(A66,Financeiro[[id_ação_Fonte_oculta]:[R$ Executado (2027)]],4,FALSE)=0,"",VLOOKUP(A66,Financeiro[[id_ação_Fonte_oculta]:[R$ Executado (2027)]],11,FALSE)) -> 0 | I66: =IF(VLOOKUP(A66,Financeiro[[id_ação_Fonte_oculta]:[R$ Executado (2027)]],4,FALSE)=0,"",VLOOKUP(A66,Financeiro[[id_ação_Fonte_oculta]:[R$ Executado (2027)]],14,FALSE)) -> 0 | J66: 3300000 | K66: =IFERROR(INDEX(IdentAcoes[SubPDC],MATCH(B66,IdentAcoes[ID Ação],0)),"") -> 3.1 - Efluentes | L66: =IFERROR(INDEX(IdentAcoes[Prioridade do PDC],MATCH(B66,IdentAcoes[ID Ação],0)),"") -> Prioritário | M66: =IFERROR(INDEX(IdentAcoes[Segmento do executor],MATCH($B66,IdentAcoes[ID Ação],0)),"") -> Município | N66: =IFERROR(INDEX(IdentAcoes[Área de abrangência],MATCH($B66,IdentAcoes[ID Ação],0)),"") -> Município | O66: =IFERROR(INDEX(IdentAcoes[Detalhamento da área de abrangência],MATCH($B66,IdentAcoes[ID Ação],0)),"") -> Municípios observando as prioridades para tratamento no Plano de Bacias
A67: PCJ1.1.1.3/2024Outras fontes | B67: PCJ1.1.1.3/2024 | C67: =INDEX(Financeiro[Descrição da ação],MATCH(B67,Financeiro[ID Ação], 0)) -> Elaboração de projetos de ampliação e melhoria dos sistemas de coleta de esgotos | D67: =IF(INDEX('Acompanhamento das metas 24-27'!$C$2:$C$100,MATCH(B67,'Acompanhamento das metas 24-27'!$A$2:$A$100,0))<>0,INDEX('Acompanhamento das metas 24-27'!$C$2:$C$100,MATCH(B67,'Acompanhamento das metas 24-27'!$A$2:$A$100,0)),"") -> Elaboração de ao menos 01 projeto | E67: =IF(VLOOKUP(A67,Financeiro[[id_ação_Fonte_oculta]:[R$ Executado (2027)]],4,FALSE)=0,"",VLOOKUP(A67,Financeiro[[id_ação_Fonte_oculta]:[R$ Executado (2027)]],4,FALSE)) -> Outras fontes | F67: =IF(VLOOKUP(A67,Financeiro[[id_ação_Fonte_oculta]:[R$ Executado (2027)]],4,FALSE)=0,"",VLOOKUP(A67,Financeiro[[id_ação_Fonte_oculta]:[R$ Executado (2027)]],5,FALSE)) -> 0 | G67: =IF(VLOOKUP(A67,Financeiro[[id_ação_Fonte_oculta]:[R$ Executado (2027)]],4,FALSE)=0,"",VLOOKUP(A67,Financeiro[[id_ação_Fonte_oculta]:[R$ Executado (2027)]],8,FALSE)) -> 0 | H67: =IF(VLOOKUP(A67,Financeiro[[id_ação_Fonte_oculta]:[R$ Executado (2027)]],4,FALSE)=0,"",VLOOKUP(A67,Financeiro[[id_ação_Fonte_oculta]:[R$ Executado (2027)]],11,FALSE)) -> 0 | I67: =IF(VLOOKUP(A67,Financeiro[[id_ação_Fonte_oculta]:[R$ Executado (2027)]],4,FALSE)=0,"",VLOOKUP(A67,Financeiro[[id_ação_Fonte_oculta]:[R$ Executado (2027)]],14,FALSE)) -> 0 | J67: 0 | K67: =IFERROR(INDEX(IdentAcoes[SubPDC],MATCH(B67,IdentAcoes[ID Ação],0)),"") -> 3.1 - Efluentes | L67: =IFERROR(INDEX(IdentAcoes[Prioridade do PDC],MATCH(B67,IdentAcoes[ID Ação],0)),"") -> Prioritário | M67: =IFERROR(INDEX(IdentAcoes[Segmento do executor],MATCH($B67,IdentAcoes[ID Ação],0)),"") -> Município | N67: =IFERROR(INDEX(IdentAcoes[Área de abrangência],MATCH($B67,IdentAcoes[ID Ação],0)),"") -> Município | O67: =IFERROR(INDEX(IdentAcoes[Detalhamento da área de abrangência],MATCH($B67,IdentAcoes[ID Ação],0)),"") -> Municípios observando as prioridades para tratamento no Plano de Bacias
A68: PCJ1.1.1.5/2024FEHIDRO - Cobrança estadual | B68: PCJ1.1.1.5/2024 | C68: =INDEX(Financeiro[Descrição da ação],MATCH(B68,Financeiro[ID Ação], 0)) -> Ampliações e melhoria dos sistemas de coleta de esgotos | D68: =IF(INDEX('Acompanhamento das metas 24-27'!$C$2:$C$100,MATCH(B68,'Acompanhamento das metas 24-27'!$A$2:$A$100,0))<>0,INDEX('Acompanhamento das metas 24-27'!$C$2:$C$100,MATCH(B68,'Acompanhamento das metas 24-27'!$A$2:$A$100,0)),"") -> Ampliação dos sistemas de coleta de esgotos de pelo menos 20% dos municípios prioritários | E68: =IF(VLOOKUP(A68,Financeiro[[id_ação_Fonte_oculta]:[R$ Executado (2027)]],4,FALSE)=0,"",VLOOKUP(A68,Financeiro[[id_ação_Fonte_oculta]:[R$ Executado (2027)]],4,FALSE)) -> FEHIDRO - Cobrança estadual | F68: =IF(VLOOKUP(A68,Financeiro[[id_ação_Fonte_oculta]:[R$ Executado (2027)]],4,FALSE)=0,"",VLOOKUP(A68,Financeiro[[id_ação_Fonte_oculta]:[R$ Executado (2027)]],5,FALSE)) -> 2500000 | G68: =IF(VLOOKUP(A68,Financeiro[[id_ação_Fonte_oculta]:[R$ Executado (2027)]],4,FALSE)=0,"",VLOOKUP(A68,Financeiro[[id_ação_Fonte_oculta]:[R$ Executado (2027)]],8,FALSE)) -> 1000000 | H68: =IF(VLOOKUP(A68,Financeiro[[id_ação_Fonte_oculta]:[R$ Executado (2027)]],4,FALSE)=0,"",VLOOKUP(A68,Financeiro[[id_ação_Fonte_oculta]:[R$ Executado (2027)]],11,FALSE)) -> 0 | I68: =IF(VLOOKUP(A68,Financeiro[[id_ação_Fonte_oculta]:[R$ Executado (2027)]],4,FALSE)=0,"",VLOOKUP(A68,Financeiro[[id_ação_Fonte_oculta]:[R$ Executado (2027)]],14,FALSE)) -> 0 | J68: =SUM(F68:I68) -> 3500000 | K68: =IFERROR(INDEX(IdentAcoes[SubPDC],MATCH(B68,IdentAcoes[ID Ação],0)),"") -> 3.1 - Efluentes | L68: =IFERROR(INDEX(IdentAcoes[Prioridade do PDC],MATCH(B68,IdentAcoes[ID Ação],0)),"") -> Prioritário | M68: =IFERROR(INDEX(IdentAcoes[Segmento do executor],MATCH($B68,IdentAcoes[ID Ação],0)),"") -> Município | N68: =IFERROR(INDEX(IdentAcoes[Área de abrangência],MATCH($B68,IdentAcoes[ID Ação],0)),"") -> Município | O68: =IFERROR(INDEX(IdentAcoes[Detalhamento da área de abrangência],MATCH($B68,IdentAcoes[ID Ação],0)),"") -> Municípios com prioridades para coleta, no Plano de Bacias
A69: PCJ1.3.2.1/2024Outras fontes | B69: PCJ1.3.2.1/2024 | C69: =INDEX(Financeiro[Descrição da ação],MATCH(B69,Financeiro[ID Ação], 0)) -> Elaboração de projetos demonstrativos para contenção de cargas difusas de origem rural e urbana | D69: =IF(INDEX('Acompanhamento das metas 24-27'!$C$2:$C$100,MATCH(B69,'Acompanhamento das metas 24-27'!$A$2:$A$100,0))<>0,INDEX('Acompanhamento das metas 24-27'!$C$2:$C$100,MATCH(B69,'Acompanhamento das metas 24-27'!$A$2:$A$100,0)),"") -> Estudo elaborado até final de 2025 | E69: =IF(VLOOKUP(A69,Financeiro[[id_ação_Fonte_oculta]:[R$ Executado (2027)]],4,FALSE)=0,"",VLOOKUP(A69,Financeiro[[id_ação_Fonte_oculta]:[R$ Executado (2027)]],4,FALSE)) -> Outras fontes | F69: =IF(VLOOKUP(A69,Financeiro[[id_ação_Fonte_oculta]:[R$ Executado (2027)]],4,FALSE)=0,"",VLOOKUP(A69,Financeiro[[id_ação_Fonte_oculta]:[R$ Executado (2027)]],5,FALSE)) -> 0 | G69: =IF(VLOOKUP(A69,Financeiro[[id_ação_Fonte_oculta]:[R$ Executado (2027)]],4,FALSE)=0,"",VLOOKUP(A69,Financeiro[[id_ação_Fonte_oculta]:[R$ Executado (2027)]],8,FALSE)) -> 0 | H69: =IF(VLOOKUP(A69,Financeiro[[id_ação_Fonte_oculta]:[R$ Executado (2027)]],4,FALSE)=0,"",VLOOKUP(A69,Financeiro[[id_ação_Fonte_oculta]:[R$ Executado (2027)]],11,FALSE)) -> 0 | I69: =IF(VLOOKUP(A69,Financeiro[[id_ação_Fonte_oculta]:[R$ Executado (2027)]],4,FALSE)=0,"",VLOOKUP(A69,Financeiro[[id_ação_Fonte_oculta]:[R$ Executado (2027)]],14,FALSE)) -> 0 | J69: 0 | K69: =IFERROR(INDEX(IdentAcoes[SubPDC],MATCH(B69,IdentAcoes[ID Ação],0)),"") -> 3.2 - Poluição | L69: =IFERROR(INDEX(IdentAcoes[Prioridade do PDC],MATCH(B69,IdentAcoes[ID Ação],0)),"") -> Prioritário | M69: =IFERROR(INDEX(IdentAcoes[Segmento do executor],MATCH($B69,IdentAcoes[ID Ação],0)),"") -> Sociedade Civil | N69: =IFERROR(INDEX(IdentAcoes[Área de abrangência],MATCH($B69,IdentAcoes[ID Ação],0)),"") -> Bacia | O69: =IFERROR(INDEX(IdentAcoes[Detalhamento da área de abrangência],MATCH($B69,IdentAcoes[ID Ação],0)),"") -> Bacias PCJ, observando as prioridades para fósforo e nitrogênio.
A70: PCJ1.3.2.3/2024Outras fontes | B70: PCJ1.3.2.3/2024 | C70: =INDEX(Financeiro[Descrição da ação],MATCH(B70,Financeiro[ID Ação], 0)) -> Implantação de medidas de contenção de cargas difusas de origem rural e urbana em locais prioritários | D70: =IF(INDEX('Acompanhamento das metas 24-27'!$C$2:$C$100,MATCH(B70,'Acompanhamento das metas 24-27'!$A$2:$A$100,0))<>0,INDEX('Acompanhamento das metas 24-27'!$C$2:$C$100,MATCH(B70,'Acompanhamento das metas 24-27'!$A$2:$A$100,0)),"") -> Todos os locais prioritários contemplados com as medidas propostas de mitigação da poluição difusa de maneira contínua até o fim de 2035 | E70: =IF(VLOOKUP(A70,Financeiro[[id_ação_Fonte_oculta]:[R$ Executado (2027)]],4,FALSE)=0,"",VLOOKUP(A70,Financeiro[[id_ação_Fonte_oculta]:[R$ Executado (2027)]],4,FALSE)) -> Outras fontes | F70: =IF(VLOOKUP(A70,Financeiro[[id_ação_Fonte_oculta]:[R$ Executado (2027)]],4,FALSE)=0,"",VLOOKUP(A70,Financeiro[[id_ação_Fonte_oculta]:[R$ Executado (2027)]],5,FALSE)) -> 0 | G70: =IF(VLOOKUP(A70,Financeiro[[id_ação_Fonte_oculta]:[R$ Executado (2027)]],4,FALSE)=0,"",VLOOKUP(A70,Financeiro[[id_ação_Fonte_oculta]:[R$ Executado (2027)]],8,FALSE)) -> 0 | H70: =IF(VLOOKUP(A70,Financeiro[[id_ação_Fonte_oculta]:[R$ Executado (2027)]],4,FALSE)=0,"",VLOOKUP(A70,Financeiro[[id_ação_Fonte_oculta]:[R$ Executado (2027)]],11,FALSE)) -> 0 | I70: =IF(VLOOKUP(A70,Financeiro[[id_ação_Fonte_oculta]:[R$ Executado (2027)]],4,FALSE)=0,"",VLOOKUP(A70,Financeiro[[id_ação_Fonte_oculta]:[R$ Executado (2027)]],14,FALSE)) -> 0 | J70: 0 | K70: =IFERROR(INDEX(IdentAcoes[SubPDC],MATCH(B70,IdentAcoes[ID Ação],0)),"") -> 3.2 - Poluição | L70: =IFERROR(INDEX(IdentAcoes[Prioridade do PDC],MATCH(B70,IdentAcoes[ID Ação],0)),"") -> Prioritário | M70: =IFERROR(INDEX(IdentAcoes[Segmento do executor],MATCH($B70,IdentAcoes[ID Ação],0)),"") -> Município | N70: =IFERROR(INDEX(IdentAcoes[Área de abrangência],MATCH($B70,IdentAcoes[ID Ação],0)),"") -> Bacia | O70: =IFERROR(INDEX(IdentAcoes[Detalhamento da área de abrangência],MATCH($B70,IdentAcoes[ID Ação],0)),"") -> Bacias PCJ observando as prioridades para fósforo e nitrogênio
A71: PCJ3.1.2.5/2024Cobrança Federal | B71: PCJ3.1.2.5/2024 | C71: =INDEX(Financeiro[Descrição da ação],MATCH(B71,Financeiro[ID Ação], 0)) -> Estabilização de voçorocas nas propriedades que receberão projetos de recomposição florestal (fonte: PDRF) | D71: =IF(INDEX('Acompanhamento das metas 24-27'!$C$2:$C$100,MATCH(B71,'Acompanhamento das metas 24-27'!$A$2:$A$100,0))<>0,INDEX('Acompanhamento das metas 24-27'!$C$2:$C$100,MATCH(B71,'Acompanhamento das metas 24-27'!$A$2:$A$100,0)),"") -> Estabilização de ao menos 10 voçorocas/ano nas propriedades que recebem projetos de recomposição florestal | E71: =IF(VLOOKUP(A71,Financeiro[[id_ação_Fonte_oculta]:[R$ Executado (2027)]],4,FALSE)=0,"",VLOOKUP(A71,Financeiro[[id_ação_Fonte_oculta]:[R$ Executado (2027)]],4,FALSE)) -> Cobrança Federal | F71: =IF(VLOOKUP(A71,Financeiro[[id_ação_Fonte_oculta]:[R$ Executado (2027)]],4,FALSE)=0,"",VLOOKUP(A71,Financeiro[[id_ação_Fonte_oculta]:[R$ Executado (2027)]],5,FALSE)) -> 0 | G71: =IF(VLOOKUP(A71,Financeiro[[id_ação_Fonte_oculta]:[R$ Executado (2027)]],4,FALSE)=0,"",VLOOKUP(A71,Financeiro[[id_ação_Fonte_oculta]:[R$ Executado (2027)]],8,FALSE)) -> 0 | H71: =IF(VLOOKUP(A71,Financeiro[[id_ação_Fonte_oculta]:[R$ Executado (2027)]],4,FALSE)=0,"",VLOOKUP(A71,Financeiro[[id_ação_Fonte_oculta]:[R$ Executado (2027)]],11,FALSE)) -> 0 | I71: =IF(VLOOKUP(A71,Financeiro[[id_ação_Fonte_oculta]:[R$ Executado (2027)]],4,FALSE)=0,"",VLOOKUP(A71,Financeiro[[id_ação_Fonte_oculta]:[R$ Executado (2027)]],14,FALSE)) -> 0 | J71: 0 | K71: =IFERROR(INDEX(IdentAcoes[SubPDC],MATCH(B71,IdentAcoes[ID Ação],0)),"") -> 4.1 - Controle erosão | L71: =IFERROR(INDEX(IdentAcoes[Prioridade do PDC],MATCH(B71,IdentAcoes[ID Ação],0)),"") -> Não prioritário | M71: =IFERROR(INDEX(IdentAcoes[Segmento do executor],MATCH($B71,IdentAcoes[ID Ação],0)),"") -> Sociedade Civil | N71: =IFERROR(INDEX(IdentAcoes[Área de abrangência],MATCH($B71,IdentAcoes[ID Ação],0)),"") -> Bacia | O71: =IFERROR(INDEX(IdentAcoes[Detalhamento da área de abrangência],MATCH($B71,IdentAcoes[ID Ação],0)),"") -> Áreas de Contribuição das Bacias PCJ prioritárias conforme mapa síntese Mapa Conservação, recuperação de nascentes, matas ciliares e áreas de recarga do Plano de Bacias
A72: PCJ6.1.1.3/2024Cobrança Federal | B72: PCJ6.1.1.3/2024 | C72: =INDEX(Financeiro[Descrição da ação],MATCH(B72,Financeiro[ID Ação], 0)) -> Apoio operacional para acompanhamento de projetos de assessoria ambiental | D72: =IF(INDEX('Acompanhamento das metas 24-27'!$C$2:$C$100,MATCH(B72,'Acompanhamento das metas 24-27'!$A$2:$A$100,0))<>0,INDEX('Acompanhamento das metas 24-27'!$C$2:$C$100,MATCH(B72,'Acompanhamento das metas 24-27'!$A$2:$A$100,0)),"") -> Apoio operacional contínuo | E72: =IF(VLOOKUP(A72,Financeiro[[id_ação_Fonte_oculta]:[R$ Executado (2027)]],4,FALSE)=0,"",VLOOKUP(A72,Financeiro[[id_ação_Fonte_oculta]:[R$ Executado (2027)]],4,FALSE)) -> Cobrança Federal | F72: =IF(VLOOKUP(A72,Financeiro[[id_ação_Fonte_oculta]:[R$ Executado (2027)]],4,FALSE)=0,"",VLOOKUP(A72,Financeiro[[id_ação_Fonte_oculta]:[R$ Executado (2027)]],5,FALSE)) -> 2100000 | G72: =IF(VLOOKUP(A72,Financeiro[[id_ação_Fonte_oculta]:[R$ Executado (2027)]],4,FALSE)=0,"",VLOOKUP(A72,Financeiro[[id_ação_Fonte_oculta]:[R$ Executado (2027)]],8,FALSE)) -> 2100000 | H72: =IF(VLOOKUP(A72,Financeiro[[id_ação_Fonte_oculta]:[R$ Executado (2027)]],4,FALSE)=0,"",VLOOKUP(A72,Financeiro[[id_ação_Fonte_oculta]:[R$ Executado (2027)]],11,FALSE)) -> 0 | I72: =IF(VLOOKUP(A72,Financeiro[[id_ação_Fonte_oculta]:[R$ Executado (2027)]],4,FALSE)=0,"",VLOOKUP(A72,Financeiro[[id_ação_Fonte_oculta]:[R$ Executado (2027)]],14,FALSE)) -> 0 | J72: 4200000 | K72: =IFERROR(INDEX(IdentAcoes[SubPDC],MATCH(B72,IdentAcoes[ID Ação],0)),"") -> 4.2 - Soluções baseadas Natureza | L72: =IFERROR(INDEX(IdentAcoes[Prioridade do PDC],MATCH(B72,IdentAcoes[ID Ação],0)),"") -> Não prioritário | M72: =IFERROR(INDEX(IdentAcoes[Segmento do executor],MATCH($B72,IdentAcoes[ID Ação],0)),"") -> Sociedade Civil | N72: =IFERROR(INDEX(IdentAcoes[Área de abrangência],MATCH($B72,IdentAcoes[ID Ação],0)),"") -> Bacia | O72: =IFERROR(INDEX(IdentAcoes[Detalhamento da área de abrangência],MATCH($B72,IdentAcoes[ID Ação],0)),"") -> Áreas de Contribuição das Bacias PCJ prioritárias conforme mapa síntese Mapa Conservação, recuperação de nascentes, matas ciliares e áreas de recarga do Plano de Bacias
A73: PCJ3.1.2.1/2024Cobrança Federal | B73: PCJ3.1.2.1/2024 | C73: =INDEX(Financeiro[Descrição da ação],MATCH(B73,Financeiro[ID Ação], 0)) -> Promoção da conservação e recuperação de nascentes, matas ciliares e áreas de recarga | D73: =IF(INDEX('Acompanhamento das metas 24-27'!$C$2:$C$100,MATCH(B73,'Acompanhamento das metas 24-27'!$A$2:$A$100,0))<>0,INDEX('Acompanhamento das metas 24-27'!$C$2:$C$100,MATCH(B73,'Acompanhamento das metas 24-27'!$A$2:$A$100,0)),"") -> Recuperação de 40 hectares de áreas prioritárias por ano | E73: =IF(VLOOKUP(A73,Financeiro[[id_ação_Fonte_oculta]:[R$ Executado (2027)]],4,FALSE)=0,"",VLOOKUP(A73,Financeiro[[id_ação_Fonte_oculta]:[R$ Executado (2027)]],4,FALSE)) -> Cobrança Federal | F73: =IF(VLOOKUP(A73,Financeiro[[id_ação_Fonte_oculta]:[R$ Executado (2027)]],4,FALSE)=0,"",VLOOKUP(A73,Financeiro[[id_ação_Fonte_oculta]:[R$ Executado (2027)]],5,FALSE)) -> 500000 | G73: =IF(VLOOKUP(A73,Financeiro[[id_ação_Fonte_oculta]:[R$ Executado (2027)]],4,FALSE)=0,"",VLOOKUP(A73,Financeiro[[id_ação_Fonte_oculta]:[R$ Executado (2027)]],8,FALSE)) -> 500000 | H73: =IF(VLOOKUP(A73,Financeiro[[id_ação_Fonte_oculta]:[R$ Executado (2027)]],4,FALSE)=0,"",VLOOKUP(A73,Financeiro[[id_ação_Fonte_oculta]:[R$ Executado (2027)]],11,FALSE)) -> 0 | I73: =IF(VLOOKUP(A73,Financeiro[[id_ação_Fonte_oculta]:[R$ Executado (2027)]],4,FALSE)=0,"",VLOOKUP(A73,Financeiro[[id_ação_Fonte_oculta]:[R$ Executado (2027)]],14,FALSE)) -> 0 | J73: 1000000 | K73: =IFERROR(INDEX(IdentAcoes[SubPDC],MATCH(B73,IdentAcoes[ID Ação],0)),"") -> 4.2 - Soluções baseadas Natureza | L73: =IFERROR(INDEX(IdentAcoes[Prioridade do PDC],MATCH(B73,IdentAcoes[ID Ação],0)),"") -> Não prioritário | M73: =IFERROR(INDEX(IdentAcoes[Segmento do executor],MATCH($B73,IdentAcoes[ID Ação],0)),"") -> Sociedade Civil | N73: =IFERROR(INDEX(IdentAcoes[Área de abrangência],MATCH($B73,IdentAcoes[ID Ação],0)),"") -> Bacia | O73: =IFERROR(INDEX(IdentAcoes[Detalhamento da área de abrangência],MATCH($B73,IdentAcoes[ID Ação],0)),"") -> Áreas de Contribuição das Bacias PCJ prioritárias conforme mapa síntese Mapa Conservação, recuperação de nascentes, matas ciliares e áreas de recarga do Plano de Bacias
A74: PCJ3.1.3.1/2024Cobrança Federal | B74: PCJ3.1.3.1/2024 | C74: =INDEX(Financeiro[Descrição da ação],MATCH(B74,Financeiro[ID Ação], 0)) -> Implementação de projetos de PSA | D74: =IF(INDEX('Acompanhamento das metas 24-27'!$C$2:$C$100,MATCH(B74,'Acompanhamento das metas 24-27'!$A$2:$A$100,0))<>0,INDEX('Acompanhamento das metas 24-27'!$C$2:$C$100,MATCH(B74,'Acompanhamento das metas 24-27'!$A$2:$A$100,0)),"") -> Contratação de ao menos 01 projeto aprovado no Edital anualmente | E74: =IF(VLOOKUP(A74,Financeiro[[id_ação_Fonte_oculta]:[R$ Executado (2027)]],4,FALSE)=0,"",VLOOKUP(A74,Financeiro[[id_ação_Fonte_oculta]:[R$ Executado (2027)]],4,FALSE)) -> Cobrança Federal | F74: =IF(VLOOKUP(A74,Financeiro[[id_ação_Fonte_oculta]:[R$ Executado (2027)]],4,FALSE)=0,"",VLOOKUP(A74,Financeiro[[id_ação_Fonte_oculta]:[R$ Executado (2027)]],5,FALSE)) -> 0 | G74: =IF(VLOOKUP(A74,Financeiro[[id_ação_Fonte_oculta]:[R$ Executado (2027)]],4,FALSE)=0,"",VLOOKUP(A74,Financeiro[[id_ação_Fonte_oculta]:[R$ Executado (2027)]],8,FALSE)) -> 0 | H74: =IF(VLOOKUP(A74,Financeiro[[id_ação_Fonte_oculta]:[R$ Executado (2027)]],4,FALSE)=0,"",VLOOKUP(A74,Financeiro[[id_ação_Fonte_oculta]:[R$ Executado (2027)]],11,FALSE)) -> 0 | I74: =IF(VLOOKUP(A74,Financeiro[[id_ação_Fonte_oculta]:[R$ Executado (2027)]],4,FALSE)=0,"",VLOOKUP(A74,Financeiro[[id_ação_Fonte_oculta]:[R$ Executado (2027)]],14,FALSE)) -> 0 | J74: 0 | K74: =IFERROR(INDEX(IdentAcoes[SubPDC],MATCH(B74,IdentAcoes[ID Ação],0)),"") -> 4.2 - Soluções baseadas Natureza | L74: =IFERROR(INDEX(IdentAcoes[Prioridade do PDC],MATCH(B74,IdentAcoes[ID Ação],0)),"") -> Não prioritário | M74: =IFERROR(INDEX(IdentAcoes[Segmento do executor],MATCH($B74,IdentAcoes[ID Ação],0)),"") -> Sociedade Civil | N74: =IFERROR(INDEX(IdentAcoes[Área de abrangência],MATCH($B74,IdentAcoes[ID Ação],0)),"") -> Bacia | O74: =IFERROR(INDEX(IdentAcoes[Detalhamento da área de abrangência],MATCH($B74,IdentAcoes[ID Ação],0)),"") -> Áreas de Contribuição das Bacias PCJ prioritárias conforme mapa síntese Mapa Conservação, recuperação de nascentes, matas ciliares e áreas de recarga do Plano de Bacias
A75: PCJ3.1.1.1/2024Cobrança Federal | B75: PCJ3.1.1.1/2024 | C75: =INDEX(Financeiro[Descrição da ação],MATCH(B75,Financeiro[ID Ação], 0)) -> Desenvolvimento e monitoramento da implementação dos PIPs | D75: =IF(INDEX('Acompanhamento das metas 24-27'!$C$2:$C$100,MATCH(B75,'Acompanhamento das metas 24-27'!$A$2:$A$100,0))<>0,INDEX('Acompanhamento das metas 24-27'!$C$2:$C$100,MATCH(B75,'Acompanhamento das metas 24-27'!$A$2:$A$100,0)),"") -> Contratação da elaboração de PIPs para 1.000 hectares por ano | E75: =IF(VLOOKUP(A75,Financeiro[[id_ação_Fonte_oculta]:[R$ Executado (2027)]],4,FALSE)=0,"",VLOOKUP(A75,Financeiro[[id_ação_Fonte_oculta]:[R$ Executado (2027)]],4,FALSE)) -> Cobrança Federal | F75: =IF(VLOOKUP(A75,Financeiro[[id_ação_Fonte_oculta]:[R$ Executado (2027)]],4,FALSE)=0,"",VLOOKUP(A75,Financeiro[[id_ação_Fonte_oculta]:[R$ Executado (2027)]],5,FALSE)) -> 600000 | G75: =IF(VLOOKUP(A75,Financeiro[[id_ação_Fonte_oculta]:[R$ Executado (2027)]],4,FALSE)=0,"",VLOOKUP(A75,Financeiro[[id_ação_Fonte_oculta]:[R$ Executado (2027)]],8,FALSE)) -> 600000 | H75: =IF(VLOOKUP(A75,Financeiro[[id_ação_Fonte_oculta]:[R$ Executado (2027)]],4,FALSE)=0,"",VLOOKUP(A75,Financeiro[[id_ação_Fonte_oculta]:[R$ Executado (2027)]],11,FALSE)) -> 0 | I75: =IF(VLOOKUP(A75,Financeiro[[id_ação_Fonte_oculta]:[R$ Executado (2027)]],4,FALSE)=0,"",VLOOKUP(A75,Financeiro[[id_ação_Fonte_oculta]:[R$ Executado (2027)]],14,FALSE)) -> 0 | J75: 1200000 | K75: =IFERROR(INDEX(IdentAcoes[SubPDC],MATCH(B75,IdentAcoes[ID Ação],0)),"") -> 4.3 - Mananciais | L75: =IFERROR(INDEX(IdentAcoes[Prioridade do PDC],MATCH(B75,IdentAcoes[ID Ação],0)),"") -> Não prioritário | M75: =IFERROR(INDEX(IdentAcoes[Segmento do executor],MATCH($B75,IdentAcoes[ID Ação],0)),"") -> Sociedade Civil | N75: =IFERROR(INDEX(IdentAcoes[Área de abrangência],MATCH($B75,IdentAcoes[ID Ação],0)),"") -> Bacia | O75: =IFERROR(INDEX(IdentAcoes[Detalhamento da área de abrangência],MATCH($B75,IdentAcoes[ID Ação],0)),"") -> Bacias PCJ
A76: PCJ5.3.1.2/2024Cobrança Federal | B76: PCJ5.3.1.2/2024 | C76: =INDEX(Financeiro[Descrição da ação],MATCH(B76,Financeiro[ID Ação], 0)) -> Elaboração de um Plano de Capacitação Técnica e realização de processos formativos nas áreas de atuação das Câmaras Técnicas | D76: =IF(INDEX('Acompanhamento das metas 24-27'!$C$2:$C$100,MATCH(B76,'Acompanhamento das metas 24-27'!$A$2:$A$100,0))<>0,INDEX('Acompanhamento das metas 24-27'!$C$2:$C$100,MATCH(B76,'Acompanhamento das metas 24-27'!$A$2:$A$100,0)),"") -> 01 Plano elaborado e ao menos 12 membros capacitados em nível de pós-graduação | E76: =IF(VLOOKUP(A76,Financeiro[[id_ação_Fonte_oculta]:[R$ Executado (2027)]],4,FALSE)=0,"",VLOOKUP(A76,Financeiro[[id_ação_Fonte_oculta]:[R$ Executado (2027)]],4,FALSE)) -> Cobrança Federal | F76: =IF(VLOOKUP(A76,Financeiro[[id_ação_Fonte_oculta]:[R$ Executado (2027)]],4,FALSE)=0,"",VLOOKUP(A76,Financeiro[[id_ação_Fonte_oculta]:[R$ Executado (2027)]],5,FALSE)) -> 191079.13 | G76: =IF(VLOOKUP(A76,Financeiro[[id_ação_Fonte_oculta]:[R$ Executado (2027)]],4,FALSE)=0,"",VLOOKUP(A76,Financeiro[[id_ação_Fonte_oculta]:[R$ Executado (2027)]],8,FALSE)) -> 197384.7418 | H76: =IF(VLOOKUP(A76,Financeiro[[id_ação_Fonte_oculta]:[R$ Executado (2027)]],4,FALSE)=0,"",VLOOKUP(A76,Financeiro[[id_ação_Fonte_oculta]:[R$ Executado (2027)]],11,FALSE)) -> 0 | I76: =IF(VLOOKUP(A76,Financeiro[[id_ação_Fonte_oculta]:[R$ Executado (2027)]],4,FALSE)=0,"",VLOOKUP(A76,Financeiro[[id_ação_Fonte_oculta]:[R$ Executado (2027)]],14,FALSE)) -> 0 | J76: 388463.8718 | K76: =IFERROR(INDEX(IdentAcoes[SubPDC],MATCH(B76,IdentAcoes[ID Ação],0)),"") -> 8.1 - Capacitação | L76: =IFERROR(INDEX(IdentAcoes[Prioridade do PDC],MATCH(B76,IdentAcoes[ID Ação],0)),"") -> Não prioritário | M76: =IFERROR(INDEX(IdentAcoes[Segmento do executor],MATCH($B76,IdentAcoes[ID Ação],0)),"") -> Sociedade Civil | N76: =IFERROR(INDEX(IdentAcoes[Área de abrangência],MATCH($B76,IdentAcoes[ID Ação],0)),"") -> Bacia | O76: =IFERROR(INDEX(IdentAcoes[Detalhamento da área de abrangência],MATCH($B76,IdentAcoes[ID Ação],0)),"") -> Bacias PCJ
A77: PCJ1.4.1.2/2024Cobrança Federal | B77: PCJ1.4.1.2/2024 | C77: =INDEX(Financeiro[Descrição da ação],MATCH(B77,Financeiro[ID Ação], 0)) -> Ampliação e divulgação do programa de capacitação (Escola da Água e Saneamento), fomento e incentivo à capacitação de operadores | D77: =IF(INDEX('Acompanhamento das metas 24-27'!$C$2:$C$100,MATCH(B77,'Acompanhamento das metas 24-27'!$A$2:$A$100,0))<>0,INDEX('Acompanhamento das metas 24-27'!$C$2:$C$100,MATCH(B77,'Acompanhamento das metas 24-27'!$A$2:$A$100,0)),"") -> Capacitação de ao menos 05 turmas por ano | E77: =IF(VLOOKUP(A77,Financeiro[[id_ação_Fonte_oculta]:[R$ Executado (2027)]],4,FALSE)=0,"",VLOOKUP(A77,Financeiro[[id_ação_Fonte_oculta]:[R$ Executado (2027)]],4,FALSE)) -> Cobrança Federal | F77: =IF(VLOOKUP(A77,Financeiro[[id_ação_Fonte_oculta]:[R$ Executado (2027)]],4,FALSE)=0,"",VLOOKUP(A77,Financeiro[[id_ação_Fonte_oculta]:[R$ Executado (2027)]],5,FALSE)) -> 75000 | G77: =IF(VLOOKUP(A77,Financeiro[[id_ação_Fonte_oculta]:[R$ Executado (2027)]],4,FALSE)=0,"",VLOOKUP(A77,Financeiro[[id_ação_Fonte_oculta]:[R$ Executado (2027)]],8,FALSE)) -> 75000 | H77: =IF(VLOOKUP(A77,Financeiro[[id_ação_Fonte_oculta]:[R$ Executado (2027)]],4,FALSE)=0,"",VLOOKUP(A77,Financeiro[[id_ação_Fonte_oculta]:[R$ Executado (2027)]],11,FALSE)) -> 0 | I77: =IF(VLOOKUP(A77,Financeiro[[id_ação_Fonte_oculta]:[R$ Executado (2027)]],4,FALSE)=0,"",VLOOKUP(A77,Financeiro[[id_ação_Fonte_oculta]:[R$ Executado (2027)]],14,FALSE)) -> 0 | J77: 150000 | K77: =IFERROR(INDEX(IdentAcoes[SubPDC],MATCH(B77,IdentAcoes[ID Ação],0)),"") -> 8.1 - Capacitação | L77: =IFERROR(INDEX(IdentAcoes[Prioridade do PDC],MATCH(B77,IdentAcoes[ID Ação],0)),"") -> Não prioritário | M77: =IFERROR(INDEX(IdentAcoes[Segmento do executor],MATCH($B77,IdentAcoes[ID Ação],0)),"") -> Sociedade Civil | N77: =IFERROR(INDEX(IdentAcoes[Área de abrangência],MATCH($B77,IdentAcoes[ID Ação],0)),"") -> Bacia | O77: =IFERROR(INDEX(IdentAcoes[Detalhamento da área de abrangência],MATCH($B77,IdentAcoes[ID Ação],0)),"") -> Bacias PCJ
A78: PCJ5.2.1.2/2024Cobrança Federal | B78: PCJ5.2.1.2/2024 | C78: =INDEX(Financeiro[Descrição da ação],MATCH(B78,Financeiro[ID Ação], 0)) -> Realização de processos formativos e campanhas educativas sobre a realidade das Bacias PCJ | D78: =IF(INDEX('Acompanhamento das metas 24-27'!$C$2:$C$100,MATCH(B78,'Acompanhamento das metas 24-27'!$A$2:$A$100,0))<>0,INDEX('Acompanhamento das metas 24-27'!$C$2:$C$100,MATCH(B78,'Acompanhamento das metas 24-27'!$A$2:$A$100,0)),"") -> Ao menos 01 processo formativo e uma campanha educativa realizada | E78: =IF(VLOOKUP(A78,Financeiro[[id_ação_Fonte_oculta]:[R$ Executado (2027)]],4,FALSE)=0,"",VLOOKUP(A78,Financeiro[[id_ação_Fonte_oculta]:[R$ Executado (2027)]],4,FALSE)) -> Cobrança Federal | F78: =IF(VLOOKUP(A78,Financeiro[[id_ação_Fonte_oculta]:[R$ Executado (2027)]],4,FALSE)=0,"",VLOOKUP(A78,Financeiro[[id_ação_Fonte_oculta]:[R$ Executado (2027)]],5,FALSE)) -> 1000000 | G78: =IF(VLOOKUP(A78,Financeiro[[id_ação_Fonte_oculta]:[R$ Executado (2027)]],4,FALSE)=0,"",VLOOKUP(A78,Financeiro[[id_ação_Fonte_oculta]:[R$ Executado (2027)]],8,FALSE)) -> 750000 | H78: =IF(VLOOKUP(A78,Financeiro[[id_ação_Fonte_oculta]:[R$ Executado (2027)]],4,FALSE)=0,"",VLOOKUP(A78,Financeiro[[id_ação_Fonte_oculta]:[R$ Executado (2027)]],11,FALSE)) -> 0 | I78: =IF(VLOOKUP(A78,Financeiro[[id_ação_Fonte_oculta]:[R$ Executado (2027)]],4,FALSE)=0,"",VLOOKUP(A78,Financeiro[[id_ação_Fonte_oculta]:[R$ Executado (2027)]],14,FALSE)) -> 0 | J78: 1750000 | K78: =IFERROR(INDEX(IdentAcoes[SubPDC],MATCH(B78,IdentAcoes[ID Ação],0)),"") -> 8.2 - Educação | L78: =IFERROR(INDEX(IdentAcoes[Prioridade do PDC],MATCH(B78,IdentAcoes[ID Ação],0)),"") -> Não prioritário | M78: =IFERROR(INDEX(IdentAcoes[Segmento do executor],MATCH($B78,IdentAcoes[ID Ação],0)),"") -> Sociedade Civil | N78: =IFERROR(INDEX(IdentAcoes[Área de abrangência],MATCH($B78,IdentAcoes[ID Ação],0)),"") -> Bacia | O78: =IFERROR(INDEX(IdentAcoes[Detalhamento da área de abrangência],MATCH($B78,IdentAcoes[ID Ação],0)),"") -> Bacias PCJ
A79: PCJ5.1.1.1/2024Cobrança Federal | B79: PCJ5.1.1.1/2024 | C79: =INDEX(Financeiro[Descrição da ação],MATCH(B79,Financeiro[ID Ação], 0)) -> Elaboração e execução de um Plano de Comunicação para o fortalecimento da comunicação entre a sociedade civil e os Comitês PCJ | D79: =IF(INDEX('Acompanhamento das metas 24-27'!$C$2:$C$100,MATCH(B79,'Acompanhamento das metas 24-27'!$A$2:$A$100,0))<>0,INDEX('Acompanhamento das metas 24-27'!$C$2:$C$100,MATCH(B79,'Acompanhamento das metas 24-27'!$A$2:$A$100,0)),"") -> 01 Plano elaborado e ações implementadas | E79: =IF(VLOOKUP(A79,Financeiro[[id_ação_Fonte_oculta]:[R$ Executado (2027)]],4,FALSE)=0,"",VLOOKUP(A79,Financeiro[[id_ação_Fonte_oculta]:[R$ Executado (2027)]],4,FALSE)) -> Cobrança Federal | F79: =IF(VLOOKUP(A79,Financeiro[[id_ação_Fonte_oculta]:[R$ Executado (2027)]],4,FALSE)=0,"",VLOOKUP(A79,Financeiro[[id_ação_Fonte_oculta]:[R$ Executado (2027)]],5,FALSE)) -> 750000 | G79: =IF(VLOOKUP(A79,Financeiro[[id_ação_Fonte_oculta]:[R$ Executado (2027)]],4,FALSE)=0,"",VLOOKUP(A79,Financeiro[[id_ação_Fonte_oculta]:[R$ Executado (2027)]],8,FALSE)) -> 750000 | H79: =IF(VLOOKUP(A79,Financeiro[[id_ação_Fonte_oculta]:[R$ Executado (2027)]],4,FALSE)=0,"",VLOOKUP(A79,Financeiro[[id_ação_Fonte_oculta]:[R$ Executado (2027)]],11,FALSE)) -> 0 | I79: =IF(VLOOKUP(A79,Financeiro[[id_ação_Fonte_oculta]:[R$ Executado (2027)]],4,FALSE)=0,"",VLOOKUP(A79,Financeiro[[id_ação_Fonte_oculta]:[R$ Executado (2027)]],14,FALSE)) -> 0 | J79: 1500000 | K79: =IFERROR(INDEX(IdentAcoes[SubPDC],MATCH(B79,IdentAcoes[ID Ação],0)),"") -> 8.3 - Comunicação | L79: =IFERROR(INDEX(IdentAcoes[Prioridade do PDC],MATCH(B79,IdentAcoes[ID Ação],0)),"") -> Não prioritário | M79: =IFERROR(INDEX(IdentAcoes[Segmento do executor],MATCH($B79,IdentAcoes[ID Ação],0)),"") -> Sociedade Civil | N79: =IFERROR(INDEX(IdentAcoes[Área de abrangência],MATCH($B79,IdentAcoes[ID Ação],0)),"") -> Bacia | O79: =IFERROR(INDEX(IdentAcoes[Detalhamento da área de abrangência],MATCH($B79,IdentAcoes[ID Ação],0)),"") -> Bacias PCJ
A80: PCJ6.1.1.6/2024Cobrança Federal | B80: PCJ6.1.1.6/2024 | C80: =INDEX(Financeiro[Descrição da ação],MATCH(B80,Financeiro[ID Ação], 0)) -> Apoio operacional para a área de comunicação social | D80: =IF(INDEX('Acompanhamento das metas 24-27'!$C$2:$C$100,MATCH(B80,'Acompanhamento das metas 24-27'!$A$2:$A$100,0))<>0,INDEX('Acompanhamento das metas 24-27'!$C$2:$C$100,MATCH(B80,'Acompanhamento das metas 24-27'!$A$2:$A$100,0)),"") -> Apoio operacional contínuo | E80: =IF(VLOOKUP(A80,Financeiro[[id_ação_Fonte_oculta]:[R$ Executado (2027)]],4,FALSE)=0,"",VLOOKUP(A80,Financeiro[[id_ação_Fonte_oculta]:[R$ Executado (2027)]],4,FALSE)) -> Cobrança Federal | F80: =IF(VLOOKUP(A80,Financeiro[[id_ação_Fonte_oculta]:[R$ Executado (2027)]],4,FALSE)=0,"",VLOOKUP(A80,Financeiro[[id_ação_Fonte_oculta]:[R$ Executado (2027)]],5,FALSE)) -> 375902.03 | G80: =IF(VLOOKUP(A80,Financeiro[[id_ação_Fonte_oculta]:[R$ Executado (2027)]],4,FALSE)=0,"",VLOOKUP(A80,Financeiro[[id_ação_Fonte_oculta]:[R$ Executado (2027)]],8,FALSE)) -> 388306.7975 | H80: =IF(VLOOKUP(A80,Financeiro[[id_ação_Fonte_oculta]:[R$ Executado (2027)]],4,FALSE)=0,"",VLOOKUP(A80,Financeiro[[id_ação_Fonte_oculta]:[R$ Executado (2027)]],11,FALSE)) -> 0 | I80: =IF(VLOOKUP(A80,Financeiro[[id_ação_Fonte_oculta]:[R$ Executado (2027)]],4,FALSE)=0,"",VLOOKUP(A80,Financeiro[[id_ação_Fonte_oculta]:[R$ Executado (2027)]],14,FALSE)) -> 0 | J80: 764208.8275 | K80: =IFERROR(INDEX(IdentAcoes[SubPDC],MATCH(B80,IdentAcoes[ID Ação],0)),"") -> 8.3 - Comunicação | L80: =IFERROR(INDEX(IdentAcoes[Prioridade do PDC],MATCH(B80,IdentAcoes[ID Ação],0)),"") -> Não prioritário | M80: =IFERROR(INDEX(IdentAcoes[Segmento do executor],MATCH($B80,IdentAcoes[ID Ação],0)),"") -> Sociedade Civil | N80: =IFERROR(INDEX(IdentAcoes[Área de abrangência],MATCH($B80,IdentAcoes[ID Ação],0)),"") -> Bacia | O80: =IFERROR(INDEX(IdentAcoes[Detalhamento da área de abrangência],MATCH($B80,IdentAcoes[ID Ação],0)),"") -> Bacias PCJ
A81: PCJ5.2.1.3/2024Cobrança Federal | B81: PCJ5.2.1.3/2024 | C81: =INDEX(Financeiro[Descrição da ação],MATCH(B81,Financeiro[ID Ação], 0)) -> Elaboração e divulgação de materiais educativos | D81: =IF(INDEX('Acompanhamento das metas 24-27'!$C$2:$C$100,MATCH(B81,'Acompanhamento das metas 24-27'!$A$2:$A$100,0))<>0,INDEX('Acompanhamento das metas 24-27'!$C$2:$C$100,MATCH(B81,'Acompanhamento das metas 24-27'!$A$2:$A$100,0)),"") -> Materiais educativos elaborados e distribuídos, conforme planejado pelo plano de comunicação. | E81: =IF(VLOOKUP(A81,Financeiro[[id_ação_Fonte_oculta]:[R$ Executado (2027)]],4,FALSE)=0,"",VLOOKUP(A81,Financeiro[[id_ação_Fonte_oculta]:[R$ Executado (2027)]],4,FALSE)) -> Cobrança Federal | F81: =IF(VLOOKUP(A81,Financeiro[[id_ação_Fonte_oculta]:[R$ Executado (2027)]],4,FALSE)=0,"",VLOOKUP(A81,Financeiro[[id_ação_Fonte_oculta]:[R$ Executado (2027)]],5,FALSE)) -> 500000 | G81: =IF(VLOOKUP(A81,Financeiro[[id_ação_Fonte_oculta]:[R$ Executado (2027)]],4,FALSE)=0,"",VLOOKUP(A81,Financeiro[[id_ação_Fonte_oculta]:[R$ Executado (2027)]],8,FALSE)) -> 500000 | H81: =IF(VLOOKUP(A81,Financeiro[[id_ação_Fonte_oculta]:[R$ Executado (2027)]],4,FALSE)=0,"",VLOOKUP(A81,Financeiro[[id_ação_Fonte_oculta]:[R$ Executado (2027)]],11,FALSE)) -> 0 | I81: =IF(VLOOKUP(A81,Financeiro[[id_ação_Fonte_oculta]:[R$ Executado (2027)]],4,FALSE)=0,"",VLOOKUP(A81,Financeiro[[id_ação_Fonte_oculta]:[R$ Executado (2027)]],14,FALSE)) -> 0 | J81: 1000000 | K81: =IFERROR(INDEX(IdentAcoes[SubPDC],MATCH(B81,IdentAcoes[ID Ação],0)),"") -> 8.3 - Comunicação | L81: =IFERROR(INDEX(IdentAcoes[Prioridade do PDC],MATCH(B81,IdentAcoes[ID Ação],0)),"") -> Não prioritário | M81: =IFERROR(INDEX(IdentAcoes[Segmento do executor],MATCH($B81,IdentAcoes[ID Ação],0)),"") -> Sociedade Civil | N81: =IFERROR(INDEX(IdentAcoes[Área de abrangência],MATCH($B81,IdentAcoes[ID Ação],0)),"") -> Bacia | O81: =IFERROR(INDEX(IdentAcoes[Detalhamento da área de abrangência],MATCH($B81,IdentAcoes[ID Ação],0)),"") -> Bacias PCJ

Sheet Consolidaçao - 1 (hidden)
A1: Delib. 190 | C1: 2021 (R$ Estimado) | H1: Delib. 246 | I1: 2022 (R$ Estimado) | N1: 2023 (R$ Estimado) | S1: 2022 - 2023 (R$ Estimado)
A2: SubPDC | B2: CFURH | C2: Cobrança Estadual | D2: Cobrança Federal | E2: Outras | F2: TOTAL | H2: SubPDC | I2: CFURH | J2: Cobrança Estadual | K2: Cobrança Federal | L2: Outras | M2: TOTAL | N2: CFURH | O2: Cobrança Estadual | P2: Cobrança Federal | Q2: Outras | R2: TOTAL | S2: TOTAL
